Workbook

Sheet report
H2: Employee Name (Passport) | I2: Starting Date | J2: end | K2: jan | R2: Feb | Y2: Mar | AF2: Apr | AM2: May | AT2: Jun | BA2: jul | BH2: Aug | BO2: sep | BV2: Oct | CC2: Nov | CJ2: Dec | CR2: الراتب | CS2: مخصص الاجازات بداية السنة | CT2: مخصص الاجازات خلال السنة | CU2: مخصص الاجازات نهاية السنة
A3: Employee Name (Passport) | B3: 2020 | C3: Leave Provision | D3: Vacation | E3: Unpaid | F3: PAY | G3: Leave Provision | H3: Employee Name (Passport) | I3: Starting Date | K3: Total Paid days | L3: Medical leaves | M3: Vacation | N3: Absence | O3: Unpaid | P3: Official holiday | Q3: pay | R3: Total Paid days | S3: Medical leaves | T3: Vacation | U3: Absence | V3: Unpaid | W3: Official holiday | X3: pay | Y3: Total Paid days | Z3: Medical leaves | AA3: Vacation | AB3: Absence | AC3: Unpaid | AD3: Official holiday | AE3: pay | AF3: Total Paid days | AG3: Medical leaves | AH3: Vacation | AI3: Absence | AJ3: Unpaid | AK3: Official holiday | AL3: pay | AM3: Total Paid days | AN3: Medical leaves | AO3: Vacation | AP3: Absence | AQ3: Unpaid | AR3: Official holiday | AS3: pay | AT3: Total Paid days | AU3: Medical leaves | AV3: Vacation | AW3: Absence | AX3: Unpaid | AY3: Official holiday | AZ3: pay | BA3: Total Paid days | BB3: Medical leaves | BC3: Vacation | BD3: Absence | BE3: Unpaid | BF3: Official holiday | BG3: pay | BH3: Total Paid days | BI3: Medical leaves | BJ3: Vacation | BK3: Absence | BL3: Unpaid | BM3: Official holiday | BN3: pay | BO3: Total Paid days | BP3: Medical leaves | BQ3: Vacation | BR3: Absence | BS3: Unpaid | BT3: Official holiday | BU3: pay | BV3: Total Paid days | BW3: Medical leaves | BX3: Vacation | BY3: Absence | BZ3: Unpaid | CA3: Official holiday | CB3: pay | CC3: Total Paid days | CD3: Medical leaves | CE3: Vacation | CF3: Absence | CG3: Unpaid | CH3: Official holiday | CI3: pay | CJ3: Total Paid days | CK3: Medical leaves | CL3: Vacation | CM3: Absence | CN3: Unpaid | CO3: Official holiday | CP3: pay
A4: عصام لطفى اسعد الصابر | B4: 1.8 | C4: =(SUM(K4,R4,Y4,AF4,AM4,AT4,BA4,BH4,BO4,BV4,CC4,CJ4))*30/312 -> 19.90384615 | D4: =SUM(M4,T4,AA4,AH4,AO4,AV4,BC4,BJ4,BQ4,BX4,CE4,CL4) -> 1 | E4: =SUM(O4,V4,AC4,AJ4,AQ4,AX4,BE4,BL4,BS4,BZ4,CG4,CN4) -> 0 | F4: =SUM(Q4,X4,AE4,AL4,AZ4,BG4,BN4,BU4,CB4,CI4,CP4) -> 0 | G4: =B4+C4-D4-F4 -> 20.70384615 | I4: 2012-08-01 | K4: =IFERROR(OFFSET(INDIRECT("'"&$K$2&"'!"&"C$"&ROWS($B$1:B9)),,COLUMNS($B$1:B1)+31),"") -> 25 | L4: =IFERROR(OFFSET(INDIRECT("'"&$K$2&"'!"&"C$"&ROWS($B$1:B9)),,COLUMNS($B$1:B1)+32),"") -> 0 | M4: =IFERROR(OFFSET(INDIRECT("'"&$K$2&"'!"&"C$"&ROWS($B$1:C9)),,COLUMNS($B$1:B1)+33),"") -> 1 | N4: =IFERROR(OFFSET(INDIRECT("'"&$K$2&"'!"&"C$"&ROWS($B$1:D9)),,COLUMNS($B$1:B1)+34),"") -> 0 | O4: =IFERROR(OFFSET(INDIRECT("'"&$K$2&"'!"&"C$"&ROWS($B$1:D9)),,COLUMNS($B$1:B1)+35),"") -> 0 | P4: =IFERROR(OFFSET(INDIRECT("'"&$K$2&"'!"&"C$"&ROWS($B$1:H9)),,COLUMNS($B$1:B1)+36),"") -> 0 | Q4: =IFERROR(OFFSET(INDIRECT("'"&$K$2&"'!"&"C$"&ROWS($B$1:I9)),,COLUMNS($B$1:B1)+37),"") -> 0 | R4: =IFERROR(OFFSET(INDIRECT("'"&$R$2&"'!"&"C$"&ROWS($B$1:B9)),,COLUMNS($B$1:B1)+31),"") -> 0 | S4: =IFERROR(OFFSET(INDIRECT("'"&$R$2&"'!"&"C$"&ROWS($B$1:B9)),,COLUMNS($B$1:B1)+32),"") -> 0 | T4: =IFERROR(OFFSET(INDIRECT("'"&$R$2&"'!"&"C$"&ROWS($B$1:C9)),,COLUMNS($B$1:B1)+33),"") -> 0 | U4: =IFERROR(OFFSET(INDIRECT("'"&$R$2&"'!"&"C$"&ROWS($B$1:D9)),,COLUMNS($B$1:B1)+34),"") -> 0 | V4: =IFERROR(OFFSET(INDIRECT("'"&$R$2&"'!"&"C$"&ROWS($B$1:D9)),,COLUMNS($B$1:B1)+35),"") -> 0 | W4: =IFERROR(OFFSET(INDIRECT("'"&$R$2&"'!"&"C$"&ROWS($B$1:H9)),,COLUMNS($B$1:B1)+36),"") -> 0 | X4: =IFERROR(OFFSET(INDIRECT("'"&$R$2&"'!"&"C$"&ROWS($B$1:I9)),,COLUMNS($B$1:B1)+37),"") -> 0 | Y4: =IFERROR(OFFSET(INDIRECT("'"&$Y$2&"'!"&"C$"&ROWS($B$1:B9)),,COLUMNS($B$1:B1)+31),"") -> 26 | Z4: =IFERROR(OFFSET(INDIRECT("'"&$Y$2&"'!"&"C$"&ROWS($B$1:B9)),,COLUMNS($B$1:B1)+32),"") -> 0 | AA4: =IFERROR(OFFSET(INDIRECT("'"&$Y$2&"'!"&"C$"&ROWS($B$1:C9)),,COLUMNS($B$1:B1)+33),"") -> 0 | AB4: =IFERROR(OFFSET(INDIRECT("'"&$Y$2&"'!"&"C$"&ROWS($B$1:D9)),,COLUMNS($B$1:B1)+34),"") -> 0 | AC4: =IFERROR(OFFSET(INDIRECT("'"&$Y$2&"'!"&"C$"&ROWS($B$1:D9)),,COLUMNS($B$1:B1)+35),"") -> 0 | AD4: =IFERROR(OFFSET(INDIRECT("'"&$Y$2&"'!"&"C$"&ROWS($B$1:H9)),,COLUMNS($B$1:B1)+36),"") -> 0 | AE4: =IFERROR(OFFSET(INDIRECT("'"&$Y$2&"'!"&"C$"&ROWS($B$1:I9)),,COLUMNS($B$1:B1)+37),"") -> 0 | AF4: =IFERROR(OFFSET(INDIRECT("'"&$AF$2&"'!"&"C$"&ROWS($B$1:B9)),,COLUMNS($B$1:B1)+31),"") -> 0 | AG4: =IFERROR(OFFSET(INDIRECT("'"&$AF$2&"'!"&"C$"&ROWS($B$1:B9)),,COLUMNS($B$1:B1)+32),"") -> 0 | AH4: =IFERROR(OFFSET(INDIRECT("'"&$AF$2&"'!"&"C$"&ROWS($B$1:C9)),,COLUMNS($B$1:B1)+33),"") -> 0 | AI4: =IFERROR(OFFSET(INDIRECT("'"&$AF$2&"'!"&"C$"&ROWS($B$1:D9)),,COLUMNS($B$1:B1)+34),"") -> 0 | AJ4: =IFERROR(OFFSET(INDIRECT("'"&$AF$2&"'!"&"C$"&ROWS($B$1:D9)),,COLUMNS($B$1:B1)+35),"") -> 0 | AK4: =IFERROR(OFFSET(INDIRECT("'"&$AF$2&"'!"&"C$"&ROWS($B$1:H9)),,COLUMNS($B$1:B1)+36),"") -> 0 | AL4: =IFERROR(OFFSET(INDIRECT("'"&$AF$2&"'!"&"C$"&ROWS($B$1:I9)),,COLUMNS($B$1:B1)+37),"") -> 0 | AM4: =IFERROR(OFFSET(INDIRECT("'"&$AM$2&"'!"&"C$"&ROWS($B$1:B9)),,COLUMNS($B$1:B1)+31),"") -> 26 | AN4: =IFERROR(OFFSET(INDIRECT("'"&$AM$2&"'!"&"C$"&ROWS($B$1:B9)),,COLUMNS($B$1:B1)+32),"") -> 0 | AO4: =IFERROR(OFFSET(INDIRECT("'"&$AM$2&"'!"&"C$"&ROWS($B$1:C9)),,COLUMNS($B$1:B1)+33),"") -> 0 | AP4: =IFERROR(OFFSET(INDIRECT("'"&$AM$2&"'!"&"C$"&ROWS($B$1:D9)),,COLUMNS($B$1:B1)+34),"") -> 0 | AQ4: =IFERROR(OFFSET(INDIRECT("'"&$AM$2&"'!"&"C$"&ROWS($B$1:D9)),,COLUMNS($B$1:B1)+35),"") -> 0 | AR4: =IFERROR(OFFSET(INDIRECT("'"&$AM$2&"'!"&"C$"&ROWS($B$1:H9)),,COLUMNS($B$1:B1)+36),"") -> 0 | AS4: =IFERROR(OFFSET(INDIRECT("'"&$AM$2&"'!"&"C$"&ROWS($B$1:I9)),,COLUMNS($B$1:B1)+37),"") -> 0 | AT4: =IFERROR(OFFSET(INDIRECT("'"&$AT$2&"'!"&"C$"&ROWS($B$1:B9)),,COLUMNS($B$1:B1)+31),"") -> 26 | AU4: =IFERROR(OFFSET(INDIRECT("'"&$AT$2&"'!"&"C$"&ROWS($B$1:B9)),,COLUMNS($B$1:B1)+32),"") -> 0 | AV4: =IFERROR(OFFSET(INDIRECT("'"&$AT$2&"'!"&"C$"&ROWS($B$1:C9)),,COLUMNS($B$1:B1)+33),"") -> 0 | AW4: =IFERROR(OFFSET(INDIRECT("'"&$AT$2&"'!"&"C$"&ROWS($B$1:D9)),,COLUMNS($B$1:B1)+34),"") -> 0 | AX4: =IFERROR(OFFSET(INDIRECT("'"&$AT$2&"'!"&"C$"&ROWS($B$1:D9)),,COLUMNS($B$1:B1)+35),"") -> 0 | AY4: =IFERROR(OFFSET(INDIRECT("'"&$AT$2&"'!"&"C$"&ROWS($B$1:H9)),,COLUMNS($B$1:B1)+36),"") -> 0 | AZ4: =IFERROR(OFFSET(INDIRECT("'"&$AT$2&"'!"&"C$"&ROWS($B$1:I9)),,COLUMNS($B$1:B1)+37),"") -> 0 | BA4: =IFERROR(OFFSET(INDIRECT("'"&$BA$2&"'!"&"C$"&ROWS($B$1:B9)),,COLUMNS($B$1:B1)+31),"") -> 26 | BB4: =IFERROR(OFFSET(INDIRECT("'"&$BA$2&"'!"&"C$"&ROWS($B$1:B9)),,COLUMNS($B$1:B1)+32),"") -> 0 | BC4: =IFERROR(OFFSET(INDIRECT("'"&$BA$2&"'!"&"C$"&ROWS($B$1:C9)),,COLUMNS($B$1:B1)+33),"") -> 0 | BD4: =IFERROR(OFFSET(INDIRECT("'"&$BA$2&"'!"&"C$"&ROWS($B$1:D9)),,COLUMNS($B$1:B1)+34),"") -> 0 | BE4: =IFERROR(OFFSET(INDIRECT("'"&$BA$2&"'!"&"C$"&ROWS($B$1:D9)),,COLUMNS($B$1:B1)+35),"") -> 0 | BF4: =IFERROR(OFFSET(INDIRECT("'"&$BA$2&"'!"&"C$"&ROWS($B$1:H9)),,COLUMNS($B$1:B1)+36),"") -> 0 | BG4: =IFERROR(OFFSET(INDIRECT("'"&$BA$2&"'!"&"C$"&ROWS($B$1:I9)),,COLUMNS($B$1:B1)+37),"") -> 0 | BH4: =IFERROR(OFFSET(INDIRECT("'"&$BH$2&"'!"&"C$"&ROWS($B$1:B9)),,COLUMNS($B$1:B1)+31),"") -> 26 | BI4: =IFERROR(OFFSET(INDIRECT("'"&$BH$2&"'!"&"C$"&ROWS($B$1:B9)),,COLUMNS($B$1:B1)+32),"") -> 0 | BJ4: =IFERROR(OFFSET(INDIRECT("'"&$BH$2&"'!"&"C$"&ROWS($B$1:C9)),,COLUMNS($B$1:B1)+33),"") -> 0 | BK4: =IFERROR(OFFSET(INDIRECT("'"&$BH$2&"'!"&"C$"&ROWS($B$1:D9)),,COLUMNS($B$1:B1)+34),"") -> 0 | BL4: =IFERROR(OFFSET(INDIRECT("'"&$BH$2&"'!"&"C$"&ROWS($B$1:D9)),,COLUMNS($B$1:B1)+35),"") -> 0 | BM4: =IFERROR(OFFSET(INDIRECT("'"&$BH$2&"'!"&"C$"&ROWS($B$1:H9)),,COLUMNS($B$1:B1)+36),"") -> 0 | BN4: =IFERROR(OFFSET(INDIRECT("'"&$BH$2&"'!"&"C$"&ROWS($B$1:I9)),,COLUMNS($B$1:B1)+37),"") -> 0 | BO4: =IFERROR(OFFSET(INDIRECT("'"&$BO$2&"'!"&"C$"&ROWS($B$1:B9)),,COLUMNS($B$1:B1)+31),"") -> 0 | BP4: =IFERROR(OFFSET(INDIRECT("'"&$BO$2&"'!"&"C$"&ROWS($B$1:B9)),,COLUMNS($B$1:B1)+32),"") -> 0 | BQ4: =IFERROR(OFFSET(INDIRECT("'"&$BO$2&"'!"&"C$"&ROWS($B$1:C9)),,COLUMNS($B$1:B1)+33),"") -> 0 | BR4: =IFERROR(OFFSET(INDIRECT("'"&$BO$2&"'!"&"C$"&ROWS($B$1:D9)),,COLUMNS($B$1:B1)+34),"") -> 0 | BS4: =IFERROR(OFFSET(INDIRECT("'"&$BO$2&"'!"&"C$"&ROWS($B$1:D9)),,COLUMNS($B$1:B1)+35),"") -> 0 | BT4: =IFERROR(OFFSET(INDIRECT("'"&$BO$2&"'!"&"C$"&ROWS($B$1:H9)),,COLUMNS($B$1:B1)+36),"") -> 0 | BU4: =IFERROR(OFFSET(INDIRECT("'"&$BO$2&"'!"&"C$"&ROWS($B$1:I9)),,COLUMNS($B$1:B1)+37),"") -> 0 | BV4: =IFERROR(OFFSET(INDIRECT("'"&$BV$2&"'!"&"C$"&ROWS($B$1:B9)),,COLUMNS($B$1:B1)+31),"") -> 26 | BW4: =IFERROR(OFFSET(INDIRECT("'"&$BV$2&"'!"&"C$"&ROWS($B$1:B9)),,COLUMNS($B$1:B1)+32),"") -> 0 | BX4: =IFERROR(OFFSET(INDIRECT("'"&$BV$2&"'!"&"C$"&ROWS($B$1:C9)),,COLUMNS($B$1:B1)+33),"") -> 0 | BY4: =IFERROR(OFFSET(INDIRECT("'"&$BV$2&"'!"&"C$"&ROWS($B$1:D9)),,COLUMNS($B$1:B1)+34),"") -> 0 | BZ4: =IFERROR(OFFSET(INDIRECT("'"&$BV$2&"'!"&"C$"&ROWS($B$1:D9)),,COLUMNS($B$1:B1)+35),"") -> 0 | CA4: =IFERROR(OFFSET(INDIRECT("'"&$BV$2&"'!"&"C$"&ROWS($B$1:H9)),,COLUMNS($B$1:B1)+36),"") -> 0 | CB4: =IFERROR(OFFSET(INDIRECT("'"&$BV$2&"'!"&"C$"&ROWS($B$1:I9)),,COLUMNS($B$1:B1)+37),"") -> 0 | CC4: =IFERROR(OFFSET(INDIRECT("'"&$CC$2&"'!"&"C$"&ROWS($B$1:B9)),,COLUMNS($B$1:B1)+31),"") -> 0 | CD4: =IFERROR(OFFSET(INDIRECT("'"&$CC$2&"'!"&"C$"&ROWS($B$1:B9)),,COLUMNS($B$1:B1)+32),"") -> 0 | CE4: =IFERROR(OFFSET(INDIRECT("'"&$CC$2&"'!"&"C$"&ROWS($B$1:C9)),,COLUMNS($B$1:B1)+33),"") -> 0 | CF4: =IFERROR(OFFSET(INDIRECT("'"&$CC$2&"'!"&"C$"&ROWS($B$1:D9)),,COLUMNS($B$1:B1)+34),"") -> 0 | CG4: =IFERROR(OFFSET(INDIRECT("'"&$CC$2&"'!"&"C$"&ROWS($B$1:D9)),,COLUMNS($B$1:B1)+35),"") -> 0 | CH4: =IFERROR(OFFSET(INDIRECT("'"&$CC$2&"'!"&"C$"&ROWS($B$1:H9)),,COLUMNS($B$1:B1)+36),"") -> 0 | CI4: =IFERROR(OFFSET(INDIRECT("'"&$CC$2&"'!"&"C$"&ROWS($B$1:I9)),,COLUMNS($B$1:B1)+37),"") -> 0 | CJ4: =IFERROR(OFFSET(INDIRECT("'"&$CJ$2&"'!"&"C$"&ROWS($B$1:B9)),,COLUMNS($B$1:B1)+31),"") -> 26 | CK4: =IFERROR(OFFSET(INDIRECT("'"&$CJ$2&"'!"&"C$"&ROWS($B$1:B9)),,COLUMNS($B$1:B1)+32),"") -> 0 | CL4: =IFERROR(OFFSET(INDIRECT("'"&$CJ$2&"'!"&"C$"&ROWS($B$1:C9)),,COLUMNS($B$1:B1)+33),"") -> 0 | CM4: =IFERROR(OFFSET(INDIRECT("'"&$CJ$2&"'!"&"C$"&ROWS($B$1:D9)),,COLUMNS($B$1:B1)+34),"") -> 0 | CN4: =IFERROR(OFFSET(INDIRECT("'"&$CJ$2&"'!"&"C$"&ROWS($B$1:D9)),,COLUMNS($B$1:B1)+35),"") -> 0 | CO4: =IFERROR(OFFSET(INDIRECT("'"&$CJ$2&"'!"&"C$"&ROWS($B$1:H9)),,COLUMNS($B$1:B1)+36),"") -> 0 | CP4: =IFERROR(OFFSET(INDIRECT("'"&$CJ$2&"'!"&"C$"&ROWS($B$1:I9)),,COLUMNS($B$1:B1)+37),"") -> 0 | CR4: 2000 | CS4: =(CR4/26)*B4 -> 138.4615385 | CT4: =(CR4/26)*C4-(CR4/26)*F4-(CR4/26)*D4 -> 1454.142012 | CU4: =(CR4/26)*G4 -> 1592.60355
A5: سايمون ماثيو كردامنيل | B5: 45 | C5: =(SUM(K5,R5,Y5,AF5,AM5,AT5,BA5,BH5,BO5,BV5,CC5,CJ5))*30/312 -> 20 | D5: 0 | E5: =SUM(O5,V5,AC5,AJ5,AQ5,AX5,BE5,BL5,BS5,BZ5,CG5,CN5) -> 0 | F5: =SUM(Q5,X5,AE5,AL5,AZ5,BG5,BN5,BU5,CB5,CI5,CP5) -> 0 | G5: =B5+C5-D5-F5 -> 65 | I5: 2005-10-15 | K5: =IFERROR(OFFSET(INDIRECT("'"&$K$2&"'!"&"C$"&ROWS($B$1:B10)),,COLUMNS($B$1:B2)+31),"") -> 26 | L5: =IFERROR(OFFSET(INDIRECT("'"&$K$2&"'!"&"C$"&ROWS($B$1:B10)),,COLUMNS($B$1:B2)+32),"") -> 0 | M5: =IFERROR(OFFSET(INDIRECT("'"&$K$2&"'!"&"C$"&ROWS($B$1:C10)),,COLUMNS($B$1:B2)+33),"") -> 0 | N5: =IFERROR(OFFSET(INDIRECT("'"&$K$2&"'!"&"C$"&ROWS($B$1:D10)),,COLUMNS($B$1:B2)+34),"") -> 0 | O5: =IFERROR(OFFSET(INDIRECT("'"&$K$2&"'!"&"C$"&ROWS($B$1:D10)),,COLUMNS($B$1:B2)+35),"") -> 0 | P5: =IFERROR(OFFSET(INDIRECT("'"&$K$2&"'!"&"C$"&ROWS($B$1:H10)),,COLUMNS($B$1:B2)+36),"") -> 0 | Q5: =IFERROR(OFFSET(INDIRECT("'"&$K$2&"'!"&"C$"&ROWS($B$1:I10)),,COLUMNS($B$1:B2)+37),"") -> 0 | R5: =IFERROR(OFFSET(INDIRECT("'"&$R$2&"'!"&"C$"&ROWS($B$1:B10)),,COLUMNS($B$1:B2)+31),"") -> 0 | S5: =IFERROR(OFFSET(INDIRECT("'"&$R$2&"'!"&"C$"&ROWS($B$1:B10)),,COLUMNS($B$1:B2)+32),"") -> 0 | T5: =IFERROR(OFFSET(INDIRECT("'"&$R$2&"'!"&"C$"&ROWS($B$1:C10)),,COLUMNS($B$1:B2)+33),"") -> 0 | U5: =IFERROR(OFFSET(INDIRECT("'"&$R$2&"'!"&"C$"&ROWS($B$1:D10)),,COLUMNS($B$1:B2)+34),"") -> 0 | V5: =IFERROR(OFFSET(INDIRECT("'"&$R$2&"'!"&"C$"&ROWS($B$1:D10)),,COLUMNS($B$1:B2)+35),"") -> 0 | W5: =IFERROR(OFFSET(INDIRECT("'"&$R$2&"'!"&"C$"&ROWS($B$1:H10)),,COLUMNS($B$1:B2)+36),"") -> 0 | X5: =IFERROR(OFFSET(INDIRECT("'"&$R$2&"'!"&"C$"&ROWS($B$1:I10)),,COLUMNS($B$1:B2)+37),"") -> 0 | Y5: =IFERROR(OFFSET(INDIRECT("'"&$Y$2&"'!"&"C$"&ROWS($B$1:B10)),,COLUMNS($B$1:B2)+31),"") -> 26 | Z5: =IFERROR(OFFSET(INDIRECT("'"&$Y$2&"'!"&"C$"&ROWS($B$1:B10)),,COLUMNS($B$1:B2)+32),"") -> 0 | AA5: =IFERROR(OFFSET(INDIRECT("'"&$Y$2&"'!"&"C$"&ROWS($B$1:C10)),,COLUMNS($B$1:B2)+33),"") -> 0 | AB5: =IFERROR(OFFSET(INDIRECT("'"&$Y$2&"'!"&"C$"&ROWS($B$1:D10)),,COLUMNS($B$1:B2)+34),"") -> 0 | AC5: =IFERROR(OFFSET(INDIRECT("'"&$Y$2&"'!"&"C$"&ROWS($B$1:D10)),,COLUMNS($B$1:B2)+35),"") -> 0 | AD5: =IFERROR(OFFSET(INDIRECT("'"&$Y$2&"'!"&"C$"&ROWS($B$1:H10)),,COLUMNS($B$1:B2)+36),"") -> 0 | AE5: =IFERROR(OFFSET(INDIRECT("'"&$Y$2&"'!"&"C$"&ROWS($B$1:I10)),,COLUMNS($B$1:B2)+37),"") -> 0 | AF5: =IFERROR(OFFSET(INDIRECT("'"&$AF$2&"'!"&"C$"&ROWS($B$1:B10)),,COLUMNS($B$1:B2)+31),"") -> 0 | AG5: =IFERROR(OFFSET(INDIRECT("'"&$AF$2&"'!"&"C$"&ROWS($B$1:B10)),,COLUMNS($B$1:B2)+32),"") -> 0 | AH5: =IFERROR(OFFSET(INDIRECT("'"&$AF$2&"'!"&"C$"&ROWS($B$1:C10)),,COLUMNS($B$1:B2)+33),"") -> 0 | AI5: =IFERROR(OFFSET(INDIRECT("'"&$AF$2&"'!"&"C$"&ROWS($B$1:D10)),,COLUMNS($B$1:B2)+34),"") -> 0 | AJ5: =IFERROR(OFFSET(INDIRECT("'"&$AF$2&"'!"&"C$"&ROWS($B$1:D10)),,COLUMNS($B$1:B2)+35),"") -> 0 | AK5: =IFERROR(OFFSET(INDIRECT("'"&$AF$2&"'!"&"C$"&ROWS($B$1:H10)),,COLUMNS($B$1:B2)+36),"") -> 0 | AL5: =IFERROR(OFFSET(INDIRECT("'"&$AF$2&"'!"&"C$"&ROWS($B$1:I10)),,COLUMNS($B$1:B2)+37),"") -> 0 | AM5: =IFERROR(OFFSET(INDIRECT("'"&$AM$2&"'!"&"C$"&ROWS($B$1:B10)),,COLUMNS($B$1:B2)+31),"") -> 26 | AN5: =IFERROR(OFFSET(INDIRECT("'"&$AM$2&"'!"&"C$"&ROWS($B$1:B10)),,COLUMNS($B$1:B2)+32),"") -> 0 | AO5: =IFERROR(OFFSET(INDIRECT("'"&$AM$2&"'!"&"C$"&ROWS($B$1:C10)),,COLUMNS($B$1:B2)+33),"") -> 0 | AP5: =IFERROR(OFFSET(INDIRECT("'"&$AM$2&"'!"&"C$"&ROWS($B$1:D10)),,COLUMNS($B$1:B2)+34),"") -> 0 | AQ5: =IFERROR(OFFSET(INDIRECT("'"&$AM$2&"'!"&"C$"&ROWS($B$1:D10)),,COLUMNS($B$1:B2)+35),"") -> 0 | AR5: =IFERROR(OFFSET(INDIRECT("'"&$AM$2&"'!"&"C$"&ROWS($B$1:H10)),,COLUMNS($B$1:B2)+36),"") -> 0 | AS5: =IFERROR(OFFSET(INDIRECT("'"&$AM$2&"'!"&"C$"&ROWS($B$1:I10)),,COLUMNS($B$1:B2)+37),"") -> 0 | AT5: =IFERROR(OFFSET(INDIRECT("'"&$AT$2&"'!"&"C$"&ROWS($B$1:B10)),,COLUMNS($B$1:B2)+31),"") -> 26 | AU5: =IFERROR(OFFSET(INDIRECT("'"&$AT$2&"'!"&"C$"&ROWS($B$1:B10)),,COLUMNS($B$1:B2)+32),"") -> 0 | AV5: =IFERROR(OFFSET(INDIRECT("'"&$AT$2&"'!"&"C$"&ROWS($B$1:C10)),,COLUMNS($B$1:B2)+33),"") -> 0 | AW5: =IFERROR(OFFSET(INDIRECT("'"&$AT$2&"'!"&"C$"&ROWS($B$1:D10)),,COLUMNS($B$1:B2)+34),"") -> 0 | AX5: =IFERROR(OFFSET(INDIRECT("'"&$AT$2&"'!"&"C$"&ROWS($B$1:D10)),,COLUMNS($B$1:B2)+35),"") -> 0 | AY5: =IFERROR(OFFSET(INDIRECT("'"&$AT$2&"'!"&"C$"&ROWS($B$1:H10)),,COLUMNS($B$1:B2)+36),"") -> 0 | AZ5: =IFERROR(OFFSET(INDIRECT("'"&$AT$2&"'!"&"C$"&ROWS($B$1:I10)),,COLUMNS($B$1:B2)+37),"") -> 0 | BA5: =IFERROR(OFFSET(INDIRECT("'"&$BA$2&"'!"&"C$"&ROWS($B$1:B10)),,COLUMNS($B$1:B2)+31),"") -> 26 | BB5: =IFERROR(OFFSET(INDIRECT("'"&$BA$2&"'!"&"C$"&ROWS($B$1:B10)),,COLUMNS($B$1:B2)+32),"") -> 0 | BC5: =IFERROR(OFFSET(INDIRECT("'"&$BA$2&"'!"&"C$"&ROWS($B$1:C10)),,COLUMNS($B$1:B2)+33),"") -> 0 | BD5: =IFERROR(OFFSET(INDIRECT("'"&$BA$2&"'!"&"C$"&ROWS($B$1:D10)),,COLUMNS($B$1:B2)+34),"") -> 0 | BE5: =IFERROR(OFFSET(INDIRECT("'"&$BA$2&"'!"&"C$"&ROWS($B$1:D10)),,COLUMNS($B$1:B2)+35),"") -> 0 | BF5: =IFERROR(OFFSET(INDIRECT("'"&$BA$2&"'!"&"C$"&ROWS($B$1:H10)),,COLUMNS($B$1:B2)+36),"") -> 0 | BG5: =IFERROR(OFFSET(INDIRECT("'"&$BA$2&"'!"&"C$"&ROWS($B$1:I10)),,COLUMNS($B$1:B2)+37),"") -> 0 | BH5: =IFERROR(OFFSET(INDIRECT("'"&$BH$2&"'!"&"C$"&ROWS($B$1:B10)),,COLUMNS($B$1:B2)+31),"") -> 26 | BI5: =IFERROR(OFFSET(INDIRECT("'"&$BH$2&"'!"&"C$"&ROWS($B$1:B10)),,COLUMNS($B$1:B2)+32),"") -> 0 | BJ5: =IFERROR(OFFSET(INDIRECT("'"&$BH$2&"'!"&"C$"&ROWS($B$1:C10)),,COLUMNS($B$1:B2)+33),"") -> 0 | BK5: =IFERROR(OFFSET(INDIRECT("'"&$BH$2&"'!"&"C$"&ROWS($B$1:D10)),,COLUMNS($B$1:B2)+34),"") -> 0 | BL5: =IFERROR(OFFSET(INDIRECT("'"&$BH$2&"'!"&"C$"&ROWS($B$1:D10)),,COLUMNS($B$1:B2)+35),"") -> 0 | BM5: =IFERROR(OFFSET(INDIRECT("'"&$BH$2&"'!"&"C$"&ROWS($B$1:H10)),,COLUMNS($B$1:B2)+36),"") -> 0 | BN5: =IFERROR(OFFSET(INDIRECT("'"&$BH$2&"'!"&"C$"&ROWS($B$1:I10)),,COLUMNS($B$1:B2)+37),"") -> 0 | BO5: =IFERROR(OFFSET(INDIRECT("'"&$BO$2&"'!"&"C$"&ROWS($B$1:B10)),,COLUMNS($B$1:B2)+31),"") -> 0 | BP5: =IFERROR(OFFSET(INDIRECT("'"&$BO$2&"'!"&"C$"&ROWS($B$1:B10)),,COLUMNS($B$1:B2)+32),"") -> 0 | BQ5: =IFERROR(OFFSET(INDIRECT("'"&$BO$2&"'!"&"C$"&ROWS($B$1:C10)),,COLUMNS($B$1:B2)+33),"") -> 0 | BR5: =IFERROR(OFFSET(INDIRECT("'"&$BO$2&"'!"&"C$"&ROWS($B$1:D10)),,COLUMNS($B$1:B2)+34),"") -> 0 | BS5: =IFERROR(OFFSET(INDIRECT("'"&$BO$2&"'!"&"C$"&ROWS($B$1:D10)),,COLUMNS($B$1:B2)+35),"") -> 0 | BT5: =IFERROR(OFFSET(INDIRECT("'"&$BO$2&"'!"&"C$"&ROWS($B$1:H10)),,COLUMNS($B$1:B2)+36),"") -> 0 | BU5: =IFERROR(OFFSET(INDIRECT("'"&$BO$2&"'!"&"C$"&ROWS($B$1:I10)),,COLUMNS($B$1:B2)+37),"") -> 0 | BV5: =IFERROR(OFFSET(INDIRECT("'"&$BV$2&"'!"&"C$"&ROWS($B$1:B10)),,COLUMNS($B$1:B2)+31),"") -> 26 | BW5: =IFERROR(OFFSET(INDIRECT("'"&$BV$2&"'!"&"C$"&ROWS($B$1:B10)),,COLUMNS($B$1:B2)+32),"") -> 0 | BX5: =IFERROR(OFFSET(INDIRECT("'"&$BV$2&"'!"&"C$"&ROWS($B$1:C10)),,COLUMNS($B$1:B2)+33),"") -> 0 | BY5: =IFERROR(OFFSET(INDIRECT("'"&$BV$2&"'!"&"C$"&ROWS($B$1:D10)),,COLUMNS($B$1:B2)+34),"") -> 0 | BZ5: =IFERROR(OFFSET(INDIRECT("'"&$BV$2&"'!"&"C$"&ROWS($B$1:D10)),,COLUMNS($B$1:B2)+35),"") -> 0 | CA5: =IFERROR(OFFSET(INDIRECT("'"&$BV$2&"'!"&"C$"&ROWS($B$1:H10)),,COLUMNS($B$1:B2)+36),"") -> 0 | CB5: =IFERROR(OFFSET(INDIRECT("'"&$BV$2&"'!"&"C$"&ROWS($B$1:I10)),,COLUMNS($B$1:B2)+37),"") -> 0 | CC5: =IFERROR(OFFSET(INDIRECT("'"&$CC$2&"'!"&"C$"&ROWS($B$1:B10)),,COLUMNS($B$1:B2)+31),"") -> 0 | CD5: =IFERROR(OFFSET(INDIRECT("'"&$CC$2&"'!"&"C$"&ROWS($B$1:B10)),,COLUMNS($B$1:B2)+32),"") -> 0 | CE5: =IFERROR(OFFSET(INDIRECT("'"&$CC$2&"'!"&"C$"&ROWS($B$1:C10)),,COLUMNS($B$1:B2)+33),"") -> 0 | CF5: =IFERROR(OFFSET(INDIRECT("'"&$CC$2&"'!"&"C$"&ROWS($B$1:D10)),,COLUMNS($B$1:B2)+34),"") -> 0 | CG5: =IFERROR(OFFSET(INDIRECT("'"&$CC$2&"'!"&"C$"&ROWS($B$1:D10)),,COLUMNS($B$1:B2)+35),"") -> 0 | CH5: =IFERROR(OFFSET(INDIRECT("'"&$CC$2&"'!"&"C$"&ROWS($B$1:H10)),,COLUMNS($B$1:B2)+36),"") -> 0 | CI5: =IFERROR(OFFSET(INDIRECT("'"&$CC$2&"'!"&"C$"&ROWS($B$1:I10)),,COLUMNS($B$1:B2)+37),"") -> 0 | CJ5: =IFERROR(OFFSET(INDIRECT("'"&$CJ$2&"'!"&"C$"&ROWS($B$1:B10)),,COLUMNS($B$1:B2)+31),"") -> 26 | CK5: =IFERROR(OFFSET(INDIRECT("'"&$CJ$2&"'!"&"C$"&ROWS($B$1:B10)),,COLUMNS($B$1:B2)+32),"") -> 0 | CL5: =IFERROR(OFFSET(INDIRECT("'"&$CJ$2&"'!"&"C$"&ROWS($B$1:C10)),,COLUMNS($B$1:B2)+33),"") -> 0 | CM5: =IFERROR(OFFSET(INDIRECT("'"&$CJ$2&"'!"&"C$"&ROWS($B$1:D10)),,COLUMNS($B$1:B2)+34),"") -> 0 | CN5: =IFERROR(OFFSET(INDIRECT("'"&$CJ$2&"'!"&"C$"&ROWS($B$1:D10)),,COLUMNS($B$1:B2)+35),"") -> 0 | CO5: =IFERROR(OFFSET(INDIRECT("'"&$CJ$2&"'!"&"C$"&ROWS($B$1:H10)),,COLUMNS($B$1:B2)+36),"") -> 0 | CP5: =IFERROR(OFFSET(INDIRECT("'"&$CJ$2&"'!"&"C$"&ROWS($B$1:I10)),,COLUMNS($B$1:B2)+37),"") -> 0 | CR5: 600 | CS5: =(CR5/26)*B5 -> 1038.461538 | CT5: =(CR5/26)*C5-(CR5/26)*F5-(CR5/26)*D5 -> 461.5384615 | CU5: =(CR5/26)*G5 -> 1500
A6: مهند محمد ابراهيم | B6: 35.5 | C6: 20 | D6: 0 | E6: 0 | F6: 0 | G6: 55.5 | I6: 2015-10-21 | K6: =IFERROR(OFFSET(INDIRECT("'"&$K$2&"'!"&"C$"&ROWS($B$1:B11)),,COLUMNS($B$1:B3)+31),"") -> 26 | L6: =IFERROR(OFFSET(INDIRECT("'"&$K$2&"'!"&"C$"&ROWS($B$1:B11)),,COLUMNS($B$1:B3)+32),"") -> 0 | M6: =IFERROR(OFFSET(INDIRECT("'"&$K$2&"'!"&"C$"&ROWS($B$1:C11)),,COLUMNS($B$1:B3)+33),"") -> 0 | N6: =IFERROR(OFFSET(INDIRECT("'"&$K$2&"'!"&"C$"&ROWS($B$1:D11)),,COLUMNS($B$1:B3)+34),"") -> 0 | O6: =IFERROR(OFFSET(INDIRECT("'"&$K$2&"'!"&"C$"&ROWS($B$1:D11)),,COLUMNS($B$1:B3)+35),"") -> 0 | P6: =IFERROR(OFFSET(INDIRECT("'"&$K$2&"'!"&"C$"&ROWS($B$1:H11)),,COLUMNS($B$1:B3)+36),"") -> 0 | Q6: =IFERROR(OFFSET(INDIRECT("'"&$K$2&"'!"&"C$"&ROWS($B$1:I11)),,COLUMNS($B$1:B3)+37),"") -> 0 | R6: =IFERROR(OFFSET(INDIRECT("'"&$R$2&"'!"&"C$"&ROWS($B$1:B11)),,COLUMNS($B$1:B3)+31),"") -> 0 | S6: =IFERROR(OFFSET(INDIRECT("'"&$R$2&"'!"&"C$"&ROWS($B$1:B11)),,COLUMNS($B$1:B3)+32),"") -> 0 | T6: =IFERROR(OFFSET(INDIRECT("'"&$R$2&"'!"&"C$"&ROWS($B$1:C11)),,COLUMNS($B$1:B3)+33),"") -> 0 | U6: =IFERROR(OFFSET(INDIRECT("'"&$R$2&"'!"&"C$"&ROWS($B$1:D11)),,COLUMNS($B$1:B3)+34),"") -> 0 | V6: =IFERROR(OFFSET(INDIRECT("'"&$R$2&"'!"&"C$"&ROWS($B$1:D11)),,COLUMNS($B$1:B3)+35),"") -> 0 | W6: =IFERROR(OFFSET(INDIRECT("'"&$R$2&"'!"&"C$"&ROWS($B$1:H11)),,COLUMNS($B$1:B3)+36),"") -> 0 | X6: =IFERROR(OFFSET(INDIRECT("'"&$R$2&"'!"&"C$"&ROWS($B$1:I11)),,COLUMNS($B$1:B3)+37),"") -> 0 | Y6: =IFERROR(OFFSET(INDIRECT("'"&$Y$2&"'!"&"C$"&ROWS($B$1:B11)),,COLUMNS($B$1:B3)+31),"") -> 26 | Z6: =IFERROR(OFFSET(INDIRECT("'"&$Y$2&"'!"&"C$"&ROWS($B$1:B11)),,COLUMNS($B$1:B3)+32),"") -> 0 | AA6: =IFERROR(OFFSET(INDIRECT("'"&$Y$2&"'!"&"C$"&ROWS($B$1:C11)),,COLUMNS($B$1:B3)+33),"") -> 0 | AB6: =IFERROR(OFFSET(INDIRECT("'"&$Y$2&"'!"&"C$"&ROWS($B$1:D11)),,COLUMNS($B$1:B3)+34),"") -> 0 | AC6: =IFERROR(OFFSET(INDIRECT("'"&$Y$2&"'!"&"C$"&ROWS($B$1:D11)),,COLUMNS($B$1:B3)+35),"") -> 0 | AD6: =IFERROR(OFFSET(INDIRECT("'"&$Y$2&"'!"&"C$"&ROWS($B$1:H11)),,COLUMNS($B$1:B3)+36),"") -> 0 | AE6: =IFERROR(OFFSET(INDIRECT("'"&$Y$2&"'!"&"C$"&ROWS($B$1:I11)),,COLUMNS($B$1:B3)+37),"") -> 0 | AF6: =IFERROR(OFFSET(INDIRECT("'"&$AF$2&"'!"&"C$"&ROWS($B$1:B11)),,COLUMNS($B$1:B3)+31),"") -> 0 | AG6: =IFERROR(OFFSET(INDIRECT("'"&$AF$2&"'!"&"C$"&ROWS($B$1:B11)),,COLUMNS($B$1:B3)+32),"") -> 0 | AH6: =IFERROR(OFFSET(INDIRECT("'"&$AF$2&"'!"&"C$"&ROWS($B$1:C11)),,COLUMNS($B$1:B3)+33),"") -> 0 | AI6: =IFERROR(OFFSET(INDIRECT("'"&$AF$2&"'!"&"C$"&ROWS($B$1:D11)),,COLUMNS($B$1:B3)+34),"") -> 0 | AJ6: =IFERROR(OFFSET(INDIRECT("'"&$AF$2&"'!"&"C$"&ROWS($B$1:D11)),,COLUMNS($B$1:B3)+35),"") -> 0 | AK6: =IFERROR(OFFSET(INDIRECT("'"&$AF$2&"'!"&"C$"&ROWS($B$1:H11)),,COLUMNS($B$1:B3)+36),"") -> 0 | AL6: =IFERROR(OFFSET(INDIRECT("'"&$AF$2&"'!"&"C$"&ROWS($B$1:I11)),,COLUMNS($B$1:B3)+37),"") -> 0 | AM6: =IFERROR(OFFSET(INDIRECT("'"&$AM$2&"'!"&"C$"&ROWS($B$1:B11)),,COLUMNS($B$1:B3)+31),"") -> 26 | AN6: =IFERROR(OFFSET(INDIRECT("'"&$AM$2&"'!"&"C$"&ROWS($B$1:B11)),,COLUMNS($B$1:B3)+32),"") -> 0 | AO6: =IFERROR(OFFSET(INDIRECT("'"&$AM$2&"'!"&"C$"&ROWS($B$1:C11)),,COLUMNS($B$1:B3)+33),"") -> 0 | AP6: =IFERROR(OFFSET(INDIRECT("'"&$AM$2&"'!"&"C$"&ROWS($B$1:D11)),,COLUMNS($B$1:B3)+34),"") -> 0 | AQ6: =IFERROR(OFFSET(INDIRECT("'"&$AM$2&"'!"&"C$"&ROWS($B$1:D11)),,COLUMNS($B$1:B3)+35),"") -> 0 | AR6: =IFERROR(OFFSET(INDIRECT("'"&$AM$2&"'!"&"C$"&ROWS($B$1:H11)),,COLUMNS($B$1:B3)+36),"") -> 0 | AS6: =IFERROR(OFFSET(INDIRECT("'"&$AM$2&"'!"&"C$"&ROWS($B$1:I11)),,COLUMNS($B$1:B3)+37),"") -> 0 | AT6: =IFERROR(OFFSET(INDIRECT("'"&$AT$2&"'!"&"C$"&ROWS($B$1:B11)),,COLUMNS($B$1:B3)+31),"") -> 26 | AU6: =IFERROR(OFFSET(INDIRECT("'"&$AT$2&"'!"&"C$"&ROWS($B$1:B11)),,COLUMNS($B$1:B3)+32),"") -> 0 | AV6: =IFERROR(OFFSET(INDIRECT("'"&$AT$2&"'!"&"C$"&ROWS($B$1:C11)),,COLUMNS($B$1:B3)+33),"") -> 0 | AW6: =IFERROR(OFFSET(INDIRECT("'"&$AT$2&"'!"&"C$"&ROWS($B$1:D11)),,COLUMNS($B$1:B3)+34),"") -> 0 | AX6: =IFERROR(OFFSET(INDIRECT("'"&$AT$2&"'!"&"C$"&ROWS($B$1:D11)),,COLUMNS($B$1:B3)+35),"") -> 0 | AY6: =IFERROR(OFFSET(INDIRECT("'"&$AT$2&"'!"&"C$"&ROWS($B$1:H11)),,COLUMNS($B$1:B3)+36),"") -> 0 | AZ6: =IFERROR(OFFSET(INDIRECT("'"&$AT$2&"'!"&"C$"&ROWS($B$1:I11)),,COLUMNS($B$1:B3)+37),"") -> 0 | BA6: =IFERROR(OFFSET(INDIRECT("'"&$BA$2&"'!"&"C$"&ROWS($B$1:B11)),,COLUMNS($B$1:B3)+31),"") -> 26 | BB6: =IFERROR(OFFSET(INDIRECT("'"&$BA$2&"'!"&"C$"&ROWS($B$1:B11)),,COLUMNS($B$1:B3)+32),"") -> 0 | BC6: =IFERROR(OFFSET(INDIRECT("'"&$BA$2&"'!"&"C$"&ROWS($B$1:C11)),,COLUMNS($B$1:B3)+33),"") -> 0 | BD6: =IFERROR(OFFSET(INDIRECT("'"&$BA$2&"'!"&"C$"&ROWS($B$1:D11)),,COLUMNS($B$1:B3)+34),"") -> 0 | BE6: =IFERROR(OFFSET(INDIRECT("'"&$BA$2&"'!"&"C$"&ROWS($B$1:D11)),,COLUMNS($B$1:B3)+35),"") -> 0 | BF6: =IFERROR(OFFSET(INDIRECT("'"&$BA$2&"'!"&"C$"&ROWS($B$1:H11)),,COLUMNS($B$1:B3)+36),"") -> 0 | BG6: =IFERROR(OFFSET(INDIRECT("'"&$BA$2&"'!"&"C$"&ROWS($B$1:I11)),,COLUMNS($B$1:B3)+37),"") -> 0 | BH6: =IFERROR(OFFSET(INDIRECT("'"&$BH$2&"'!"&"C$"&ROWS($B$1:B11)),,COLUMNS($B$1:B3)+31),"") -> 26 | BI6: =IFERROR(OFFSET(INDIRECT("'"&$BH$2&"'!"&"C$"&ROWS($B$1:B11)),,COLUMNS($B$1:B3)+32),"") -> 0 | BJ6: =IFERROR(OFFSET(INDIRECT("'"&$BH$2&"'!"&"C$"&ROWS($B$1:C11)),,COLUMNS($B$1:B3)+33),"") -> 0 | BK6: =IFERROR(OFFSET(INDIRECT("'"&$BH$2&"'!"&"C$"&ROWS($B$1:D11)),,COLUMNS($B$1:B3)+34),"") -> 0 | BL6: =IFERROR(OFFSET(INDIRECT("'"&$BH$2&"'!"&"C$"&ROWS($B$1:D11)),,COLUMNS($B$1:B3)+35),"") -> 0 | BM6: =IFERROR(OFFSET(INDIRECT("'"&$BH$2&"'!"&"C$"&ROWS($B$1:H11)),,COLUMNS($B$1:B3)+36),"") -> 0 | BN6: =IFERROR(OFFSET(INDIRECT("'"&$BH$2&"'!"&"C$"&ROWS($B$1:I11)),,COLUMNS($B$1:B3)+37),"") -> 0 | BO6: =IFERROR(OFFSET(INDIRECT("'"&$BO$2&"'!"&"C$"&ROWS($B$1:B11)),,COLUMNS($B$1:B3)+31),"") -> 0 | BP6: =IFERROR(OFFSET(INDIRECT("'"&$BO$2&"'!"&"C$"&ROWS($B$1:B11)),,COLUMNS($B$1:B3)+32),"") -> 0 | BQ6: =IFERROR(OFFSET(INDIRECT("'"&$BO$2&"'!"&"C$"&ROWS($B$1:C11)),,COLUMNS($B$1:B3)+33),"") -> 0 | BR6: =IFERROR(OFFSET(INDIRECT("'"&$BO$2&"'!"&"C$"&ROWS($B$1:D11)),,COLUMNS($B$1:B3)+34),"") -> 0 | BS6: =IFERROR(OFFSET(INDIRECT("'"&$BO$2&"'!"&"C$"&ROWS($B$1:D11)),,COLUMNS($B$1:B3)+35),"") -> 0 | BT6: =IFERROR(OFFSET(INDIRECT("'"&$BO$2&"'!"&"C$"&ROWS($B$1:H11)),,COLUMNS($B$1:B3)+36),"") -> 0 | BU6: =IFERROR(OFFSET(INDIRECT("'"&$BO$2&"'!"&"C$"&ROWS($B$1:I11)),,COLUMNS($B$1:B3)+37),"") -> 0 | BV6: =IFERROR(OFFSET(INDIRECT("'"&$BV$2&"'!"&"C$"&ROWS($B$1:B11)),,COLUMNS($B$1:B3)+31),"") -> 26 | BW6: =IFERROR(OFFSET(INDIRECT("'"&$BV$2&"'!"&"C$"&ROWS($B$1:B11)),,COLUMNS($B$1:B3)+32),"") -> 0 | BX6: =IFERROR(OFFSET(INDIRECT("'"&$BV$2&"'!"&"C$"&ROWS($B$1:C11)),,COLUMNS($B$1:B3)+33),"") -> 0 | BY6: =IFERROR(OFFSET(INDIRECT("'"&$BV$2&"'!"&"C$"&ROWS($B$1:D11)),,COLUMNS($B$1:B3)+34),"") -> 0 | BZ6: =IFERROR(OFFSET(INDIRECT("'"&$BV$2&"'!"&"C$"&ROWS($B$1:D11)),,COLUMNS($B$1:B3)+35),"") -> 0 | CA6: =IFERROR(OFFSET(INDIRECT("'"&$BV$2&"'!"&"C$"&ROWS($B$1:H11)),,COLUMNS($B$1:B3)+36),"") -> 0 | CB6: =IFERROR(OFFSET(INDIRECT("'"&$BV$2&"'!"&"C$"&ROWS($B$1:I11)),,COLUMNS($B$1:B3)+37),"") -> 0 | CC6: =IFERROR(OFFSET(INDIRECT("'"&$CC$2&"'!"&"C$"&ROWS($B$1:B11)),,COLUMNS($B$1:B3)+31),"") -> 0 | CD6: =IFERROR(OFFSET(INDIRECT("'"&$CC$2&"'!"&"C$"&ROWS($B$1:B11)),,COLUMNS($B$1:B3)+32),"") -> 0 | CE6: =IFERROR(OFFSET(INDIRECT("'"&$CC$2&"'!"&"C$"&ROWS($B$1:C11)),,COLUMNS($B$1:B3)+33),"") -> 0 | CF6: =IFERROR(OFFSET(INDIRECT("'"&$CC$2&"'!"&"C$"&ROWS($B$1:D11)),,COLUMNS($B$1:B3)+34),"") -> 0 | CG6: =IFERROR(OFFSET(INDIRECT("'"&$CC$2&"'!"&"C$"&ROWS($B$1:D11)),,COLUMNS($B$1:B3)+35),"") -> 0 | CH6: =IFERROR(OFFSET(INDIRECT("'"&$CC$2&"'!"&"C$"&ROWS($B$1:H11)),,COLUMNS($B$1:B3)+36),"") -> 0 | CI6: =IFERROR(OFFSET(INDIRECT("'"&$CC$2&"'!"&"C$"&ROWS($B$1:I11)),,COLUMNS($B$1:B3)+37),"") -> 0 | CJ6: =IFERROR(OFFSET(INDIRECT("'"&$CJ$2&"'!"&"C$"&ROWS($B$1:B11)),,COLUMNS($B$1:B3)+31),"") -> 26 | CK6: =IFERROR(OFFSET(INDIRECT("'"&$CJ$2&"'!"&"C$"&ROWS($B$1:B11)),,COLUMNS($B$1:B3)+32),"") -> 0 | CL6: =IFERROR(OFFSET(INDIRECT("'"&$CJ$2&"'!"&"C$"&ROWS($B$1:C11)),,COLUMNS($B$1:B3)+33),"") -> 0 | CM6: =IFERROR(OFFSET(INDIRECT("'"&$CJ$2&"'!"&"C$"&ROWS($B$1:D11)),,COLUMNS($B$1:B3)+34),"") -> 0 | CN6: =IFERROR(OFFSET(INDIRECT("'"&$CJ$2&"'!"&"C$"&ROWS($B$1:D11)),,COLUMNS($B$1:B3)+35),"") -> 0 | CO6: =IFERROR(OFFSET(INDIRECT("'"&$CJ$2&"'!"&"C$"&ROWS($B$1:H11)),,COLUMNS($B$1:B3)+36),"") -> 0 | CP6: =IFERROR(OFFSET(INDIRECT("'"&$CJ$2&"'!"&"C$"&ROWS($B$1:I11)),,COLUMNS($B$1:B3)+37),"") -> 0 | CR6: 1000 | CS6: 1365.384615 | CT6: 769.2307692 | CU6: 2134.615385
A7: توفيق سالم توفيق شراب | B7: 33 | C7: 20 | D7: 0 | E7: 0 | F7: 0 | G7: 53 | I7: 2016-10-17 | K7: =IFERROR(OFFSET(INDIRECT("'"&$K$2&"'!"&"C$"&ROWS($B$1:B12)),,COLUMNS($B$1:B4)+31),"") -> 26 | L7: =IFERROR(OFFSET(INDIRECT("'"&$K$2&"'!"&"C$"&ROWS($B$1:B12)),,COLUMNS($B$1:B4)+32),"") -> 0 | M7: =IFERROR(OFFSET(INDIRECT("'"&$K$2&"'!"&"C$"&ROWS($B$1:C12)),,COLUMNS($B$1:B4)+33),"") -> 0 | N7: =IFERROR(OFFSET(INDIRECT("'"&$K$2&"'!"&"C$"&ROWS($B$1:D12)),,COLUMNS($B$1:B4)+34),"") -> 0 | O7: =IFERROR(OFFSET(INDIRECT("'"&$K$2&"'!"&"C$"&ROWS($B$1:D12)),,COLUMNS($B$1:B4)+35),"") -> 0 | P7: =IFERROR(OFFSET(INDIRECT("'"&$K$2&"'!"&"C$"&ROWS($B$1:H12)),,COLUMNS($B$1:B4)+36),"") -> 0 | Q7: =IFERROR(OFFSET(INDIRECT("'"&$K$2&"'!"&"C$"&ROWS($B$1:I12)),,COLUMNS($B$1:B4)+37),"") -> 0 | R7: =IFERROR(OFFSET(INDIRECT("'"&$R$2&"'!"&"C$"&ROWS($B$1:B12)),,COLUMNS($B$1:B4)+31),"") -> 0 | S7: =IFERROR(OFFSET(INDIRECT("'"&$R$2&"'!"&"C$"&ROWS($B$1:B12)),,COLUMNS($B$1:B4)+32),"") -> 0 | T7: =IFERROR(OFFSET(INDIRECT("'"&$R$2&"'!"&"C$"&ROWS($B$1:C12)),,COLUMNS($B$1:B4)+33),"") -> 0 | U7: =IFERROR(OFFSET(INDIRECT("'"&$R$2&"'!"&"C$"&ROWS($B$1:D12)),,COLUMNS($B$1:B4)+34),"") -> 0 | V7: =IFERROR(OFFSET(INDIRECT("'"&$R$2&"'!"&"C$"&ROWS($B$1:D12)),,COLUMNS($B$1:B4)+35),"") -> 0 | W7: =IFERROR(OFFSET(INDIRECT("'"&$R$2&"'!"&"C$"&ROWS($B$1:H12)),,COLUMNS($B$1:B4)+36),"") -> 0 | X7: =IFERROR(OFFSET(INDIRECT("'"&$R$2&"'!"&"C$"&ROWS($B$1:I12)),,COLUMNS($B$1:B4)+37),"") -> 0 | Y7: =IFERROR(OFFSET(INDIRECT("'"&$Y$2&"'!"&"C$"&ROWS($B$1:B12)),,COLUMNS($B$1:B4)+31),"") -> 26 | Z7: =IFERROR(OFFSET(INDIRECT("'"&$Y$2&"'!"&"C$"&ROWS($B$1:B12)),,COLUMNS($B$1:B4)+32),"") -> 0 | AA7: =IFERROR(OFFSET(INDIRECT("'"&$Y$2&"'!"&"C$"&ROWS($B$1:C12)),,COLUMNS($B$1:B4)+33),"") -> 0 | AB7: =IFERROR(OFFSET(INDIRECT("'"&$Y$2&"'!"&"C$"&ROWS($B$1:D12)),,COLUMNS($B$1:B4)+34),"") -> 0 | AC7: =IFERROR(OFFSET(INDIRECT("'"&$Y$2&"'!"&"C$"&ROWS($B$1:D12)),,COLUMNS($B$1:B4)+35),"") -> 0 | AD7: =IFERROR(OFFSET(INDIRECT("'"&$Y$2&"'!"&"C$"&ROWS($B$1:H12)),,COLUMNS($B$1:B4)+36),"") -> 0 | AE7: =IFERROR(OFFSET(INDIRECT("'"&$Y$2&"'!"&"C$"&ROWS($B$1:I12)),,COLUMNS($B$1:B4)+37),"") -> 0 | AF7: =IFERROR(OFFSET(INDIRECT("'"&$AF$2&"'!"&"C$"&ROWS($B$1:B12)),,COLUMNS($B$1:B4)+31),"") -> 0 | AG7: =IFERROR(OFFSET(INDIRECT("'"&$AF$2&"'!"&"C$"&ROWS($B$1:B12)),,COLUMNS($B$1:B4)+32),"") -> 0 | AH7: =IFERROR(OFFSET(INDIRECT("'"&$AF$2&"'!"&"C$"&ROWS($B$1:C12)),,COLUMNS($B$1:B4)+33),"") -> 0 | AI7: =IFERROR(OFFSET(INDIRECT("'"&$AF$2&"'!"&"C$"&ROWS($B$1:D12)),,COLUMNS($B$1:B4)+34),"") -> 0 | AJ7: =IFERROR(OFFSET(INDIRECT("'"&$AF$2&"'!"&"C$"&ROWS($B$1:D12)),,COLUMNS($B$1:B4)+35),"") -> 0 | AK7: =IFERROR(OFFSET(INDIRECT("'"&$AF$2&"'!"&"C$"&ROWS($B$1:H12)),,COLUMNS($B$1:B4)+36),"") -> 0 | AL7: =IFERROR(OFFSET(INDIRECT("'"&$AF$2&"'!"&"C$"&ROWS($B$1:I12)),,COLUMNS($B$1:B4)+37),"") -> 0 | AM7: =IFERROR(OFFSET(INDIRECT("'"&$AM$2&"'!"&"C$"&ROWS($B$1:B12)),,COLUMNS($B$1:B4)+31),"") -> 26 | AN7: =IFERROR(OFFSET(INDIRECT("'"&$AM$2&"'!"&"C$"&ROWS($B$1:B12)),,COLUMNS($B$1:B4)+32),"") -> 0 | AO7: =IFERROR(OFFSET(INDIRECT("'"&$AM$2&"'!"&"C$"&ROWS($B$1:C12)),,COLUMNS($B$1:B4)+33),"") -> 0 | AP7: =IFERROR(OFFSET(INDIRECT("'"&$AM$2&"'!"&"C$"&ROWS($B$1:D12)),,COLUMNS($B$1:B4)+34),"") -> 0 | AQ7: =IFERROR(OFFSET(INDIRECT("'"&$AM$2&"'!"&"C$"&ROWS($B$1:D12)),,COLUMNS($B$1:B4)+35),"") -> 0 | AR7: =IFERROR(OFFSET(INDIRECT("'"&$AM$2&"'!"&"C$"&ROWS($B$1:H12)),,COLUMNS($B$1:B4)+36),"") -> 0 | AS7: =IFERROR(OFFSET(INDIRECT("'"&$AM$2&"'!"&"C$"&ROWS($B$1:I12)),,COLUMNS($B$1:B4)+37),"") -> 0 | AT7: =IFERROR(OFFSET(INDIRECT("'"&$AT$2&"'!"&"C$"&ROWS($B$1:B12)),,COLUMNS($B$1:B4)+31),"") -> 26 | AU7: =IFERROR(OFFSET(INDIRECT("'"&$AT$2&"'!"&"C$"&ROWS($B$1:B12)),,COLUMNS($B$1:B4)+32),"") -> 0 | AV7: =IFERROR(OFFSET(INDIRECT("'"&$AT$2&"'!"&"C$"&ROWS($B$1:C12)),,COLUMNS($B$1:B4)+33),"") -> 0 | AW7: =IFERROR(OFFSET(INDIRECT("'"&$AT$2&"'!"&"C$"&ROWS($B$1:D12)),,COLUMNS($B$1:B4)+34),"") -> 0 | AX7: =IFERROR(OFFSET(INDIRECT("'"&$AT$2&"'!"&"C$"&ROWS($B$1:D12)),,COLUMNS($B$1:B4)+35),"") -> 0 | AY7: =IFERROR(OFFSET(INDIRECT("'"&$AT$2&"'!"&"C$"&ROWS($B$1:H12)),,COLUMNS($B$1:B4)+36),"") -> 0 | AZ7: =IFERROR(OFFSET(INDIRECT("'"&$AT$2&"'!"&"C$"&ROWS($B$1:I12)),,COLUMNS($B$1:B4)+37),"") -> 0 | BA7: =IFERROR(OFFSET(INDIRECT("'"&$BA$2&"'!"&"C$"&ROWS($B$1:B12)),,COLUMNS($B$1:B4)+31),"") -> 26 | BB7: =IFERROR(OFFSET(INDIRECT("'"&$BA$2&"'!"&"C$"&ROWS($B$1:B12)),,COLUMNS($B$1:B4)+32),"") -> 0 | BC7: =IFERROR(OFFSET(INDIRECT("'"&$BA$2&"'!"&"C$"&ROWS($B$1:C12)),,COLUMNS($B$1:B4)+33),"") -> 0 | BD7: =IFERROR(OFFSET(INDIRECT("'"&$BA$2&"'!"&"C$"&ROWS($B$1:D12)),,COLUMNS($B$1:B4)+34),"") -> 0 | BE7: =IFERROR(OFFSET(INDIRECT("'"&$BA$2&"'!"&"C$"&ROWS($B$1:D12)),,COLUMNS($B$1:B4)+35),"") -> 0 | BF7: =IFERROR(OFFSET(INDIRECT("'"&$BA$2&"'!"&"C$"&ROWS($B$1:H12)),,COLUMNS($B$1:B4)+36),"") -> 0 | BG7: =IFERROR(OFFSET(INDIRECT("'"&$BA$2&"'!"&"C$"&ROWS($B$1:I12)),,COLUMNS($B$1:B4)+37),"") -> 0 | BH7: =IFERROR(OFFSET(INDIRECT("'"&$BH$2&"'!"&"C$"&ROWS($B$1:B12)),,COLUMNS($B$1:B4)+31),"") -> 26 | BI7: =IFERROR(OFFSET(INDIRECT("'"&$BH$2&"'!"&"C$"&ROWS($B$1:B12)),,COLUMNS($B$1:B4)+32),"") -> 0 | BJ7: =IFERROR(OFFSET(INDIRECT("'"&$BH$2&"'!"&"C$"&ROWS($B$1:C12)),,COLUMNS($B$1:B4)+33),"") -> 0 | BK7: =IFERROR(OFFSET(INDIRECT("'"&$BH$2&"'!"&"C$"&ROWS($B$1:D12)),,COLUMNS($B$1:B4)+34),"") -> 0 | BL7: =IFERROR(OFFSET(INDIRECT("'"&$BH$2&"'!"&"C$"&ROWS($B$1:D12)),,COLUMNS($B$1:B4)+35),"") -> 0 | BM7: =IFERROR(OFFSET(INDIRECT("'"&$BH$2&"'!"&"C$"&ROWS($B$1:H12)),,COLUMNS($B$1:B4)+36),"") -> 0 | BN7: =IFERROR(OFFSET(INDIRECT("'"&$BH$2&"'!"&"C$"&ROWS($B$1:I12)),,COLUMNS($B$1:B4)+37),"") -> 0 | BO7: =IFERROR(OFFSET(INDIRECT("'"&$BO$2&"'!"&"C$"&ROWS($B$1:B12)),,COLUMNS($B$1:B4)+31),"") -> 0 | BP7: =IFERROR(OFFSET(INDIRECT("'"&$BO$2&"'!"&"C$"&ROWS($B$1:B12)),,COLUMNS($B$1:B4)+32),"") -> 0 | BQ7: =IFERROR(OFFSET(INDIRECT("'"&$BO$2&"'!"&"C$"&ROWS($B$1:C12)),,COLUMNS($B$1:B4)+33),"") -> 0 | BR7: =IFERROR(OFFSET(INDIRECT("'"&$BO$2&"'!"&"C$"&ROWS($B$1:D12)),,COLUMNS($B$1:B4)+34),"") -> 0 | BS7: =IFERROR(OFFSET(INDIRECT("'"&$BO$2&"'!"&"C$"&ROWS($B$1:D12)),,COLUMNS($B$1:B4)+35),"") -> 0 | BT7: =IFERROR(OFFSET(INDIRECT("'"&$BO$2&"'!"&"C$"&ROWS($B$1:H12)),,COLUMNS($B$1:B4)+36),"") -> 0 | BU7: =IFERROR(OFFSET(INDIRECT("'"&$BO$2&"'!"&"C$"&ROWS($B$1:I12)),,COLUMNS($B$1:B4)+37),"") -> 0 | BV7: =IFERROR(OFFSET(INDIRECT("'"&$BV$2&"'!"&"C$"&ROWS($B$1:B12)),,COLUMNS($B$1:B4)+31),"") -> 26 | BW7: =IFERROR(OFFSET(INDIRECT("'"&$BV$2&"'!"&"C$"&ROWS($B$1:B12)),,COLUMNS($B$1:B4)+32),"") -> 0 | BX7: =IFERROR(OFFSET(INDIRECT("'"&$BV$2&"'!"&"C$"&ROWS($B$1:C12)),,COLUMNS($B$1:B4)+33),"") -> 0 | BY7: =IFERROR(OFFSET(INDIRECT("'"&$BV$2&"'!"&"C$"&ROWS($B$1:D12)),,COLUMNS($B$1:B4)+34),"") -> 0 | BZ7: =IFERROR(OFFSET(INDIRECT("'"&$BV$2&"'!"&"C$"&ROWS($B$1:D12)),,COLUMNS($B$1:B4)+35),"") -> 0 | CA7: =IFERROR(OFFSET(INDIRECT("'"&$BV$2&"'!"&"C$"&ROWS($B$1:H12)),,COLUMNS($B$1:B4)+36),"") -> 0 | CB7: =IFERROR(OFFSET(INDIRECT("'"&$BV$2&"'!"&"C$"&ROWS($B$1:I12)),,COLUMNS($B$1:B4)+37),"") -> 0 | CC7: =IFERROR(OFFSET(INDIRECT("'"&$CC$2&"'!"&"C$"&ROWS($B$1:B12)),,COLUMNS($B$1:B4)+31),"") -> 0 | CD7: =IFERROR(OFFSET(INDIRECT("'"&$CC$2&"'!"&"C$"&ROWS($B$1:B12)),,COLUMNS($B$1:B4)+32),"") -> 0 | CE7: =IFERROR(OFFSET(INDIRECT("'"&$CC$2&"'!"&"C$"&ROWS($B$1:C12)),,COLUMNS($B$1:B4)+33),"") -> 0 | CF7: =IFERROR(OFFSET(INDIRECT("'"&$CC$2&"'!"&"C$"&ROWS($B$1:D12)),,COLUMNS($B$1:B4)+34),"") -> 0 | CG7: =IFERROR(OFFSET(INDIRECT("'"&$CC$2&"'!"&"C$"&ROWS($B$1:D12)),,COLUMNS($B$1:B4)+35),"") -> 0 | CH7: =IFERROR(OFFSET(INDIRECT("'"&$CC$2&"'!"&"C$"&ROWS($B$1:H12)),,COLUMNS($B$1:B4)+36),"") -> 0 | CI7: =IFERROR(OFFSET(INDIRECT("'"&$CC$2&"'!"&"C$"&ROWS($B$1:I12)),,COLUMNS($B$1:B4)+37),"") -> 0 | CJ7: =IFERROR(OFFSET(INDIRECT("'"&$CJ$2&"'!"&"C$"&ROWS($B$1:B12)),,COLUMNS($B$1:B4)+31),"") -> 26 | CK7: =IFERROR(OFFSET(INDIRECT("'"&$CJ$2&"'!"&"C$"&ROWS($B$1:B12)),,COLUMNS($B$1:B4)+32),"") -> 0 | CL7: =IFERROR(OFFSET(INDIRECT("'"&$CJ$2&"'!"&"C$"&ROWS($B$1:C12)),,COLUMNS($B$1:B4)+33),"") -> 0 | CM7: =IFERROR(OFFSET(INDIRECT("'"&$CJ$2&"'!"&"C$"&ROWS($B$1:D12)),,COLUMNS($B$1:B4)+34),"") -> 0 | CN7: =IFERROR(OFFSET(INDIRECT("'"&$CJ$2&"'!"&"C$"&ROWS($B$1:D12)),,COLUMNS($B$1:B4)+35),"") -> 0 | CO7: =IFERROR(OFFSET(INDIRECT("'"&$CJ$2&"'!"&"C$"&ROWS($B$1:H12)),,COLUMNS($B$1:B4)+36),"") -> 0 | CP7: =IFERROR(OFFSET(INDIRECT("'"&$CJ$2&"'!"&"C$"&ROWS($B$1:I12)),,COLUMNS($B$1:B4)+37),"") -> 0 | CR7: 1500 | CS7: 1903.846154 | CT7: 1153.846154 | CU7: 3057.692308
A8: محمد سمير محمد السواح | B8: 48.5 | C8: 20 | D8: 0 | E8: 0 | F8: 0 | G8: 68.5 | I8: 2017-01-18 | K8: =IFERROR(OFFSET(INDIRECT("'"&$K$2&"'!"&"C$"&ROWS($B$1:B13)),,COLUMNS($B$1:B5)+31),"") -> 26 | L8: =IFERROR(OFFSET(INDIRECT("'"&$K$2&"'!"&"C$"&ROWS($B$1:B13)),,COLUMNS($B$1:B5)+32),"") -> 0 | M8: =IFERROR(OFFSET(INDIRECT("'"&$K$2&"'!"&"C$"&ROWS($B$1:C13)),,COLUMNS($B$1:B5)+33),"") -> 0 | N8: =IFERROR(OFFSET(INDIRECT("'"&$K$2&"'!"&"C$"&ROWS($B$1:D13)),,COLUMNS($B$1:B5)+34),"") -> 0 | O8: =IFERROR(OFFSET(INDIRECT("'"&$K$2&"'!"&"C$"&ROWS($B$1:D13)),,COLUMNS($B$1:B5)+35),"") -> 0 | P8: =IFERROR(OFFSET(INDIRECT("'"&$K$2&"'!"&"C$"&ROWS($B$1:H13)),,COLUMNS($B$1:B5)+36),"") -> 0 | Q8: =IFERROR(OFFSET(INDIRECT("'"&$K$2&"'!"&"C$"&ROWS($B$1:I13)),,COLUMNS($B$1:B5)+37),"") -> 0 | R8: =IFERROR(OFFSET(INDIRECT("'"&$R$2&"'!"&"C$"&ROWS($B$1:B13)),,COLUMNS($B$1:B5)+31),"") -> 0 | S8: =IFERROR(OFFSET(INDIRECT("'"&$R$2&"'!"&"C$"&ROWS($B$1:B13)),,COLUMNS($B$1:B5)+32),"") -> 0 | T8: =IFERROR(OFFSET(INDIRECT("'"&$R$2&"'!"&"C$"&ROWS($B$1:C13)),,COLUMNS($B$1:B5)+33),"") -> 0 | U8: =IFERROR(OFFSET(INDIRECT("'"&$R$2&"'!"&"C$"&ROWS($B$1:D13)),,COLUMNS($B$1:B5)+34),"") -> 0 | V8: =IFERROR(OFFSET(INDIRECT("'"&$R$2&"'!"&"C$"&ROWS($B$1:D13)),,COLUMNS($B$1:B5)+35),"") -> 0 | W8: =IFERROR(OFFSET(INDIRECT("'"&$R$2&"'!"&"C$"&ROWS($B$1:H13)),,COLUMNS($B$1:B5)+36),"") -> 0 | X8: =IFERROR(OFFSET(INDIRECT("'"&$R$2&"'!"&"C$"&ROWS($B$1:I13)),,COLUMNS($B$1:B5)+37),"") -> 0 | Y8: =IFERROR(OFFSET(INDIRECT("'"&$Y$2&"'!"&"C$"&ROWS($B$1:B13)),,COLUMNS($B$1:B5)+31),"") -> 26 | Z8: =IFERROR(OFFSET(INDIRECT("'"&$Y$2&"'!"&"C$"&ROWS($B$1:B13)),,COLUMNS($B$1:B5)+32),"") -> 0 | AA8: =IFERROR(OFFSET(INDIRECT("'"&$Y$2&"'!"&"C$"&ROWS($B$1:C13)),,COLUMNS($B$1:B5)+33),"") -> 0 | AB8: =IFERROR(OFFSET(INDIRECT("'"&$Y$2&"'!"&"C$"&ROWS($B$1:D13)),,COLUMNS($B$1:B5)+34),"") -> 0 | AC8: =IFERROR(OFFSET(INDIRECT("'"&$Y$2&"'!"&"C$"&ROWS($B$1:D13)),,COLUMNS($B$1:B5)+35),"") -> 0 | AD8: =IFERROR(OFFSET(INDIRECT("'"&$Y$2&"'!"&"C$"&ROWS($B$1:H13)),,COLUMNS($B$1:B5)+36),"") -> 0 | AE8: =IFERROR(OFFSET(INDIRECT("'"&$Y$2&"'!"&"C$"&ROWS($B$1:I13)),,COLUMNS($B$1:B5)+37),"") -> 0 | AF8: =IFERROR(OFFSET(INDIRECT("'"&$AF$2&"'!"&"C$"&ROWS($B$1:B13)),,COLUMNS($B$1:B5)+31),"") -> 0 | AG8: =IFERROR(OFFSET(INDIRECT("'"&$AF$2&"'!"&"C$"&ROWS($B$1:B13)),,COLUMNS($B$1:B5)+32),"") -> 0 | AH8: =IFERROR(OFFSET(INDIRECT("'"&$AF$2&"'!"&"C$"&ROWS($B$1:C13)),,COLUMNS($B$1:B5)+33),"") -> 0 | AI8: =IFERROR(OFFSET(INDIRECT("'"&$AF$2&"'!"&"C$"&ROWS($B$1:D13)),,COLUMNS($B$1:B5)+34),"") -> 0 | AJ8: =IFERROR(OFFSET(INDIRECT("'"&$AF$2&"'!"&"C$"&ROWS($B$1:D13)),,COLUMNS($B$1:B5)+35),"") -> 0 | AK8: =IFERROR(OFFSET(INDIRECT("'"&$AF$2&"'!"&"C$"&ROWS($B$1:H13)),,COLUMNS($B$1:B5)+36),"") -> 0 | AL8: =IFERROR(OFFSET(INDIRECT("'"&$AF$2&"'!"&"C$"&ROWS($B$1:I13)),,COLUMNS($B$1:B5)+37),"") -> 0 | AM8: =IFERROR(OFFSET(INDIRECT("'"&$AM$2&"'!"&"C$"&ROWS($B$1:B13)),,COLUMNS($B$1:B5)+31),"") -> 26 | AN8: =IFERROR(OFFSET(INDIRECT("'"&$AM$2&"'!"&"C$"&ROWS($B$1:B13)),,COLUMNS($B$1:B5)+32),"") -> 0 | AO8: =IFERROR(OFFSET(INDIRECT("'"&$AM$2&"'!"&"C$"&ROWS($B$1:C13)),,COLUMNS($B$1:B5)+33),"") -> 0 | AP8: =IFERROR(OFFSET(INDIRECT("'"&$AM$2&"'!"&"C$"&ROWS($B$1:D13)),,COLUMNS($B$1:B5)+34),"") -> 0 | AQ8: =IFERROR(OFFSET(INDIRECT("'"&$AM$2&"'!"&"C$"&ROWS($B$1:D13)),,COLUMNS($B$1:B5)+35),"") -> 0 | AR8: =IFERROR(OFFSET(INDIRECT("'"&$AM$2&"'!"&"C$"&ROWS($B$1:H13)),,COLUMNS($B$1:B5)+36),"") -> 0 | AS8: =IFERROR(OFFSET(INDIRECT("'"&$AM$2&"'!"&"C$"&ROWS($B$1:I13)),,COLUMNS($B$1:B5)+37),"") -> 0 | AT8: =IFERROR(OFFSET(INDIRECT("'"&$AT$2&"'!"&"C$"&ROWS($B$1:B13)),,COLUMNS($B$1:B5)+31),"") -> 26 | AU8: =IFERROR(OFFSET(INDIRECT("'"&$AT$2&"'!"&"C$"&ROWS($B$1:B13)),,COLUMNS($B$1:B5)+32),"") -> 0 | AV8: =IFERROR(OFFSET(INDIRECT("'"&$AT$2&"'!"&"C$"&ROWS($B$1:C13)),,COLUMNS($B$1:B5)+33),"") -> 0 | AW8: =IFERROR(OFFSET(INDIRECT("'"&$AT$2&"'!"&"C$"&ROWS($B$1:D13)),,COLUMNS($B$1:B5)+34),"") -> 0 | AX8: =IFERROR(OFFSET(INDIRECT("'"&$AT$2&"'!"&"C$"&ROWS($B$1:D13)),,COLUMNS($B$1:B5)+35),"") -> 0 | AY8: =IFERROR(OFFSET(INDIRECT("'"&$AT$2&"'!"&"C$"&ROWS($B$1:H13)),,COLUMNS($B$1:B5)+36),"") -> 0 | AZ8: =IFERROR(OFFSET(INDIRECT("'"&$AT$2&"'!"&"C$"&ROWS($B$1:I13)),,COLUMNS($B$1:B5)+37),"") -> 0 | BA8: =IFERROR(OFFSET(INDIRECT("'"&$BA$2&"'!"&"C$"&ROWS($B$1:B13)),,COLUMNS($B$1:B5)+31),"") -> 26 | BB8: =IFERROR(OFFSET(INDIRECT("'"&$BA$2&"'!"&"C$"&ROWS($B$1:B13)),,COLUMNS($B$1:B5)+32),"") -> 0 | BC8: =IFERROR(OFFSET(INDIRECT("'"&$BA$2&"'!"&"C$"&ROWS($B$1:C13)),,COLUMNS($B$1:B5)+33),"") -> 0 | BD8: =IFERROR(OFFSET(INDIRECT("'"&$BA$2&"'!"&"C$"&ROWS($B$1:D13)),,COLUMNS($B$1:B5)+34),"") -> 0 | BE8: =IFERROR(OFFSET(INDIRECT("'"&$BA$2&"'!"&"C$"&ROWS($B$1:D13)),,COLUMNS($B$1:B5)+35),"") -> 0 | BF8: =IFERROR(OFFSET(INDIRECT("'"&$BA$2&"'!"&"C$"&ROWS($B$1:H13)),,COLUMNS($B$1:B5)+36),"") -> 0 | BG8: =IFERROR(OFFSET(INDIRECT("'"&$BA$2&"'!"&"C$"&ROWS($B$1:I13)),,COLUMNS($B$1:B5)+37),"") -> 0 | BH8: =IFERROR(OFFSET(INDIRECT("'"&$BH$2&"'!"&"C$"&ROWS($B$1:B13)),,COLUMNS($B$1:B5)+31),"") -> 26 | BI8: =IFERROR(OFFSET(INDIRECT("'"&$BH$2&"'!"&"C$"&ROWS($B$1:B13)),,COLUMNS($B$1:B5)+32),"") -> 0 | BJ8: =IFERROR(OFFSET(INDIRECT("'"&$BH$2&"'!"&"C$"&ROWS($B$1:C13)),,COLUMNS($B$1:B5)+33),"") -> 0 | BK8: =IFERROR(OFFSET(INDIRECT("'"&$BH$2&"'!"&"C$"&ROWS($B$1:D13)),,COLUMNS($B$1:B5)+34),"") -> 0 | BL8: =IFERROR(OFFSET(INDIRECT("'"&$BH$2&"'!"&"C$"&ROWS($B$1:D13)),,COLUMNS($B$1:B5)+35),"") -> 0 | BM8: =IFERROR(OFFSET(INDIRECT("'"&$BH$2&"'!"&"C$"&ROWS($B$1:H13)),,COLUMNS($B$1:B5)+36),"") -> 0 | BN8: =IFERROR(OFFSET(INDIRECT("'"&$BH$2&"'!"&"C$"&ROWS($B$1:I13)),,COLUMNS($B$1:B5)+37),"") -> 0 | BO8: =IFERROR(OFFSET(INDIRECT("'"&$BO$2&"'!"&"C$"&ROWS($B$1:B13)),,COLUMNS($B$1:B5)+31),"") -> 0 | BP8: =IFERROR(OFFSET(INDIRECT("'"&$BO$2&"'!"&"C$"&ROWS($B$1:B13)),,COLUMNS($B$1:B5)+32),"") -> 0 | BQ8: =IFERROR(OFFSET(INDIRECT("'"&$BO$2&"'!"&"C$"&ROWS($B$1:C13)),,COLUMNS($B$1:B5)+33),"") -> 0 | BR8: =IFERROR(OFFSET(INDIRECT("'"&$BO$2&"'!"&"C$"&ROWS($B$1:D13)),,COLUMNS($B$1:B5)+34),"") -> 0 | BS8: =IFERROR(OFFSET(INDIRECT("'"&$BO$2&"'!"&"C$"&ROWS($B$1:D13)),,COLUMNS($B$1:B5)+35),"") -> 0 | BT8: =IFERROR(OFFSET(INDIRECT("'"&$BO$2&"'!"&"C$"&ROWS($B$1:H13)),,COLUMNS($B$1:B5)+36),"") -> 0 | BU8: =IFERROR(OFFSET(INDIRECT("'"&$BO$2&"'!"&"C$"&ROWS($B$1:I13)),,COLUMNS($B$1:B5)+37),"") -> 0 | BV8: =IFERROR(OFFSET(INDIRECT("'"&$BV$2&"'!"&"C$"&ROWS($B$1:B13)),,COLUMNS($B$1:B5)+31),"") -> 26 | BW8: =IFERROR(OFFSET(INDIRECT("'"&$BV$2&"'!"&"C$"&ROWS($B$1:B13)),,COLUMNS($B$1:B5)+32),"") -> 0 | BX8: =IFERROR(OFFSET(INDIRECT("'"&$BV$2&"'!"&"C$"&ROWS($B$1:C13)),,COLUMNS($B$1:B5)+33),"") -> 0 | BY8: =IFERROR(OFFSET(INDIRECT("'"&$BV$2&"'!"&"C$"&ROWS($B$1:D13)),,COLUMNS($B$1:B5)+34),"") -> 0 | BZ8: =IFERROR(OFFSET(INDIRECT("'"&$BV$2&"'!"&"C$"&ROWS($B$1:D13)),,COLUMNS($B$1:B5)+35),"") -> 0 | CA8: =IFERROR(OFFSET(INDIRECT("'"&$BV$2&"'!"&"C$"&ROWS($B$1:H13)),,COLUMNS($B$1:B5)+36),"") -> 0 | CB8: =IFERROR(OFFSET(INDIRECT("'"&$BV$2&"'!"&"C$"&ROWS($B$1:I13)),,COLUMNS($B$1:B5)+37),"") -> 0 | CC8: =IFERROR(OFFSET(INDIRECT("'"&$CC$2&"'!"&"C$"&ROWS($B$1:B13)),,COLUMNS($B$1:B5)+31),"") -> 0 | CD8: =IFERROR(OFFSET(INDIRECT("'"&$CC$2&"'!"&"C$"&ROWS($B$1:B13)),,COLUMNS($B$1:B5)+32),"") -> 0 | CE8: =IFERROR(OFFSET(INDIRECT("'"&$CC$2&"'!"&"C$"&ROWS($B$1:C13)),,COLUMNS($B$1:B5)+33),"") -> 0 | CF8: =IFERROR(OFFSET(INDIRECT("'"&$CC$2&"'!"&"C$"&ROWS($B$1:D13)),,COLUMNS($B$1:B5)+34),"") -> 0 | CG8: =IFERROR(OFFSET(INDIRECT("'"&$CC$2&"'!"&"C$"&ROWS($B$1:D13)),,COLUMNS($B$1:B5)+35),"") -> 0 | CH8: =IFERROR(OFFSET(INDIRECT("'"&$CC$2&"'!"&"C$"&ROWS($B$1:H13)),,COLUMNS($B$1:B5)+36),"") -> 0 | CI8: =IFERROR(OFFSET(INDIRECT("'"&$CC$2&"'!"&"C$"&ROWS($B$1:I13)),,COLUMNS($B$1:B5)+37),"") -> 0 | CJ8: =IFERROR(OFFSET(INDIRECT("'"&$CJ$2&"'!"&"C$"&ROWS($B$1:B13)),,COLUMNS($B$1:B5)+31),"") -> 26 | CK8: =IFERROR(OFFSET(INDIRECT("'"&$CJ$2&"'!"&"C$"&ROWS($B$1:B13)),,COLUMNS($B$1:B5)+32),"") -> 0 | CL8: =IFERROR(OFFSET(INDIRECT("'"&$CJ$2&"'!"&"C$"&ROWS($B$1:C13)),,COLUMNS($B$1:B5)+33),"") -> 0 | CM8: =IFERROR(OFFSET(INDIRECT("'"&$CJ$2&"'!"&"C$"&ROWS($B$1:D13)),,COLUMNS($B$1:B5)+34),"") -> 0 | CN8: =IFERROR(OFFSET(INDIRECT("'"&$CJ$2&"'!"&"C$"&ROWS($B$1:D13)),,COLUMNS($B$1:B5)+35),"") -> 0 | CO8: =IFERROR(OFFSET(INDIRECT("'"&$CJ$2&"'!"&"C$"&ROWS($B$1:H13)),,COLUMNS($B$1:B5)+36),"") -> 0 | CP8: =IFERROR(OFFSET(INDIRECT("'"&$CJ$2&"'!"&"C$"&ROWS($B$1:I13)),,COLUMNS($B$1:B5)+37),"") -> 0 | CR8: 900 | CS8: 1678.846154 | CT8: 692.3076923 | CU8: 2371.153846
A9: ميلاد زايد فهد حداد | B9: 41.9 | C9: 20 | D9: 0 | E9: 0 | F9: 0 | G9: 61.9 | I9: 2017-12-10 | K9: =IFERROR(OFFSET(INDIRECT("'"&$K$2&"'!"&"C$"&ROWS($B$1:B14)),,COLUMNS($B$1:B6)+31),"") -> 26 | L9: =IFERROR(OFFSET(INDIRECT("'"&$K$2&"'!"&"C$"&ROWS($B$1:B14)),,COLUMNS($B$1:B6)+32),"") -> 0 | M9: =IFERROR(OFFSET(INDIRECT("'"&$K$2&"'!"&"C$"&ROWS($B$1:C14)),,COLUMNS($B$1:B6)+33),"") -> 0 | N9: =IFERROR(OFFSET(INDIRECT("'"&$K$2&"'!"&"C$"&ROWS($B$1:D14)),,COLUMNS($B$1:B6)+34),"") -> 0 | O9: =IFERROR(OFFSET(INDIRECT("'"&$K$2&"'!"&"C$"&ROWS($B$1:D14)),,COLUMNS($B$1:B6)+35),"") -> 0 | P9: =IFERROR(OFFSET(INDIRECT("'"&$K$2&"'!"&"C$"&ROWS($B$1:H14)),,COLUMNS($B$1:B6)+36),"") -> 0 | Q9: =IFERROR(OFFSET(INDIRECT("'"&$K$2&"'!"&"C$"&ROWS($B$1:I14)),,COLUMNS($B$1:B6)+37),"") -> 0 | R9: =IFERROR(OFFSET(INDIRECT("'"&$R$2&"'!"&"C$"&ROWS($B$1:B14)),,COLUMNS($B$1:B6)+31),"") -> 0 | S9: =IFERROR(OFFSET(INDIRECT("'"&$R$2&"'!"&"C$"&ROWS($B$1:B14)),,COLUMNS($B$1:B6)+32),"") -> 0 | T9: =IFERROR(OFFSET(INDIRECT("'"&$R$2&"'!"&"C$"&ROWS($B$1:C14)),,COLUMNS($B$1:B6)+33),"") -> 0 | U9: =IFERROR(OFFSET(INDIRECT("'"&$R$2&"'!"&"C$"&ROWS($B$1:D14)),,COLUMNS($B$1:B6)+34),"") -> 0 | V9: =IFERROR(OFFSET(INDIRECT("'"&$R$2&"'!"&"C$"&ROWS($B$1:D14)),,COLUMNS($B$1:B6)+35),"") -> 0 | W9: =IFERROR(OFFSET(INDIRECT("'"&$R$2&"'!"&"C$"&ROWS($B$1:H14)),,COLUMNS($B$1:B6)+36),"") -> 0 | X9: =IFERROR(OFFSET(INDIRECT("'"&$R$2&"'!"&"C$"&ROWS($B$1:I14)),,COLUMNS($B$1:B6)+37),"") -> 0 | Y9: =IFERROR(OFFSET(INDIRECT("'"&$Y$2&"'!"&"C$"&ROWS($B$1:B14)),,COLUMNS($B$1:B6)+31),"") -> 26 | Z9: =IFERROR(OFFSET(INDIRECT("'"&$Y$2&"'!"&"C$"&ROWS($B$1:B14)),,COLUMNS($B$1:B6)+32),"") -> 0 | AA9: =IFERROR(OFFSET(INDIRECT("'"&$Y$2&"'!"&"C$"&ROWS($B$1:C14)),,COLUMNS($B$1:B6)+33),"") -> 0 | AB9: =IFERROR(OFFSET(INDIRECT("'"&$Y$2&"'!"&"C$"&ROWS($B$1:D14)),,COLUMNS($B$1:B6)+34),"") -> 0 | AC9: =IFERROR(OFFSET(INDIRECT("'"&$Y$2&"'!"&"C$"&ROWS($B$1:D14)),,COLUMNS($B$1:B6)+35),"") -> 0 | AD9: =IFERROR(OFFSET(INDIRECT("'"&$Y$2&"'!"&"C$"&ROWS($B$1:H14)),,COLUMNS($B$1:B6)+36),"") -> 0 | AE9: =IFERROR(OFFSET(INDIRECT("'"&$Y$2&"'!"&"C$"&ROWS($B$1:I14)),,COLUMNS($B$1:B6)+37),"") -> 0 | AF9: =IFERROR(OFFSET(INDIRECT("'"&$AF$2&"'!"&"C$"&ROWS($B$1:B14)),,COLUMNS($B$1:B6)+31),"") -> 0 | AG9: =IFERROR(OFFSET(INDIRECT("'"&$AF$2&"'!"&"C$"&ROWS($B$1:B14)),,COLUMNS($B$1:B6)+32),"") -> 0 | AH9: =IFERROR(OFFSET(INDIRECT("'"&$AF$2&"'!"&"C$"&ROWS($B$1:C14)),,COLUMNS($B$1:B6)+33),"") -> 0 | AI9: =IFERROR(OFFSET(INDIRECT("'"&$AF$2&"'!"&"C$"&ROWS($B$1:D14)),,COLUMNS($B$1:B6)+34),"") -> 0 | AJ9: =IFERROR(OFFSET(INDIRECT("'"&$AF$2&"'!"&"C$"&ROWS($B$1:D14)),,COLUMNS($B$1:B6)+35),"") -> 0 | AK9: =IFERROR(OFFSET(INDIRECT("'"&$AF$2&"'!"&"C$"&ROWS($B$1:H14)),,COLUMNS($B$1:B6)+36),"") -> 0 | AL9: =IFERROR(OFFSET(INDIRECT("'"&$AF$2&"'!"&"C$"&ROWS($B$1:I14)),,COLUMNS($B$1:B6)+37),"") -> 0 | AM9: =IFERROR(OFFSET(INDIRECT("'"&$AM$2&"'!"&"C$"&ROWS($B$1:B14)),,COLUMNS($B$1:B6)+31),"") -> 26 | AN9: =IFERROR(OFFSET(INDIRECT("'"&$AM$2&"'!"&"C$"&ROWS($B$1:B14)),,COLUMNS($B$1:B6)+32),"") -> 0 | AO9: =IFERROR(OFFSET(INDIRECT("'"&$AM$2&"'!"&"C$"&ROWS($B$1:C14)),,COLUMNS($B$1:B6)+33),"") -> 0 | AP9: =IFERROR(OFFSET(INDIRECT("'"&$AM$2&"'!"&"C$"&ROWS($B$1:D14)),,COLUMNS($B$1:B6)+34),"") -> 0 | AQ9: =IFERROR(OFFSET(INDIRECT("'"&$AM$2&"'!"&"C$"&ROWS($B$1:D14)),,COLUMNS($B$1:B6)+35),"") -> 0 | AR9: =IFERROR(OFFSET(INDIRECT("'"&$AM$2&"'!"&"C$"&ROWS($B$1:H14)),,COLUMNS($B$1:B6)+36),"") -> 0 | AS9: =IFERROR(OFFSET(INDIRECT("'"&$AM$2&"'!"&"C$"&ROWS($B$1:I14)),,COLUMNS($B$1:B6)+37),"") -> 0 | AT9: =IFERROR(OFFSET(INDIRECT("'"&$AT$2&"'!"&"C$"&ROWS($B$1:B14)),,COLUMNS($B$1:B6)+31),"") -> 26 | AU9: =IFERROR(OFFSET(INDIRECT("'"&$AT$2&"'!"&"C$"&ROWS($B$1:B14)),,COLUMNS($B$1:B6)+32),"") -> 0 | AV9: =IFERROR(OFFSET(INDIRECT("'"&$AT$2&"'!"&"C$"&ROWS($B$1:C14)),,COLUMNS($B$1:B6)+33),"") -> 0 | AW9: =IFERROR(OFFSET(INDIRECT("'"&$AT$2&"'!"&"C$"&ROWS($B$1:D14)),,COLUMNS($B$1:B6)+34),"") -> 0 | AX9: =IFERROR(OFFSET(INDIRECT("'"&$AT$2&"'!"&"C$"&ROWS($B$1:D14)),,COLUMNS($B$1:B6)+35),"") -> 0 | AY9: =IFERROR(OFFSET(INDIRECT("'"&$AT$2&"'!"&"C$"&ROWS($B$1:H14)),,COLUMNS($B$1:B6)+36),"") -> 0 | AZ9: =IFERROR(OFFSET(INDIRECT("'"&$AT$2&"'!"&"C$"&ROWS($B$1:I14)),,COLUMNS($B$1:B6)+37),"") -> 0 | BA9: =IFERROR(OFFSET(INDIRECT("'"&$BA$2&"'!"&"C$"&ROWS($B$1:B14)),,COLUMNS($B$1:B6)+31),"") -> 26 | BB9: =IFERROR(OFFSET(INDIRECT("'"&$BA$2&"'!"&"C$"&ROWS($B$1:B14)),,COLUMNS($B$1:B6)+32),"") -> 0 | BC9: =IFERROR(OFFSET(INDIRECT("'"&$BA$2&"'!"&"C$"&ROWS($B$1:C14)),,COLUMNS($B$1:B6)+33),"") -> 0 | BD9: =IFERROR(OFFSET(INDIRECT("'"&$BA$2&"'!"&"C$"&ROWS($B$1:D14)),,COLUMNS($B$1:B6)+34),"") -> 0 | BE9: =IFERROR(OFFSET(INDIRECT("'"&$BA$2&"'!"&"C$"&ROWS($B$1:D14)),,COLUMNS($B$1:B6)+35),"") -> 0 | BF9: =IFERROR(OFFSET(INDIRECT("'"&$BA$2&"'!"&"C$"&ROWS($B$1:H14)),,COLUMNS($B$1:B6)+36),"") -> 0 | BG9: =IFERROR(OFFSET(INDIRECT("'"&$BA$2&"'!"&"C$"&ROWS($B$1:I14)),,COLUMNS($B$1:B6)+37),"") -> 0 | BH9: =IFERROR(OFFSET(INDIRECT("'"&$BH$2&"'!"&"C$"&ROWS($B$1:B14)),,COLUMNS($B$1:B6)+31),"") -> 26 | BI9: =IFERROR(OFFSET(INDIRECT("'"&$BH$2&"'!"&"C$"&ROWS($B$1:B14)),,COLUMNS($B$1:B6)+32),"") -> 0 | BJ9: =IFERROR(OFFSET(INDIRECT("'"&$BH$2&"'!"&"C$"&ROWS($B$1:C14)),,COLUMNS($B$1:B6)+33),"") -> 0 | BK9: =IFERROR(OFFSET(INDIRECT("'"&$BH$2&"'!"&"C$"&ROWS($B$1:D14)),,COLUMNS($B$1:B6)+34),"") -> 0 | BL9: =IFERROR(OFFSET(INDIRECT("'"&$BH$2&"'!"&"C$"&ROWS($B$1:D14)),,COLUMNS($B$1:B6)+35),"") -> 0 | BM9: =IFERROR(OFFSET(INDIRECT("'"&$BH$2&"'!"&"C$"&ROWS($B$1:H14)),,COLUMNS($B$1:B6)+36),"") -> 0 | BN9: =IFERROR(OFFSET(INDIRECT("'"&$BH$2&"'!"&"C$"&ROWS($B$1:I14)),,COLUMNS($B$1:B6)+37),"") -> 0 | BO9: =IFERROR(OFFSET(INDIRECT("'"&$BO$2&"'!"&"C$"&ROWS($B$1:B14)),,COLUMNS($B$1:B6)+31),"") -> 0 | BP9: =IFERROR(OFFSET(INDIRECT("'"&$BO$2&"'!"&"C$"&ROWS($B$1:B14)),,COLUMNS($B$1:B6)+32),"") -> 0 | BQ9: =IFERROR(OFFSET(INDIRECT("'"&$BO$2&"'!"&"C$"&ROWS($B$1:C14)),,COLUMNS($B$1:B6)+33),"") -> 0 | BR9: =IFERROR(OFFSET(INDIRECT("'"&$BO$2&"'!"&"C$"&ROWS($B$1:D14)),,COLUMNS($B$1:B6)+34),"") -> 0 | BS9: =IFERROR(OFFSET(INDIRECT("'"&$BO$2&"'!"&"C$"&ROWS($B$1:D14)),,COLUMNS($B$1:B6)+35),"") -> 0 | BT9: =IFERROR(OFFSET(INDIRECT("'"&$BO$2&"'!"&"C$"&ROWS($B$1:H14)),,COLUMNS($B$1:B6)+36),"") -> 0 | BU9: =IFERROR(OFFSET(INDIRECT("'"&$BO$2&"'!"&"C$"&ROWS($B$1:I14)),,COLUMNS($B$1:B6)+37),"") -> 0 | BV9: =IFERROR(OFFSET(INDIRECT("'"&$BV$2&"'!"&"C$"&ROWS($B$1:B14)),,COLUMNS($B$1:B6)+31),"") -> 26 | BW9: =IFERROR(OFFSET(INDIRECT("'"&$BV$2&"'!"&"C$"&ROWS($B$1:B14)),,COLUMNS($B$1:B6)+32),"") -> 0 | BX9: =IFERROR(OFFSET(INDIRECT("'"&$BV$2&"'!"&"C$"&ROWS($B$1:C14)),,COLUMNS($B$1:B6)+33),"") -> 0 | BY9: =IFERROR(OFFSET(INDIRECT("'"&$BV$2&"'!"&"C$"&ROWS($B$1:D14)),,COLUMNS($B$1:B6)+34),"") -> 0 | BZ9: =IFERROR(OFFSET(INDIRECT("'"&$BV$2&"'!"&"C$"&ROWS($B$1:D14)),,COLUMNS($B$1:B6)+35),"") -> 0 | CA9: =IFERROR(OFFSET(INDIRECT("'"&$BV$2&"'!"&"C$"&ROWS($B$1:H14)),,COLUMNS($B$1:B6)+36),"") -> 0 | CB9: =IFERROR(OFFSET(INDIRECT("'"&$BV$2&"'!"&"C$"&ROWS($B$1:I14)),,COLUMNS($B$1:B6)+37),"") -> 0 | CC9: =IFERROR(OFFSET(INDIRECT("'"&$CC$2&"'!"&"C$"&ROWS($B$1:B14)),,COLUMNS($B$1:B6)+31),"") -> 0 | CD9: =IFERROR(OFFSET(INDIRECT("'"&$CC$2&"'!"&"C$"&ROWS($B$1:B14)),,COLUMNS($B$1:B6)+32),"") -> 0 | CE9: =IFERROR(OFFSET(INDIRECT("'"&$CC$2&"'!"&"C$"&ROWS($B$1:C14)),,COLUMNS($B$1:B6)+33),"") -> 0 | CF9: =IFERROR(OFFSET(INDIRECT("'"&$CC$2&"'!"&"C$"&ROWS($B$1:D14)),,COLUMNS($B$1:B6)+34),"") -> 0 | CG9: =IFERROR(OFFSET(INDIRECT("'"&$CC$2&"'!"&"C$"&ROWS($B$1:D14)),,COLUMNS($B$1:B6)+35),"") -> 0 | CH9: =IFERROR(OFFSET(INDIRECT("'"&$CC$2&"'!"&"C$"&ROWS($B$1:H14)),,COLUMNS($B$1:B6)+36),"") -> 0 | CI9: =IFERROR(OFFSET(INDIRECT("'"&$CC$2&"'!"&"C$"&ROWS($B$1:I14)),,COLUMNS($B$1:B6)+37),"") -> 0 | CJ9: =IFERROR(OFFSET(INDIRECT("'"&$CJ$2&"'!"&"C$"&ROWS($B$1:B14)),,COLUMNS($B$1:B6)+31),"") -> 26 | CK9: =IFERROR(OFFSET(INDIRECT("'"&$CJ$2&"'!"&"C$"&ROWS($B$1:B14)),,COLUMNS($B$1:B6)+32),"") -> 0 | CL9: =IFERROR(OFFSET(INDIRECT("'"&$CJ$2&"'!"&"C$"&ROWS($B$1:C14)),,COLUMNS($B$1:B6)+33),"") -> 0 | CM9: =IFERROR(OFFSET(INDIRECT("'"&$CJ$2&"'!"&"C$"&ROWS($B$1:D14)),,COLUMNS($B$1:B6)+34),"") -> 0 | CN9: =IFERROR(OFFSET(INDIRECT("'"&$CJ$2&"'!"&"C$"&ROWS($B$1:D14)),,COLUMNS($B$1:B6)+35),"") -> 0 | CO9: =IFERROR(OFFSET(INDIRECT("'"&$CJ$2&"'!"&"C$"&ROWS($B$1:H14)),,COLUMNS($B$1:B6)+36),"") -> 0 | CP9: =IFERROR(OFFSET(INDIRECT("'"&$CJ$2&"'!"&"C$"&ROWS($B$1:I14)),,COLUMNS($B$1:B6)+37),"") -> 0 | CR9: 900 | CS9: 1450.384615 | CT9: 692.3076923 | CU9: 2142.692308
A10: موهان كومار جوبالا | B10: 45.3 | C10: 20 | D10: 0 | E10: 0 | F10: 0 | G10: 65.3 | I10: 2018-02-11 | K10: =IFERROR(OFFSET(INDIRECT("'"&$K$2&"'!"&"C$"&ROWS($B$1:B15)),,COLUMNS($B$1:B7)+31),"") -> 26 | L10: =IFERROR(OFFSET(INDIRECT("'"&$K$2&"'!"&"C$"&ROWS($B$1:B15)),,COLUMNS($B$1:B7)+32),"") -> 0 | M10: =IFERROR(OFFSET(INDIRECT("'"&$K$2&"'!"&"C$"&ROWS($B$1:C15)),,COLUMNS($B$1:B7)+33),"") -> 0 | N10: =IFERROR(OFFSET(INDIRECT("'"&$K$2&"'!"&"C$"&ROWS($B$1:D15)),,COLUMNS($B$1:B7)+34),"") -> 0 | O10: =IFERROR(OFFSET(INDIRECT("'"&$K$2&"'!"&"C$"&ROWS($B$1:D15)),,COLUMNS($B$1:B7)+35),"") -> 0 | P10: =IFERROR(OFFSET(INDIRECT("'"&$K$2&"'!"&"C$"&ROWS($B$1:H15)),,COLUMNS($B$1:B7)+36),"") -> 0 | Q10: =IFERROR(OFFSET(INDIRECT("'"&$K$2&"'!"&"C$"&ROWS($B$1:I15)),,COLUMNS($B$1:B7)+37),"") -> 0 | R10: =IFERROR(OFFSET(INDIRECT("'"&$R$2&"'!"&"C$"&ROWS($B$1:B15)),,COLUMNS($B$1:B7)+31),"") -> 0 | S10: =IFERROR(OFFSET(INDIRECT("'"&$R$2&"'!"&"C$"&ROWS($B$1:B15)),,COLUMNS($B$1:B7)+32),"") -> 0 | T10: =IFERROR(OFFSET(INDIRECT("'"&$R$2&"'!"&"C$"&ROWS($B$1:C15)),,COLUMNS($B$1:B7)+33),"") -> 0 | U10: =IFERROR(OFFSET(INDIRECT("'"&$R$2&"'!"&"C$"&ROWS($B$1:D15)),,COLUMNS($B$1:B7)+34),"") -> 0 | V10: =IFERROR(OFFSET(INDIRECT("'"&$R$2&"'!"&"C$"&ROWS($B$1:D15)),,COLUMNS($B$1:B7)+35),"") -> 0 | W10: =IFERROR(OFFSET(INDIRECT("'"&$R$2&"'!"&"C$"&ROWS($B$1:H15)),,COLUMNS($B$1:B7)+36),"") -> 0 | X10: =IFERROR(OFFSET(INDIRECT("'"&$R$2&"'!"&"C$"&ROWS($B$1:I15)),,COLUMNS($B$1:B7)+37),"") -> 0 | Y10: =IFERROR(OFFSET(INDIRECT("'"&$Y$2&"'!"&"C$"&ROWS($B$1:B15)),,COLUMNS($B$1:B7)+31),"") -> 26 | Z10: =IFERROR(OFFSET(INDIRECT("'"&$Y$2&"'!"&"C$"&ROWS($B$1:B15)),,COLUMNS($B$1:B7)+32),"") -> 0 | AA10: =IFERROR(OFFSET(INDIRECT("'"&$Y$2&"'!"&"C$"&ROWS($B$1:C15)),,COLUMNS($B$1:B7)+33),"") -> 0 | AB10: =IFERROR(OFFSET(INDIRECT("'"&$Y$2&"'!"&"C$"&ROWS($B$1:D15)),,COLUMNS($B$1:B7)+34),"") -> 0 | AC10: =IFERROR(OFFSET(INDIRECT("'"&$Y$2&"'!"&"C$"&ROWS($B$1:D15)),,COLUMNS($B$1:B7)+35),"") -> 0 | AD10: =IFERROR(OFFSET(INDIRECT("'"&$Y$2&"'!"&"C$"&ROWS($B$1:H15)),,COLUMNS($B$1:B7)+36),"") -> 0 | AE10: =IFERROR(OFFSET(INDIRECT("'"&$Y$2&"'!"&"C$"&ROWS($B$1:I15)),,COLUMNS($B$1:B7)+37),"") -> 0 | AF10: =IFERROR(OFFSET(INDIRECT("'"&$AF$2&"'!"&"C$"&ROWS($B$1:B15)),,COLUMNS($B$1:B7)+31),"") -> 0 | AG10: =IFERROR(OFFSET(INDIRECT("'"&$AF$2&"'!"&"C$"&ROWS($B$1:B15)),,COLUMNS($B$1:B7)+32),"") -> 0 | AH10: =IFERROR(OFFSET(INDIRECT("'"&$AF$2&"'!"&"C$"&ROWS($B$1:C15)),,COLUMNS($B$1:B7)+33),"") -> 0 | AI10: =IFERROR(OFFSET(INDIRECT("'"&$AF$2&"'!"&"C$"&ROWS($B$1:D15)),,COLUMNS($B$1:B7)+34),"") -> 0 | AJ10: =IFERROR(OFFSET(INDIRECT("'"&$AF$2&"'!"&"C$"&ROWS($B$1:D15)),,COLUMNS($B$1:B7)+35),"") -> 0 | AK10: =IFERROR(OFFSET(INDIRECT("'"&$AF$2&"'!"&"C$"&ROWS($B$1:H15)),,COLUMNS($B$1:B7)+36),"") -> 0 | AL10: =IFERROR(OFFSET(INDIRECT("'"&$AF$2&"'!"&"C$"&ROWS($B$1:I15)),,COLUMNS($B$1:B7)+37),"") -> 0 | AM10: =IFERROR(OFFSET(INDIRECT("'"&$AM$2&"'!"&"C$"&ROWS($B$1:B15)),,COLUMNS($B$1:B7)+31),"") -> 26 | AN10: =IFERROR(OFFSET(INDIRECT("'"&$AM$2&"'!"&"C$"&ROWS($B$1:B15)),,COLUMNS($B$1:B7)+32),"") -> 0 | AO10: =IFERROR(OFFSET(INDIRECT("'"&$AM$2&"'!"&"C$"&ROWS($B$1:C15)),,COLUMNS($B$1:B7)+33),"") -> 0 | AP10: =IFERROR(OFFSET(INDIRECT("'"&$AM$2&"'!"&"C$"&ROWS($B$1:D15)),,COLUMNS($B$1:B7)+34),"") -> 0 | AQ10: =IFERROR(OFFSET(INDIRECT("'"&$AM$2&"'!"&"C$"&ROWS($B$1:D15)),,COLUMNS($B$1:B7)+35),"") -> 0 | AR10: =IFERROR(OFFSET(INDIRECT("'"&$AM$2&"'!"&"C$"&ROWS($B$1:H15)),,COLUMNS($B$1:B7)+36),"") -> 0 | AS10: =IFERROR(OFFSET(INDIRECT("'"&$AM$2&"'!"&"C$"&ROWS($B$1:I15)),,COLUMNS($B$1:B7)+37),"") -> 0 | AT10: =IFERROR(OFFSET(INDIRECT("'"&$AT$2&"'!"&"C$"&ROWS($B$1:B15)),,COLUMNS($B$1:B7)+31),"") -> 26 | AU10: =IFERROR(OFFSET(INDIRECT("'"&$AT$2&"'!"&"C$"&ROWS($B$1:B15)),,COLUMNS($B$1:B7)+32),"") -> 0 | AV10: =IFERROR(OFFSET(INDIRECT("'"&$AT$2&"'!"&"C$"&ROWS($B$1:C15)),,COLUMNS($B$1:B7)+33),"") -> 0 | AW10: =IFERROR(OFFSET(INDIRECT("'"&$AT$2&"'!"&"C$"&ROWS($B$1:D15)),,COLUMNS($B$1:B7)+34),"") -> 0 | AX10: =IFERROR(OFFSET(INDIRECT("'"&$AT$2&"'!"&"C$"&ROWS($B$1:D15)),,COLUMNS($B$1:B7)+35),"") -> 0 | AY10: =IFERROR(OFFSET(INDIRECT("'"&$AT$2&"'!"&"C$"&ROWS($B$1:H15)),,COLUMNS($B$1:B7)+36),"") -> 0 | AZ10: =IFERROR(OFFSET(INDIRECT("'"&$AT$2&"'!"&"C$"&ROWS($B$1:I15)),,COLUMNS($B$1:B7)+37),"") -> 0 | BA10: =IFERROR(OFFSET(INDIRECT("'"&$BA$2&"'!"&"C$"&ROWS($B$1:B15)),,COLUMNS($B$1:B7)+31),"") -> 26 | BB10: =IFERROR(OFFSET(INDIRECT("'"&$BA$2&"'!"&"C$"&ROWS($B$1:B15)),,COLUMNS($B$1:B7)+32),"") -> 0 | BC10: =IFERROR(OFFSET(INDIRECT("'"&$BA$2&"'!"&"C$"&ROWS($B$1:C15)),,COLUMNS($B$1:B7)+33),"") -> 0 | BD10: =IFERROR(OFFSET(INDIRECT("'"&$BA$2&"'!"&"C$"&ROWS($B$1:D15)),,COLUMNS($B$1:B7)+34),"") -> 0 | BE10: =IFERROR(OFFSET(INDIRECT("'"&$BA$2&"'!"&"C$"&ROWS($B$1:D15)),,COLUMNS($B$1:B7)+35),"") -> 0 | BF10: =IFERROR(OFFSET(INDIRECT("'"&$BA$2&"'!"&"C$"&ROWS($B$1:H15)),,COLUMNS($B$1:B7)+36),"") -> 0 | BG10: =IFERROR(OFFSET(INDIRECT("'"&$BA$2&"'!"&"C$"&ROWS($B$1:I15)),,COLUMNS($B$1:B7)+37),"") -> 0 | BH10: =IFERROR(OFFSET(INDIRECT("'"&$BH$2&"'!"&"C$"&ROWS($B$1:B15)),,COLUMNS($B$1:B7)+31),"") -> 26 | BI10: =IFERROR(OFFSET(INDIRECT("'"&$BH$2&"'!"&"C$"&ROWS($B$1:B15)),,COLUMNS($B$1:B7)+32),"") -> 0 | BJ10: =IFERROR(OFFSET(INDIRECT("'"&$BH$2&"'!"&"C$"&ROWS($B$1:C15)),,COLUMNS($B$1:B7)+33),"") -> 0 | BK10: =IFERROR(OFFSET(INDIRECT("'"&$BH$2&"'!"&"C$"&ROWS($B$1:D15)),,COLUMNS($B$1:B7)+34),"") -> 0 | BL10: =IFERROR(OFFSET(INDIRECT("'"&$BH$2&"'!"&"C$"&ROWS($B$1:D15)),,COLUMNS($B$1:B7)+35),"") -> 0 | BM10: =IFERROR(OFFSET(INDIRECT("'"&$BH$2&"'!"&"C$"&ROWS($B$1:H15)),,COLUMNS($B$1:B7)+36),"") -> 0 | BN10: =IFERROR(OFFSET(INDIRECT("'"&$BH$2&"'!"&"C$"&ROWS($B$1:I15)),,COLUMNS($B$1:B7)+37),"") -> 0 | BO10: =IFERROR(OFFSET(INDIRECT("'"&$BO$2&"'!"&"C$"&ROWS($B$1:B15)),,COLUMNS($B$1:B7)+31),"") -> 0 | BP10: =IFERROR(OFFSET(INDIRECT("'"&$BO$2&"'!"&"C$"&ROWS($B$1:B15)),,COLUMNS($B$1:B7)+32),"") -> 0 | BQ10: =IFERROR(OFFSET(INDIRECT("'"&$BO$2&"'!"&"C$"&ROWS($B$1:C15)),,COLUMNS($B$1:B7)+33),"") -> 0 | BR10: =IFERROR(OFFSET(INDIRECT("'"&$BO$2&"'!"&"C$"&ROWS($B$1:D15)),,COLUMNS($B$1:B7)+34),"") -> 0 | BS10: =IFERROR(OFFSET(INDIRECT("'"&$BO$2&"'!"&"C$"&ROWS($B$1:D15)),,COLUMNS($B$1:B7)+35),"") -> 0 | BT10: =IFERROR(OFFSET(INDIRECT("'"&$BO$2&"'!"&"C$"&ROWS($B$1:H15)),,COLUMNS($B$1:B7)+36),"") -> 0 | BU10: =IFERROR(OFFSET(INDIRECT("'"&$BO$2&"'!"&"C$"&ROWS($B$1:I15)),,COLUMNS($B$1:B7)+37),"") -> 0 | BV10: =IFERROR(OFFSET(INDIRECT("'"&$BV$2&"'!"&"C$"&ROWS($B$1:B15)),,COLUMNS($B$1:B7)+31),"") -> 26 | BW10: =IFERROR(OFFSET(INDIRECT("'"&$BV$2&"'!"&"C$"&ROWS($B$1:B15)),,COLUMNS($B$1:B7)+32),"") -> 0 | BX10: =IFERROR(OFFSET(INDIRECT("'"&$BV$2&"'!"&"C$"&ROWS($B$1:C15)),,COLUMNS($B$1:B7)+33),"") -> 0 | BY10: =IFERROR(OFFSET(INDIRECT("'"&$BV$2&"'!"&"C$"&ROWS($B$1:D15)),,COLUMNS($B$1:B7)+34),"") -> 0 | BZ10: =IFERROR(OFFSET(INDIRECT("'"&$BV$2&"'!"&"C$"&ROWS($B$1:D15)),,COLUMNS($B$1:B7)+35),"") -> 0 | CA10: =IFERROR(OFFSET(INDIRECT("'"&$BV$2&"'!"&"C$"&ROWS($B$1:H15)),,COLUMNS($B$1:B7)+36),"") -> 0 | CB10: =IFERROR(OFFSET(INDIRECT("'"&$BV$2&"'!"&"C$"&ROWS($B$1:I15)),,COLUMNS($B$1:B7)+37),"") -> 0 | CC10: =IFERROR(OFFSET(INDIRECT("'"&$CC$2&"'!"&"C$"&ROWS($B$1:B15)),,COLUMNS($B$1:B7)+31),"") -> 0 | CD10: =IFERROR(OFFSET(INDIRECT("'"&$CC$2&"'!"&"C$"&ROWS($B$1:B15)),,COLUMNS($B$1:B7)+32),"") -> 0 | CE10: =IFERROR(OFFSET(INDIRECT("'"&$CC$2&"'!"&"C$"&ROWS($B$1:C15)),,COLUMNS($B$1:B7)+33),"") -> 0 | CF10: =IFERROR(OFFSET(INDIRECT("'"&$CC$2&"'!"&"C$"&ROWS($B$1:D15)),,COLUMNS($B$1:B7)+34),"") -> 0 | CG10: =IFERROR(OFFSET(INDIRECT("'"&$CC$2&"'!"&"C$"&ROWS($B$1:D15)),,COLUMNS($B$1:B7)+35),"") -> 0 | CH10: =IFERROR(OFFSET(INDIRECT("'"&$CC$2&"'!"&"C$"&ROWS($B$1:H15)),,COLUMNS($B$1:B7)+36),"") -> 0 | CI10: =IFERROR(OFFSET(INDIRECT("'"&$CC$2&"'!"&"C$"&ROWS($B$1:I15)),,COLUMNS($B$1:B7)+37),"") -> 0 | CJ10: =IFERROR(OFFSET(INDIRECT("'"&$CJ$2&"'!"&"C$"&ROWS($B$1:B15)),,COLUMNS($B$1:B7)+31),"") -> 26 | CK10: =IFERROR(OFFSET(INDIRECT("'"&$CJ$2&"'!"&"C$"&ROWS($B$1:B15)),,COLUMNS($B$1:B7)+32),"") -> 0 | CL10: =IFERROR(OFFSET(INDIRECT("'"&$CJ$2&"'!"&"C$"&ROWS($B$1:C15)),,COLUMNS($B$1:B7)+33),"") -> 0 | CM10: =IFERROR(OFFSET(INDIRECT("'"&$CJ$2&"'!"&"C$"&ROWS($B$1:D15)),,COLUMNS($B$1:B7)+34),"") -> 0 | CN10: =IFERROR(OFFSET(INDIRECT("'"&$CJ$2&"'!"&"C$"&ROWS($B$1:D15)),,COLUMNS($B$1:B7)+35),"") -> 0 | CO10: =IFERROR(OFFSET(INDIRECT("'"&$CJ$2&"'!"&"C$"&ROWS($B$1:H15)),,COLUMNS($B$1:B7)+36),"") -> 0 | CP10: =IFERROR(OFFSET(INDIRECT("'"&$CJ$2&"'!"&"C$"&ROWS($B$1:I15)),,COLUMNS($B$1:B7)+37),"") -> 0 | CR10: 500 | CS10: 871.1538462 | CT10: 384.6153846 | CU10: 1255.769231
A11: سانتانا ميراندا | B11: 27.8 | C11: 20 | D11: 0 | E11: 0 | F11: 0 | G11: 47.8 | I11: 2006-02-13 | K11: =IFERROR(OFFSET(INDIRECT("'"&$K$2&"'!"&"C$"&ROWS($B$1:B16)),,COLUMNS($B$1:B8)+31),"") -> 26 | L11: =IFERROR(OFFSET(INDIRECT("'"&$K$2&"'!"&"C$"&ROWS($B$1:B16)),,COLUMNS($B$1:B8)+32),"") -> 0 | M11: =IFERROR(OFFSET(INDIRECT("'"&$K$2&"'!"&"C$"&ROWS($B$1:C16)),,COLUMNS($B$1:B8)+33),"") -> 0 | N11: =IFERROR(OFFSET(INDIRECT("'"&$K$2&"'!"&"C$"&ROWS($B$1:D16)),,COLUMNS($B$1:B8)+34),"") -> 0 | O11: =IFERROR(OFFSET(INDIRECT("'"&$K$2&"'!"&"C$"&ROWS($B$1:D16)),,COLUMNS($B$1:B8)+35),"") -> 0 | P11: =IFERROR(OFFSET(INDIRECT("'"&$K$2&"'!"&"C$"&ROWS($B$1:H16)),,COLUMNS($B$1:B8)+36),"") -> 0 | Q11: =IFERROR(OFFSET(INDIRECT("'"&$K$2&"'!"&"C$"&ROWS($B$1:I16)),,COLUMNS($B$1:B8)+37),"") -> 0 | R11: =IFERROR(OFFSET(INDIRECT("'"&$R$2&"'!"&"C$"&ROWS($B$1:B16)),,COLUMNS($B$1:B8)+31),"") -> 0 | S11: =IFERROR(OFFSET(INDIRECT("'"&$R$2&"'!"&"C$"&ROWS($B$1:B16)),,COLUMNS($B$1:B8)+32),"") -> 0 | T11: =IFERROR(OFFSET(INDIRECT("'"&$R$2&"'!"&"C$"&ROWS($B$1:C16)),,COLUMNS($B$1:B8)+33),"") -> 0 | U11: =IFERROR(OFFSET(INDIRECT("'"&$R$2&"'!"&"C$"&ROWS($B$1:D16)),,COLUMNS($B$1:B8)+34),"") -> 0 | V11: =IFERROR(OFFSET(INDIRECT("'"&$R$2&"'!"&"C$"&ROWS($B$1:D16)),,COLUMNS($B$1:B8)+35),"") -> 0 | W11: =IFERROR(OFFSET(INDIRECT("'"&$R$2&"'!"&"C$"&ROWS($B$1:H16)),,COLUMNS($B$1:B8)+36),"") -> 0 | X11: =IFERROR(OFFSET(INDIRECT("'"&$R$2&"'!"&"C$"&ROWS($B$1:I16)),,COLUMNS($B$1:B8)+37),"") -> 0 | Y11: =IFERROR(OFFSET(INDIRECT("'"&$Y$2&"'!"&"C$"&ROWS($B$1:B16)),,COLUMNS($B$1:B8)+31),"") -> 26 | Z11: =IFERROR(OFFSET(INDIRECT("'"&$Y$2&"'!"&"C$"&ROWS($B$1:B16)),,COLUMNS($B$1:B8)+32),"") -> 0 | AA11: =IFERROR(OFFSET(INDIRECT("'"&$Y$2&"'!"&"C$"&ROWS($B$1:C16)),,COLUMNS($B$1:B8)+33),"") -> 0 | AB11: =IFERROR(OFFSET(INDIRECT("'"&$Y$2&"'!"&"C$"&ROWS($B$1:D16)),,COLUMNS($B$1:B8)+34),"") -> 0 | AC11: =IFERROR(OFFSET(INDIRECT("'"&$Y$2&"'!"&"C$"&ROWS($B$1:D16)),,COLUMNS($B$1:B8)+35),"") -> 0 | AD11: =IFERROR(OFFSET(INDIRECT("'"&$Y$2&"'!"&"C$"&ROWS($B$1:H16)),,COLUMNS($B$1:B8)+36),"") -> 0 | AE11: =IFERROR(OFFSET(INDIRECT("'"&$Y$2&"'!"&"C$"&ROWS($B$1:I16)),,COLUMNS($B$1:B8)+37),"") -> 0 | AF11: =IFERROR(OFFSET(INDIRECT("'"&$AF$2&"'!"&"C$"&ROWS($B$1:B16)),,COLUMNS($B$1:B8)+31),"") -> 0 | AG11: =IFERROR(OFFSET(INDIRECT("'"&$AF$2&"'!"&"C$"&ROWS($B$1:B16)),,COLUMNS($B$1:B8)+32),"") -> 0 | AH11: =IFERROR(OFFSET(INDIRECT("'"&$AF$2&"'!"&"C$"&ROWS($B$1:C16)),,COLUMNS($B$1:B8)+33),"") -> 0 | AI11: =IFERROR(OFFSET(INDIRECT("'"&$AF$2&"'!"&"C$"&ROWS($B$1:D16)),,COLUMNS($B$1:B8)+34),"") -> 0 | AJ11: =IFERROR(OFFSET(INDIRECT("'"&$AF$2&"'!"&"C$"&ROWS($B$1:D16)),,COLUMNS($B$1:B8)+35),"") -> 0 | AK11: =IFERROR(OFFSET(INDIRECT("'"&$AF$2&"'!"&"C$"&ROWS($B$1:H16)),,COLUMNS($B$1:B8)+36),"") -> 0 | AL11: =IFERROR(OFFSET(INDIRECT("'"&$AF$2&"'!"&"C$"&ROWS($B$1:I16)),,COLUMNS($B$1:B8)+37),"") -> 0 | AM11: =IFERROR(OFFSET(INDIRECT("'"&$AM$2&"'!"&"C$"&ROWS($B$1:B16)),,COLUMNS($B$1:B8)+31),"") -> 26 | AN11: =IFERROR(OFFSET(INDIRECT("'"&$AM$2&"'!"&"C$"&ROWS($B$1:B16)),,COLUMNS($B$1:B8)+32),"") -> 0 | AO11: =IFERROR(OFFSET(INDIRECT("'"&$AM$2&"'!"&"C$"&ROWS($B$1:C16)),,COLUMNS($B$1:B8)+33),"") -> 0 | AP11: =IFERROR(OFFSET(INDIRECT("'"&$AM$2&"'!"&"C$"&ROWS($B$1:D16)),,COLUMNS($B$1:B8)+34),"") -> 0 | AQ11: =IFERROR(OFFSET(INDIRECT("'"&$AM$2&"'!"&"C$"&ROWS($B$1:D16)),,COLUMNS($B$1:B8)+35),"") -> 0 | AR11: =IFERROR(OFFSET(INDIRECT("'"&$AM$2&"'!"&"C$"&ROWS($B$1:H16)),,COLUMNS($B$1:B8)+36),"") -> 0 | AS11: =IFERROR(OFFSET(INDIRECT("'"&$AM$2&"'!"&"C$"&ROWS($B$1:I16)),,COLUMNS($B$1:B8)+37),"") -> 0 | AT11: =IFERROR(OFFSET(INDIRECT("'"&$AT$2&"'!"&"C$"&ROWS($B$1:B16)),,COLUMNS($B$1:B8)+31),"") -> 26 | AU11: =IFERROR(OFFSET(INDIRECT("'"&$AT$2&"'!"&"C$"&ROWS($B$1:B16)),,COLUMNS($B$1:B8)+32),"") -> 0 | AV11: =IFERROR(OFFSET(INDIRECT("'"&$AT$2&"'!"&"C$"&ROWS($B$1:C16)),,COLUMNS($B$1:B8)+33),"") -> 0 | AW11: =IFERROR(OFFSET(INDIRECT("'"&$AT$2&"'!"&"C$"&ROWS($B$1:D16)),,COLUMNS($B$1:B8)+34),"") -> 0 | AX11: =IFERROR(OFFSET(INDIRECT("'"&$AT$2&"'!"&"C$"&ROWS($B$1:D16)),,COLUMNS($B$1:B8)+35),"") -> 0 | AY11: =IFERROR(OFFSET(INDIRECT("'"&$AT$2&"'!"&"C$"&ROWS($B$1:H16)),,COLUMNS($B$1:B8)+36),"") -> 0 | AZ11: =IFERROR(OFFSET(INDIRECT("'"&$AT$2&"'!"&"C$"&ROWS($B$1:I16)),,COLUMNS($B$1:B8)+37),"") -> 0 | BA11: =IFERROR(OFFSET(INDIRECT("'"&$BA$2&"'!"&"C$"&ROWS($B$1:B16)),,COLUMNS($B$1:B8)+31),"") -> 26 | BB11: =IFERROR(OFFSET(INDIRECT("'"&$BA$2&"'!"&"C$"&ROWS($B$1:B16)),,COLUMNS($B$1:B8)+32),"") -> 0 | BC11: =IFERROR(OFFSET(INDIRECT("'"&$BA$2&"'!"&"C$"&ROWS($B$1:C16)),,COLUMNS($B$1:B8)+33),"") -> 0 | BD11: =IFERROR(OFFSET(INDIRECT("'"&$BA$2&"'!"&"C$"&ROWS($B$1:D16)),,COLUMNS($B$1:B8)+34),"") -> 0 | BE11: =IFERROR(OFFSET(INDIRECT("'"&$BA$2&"'!"&"C$"&ROWS($B$1:D16)),,COLUMNS($B$1:B8)+35),"") -> 0 | BF11: =IFERROR(OFFSET(INDIRECT("'"&$BA$2&"'!"&"C$"&ROWS($B$1:H16)),,COLUMNS($B$1:B8)+36),"") -> 0 | BG11: =IFERROR(OFFSET(INDIRECT("'"&$BA$2&"'!"&"C$"&ROWS($B$1:I16)),,COLUMNS($B$1:B8)+37),"") -> 0 | BH11: =IFERROR(OFFSET(INDIRECT("'"&$BH$2&"'!"&"C$"&ROWS($B$1:B16)),,COLUMNS($B$1:B8)+31),"") -> 26 | BI11: =IFERROR(OFFSET(INDIRECT("'"&$BH$2&"'!"&"C$"&ROWS($B$1:B16)),,COLUMNS($B$1:B8)+32),"") -> 0 | BJ11: =IFERROR(OFFSET(INDIRECT("'"&$BH$2&"'!"&"C$"&ROWS($B$1:C16)),,COLUMNS($B$1:B8)+33),"") -> 0 | BK11: =IFERROR(OFFSET(INDIRECT("'"&$BH$2&"'!"&"C$"&ROWS($B$1:D16)),,COLUMNS($B$1:B8)+34),"") -> 0 | BL11: =IFERROR(OFFSET(INDIRECT("'"&$BH$2&"'!"&"C$"&ROWS($B$1:D16)),,COLUMNS($B$1:B8)+35),"") -> 0 | BM11: =IFERROR(OFFSET(INDIRECT("'"&$BH$2&"'!"&"C$"&ROWS($B$1:H16)),,COLUMNS($B$1:B8)+36),"") -> 0 | BN11: =IFERROR(OFFSET(INDIRECT("'"&$BH$2&"'!"&"C$"&ROWS($B$1:I16)),,COLUMNS($B$1:B8)+37),"") -> 0 | BO11: =IFERROR(OFFSET(INDIRECT("'"&$BO$2&"'!"&"C$"&ROWS($B$1:B16)),,COLUMNS($B$1:B8)+31),"") -> 0 | BP11: =IFERROR(OFFSET(INDIRECT("'"&$BO$2&"'!"&"C$"&ROWS($B$1:B16)),,COLUMNS($B$1:B8)+32),"") -> 0 | BQ11: =IFERROR(OFFSET(INDIRECT("'"&$BO$2&"'!"&"C$"&ROWS($B$1:C16)),,COLUMNS($B$1:B8)+33),"") -> 0 | BR11: =IFERROR(OFFSET(INDIRECT("'"&$BO$2&"'!"&"C$"&ROWS($B$1:D16)),,COLUMNS($B$1:B8)+34),"") -> 0 | BS11: =IFERROR(OFFSET(INDIRECT("'"&$BO$2&"'!"&"C$"&ROWS($B$1:D16)),,COLUMNS($B$1:B8)+35),"") -> 0 | BT11: =IFERROR(OFFSET(INDIRECT("'"&$BO$2&"'!"&"C$"&ROWS($B$1:H16)),,COLUMNS($B$1:B8)+36),"") -> 0 | BU11: =IFERROR(OFFSET(INDIRECT("'"&$BO$2&"'!"&"C$"&ROWS($B$1:I16)),,COLUMNS($B$1:B8)+37),"") -> 0 | BV11: =IFERROR(OFFSET(INDIRECT("'"&$BV$2&"'!"&"C$"&ROWS($B$1:B16)),,COLUMNS($B$1:B8)+31),"") -> 26 | BW11: =IFERROR(OFFSET(INDIRECT("'"&$BV$2&"'!"&"C$"&ROWS($B$1:B16)),,COLUMNS($B$1:B8)+32),"") -> 0 | BX11: =IFERROR(OFFSET(INDIRECT("'"&$BV$2&"'!"&"C$"&ROWS($B$1:C16)),,COLUMNS($B$1:B8)+33),"") -> 0 | BY11: =IFERROR(OFFSET(INDIRECT("'"&$BV$2&"'!"&"C$"&ROWS($B$1:D16)),,COLUMNS($B$1:B8)+34),"") -> 0 | BZ11: =IFERROR(OFFSET(INDIRECT("'"&$BV$2&"'!"&"C$"&ROWS($B$1:D16)),,COLUMNS($B$1:B8)+35),"") -> 0 | CA11: =IFERROR(OFFSET(INDIRECT("'"&$BV$2&"'!"&"C$"&ROWS($B$1:H16)),,COLUMNS($B$1:B8)+36),"") -> 0 | CB11: =IFERROR(OFFSET(INDIRECT("'"&$BV$2&"'!"&"C$"&ROWS($B$1:I16)),,COLUMNS($B$1:B8)+37),"") -> 0 | CC11: =IFERROR(OFFSET(INDIRECT("'"&$CC$2&"'!"&"C$"&ROWS($B$1:B16)),,COLUMNS($B$1:B8)+31),"") -> 0 | CD11: =IFERROR(OFFSET(INDIRECT("'"&$CC$2&"'!"&"C$"&ROWS($B$1:B16)),,COLUMNS($B$1:B8)+32),"") -> 0 | CE11: =IFERROR(OFFSET(INDIRECT("'"&$CC$2&"'!"&"C$"&ROWS($B$1:C16)),,COLUMNS($B$1:B8)+33),"") -> 0 | CF11: =IFERROR(OFFSET(INDIRECT("'"&$CC$2&"'!"&"C$"&ROWS($B$1:D16)),,COLUMNS($B$1:B8)+34),"") -> 0 | CG11: =IFERROR(OFFSET(INDIRECT("'"&$CC$2&"'!"&"C$"&ROWS($B$1:D16)),,COLUMNS($B$1:B8)+35),"") -> 0 | CH11: =IFERROR(OFFSET(INDIRECT("'"&$CC$2&"'!"&"C$"&ROWS($B$1:H16)),,COLUMNS($B$1:B8)+36),"") -> 0 | CI11: =IFERROR(OFFSET(INDIRECT("'"&$CC$2&"'!"&"C$"&ROWS($B$1:I16)),,COLUMNS($B$1:B8)+37),"") -> 0 | CJ11: =IFERROR(OFFSET(INDIRECT("'"&$CJ$2&"'!"&"C$"&ROWS($B$1:B16)),,COLUMNS($B$1:B8)+31),"") -> 26 | CK11: =IFERROR(OFFSET(INDIRECT("'"&$CJ$2&"'!"&"C$"&ROWS($B$1:B16)),,COLUMNS($B$1:B8)+32),"") -> 0 | CL11: =IFERROR(OFFSET(INDIRECT("'"&$CJ$2&"'!"&"C$"&ROWS($B$1:C16)),,COLUMNS($B$1:B8)+33),"") -> 0 | CM11: =IFERROR(OFFSET(INDIRECT("'"&$CJ$2&"'!"&"C$"&ROWS($B$1:D16)),,COLUMNS($B$1:B8)+34),"") -> 0 | CN11: =IFERROR(OFFSET(INDIRECT("'"&$CJ$2&"'!"&"C$"&ROWS($B$1:D16)),,COLUMNS($B$1:B8)+35),"") -> 0 | CO11: =IFERROR(OFFSET(INDIRECT("'"&$CJ$2&"'!"&"C$"&ROWS($B$1:H16)),,COLUMNS($B$1:B8)+36),"") -> 0 | CP11: =IFERROR(OFFSET(INDIRECT("'"&$CJ$2&"'!"&"C$"&ROWS($B$1:I16)),,COLUMNS($B$1:B8)+37),"") -> 0 | CR11: 600 | CS11: 641.5384615 | CT11: 461.5384615 | CU11: 1103.076923
A12: دينى مانجالاسيريل | B12: 29.3 | C12: 20 | D12: 0 | E12: 0 | F12: 0 | G12: 49.3 | I12: 2018-01-02 | K12: =IFERROR(OFFSET(INDIRECT("'"&$K$2&"'!"&"C$"&ROWS($B$1:B17)),,COLUMNS($B$1:B9)+31),"") -> 26 | L12: =IFERROR(OFFSET(INDIRECT("'"&$K$2&"'!"&"C$"&ROWS($B$1:B17)),,COLUMNS($B$1:B9)+32),"") -> 0 | M12: =IFERROR(OFFSET(INDIRECT("'"&$K$2&"'!"&"C$"&ROWS($B$1:C17)),,COLUMNS($B$1:B9)+33),"") -> 0 | N12: =IFERROR(OFFSET(INDIRECT("'"&$K$2&"'!"&"C$"&ROWS($B$1:D17)),,COLUMNS($B$1:B9)+34),"") -> 0 | O12: =IFERROR(OFFSET(INDIRECT("'"&$K$2&"'!"&"C$"&ROWS($B$1:D17)),,COLUMNS($B$1:B9)+35),"") -> 0 | P12: =IFERROR(OFFSET(INDIRECT("'"&$K$2&"'!"&"C$"&ROWS($B$1:H17)),,COLUMNS($B$1:B9)+36),"") -> 0 | Q12: =IFERROR(OFFSET(INDIRECT("'"&$K$2&"'!"&"C$"&ROWS($B$1:I17)),,COLUMNS($B$1:B9)+37),"") -> 0 | R12: =IFERROR(OFFSET(INDIRECT("'"&$R$2&"'!"&"C$"&ROWS($B$1:B17)),,COLUMNS($B$1:B9)+31),"") -> 0 | S12: =IFERROR(OFFSET(INDIRECT("'"&$R$2&"'!"&"C$"&ROWS($B$1:B17)),,COLUMNS($B$1:B9)+32),"") -> 0 | T12: =IFERROR(OFFSET(INDIRECT("'"&$R$2&"'!"&"C$"&ROWS($B$1:C17)),,COLUMNS($B$1:B9)+33),"") -> 0 | U12: =IFERROR(OFFSET(INDIRECT("'"&$R$2&"'!"&"C$"&ROWS($B$1:D17)),,COLUMNS($B$1:B9)+34),"") -> 0 | V12: =IFERROR(OFFSET(INDIRECT("'"&$R$2&"'!"&"C$"&ROWS($B$1:D17)),,COLUMNS($B$1:B9)+35),"") -> 0 | W12: =IFERROR(OFFSET(INDIRECT("'"&$R$2&"'!"&"C$"&ROWS($B$1:H17)),,COLUMNS($B$1:B9)+36),"") -> 0 | X12: =IFERROR(OFFSET(INDIRECT("'"&$R$2&"'!"&"C$"&ROWS($B$1:I17)),,COLUMNS($B$1:B9)+37),"") -> 0 | Y12: =IFERROR(OFFSET(INDIRECT("'"&$Y$2&"'!"&"C$"&ROWS($B$1:B17)),,COLUMNS($B$1:B9)+31),"") -> 26 | Z12: =IFERROR(OFFSET(INDIRECT("'"&$Y$2&"'!"&"C$"&ROWS($B$1:B17)),,COLUMNS($B$1:B9)+32),"") -> 0 | AA12: =IFERROR(OFFSET(INDIRECT("'"&$Y$2&"'!"&"C$"&ROWS($B$1:C17)),,COLUMNS($B$1:B9)+33),"") -> 0 | AB12: =IFERROR(OFFSET(INDIRECT("'"&$Y$2&"'!"&"C$"&ROWS($B$1:D17)),,COLUMNS($B$1:B9)+34),"") -> 0 | AC12: =IFERROR(OFFSET(INDIRECT("'"&$Y$2&"'!"&"C$"&ROWS($B$1:D17)),,COLUMNS($B$1:B9)+35),"") -> 0 | AD12: =IFERROR(OFFSET(INDIRECT("'"&$Y$2&"'!"&"C$"&ROWS($B$1:H17)),,COLUMNS($B$1:B9)+36),"") -> 0 | AE12: =IFERROR(OFFSET(INDIRECT("'"&$Y$2&"'!"&"C$"&ROWS($B$1:I17)),,COLUMNS($B$1:B9)+37),"") -> 0 | AF12: =IFERROR(OFFSET(INDIRECT("'"&$AF$2&"'!"&"C$"&ROWS($B$1:B17)),,COLUMNS($B$1:B9)+31),"") -> 0 | AG12: =IFERROR(OFFSET(INDIRECT("'"&$AF$2&"'!"&"C$"&ROWS($B$1:B17)),,COLUMNS($B$1:B9)+32),"") -> 0 | AH12: =IFERROR(OFFSET(INDIRECT("'"&$AF$2&"'!"&"C$"&ROWS($B$1:C17)),,COLUMNS($B$1:B9)+33),"") -> 0 | AI12: =IFERROR(OFFSET(INDIRECT("'"&$AF$2&"'!"&"C$"&ROWS($B$1:D17)),,COLUMNS($B$1:B9)+34),"") -> 0 | AJ12: =IFERROR(OFFSET(INDIRECT("'"&$AF$2&"'!"&"C$"&ROWS($B$1:D17)),,COLUMNS($B$1:B9)+35),"") -> 0 | AK12: =IFERROR(OFFSET(INDIRECT("'"&$AF$2&"'!"&"C$"&ROWS($B$1:H17)),,COLUMNS($B$1:B9)+36),"") -> 0 | AL12: =IFERROR(OFFSET(INDIRECT("'"&$AF$2&"'!"&"C$"&ROWS($B$1:I17)),,COLUMNS($B$1:B9)+37),"") -> 0 | AM12: =IFERROR(OFFSET(INDIRECT("'"&$AM$2&"'!"&"C$"&ROWS($B$1:B17)),,COLUMNS($B$1:B9)+31),"") -> 26 | AN12: =IFERROR(OFFSET(INDIRECT("'"&$AM$2&"'!"&"C$"&ROWS($B$1:B17)),,COLUMNS($B$1:B9)+32),"") -> 0 | AO12: =IFERROR(OFFSET(INDIRECT("'"&$AM$2&"'!"&"C$"&ROWS($B$1:C17)),,COLUMNS($B$1:B9)+33),"") -> 0 | AP12: =IFERROR(OFFSET(INDIRECT("'"&$AM$2&"'!"&"C$"&ROWS($B$1:D17)),,COLUMNS($B$1:B9)+34),"") -> 0 | AQ12: =IFERROR(OFFSET(INDIRECT("'"&$AM$2&"'!"&"C$"&ROWS($B$1:D17)),,COLUMNS($B$1:B9)+35),"") -> 0 | AR12: =IFERROR(OFFSET(INDIRECT("'"&$AM$2&"'!"&"C$"&ROWS($B$1:H17)),,COLUMNS($B$1:B9)+36),"") -> 0 | AS12: =IFERROR(OFFSET(INDIRECT("'"&$AM$2&"'!"&"C$"&ROWS($B$1:I17)),,COLUMNS($B$1:B9)+37),"") -> 0 | AT12: =IFERROR(OFFSET(INDIRECT("'"&$AT$2&"'!"&"C$"&ROWS($B$1:B17)),,COLUMNS($B$1:B9)+31),"") -> 26 | AU12: =IFERROR(OFFSET(INDIRECT("'"&$AT$2&"'!"&"C$"&ROWS($B$1:B17)),,COLUMNS($B$1:B9)+32),"") -> 0 | AV12: =IFERROR(OFFSET(INDIRECT("'"&$AT$2&"'!"&"C$"&ROWS($B$1:C17)),,COLUMNS($B$1:B9)+33),"") -> 0 | AW12: =IFERROR(OFFSET(INDIRECT("'"&$AT$2&"'!"&"C$"&ROWS($B$1:D17)),,COLUMNS($B$1:B9)+34),"") -> 0 | AX12: =IFERROR(OFFSET(INDIRECT("'"&$AT$2&"'!"&"C$"&ROWS($B$1:D17)),,COLUMNS($B$1:B9)+35),"") -> 0 | AY12: =IFERROR(OFFSET(INDIRECT("'"&$AT$2&"'!"&"C$"&ROWS($B$1:H17)),,COLUMNS($B$1:B9)+36),"") -> 0 | AZ12: =IFERROR(OFFSET(INDIRECT("'"&$AT$2&"'!"&"C$"&ROWS($B$1:I17)),,COLUMNS($B$1:B9)+37),"") -> 0 | BA12: =IFERROR(OFFSET(INDIRECT("'"&$BA$2&"'!"&"C$"&ROWS($B$1:B17)),,COLUMNS($B$1:B9)+31),"") -> 26 | BB12: =IFERROR(OFFSET(INDIRECT("'"&$BA$2&"'!"&"C$"&ROWS($B$1:B17)),,COLUMNS($B$1:B9)+32),"") -> 0 | BC12: =IFERROR(OFFSET(INDIRECT("'"&$BA$2&"'!"&"C$"&ROWS($B$1:C17)),,COLUMNS($B$1:B9)+33),"") -> 0 | BD12: =IFERROR(OFFSET(INDIRECT("'"&$BA$2&"'!"&"C$"&ROWS($B$1:D17)),,COLUMNS($B$1:B9)+34),"") -> 0 | BE12: =IFERROR(OFFSET(INDIRECT("'"&$BA$2&"'!"&"C$"&ROWS($B$1:D17)),,COLUMNS($B$1:B9)+35),"") -> 0 | BF12: =IFERROR(OFFSET(INDIRECT("'"&$BA$2&"'!"&"C$"&ROWS($B$1:H17)),,COLUMNS($B$1:B9)+36),"") -> 0 | BG12: =IFERROR(OFFSET(INDIRECT("'"&$BA$2&"'!"&"C$"&ROWS($B$1:I17)),,COLUMNS($B$1:B9)+37),"") -> 0 | BH12: =IFERROR(OFFSET(INDIRECT("'"&$BH$2&"'!"&"C$"&ROWS($B$1:B17)),,COLUMNS($B$1:B9)+31),"") -> 26 | BI12: =IFERROR(OFFSET(INDIRECT("'"&$BH$2&"'!"&"C$"&ROWS($B$1:B17)),,COLUMNS($B$1:B9)+32),"") -> 0 | BJ12: =IFERROR(OFFSET(INDIRECT("'"&$BH$2&"'!"&"C$"&ROWS($B$1:C17)),,COLUMNS($B$1:B9)+33),"") -> 0 | BK12: =IFERROR(OFFSET(INDIRECT("'"&$BH$2&"'!"&"C$"&ROWS($B$1:D17)),,COLUMNS($B$1:B9)+34),"") -> 0 | BL12: =IFERROR(OFFSET(INDIRECT("'"&$BH$2&"'!"&"C$"&ROWS($B$1:D17)),,COLUMNS($B$1:B9)+35),"") -> 0 | BM12: =IFERROR(OFFSET(INDIRECT("'"&$BH$2&"'!"&"C$"&ROWS($B$1:H17)),,COLUMNS($B$1:B9)+36),"") -> 0 | BN12: =IFERROR(OFFSET(INDIRECT("'"&$BH$2&"'!"&"C$"&ROWS($B$1:I17)),,COLUMNS($B$1:B9)+37),"") -> 0 | BO12: =IFERROR(OFFSET(INDIRECT("'"&$BO$2&"'!"&"C$"&ROWS($B$1:B17)),,COLUMNS($B$1:B9)+31),"") -> 0 | BP12: =IFERROR(OFFSET(INDIRECT("'"&$BO$2&"'!"&"C$"&ROWS($B$1:B17)),,COLUMNS($B$1:B9)+32),"") -> 0 | BQ12: =IFERROR(OFFSET(INDIRECT("'"&$BO$2&"'!"&"C$"&ROWS($B$1:C17)),,COLUMNS($B$1:B9)+33),"") -> 0 | BR12: =IFERROR(OFFSET(INDIRECT("'"&$BO$2&"'!"&"C$"&ROWS($B$1:D17)),,COLUMNS($B$1:B9)+34),"") -> 0 | BS12: =IFERROR(OFFSET(INDIRECT("'"&$BO$2&"'!"&"C$"&ROWS($B$1:D17)),,COLUMNS($B$1:B9)+35),"") -> 0 | BT12: =IFERROR(OFFSET(INDIRECT("'"&$BO$2&"'!"&"C$"&ROWS($B$1:H17)),,COLUMNS($B$1:B9)+36),"") -> 0 | BU12: =IFERROR(OFFSET(INDIRECT("'"&$BO$2&"'!"&"C$"&ROWS($B$1:I17)),,COLUMNS($B$1:B9)+37),"") -> 0 | BV12: =IFERROR(OFFSET(INDIRECT("'"&$BV$2&"'!"&"C$"&ROWS($B$1:B17)),,COLUMNS($B$1:B9)+31),"") -> 26 | BW12: =IFERROR(OFFSET(INDIRECT("'"&$BV$2&"'!"&"C$"&ROWS($B$1:B17)),,COLUMNS($B$1:B9)+32),"") -> 0 | BX12: =IFERROR(OFFSET(INDIRECT("'"&$BV$2&"'!"&"C$"&ROWS($B$1:C17)),,COLUMNS($B$1:B9)+33),"") -> 0 | BY12: =IFERROR(OFFSET(INDIRECT("'"&$BV$2&"'!"&"C$"&ROWS($B$1:D17)),,COLUMNS($B$1:B9)+34),"") -> 0 | BZ12: =IFERROR(OFFSET(INDIRECT("'"&$BV$2&"'!"&"C$"&ROWS($B$1:D17)),,COLUMNS($B$1:B9)+35),"") -> 0 | CA12: =IFERROR(OFFSET(INDIRECT("'"&$BV$2&"'!"&"C$"&ROWS($B$1:H17)),,COLUMNS($B$1:B9)+36),"") -> 0 | CB12: =IFERROR(OFFSET(INDIRECT("'"&$BV$2&"'!"&"C$"&ROWS($B$1:I17)),,COLUMNS($B$1:B9)+37),"") -> 0 | CC12: =IFERROR(OFFSET(INDIRECT("'"&$CC$2&"'!"&"C$"&ROWS($B$1:B17)),,COLUMNS($B$1:B9)+31),"") -> 0 | CD12: =IFERROR(OFFSET(INDIRECT("'"&$CC$2&"'!"&"C$"&ROWS($B$1:B17)),,COLUMNS($B$1:B9)+32),"") -> 0 | CE12: =IFERROR(OFFSET(INDIRECT("'"&$CC$2&"'!"&"C$"&ROWS($B$1:C17)),,COLUMNS($B$1:B9)+33),"") -> 0 | CF12: =IFERROR(OFFSET(INDIRECT("'"&$CC$2&"'!"&"C$"&ROWS($B$1:D17)),,COLUMNS($B$1:B9)+34),"") -> 0 | CG12: =IFERROR(OFFSET(INDIRECT("'"&$CC$2&"'!"&"C$"&ROWS($B$1:D17)),,COLUMNS($B$1:B9)+35),"") -> 0 | CH12: =IFERROR(OFFSET(INDIRECT("'"&$CC$2&"'!"&"C$"&ROWS($B$1:H17)),,COLUMNS($B$1:B9)+36),"") -> 0 | CI12: =IFERROR(OFFSET(INDIRECT("'"&$CC$2&"'!"&"C$"&ROWS($B$1:I17)),,COLUMNS($B$1:B9)+37),"") -> 0 | CJ12: =IFERROR(OFFSET(INDIRECT("'"&$CJ$2&"'!"&"C$"&ROWS($B$1:B17)),,COLUMNS($B$1:B9)+31),"") -> 26 | CK12: =IFERROR(OFFSET(INDIRECT("'"&$CJ$2&"'!"&"C$"&ROWS($B$1:B17)),,COLUMNS($B$1:B9)+32),"") -> 0 | CL12: =IFERROR(OFFSET(INDIRECT("'"&$CJ$2&"'!"&"C$"&ROWS($B$1:C17)),,COLUMNS($B$1:B9)+33),"") -> 0 | CM12: =IFERROR(OFFSET(INDIRECT("'"&$CJ$2&"'!"&"C$"&ROWS($B$1:D17)),,COLUMNS($B$1:B9)+34),"") -> 0 | CN12: =IFERROR(OFFSET(INDIRECT("'"&$CJ$2&"'!"&"C$"&ROWS($B$1:D17)),,COLUMNS($B$1:B9)+35),"") -> 0 | CO12: =IFERROR(OFFSET(INDIRECT("'"&$CJ$2&"'!"&"C$"&ROWS($B$1:H17)),,COLUMNS($B$1:B9)+36),"") -> 0 | CP12: =IFERROR(OFFSET(INDIRECT("'"&$CJ$2&"'!"&"C$"&ROWS($B$1:I17)),,COLUMNS($B$1:B9)+37),"") -> 0 | CR12: 600 | CS12: 676.1538462 | CT12: 461.5384615 | CU12: 1137.692308
A13: محمد اطهر رشيد شودرى | B13: 52 | C13: 20 | D13: 0 | E13: 0 | F13: 0 | G13: 72 | I13: 2005-04-15 | K13: =IFERROR(OFFSET(INDIRECT("'"&$K$2&"'!"&"C$"&ROWS($B$1:B18)),,COLUMNS($B$1:B10)+31),"") -> 26 | L13: =IFERROR(OFFSET(INDIRECT("'"&$K$2&"'!"&"C$"&ROWS($B$1:B18)),,COLUMNS($B$1:B10)+32),"") -> 0 | M13: =IFERROR(OFFSET(INDIRECT("'"&$K$2&"'!"&"C$"&ROWS($B$1:C18)),,COLUMNS($B$1:B10)+33),"") -> 0 | N13: =IFERROR(OFFSET(INDIRECT("'"&$K$2&"'!"&"C$"&ROWS($B$1:D18)),,COLUMNS($B$1:B10)+34),"") -> 0 | O13: =IFERROR(OFFSET(INDIRECT("'"&$K$2&"'!"&"C$"&ROWS($B$1:D18)),,COLUMNS($B$1:B10)+35),"") -> 0 | P13: =IFERROR(OFFSET(INDIRECT("'"&$K$2&"'!"&"C$"&ROWS($B$1:H18)),,COLUMNS($B$1:B10)+36),"") -> 0 | Q13: =IFERROR(OFFSET(INDIRECT("'"&$K$2&"'!"&"C$"&ROWS($B$1:I18)),,COLUMNS($B$1:B10)+37),"") -> 0 | R13: =IFERROR(OFFSET(INDIRECT("'"&$R$2&"'!"&"C$"&ROWS($B$1:B18)),,COLUMNS($B$1:B10)+31),"") -> 0 | S13: =IFERROR(OFFSET(INDIRECT("'"&$R$2&"'!"&"C$"&ROWS($B$1:B18)),,COLUMNS($B$1:B10)+32),"") -> 0 | T13: =IFERROR(OFFSET(INDIRECT("'"&$R$2&"'!"&"C$"&ROWS($B$1:C18)),,COLUMNS($B$1:B10)+33),"") -> 0 | U13: =IFERROR(OFFSET(INDIRECT("'"&$R$2&"'!"&"C$"&ROWS($B$1:D18)),,COLUMNS($B$1:B10)+34),"") -> 0 | V13: =IFERROR(OFFSET(INDIRECT("'"&$R$2&"'!"&"C$"&ROWS($B$1:D18)),,COLUMNS($B$1:B10)+35),"") -> 0 | W13: =IFERROR(OFFSET(INDIRECT("'"&$R$2&"'!"&"C$"&ROWS($B$1:H18)),,COLUMNS($B$1:B10)+36),"") -> 0 | X13: =IFERROR(OFFSET(INDIRECT("'"&$R$2&"'!"&"C$"&ROWS($B$1:I18)),,COLUMNS($B$1:B10)+37),"") -> 0 | Y13: =IFERROR(OFFSET(INDIRECT("'"&$Y$2&"'!"&"C$"&ROWS($B$1:B18)),,COLUMNS($B$1:B10)+31),"") -> 26 | Z13: =IFERROR(OFFSET(INDIRECT("'"&$Y$2&"'!"&"C$"&ROWS($B$1:B18)),,COLUMNS($B$1:B10)+32),"") -> 0 | AA13: =IFERROR(OFFSET(INDIRECT("'"&$Y$2&"'!"&"C$"&ROWS($B$1:C18)),,COLUMNS($B$1:B10)+33),"") -> 0 | AB13: =IFERROR(OFFSET(INDIRECT("'"&$Y$2&"'!"&"C$"&ROWS($B$1:D18)),,COLUMNS($B$1:B10)+34),"") -> 0 | AC13: =IFERROR(OFFSET(INDIRECT("'"&$Y$2&"'!"&"C$"&ROWS($B$1:D18)),,COLUMNS($B$1:B10)+35),"") -> 0 | AD13: =IFERROR(OFFSET(INDIRECT("'"&$Y$2&"'!"&"C$"&ROWS($B$1:H18)),,COLUMNS($B$1:B10)+36),"") -> 0 | AE13: =IFERROR(OFFSET(INDIRECT("'"&$Y$2&"'!"&"C$"&ROWS($B$1:I18)),,COLUMNS($B$1:B10)+37),"") -> 0 | AF13: =IFERROR(OFFSET(INDIRECT("'"&$AF$2&"'!"&"C$"&ROWS($B$1:B18)),,COLUMNS($B$1:B10)+31),"") -> 0 | AG13: =IFERROR(OFFSET(INDIRECT("'"&$AF$2&"'!"&"C$"&ROWS($B$1:B18)),,COLUMNS($B$1:B10)+32),"") -> 0 | AH13: =IFERROR(OFFSET(INDIRECT("'"&$AF$2&"'!"&"C$"&ROWS($B$1:C18)),,COLUMNS($B$1:B10)+33),"") -> 0 | AI13: =IFERROR(OFFSET(INDIRECT("'"&$AF$2&"'!"&"C$"&ROWS($B$1:D18)),,COLUMNS($B$1:B10)+34),"") -> 0 | AJ13: =IFERROR(OFFSET(INDIRECT("'"&$AF$2&"'!"&"C$"&ROWS($B$1:D18)),,COLUMNS($B$1:B10)+35),"") -> 0 | AK13: =IFERROR(OFFSET(INDIRECT("'"&$AF$2&"'!"&"C$"&ROWS($B$1:H18)),,COLUMNS($B$1:B10)+36),"") -> 0 | AL13: =IFERROR(OFFSET(INDIRECT("'"&$AF$2&"'!"&"C$"&ROWS($B$1:I18)),,COLUMNS($B$1:B10)+37),"") -> 0 | AM13: =IFERROR(OFFSET(INDIRECT("'"&$AM$2&"'!"&"C$"&ROWS($B$1:B18)),,COLUMNS($B$1:B10)+31),"") -> 26 | AN13: =IFERROR(OFFSET(INDIRECT("'"&$AM$2&"'!"&"C$"&ROWS($B$1:B18)),,COLUMNS($B$1:B10)+32),"") -> 0 | AO13: =IFERROR(OFFSET(INDIRECT("'"&$AM$2&"'!"&"C$"&ROWS($B$1:C18)),,COLUMNS($B$1:B10)+33),"") -> 0 | AP13: =IFERROR(OFFSET(INDIRECT("'"&$AM$2&"'!"&"C$"&ROWS($B$1:D18)),,COLUMNS($B$1:B10)+34),"") -> 0 | AQ13: =IFERROR(OFFSET(INDIRECT("'"&$AM$2&"'!"&"C$"&ROWS($B$1:D18)),,COLUMNS($B$1:B10)+35),"") -> 0 | AR13: =IFERROR(OFFSET(INDIRECT("'"&$AM$2&"'!"&"C$"&ROWS($B$1:H18)),,COLUMNS($B$1:B10)+36),"") -> 0 | AS13: =IFERROR(OFFSET(INDIRECT("'"&$AM$2&"'!"&"C$"&ROWS($B$1:I18)),,COLUMNS($B$1:B10)+37),"") -> 0 | AT13: =IFERROR(OFFSET(INDIRECT("'"&$AT$2&"'!"&"C$"&ROWS($B$1:B18)),,COLUMNS($B$1:B10)+31),"") -> 26 | AU13: =IFERROR(OFFSET(INDIRECT("'"&$AT$2&"'!"&"C$"&ROWS($B$1:B18)),,COLUMNS($B$1:B10)+32),"") -> 0 | AV13: =IFERROR(OFFSET(INDIRECT("'"&$AT$2&"'!"&"C$"&ROWS($B$1:C18)),,COLUMNS($B$1:B10)+33),"") -> 0 | AW13: =IFERROR(OFFSET(INDIRECT("'"&$AT$2&"'!"&"C$"&ROWS($B$1:D18)),,COLUMNS($B$1:B10)+34),"") -> 0 | AX13: =IFERROR(OFFSET(INDIRECT("'"&$AT$2&"'!"&"C$"&ROWS($B$1:D18)),,COLUMNS($B$1:B10)+35),"") -> 0 | AY13: =IFERROR(OFFSET(INDIRECT("'"&$AT$2&"'!"&"C$"&ROWS($B$1:H18)),,COLUMNS($B$1:B10)+36),"") -> 0 | AZ13: =IFERROR(OFFSET(INDIRECT("'"&$AT$2&"'!"&"C$"&ROWS($B$1:I18)),,COLUMNS($B$1:B10)+37),"") -> 0 | BA13: =IFERROR(OFFSET(INDIRECT("'"&$BA$2&"'!"&"C$"&ROWS($B$1:B18)),,COLUMNS($B$1:B10)+31),"") -> 26 | BB13: =IFERROR(OFFSET(INDIRECT("'"&$BA$2&"'!"&"C$"&ROWS($B$1:B18)),,COLUMNS($B$1:B10)+32),"") -> 0 | BC13: =IFERROR(OFFSET(INDIRECT("'"&$BA$2&"'!"&"C$"&ROWS($B$1:C18)),,COLUMNS($B$1:B10)+33),"") -> 0 | BD13: =IFERROR(OFFSET(INDIRECT("'"&$BA$2&"'!"&"C$"&ROWS($B$1:D18)),,COLUMNS($B$1:B10)+34),"") -> 0 | BE13: =IFERROR(OFFSET(INDIRECT("'"&$BA$2&"'!"&"C$"&ROWS($B$1:D18)),,COLUMNS($B$1:B10)+35),"") -> 0 | BF13: =IFERROR(OFFSET(INDIRECT("'"&$BA$2&"'!"&"C$"&ROWS($B$1:H18)),,COLUMNS($B$1:B10)+36),"") -> 0 | BG13: =IFERROR(OFFSET(INDIRECT("'"&$BA$2&"'!"&"C$"&ROWS($B$1:I18)),,COLUMNS($B$1:B10)+37),"") -> 0 | BH13: =IFERROR(OFFSET(INDIRECT("'"&$BH$2&"'!"&"C$"&ROWS($B$1:B18)),,COLUMNS($B$1:B10)+31),"") -> 26 | BI13: =IFERROR(OFFSET(INDIRECT("'"&$BH$2&"'!"&"C$"&ROWS($B$1:B18)),,COLUMNS($B$1:B10)+32),"") -> 0 | BJ13: =IFERROR(OFFSET(INDIRECT("'"&$BH$2&"'!"&"C$"&ROWS($B$1:C18)),,COLUMNS($B$1:B10)+33),"") -> 0 | BK13: =IFERROR(OFFSET(INDIRECT("'"&$BH$2&"'!"&"C$"&ROWS($B$1:D18)),,COLUMNS($B$1:B10)+34),"") -> 0 | BL13: =IFERROR(OFFSET(INDIRECT("'"&$BH$2&"'!"&"C$"&ROWS($B$1:D18)),,COLUMNS($B$1:B10)+35),"") -> 0 | BM13: =IFERROR(OFFSET(INDIRECT("'"&$BH$2&"'!"&"C$"&ROWS($B$1:H18)),,COLUMNS($B$1:B10)+36),"") -> 0 | BN13: =IFERROR(OFFSET(INDIRECT("'"&$BH$2&"'!"&"C$"&ROWS($B$1:I18)),,COLUMNS($B$1:B10)+37),"") -> 0 | BO13: =IFERROR(OFFSET(INDIRECT("'"&$BO$2&"'!"&"C$"&ROWS($B$1:B18)),,COLUMNS($B$1:B10)+31),"") -> 0 | BP13: =IFERROR(OFFSET(INDIRECT("'"&$BO$2&"'!"&"C$"&ROWS($B$1:B18)),,COLUMNS($B$1:B10)+32),"") -> 0 | BQ13: =IFERROR(OFFSET(INDIRECT("'"&$BO$2&"'!"&"C$"&ROWS($B$1:C18)),,COLUMNS($B$1:B10)+33),"") -> 0 | BR13: =IFERROR(OFFSET(INDIRECT("'"&$BO$2&"'!"&"C$"&ROWS($B$1:D18)),,COLUMNS($B$1:B10)+34),"") -> 0 | BS13: =IFERROR(OFFSET(INDIRECT("'"&$BO$2&"'!"&"C$"&ROWS($B$1:D18)),,COLUMNS($B$1:B10)+35),"") -> 0 | BT13: =IFERROR(OFFSET(INDIRECT("'"&$BO$2&"'!"&"C$"&ROWS($B$1:H18)),,COLUMNS($B$1:B10)+36),"") -> 0 | BU13: =IFERROR(OFFSET(INDIRECT("'"&$BO$2&"'!"&"C$"&ROWS($B$1:I18)),,COLUMNS($B$1:B10)+37),"") -> 0 | BV13: =IFERROR(OFFSET(INDIRECT("'"&$BV$2&"'!"&"C$"&ROWS($B$1:B18)),,COLUMNS($B$1:B10)+31),"") -> 26 | BW13: =IFERROR(OFFSET(INDIRECT("'"&$BV$2&"'!"&"C$"&ROWS($B$1:B18)),,COLUMNS($B$1:B10)+32),"") -> 0 | BX13: =IFERROR(OFFSET(INDIRECT("'"&$BV$2&"'!"&"C$"&ROWS($B$1:C18)),,COLUMNS($B$1:B10)+33),"") -> 0 | BY13: =IFERROR(OFFSET(INDIRECT("'"&$BV$2&"'!"&"C$"&ROWS($B$1:D18)),,COLUMNS($B$1:B10)+34),"") -> 0 | BZ13: =IFERROR(OFFSET(INDIRECT("'"&$BV$2&"'!"&"C$"&ROWS($B$1:D18)),,COLUMNS($B$1:B10)+35),"") -> 0 | CA13: =IFERROR(OFFSET(INDIRECT("'"&$BV$2&"'!"&"C$"&ROWS($B$1:H18)),,COLUMNS($B$1:B10)+36),"") -> 0 | CB13: =IFERROR(OFFSET(INDIRECT("'"&$BV$2&"'!"&"C$"&ROWS($B$1:I18)),,COLUMNS($B$1:B10)+37),"") -> 0 | CC13: =IFERROR(OFFSET(INDIRECT("'"&$CC$2&"'!"&"C$"&ROWS($B$1:B18)),,COLUMNS($B$1:B10)+31),"") -> 0 | CD13: =IFERROR(OFFSET(INDIRECT("'"&$CC$2&"'!"&"C$"&ROWS($B$1:B18)),,COLUMNS($B$1:B10)+32),"") -> 0 | CE13: =IFERROR(OFFSET(INDIRECT("'"&$CC$2&"'!"&"C$"&ROWS($B$1:C18)),,COLUMNS($B$1:B10)+33),"") -> 0 | CF13: =IFERROR(OFFSET(INDIRECT("'"&$CC$2&"'!"&"C$"&ROWS($B$1:D18)),,COLUMNS($B$1:B10)+34),"") -> 0 | CG13: =IFERROR(OFFSET(INDIRECT("'"&$CC$2&"'!"&"C$"&ROWS($B$1:D18)),,COLUMNS($B$1:B10)+35),"") -> 0 | CH13: =IFERROR(OFFSET(INDIRECT("'"&$CC$2&"'!"&"C$"&ROWS($B$1:H18)),,COLUMNS($B$1:B10)+36),"") -> 0 | CI13: =IFERROR(OFFSET(INDIRECT("'"&$CC$2&"'!"&"C$"&ROWS($B$1:I18)),,COLUMNS($B$1:B10)+37),"") -> 0 | CJ13: =IFERROR(OFFSET(INDIRECT("'"&$CJ$2&"'!"&"C$"&ROWS($B$1:B18)),,COLUMNS($B$1:B10)+31),"") -> 26 | CK13: =IFERROR(OFFSET(INDIRECT("'"&$CJ$2&"'!"&"C$"&ROWS($B$1:B18)),,COLUMNS($B$1:B10)+32),"") -> 0 | CL13: =IFERROR(OFFSET(INDIRECT("'"&$CJ$2&"'!"&"C$"&ROWS($B$1:C18)),,COLUMNS($B$1:B10)+33),"") -> 0 | CM13: =IFERROR(OFFSET(INDIRECT("'"&$CJ$2&"'!"&"C$"&ROWS($B$1:D18)),,COLUMNS($B$1:B10)+34),"") -> 0 | CN13: =IFERROR(OFFSET(INDIRECT("'"&$CJ$2&"'!"&"C$"&ROWS($B$1:D18)),,COLUMNS($B$1:B10)+35),"") -> 0 | CO13: =IFERROR(OFFSET(INDIRECT("'"&$CJ$2&"'!"&"C$"&ROWS($B$1:H18)),,COLUMNS($B$1:B10)+36),"") -> 0 | CP13: =IFERROR(OFFSET(INDIRECT("'"&$CJ$2&"'!"&"C$"&ROWS($B$1:I18)),,COLUMNS($B$1:B10)+37),"") -> 0 | CR13: 350 | CS13: 700 | CT13: 269.2307692 | CU13: 969.2307692
A14: عاصم شوقى فؤاد مهنى | B14: 25.3 | C14: 20 | D14: 0 | E14: 0 | F14: 0 | G14: 45.3 | I14: 2018-06-01 | K14: =IFERROR(OFFSET(INDIRECT("'"&$K$2&"'!"&"C$"&ROWS($B$1:B19)),,COLUMNS($B$1:B11)+31),"") -> 26 | L14: =IFERROR(OFFSET(INDIRECT("'"&$K$2&"'!"&"C$"&ROWS($B$1:B19)),,COLUMNS($B$1:B11)+32),"") -> 0 | M14: =IFERROR(OFFSET(INDIRECT("'"&$K$2&"'!"&"C$"&ROWS($B$1:C19)),,COLUMNS($B$1:B11)+33),"") -> 0 | N14: =IFERROR(OFFSET(INDIRECT("'"&$K$2&"'!"&"C$"&ROWS($B$1:D19)),,COLUMNS($B$1:B11)+34),"") -> 0 | O14: =IFERROR(OFFSET(INDIRECT("'"&$K$2&"'!"&"C$"&ROWS($B$1:D19)),,COLUMNS($B$1:B11)+35),"") -> 0 | P14: =IFERROR(OFFSET(INDIRECT("'"&$K$2&"'!"&"C$"&ROWS($B$1:H19)),,COLUMNS($B$1:B11)+36),"") -> 0 | Q14: =IFERROR(OFFSET(INDIRECT("'"&$K$2&"'!"&"C$"&ROWS($B$1:I19)),,COLUMNS($B$1:B11)+37),"") -> 0 | R14: =IFERROR(OFFSET(INDIRECT("'"&$R$2&"'!"&"C$"&ROWS($B$1:B19)),,COLUMNS($B$1:B11)+31),"") -> 0 | S14: =IFERROR(OFFSET(INDIRECT("'"&$R$2&"'!"&"C$"&ROWS($B$1:B19)),,COLUMNS($B$1:B11)+32),"") -> 0 | T14: =IFERROR(OFFSET(INDIRECT("'"&$R$2&"'!"&"C$"&ROWS($B$1:C19)),,COLUMNS($B$1:B11)+33),"") -> 0 | U14: =IFERROR(OFFSET(INDIRECT("'"&$R$2&"'!"&"C$"&ROWS($B$1:D19)),,COLUMNS($B$1:B11)+34),"") -> 0 | V14: =IFERROR(OFFSET(INDIRECT("'"&$R$2&"'!"&"C$"&ROWS($B$1:D19)),,COLUMNS($B$1:B11)+35),"") -> 0 | W14: =IFERROR(OFFSET(INDIRECT("'"&$R$2&"'!"&"C$"&ROWS($B$1:H19)),,COLUMNS($B$1:B11)+36),"") -> 0 | X14: =IFERROR(OFFSET(INDIRECT("'"&$R$2&"'!"&"C$"&ROWS($B$1:I19)),,COLUMNS($B$1:B11)+37),"") -> 0 | Y14: =IFERROR(OFFSET(INDIRECT("'"&$Y$2&"'!"&"C$"&ROWS($B$1:B19)),,COLUMNS($B$1:B11)+31),"") -> 26 | Z14: =IFERROR(OFFSET(INDIRECT("'"&$Y$2&"'!"&"C$"&ROWS($B$1:B19)),,COLUMNS($B$1:B11)+32),"") -> 0 | AA14: =IFERROR(OFFSET(INDIRECT("'"&$Y$2&"'!"&"C$"&ROWS($B$1:C19)),,COLUMNS($B$1:B11)+33),"") -> 0 | AB14: =IFERROR(OFFSET(INDIRECT("'"&$Y$2&"'!"&"C$"&ROWS($B$1:D19)),,COLUMNS($B$1:B11)+34),"") -> 0 | AC14: =IFERROR(OFFSET(INDIRECT("'"&$Y$2&"'!"&"C$"&ROWS($B$1:D19)),,COLUMNS($B$1:B11)+35),"") -> 0 | AD14: =IFERROR(OFFSET(INDIRECT("'"&$Y$2&"'!"&"C$"&ROWS($B$1:H19)),,COLUMNS($B$1:B11)+36),"") -> 0 | AE14: =IFERROR(OFFSET(INDIRECT("'"&$Y$2&"'!"&"C$"&ROWS($B$1:I19)),,COLUMNS($B$1:B11)+37),"") -> 0 | AF14: =IFERROR(OFFSET(INDIRECT("'"&$AF$2&"'!"&"C$"&ROWS($B$1:B19)),,COLUMNS($B$1:B11)+31),"") -> 0 | AG14: =IFERROR(OFFSET(INDIRECT("'"&$AF$2&"'!"&"C$"&ROWS($B$1:B19)),,COLUMNS($B$1:B11)+32),"") -> 0 | AH14: =IFERROR(OFFSET(INDIRECT("'"&$AF$2&"'!"&"C$"&ROWS($B$1:C19)),,COLUMNS($B$1:B11)+33),"") -> 0 | AI14: =IFERROR(OFFSET(INDIRECT("'"&$AF$2&"'!"&"C$"&ROWS($B$1:D19)),,COLUMNS($B$1:B11)+34),"") -> 0 | AJ14: =IFERROR(OFFSET(INDIRECT("'"&$AF$2&"'!"&"C$"&ROWS($B$1:D19)),,COLUMNS($B$1:B11)+35),"") -> 0 | AK14: =IFERROR(OFFSET(INDIRECT("'"&$AF$2&"'!"&"C$"&ROWS($B$1:H19)),,COLUMNS($B$1:B11)+36),"") -> 0 | AL14: =IFERROR(OFFSET(INDIRECT("'"&$AF$2&"'!"&"C$"&ROWS($B$1:I19)),,COLUMNS($B$1:B11)+37),"") -> 0 | AM14: =IFERROR(OFFSET(INDIRECT("'"&$AM$2&"'!"&"C$"&ROWS($B$1:B19)),,COLUMNS($B$1:B11)+31),"") -> 26 | AN14: =IFERROR(OFFSET(INDIRECT("'"&$AM$2&"'!"&"C$"&ROWS($B$1:B19)),,COLUMNS($B$1:B11)+32),"") -> 0 | AO14: =IFERROR(OFFSET(INDIRECT("'"&$AM$2&"'!"&"C$"&ROWS($B$1:C19)),,COLUMNS($B$1:B11)+33),"") -> 0 | AP14: =IFERROR(OFFSET(INDIRECT("'"&$AM$2&"'!"&"C$"&ROWS($B$1:D19)),,COLUMNS($B$1:B11)+34),"") -> 0 | AQ14: =IFERROR(OFFSET(INDIRECT("'"&$AM$2&"'!"&"C$"&ROWS($B$1:D19)),,COLUMNS($B$1:B11)+35),"") -> 0 | AR14: =IFERROR(OFFSET(INDIRECT("'"&$AM$2&"'!"&"C$"&ROWS($B$1:H19)),,COLUMNS($B$1:B11)+36),"") -> 0 | AS14: =IFERROR(OFFSET(INDIRECT("'"&$AM$2&"'!"&"C$"&ROWS($B$1:I19)),,COLUMNS($B$1:B11)+37),"") -> 0 | AT14: =IFERROR(OFFSET(INDIRECT("'"&$AT$2&"'!"&"C$"&ROWS($B$1:B19)),,COLUMNS($B$1:B11)+31),"") -> 26 | AU14: =IFERROR(OFFSET(INDIRECT("'"&$AT$2&"'!"&"C$"&ROWS($B$1:B19)),,COLUMNS($B$1:B11)+32),"") -> 0 | AV14: =IFERROR(OFFSET(INDIRECT("'"&$AT$2&"'!"&"C$"&ROWS($B$1:C19)),,COLUMNS($B$1:B11)+33),"") -> 0 | AW14: =IFERROR(OFFSET(INDIRECT("'"&$AT$2&"'!"&"C$"&ROWS($B$1:D19)),,COLUMNS($B$1:B11)+34),"") -> 0 | AX14: =IFERROR(OFFSET(INDIRECT("'"&$AT$2&"'!"&"C$"&ROWS($B$1:D19)),,COLUMNS($B$1:B11)+35),"") -> 0 | AY14: =IFERROR(OFFSET(INDIRECT("'"&$AT$2&"'!"&"C$"&ROWS($B$1:H19)),,COLUMNS($B$1:B11)+36),"") -> 0 | AZ14: =IFERROR(OFFSET(INDIRECT("'"&$AT$2&"'!"&"C$"&ROWS($B$1:I19)),,COLUMNS($B$1:B11)+37),"") -> 0 | BA14: =IFERROR(OFFSET(INDIRECT("'"&$BA$2&"'!"&"C$"&ROWS($B$1:B19)),,COLUMNS($B$1:B11)+31),"") -> 26 | BB14: =IFERROR(OFFSET(INDIRECT("'"&$BA$2&"'!"&"C$"&ROWS($B$1:B19)),,COLUMNS($B$1:B11)+32),"") -> 0 | BC14: =IFERROR(OFFSET(INDIRECT("'"&$BA$2&"'!"&"C$"&ROWS($B$1:C19)),,COLUMNS($B$1:B11)+33),"") -> 0 | BD14: =IFERROR(OFFSET(INDIRECT("'"&$BA$2&"'!"&"C$"&ROWS($B$1:D19)),,COLUMNS($B$1:B11)+34),"") -> 0 | BE14: =IFERROR(OFFSET(INDIRECT("'"&$BA$2&"'!"&"C$"&ROWS($B$1:D19)),,COLUMNS($B$1:B11)+35),"") -> 0 | BF14: =IFERROR(OFFSET(INDIRECT("'"&$BA$2&"'!"&"C$"&ROWS($B$1:H19)),,COLUMNS($B$1:B11)+36),"") -> 0 | BG14: =IFERROR(OFFSET(INDIRECT("'"&$BA$2&"'!"&"C$"&ROWS($B$1:I19)),,COLUMNS($B$1:B11)+37),"") -> 0 | BH14: =IFERROR(OFFSET(INDIRECT("'"&$BH$2&"'!"&"C$"&ROWS($B$1:B19)),,COLUMNS($B$1:B11)+31),"") -> 26 | BI14: =IFERROR(OFFSET(INDIRECT("'"&$BH$2&"'!"&"C$"&ROWS($B$1:B19)),,COLUMNS($B$1:B11)+32),"") -> 0 | BJ14: =IFERROR(OFFSET(INDIRECT("'"&$BH$2&"'!"&"C$"&ROWS($B$1:C19)),,COLUMNS($B$1:B11)+33),"") -> 0 | BK14: =IFERROR(OFFSET(INDIRECT("'"&$BH$2&"'!"&"C$"&ROWS($B$1:D19)),,COLUMNS($B$1:B11)+34),"") -> 0 | BL14: =IFERROR(OFFSET(INDIRECT("'"&$BH$2&"'!"&"C$"&ROWS($B$1:D19)),,COLUMNS($B$1:B11)+35),"") -> 0 | BM14: =IFERROR(OFFSET(INDIRECT("'"&$BH$2&"'!"&"C$"&ROWS($B$1:H19)),,COLUMNS($B$1:B11)+36),"") -> 0 | BN14: =IFERROR(OFFSET(INDIRECT("'"&$BH$2&"'!"&"C$"&ROWS($B$1:I19)),,COLUMNS($B$1:B11)+37),"") -> 0 | BO14: =IFERROR(OFFSET(INDIRECT("'"&$BO$2&"'!"&"C$"&ROWS($B$1:B19)),,COLUMNS($B$1:B11)+31),"") -> 0 | BP14: =IFERROR(OFFSET(INDIRECT("'"&$BO$2&"'!"&"C$"&ROWS($B$1:B19)),,COLUMNS($B$1:B11)+32),"") -> 0 | BQ14: =IFERROR(OFFSET(INDIRECT("'"&$BO$2&"'!"&"C$"&ROWS($B$1:C19)),,COLUMNS($B$1:B11)+33),"") -> 0 | BR14: =IFERROR(OFFSET(INDIRECT("'"&$BO$2&"'!"&"C$"&ROWS($B$1:D19)),,COLUMNS($B$1:B11)+34),"") -> 0 | BS14: =IFERROR(OFFSET(INDIRECT("'"&$BO$2&"'!"&"C$"&ROWS($B$1:D19)),,COLUMNS($B$1:B11)+35),"") -> 0 | BT14: =IFERROR(OFFSET(INDIRECT("'"&$BO$2&"'!"&"C$"&ROWS($B$1:H19)),,COLUMNS($B$1:B11)+36),"") -> 0 | BU14: =IFERROR(OFFSET(INDIRECT("'"&$BO$2&"'!"&"C$"&ROWS($B$1:I19)),,COLUMNS($B$1:B11)+37),"") -> 0 | BV14: =IFERROR(OFFSET(INDIRECT("'"&$BV$2&"'!"&"C$"&ROWS($B$1:B19)),,COLUMNS($B$1:B11)+31),"") -> 26 | BW14: =IFERROR(OFFSET(INDIRECT("'"&$BV$2&"'!"&"C$"&ROWS($B$1:B19)),,COLUMNS($B$1:B11)+32),"") -> 0 | BX14: =IFERROR(OFFSET(INDIRECT("'"&$BV$2&"'!"&"C$"&ROWS($B$1:C19)),,COLUMNS($B$1:B11)+33),"") -> 0 | BY14: =IFERROR(OFFSET(INDIRECT("'"&$BV$2&"'!"&"C$"&ROWS($B$1:D19)),,COLUMNS($B$1:B11)+34),"") -> 0 | BZ14: =IFERROR(OFFSET(INDIRECT("'"&$BV$2&"'!"&"C$"&ROWS($B$1:D19)),,COLUMNS($B$1:B11)+35),"") -> 0 | CA14: =IFERROR(OFFSET(INDIRECT("'"&$BV$2&"'!"&"C$"&ROWS($B$1:H19)),,COLUMNS($B$1:B11)+36),"") -> 0 | CB14: =IFERROR(OFFSET(INDIRECT("'"&$BV$2&"'!"&"C$"&ROWS($B$1:I19)),,COLUMNS($B$1:B11)+37),"") -> 0 | CC14: =IFERROR(OFFSET(INDIRECT("'"&$CC$2&"'!"&"C$"&ROWS($B$1:B19)),,COLUMNS($B$1:B11)+31),"") -> 0 | CD14: =IFERROR(OFFSET(INDIRECT("'"&$CC$2&"'!"&"C$"&ROWS($B$1:B19)),,COLUMNS($B$1:B11)+32),"") -> 0 | CE14: =IFERROR(OFFSET(INDIRECT("'"&$CC$2&"'!"&"C$"&ROWS($B$1:C19)),,COLUMNS($B$1:B11)+33),"") -> 0 | CF14: =IFERROR(OFFSET(INDIRECT("'"&$CC$2&"'!"&"C$"&ROWS($B$1:D19)),,COLUMNS($B$1:B11)+34),"") -> 0 | CG14: =IFERROR(OFFSET(INDIRECT("'"&$CC$2&"'!"&"C$"&ROWS($B$1:D19)),,COLUMNS($B$1:B11)+35),"") -> 0 | CH14: =IFERROR(OFFSET(INDIRECT("'"&$CC$2&"'!"&"C$"&ROWS($B$1:H19)),,COLUMNS($B$1:B11)+36),"") -> 0 | CI14: =IFERROR(OFFSET(INDIRECT("'"&$CC$2&"'!"&"C$"&ROWS($B$1:I19)),,COLUMNS($B$1:B11)+37),"") -> 0 | CJ14: =IFERROR(OFFSET(INDIRECT("'"&$CJ$2&"'!"&"C$"&ROWS($B$1:B19)),,COLUMNS($B$1:B11)+31),"") -> 26 | CK14: =IFERROR(OFFSET(INDIRECT("'"&$CJ$2&"'!"&"C$"&ROWS($B$1:B19)),,COLUMNS($B$1:B11)+32),"") -> 0 | CL14: =IFERROR(OFFSET(INDIRECT("'"&$CJ$2&"'!"&"C$"&ROWS($B$1:C19)),,COLUMNS($B$1:B11)+33),"") -> 0 | CM14: =IFERROR(OFFSET(INDIRECT("'"&$CJ$2&"'!"&"C$"&ROWS($B$1:D19)),,COLUMNS($B$1:B11)+34),"") -> 0 | CN14: =IFERROR(OFFSET(INDIRECT("'"&$CJ$2&"'!"&"C$"&ROWS($B$1:D19)),,COLUMNS($B$1:B11)+35),"") -> 0 | CO14: =IFERROR(OFFSET(INDIRECT("'"&$CJ$2&"'!"&"C$"&ROWS($B$1:H19)),,COLUMNS($B$1:B11)+36),"") -> 0 | CP14: =IFERROR(OFFSET(INDIRECT("'"&$CJ$2&"'!"&"C$"&ROWS($B$1:I19)),,COLUMNS($B$1:B11)+37),"") -> 0 | CR14: 550 | CS14: 535.1923077 | CT14: 423.0769231 | CU14: 958.2692308
A15: حسام محمد فتحي طة | B15: 42 | C15: 20 | D15: 0 | E15: 0 | F15: 0 | G15: 62 | I15: 2007-01-01 | K15: =IFERROR(OFFSET(INDIRECT("'"&$K$2&"'!"&"C$"&ROWS($B$1:B20)),,COLUMNS($B$1:B12)+31),"") -> 26 | L15: =IFERROR(OFFSET(INDIRECT("'"&$K$2&"'!"&"C$"&ROWS($B$1:B20)),,COLUMNS($B$1:B12)+32),"") -> 0 | M15: =IFERROR(OFFSET(INDIRECT("'"&$K$2&"'!"&"C$"&ROWS($B$1:C20)),,COLUMNS($B$1:B12)+33),"") -> 0 | N15: =IFERROR(OFFSET(INDIRECT("'"&$K$2&"'!"&"C$"&ROWS($B$1:D20)),,COLUMNS($B$1:B12)+34),"") -> 0 | O15: =IFERROR(OFFSET(INDIRECT("'"&$K$2&"'!"&"C$"&ROWS($B$1:D20)),,COLUMNS($B$1:B12)+35),"") -> 0 | P15: =IFERROR(OFFSET(INDIRECT("'"&$K$2&"'!"&"C$"&ROWS($B$1:H20)),,COLUMNS($B$1:B12)+36),"") -> 0 | Q15: =IFERROR(OFFSET(INDIRECT("'"&$K$2&"'!"&"C$"&ROWS($B$1:I20)),,COLUMNS($B$1:B12)+37),"") -> 0 | R15: =IFERROR(OFFSET(INDIRECT("'"&$R$2&"'!"&"C$"&ROWS($B$1:B20)),,COLUMNS($B$1:B12)+31),"") -> 0 | S15: =IFERROR(OFFSET(INDIRECT("'"&$R$2&"'!"&"C$"&ROWS($B$1:B20)),,COLUMNS($B$1:B12)+32),"") -> 0 | T15: =IFERROR(OFFSET(INDIRECT("'"&$R$2&"'!"&"C$"&ROWS($B$1:C20)),,COLUMNS($B$1:B12)+33),"") -> 0 | U15: =IFERROR(OFFSET(INDIRECT("'"&$R$2&"'!"&"C$"&ROWS($B$1:D20)),,COLUMNS($B$1:B12)+34),"") -> 0 | V15: =IFERROR(OFFSET(INDIRECT("'"&$R$2&"'!"&"C$"&ROWS($B$1:D20)),,COLUMNS($B$1:B12)+35),"") -> 0 | W15: =IFERROR(OFFSET(INDIRECT("'"&$R$2&"'!"&"C$"&ROWS($B$1:H20)),,COLUMNS($B$1:B12)+36),"") -> 0 | X15: =IFERROR(OFFSET(INDIRECT("'"&$R$2&"'!"&"C$"&ROWS($B$1:I20)),,COLUMNS($B$1:B12)+37),"") -> 0 | Y15: =IFERROR(OFFSET(INDIRECT("'"&$Y$2&"'!"&"C$"&ROWS($B$1:B20)),,COLUMNS($B$1:B12)+31),"") -> 26 | Z15: =IFERROR(OFFSET(INDIRECT("'"&$Y$2&"'!"&"C$"&ROWS($B$1:B20)),,COLUMNS($B$1:B12)+32),"") -> 0 | AA15: =IFERROR(OFFSET(INDIRECT("'"&$Y$2&"'!"&"C$"&ROWS($B$1:C20)),,COLUMNS($B$1:B12)+33),"") -> 0 | AB15: =IFERROR(OFFSET(INDIRECT("'"&$Y$2&"'!"&"C$"&ROWS($B$1:D20)),,COLUMNS($B$1:B12)+34),"") -> 0 | AC15: =IFERROR(OFFSET(INDIRECT("'"&$Y$2&"'!"&"C$"&ROWS($B$1:D20)),,COLUMNS($B$1:B12)+35),"") -> 0 | AD15: =IFERROR(OFFSET(INDIRECT("'"&$Y$2&"'!"&"C$"&ROWS($B$1:H20)),,COLUMNS($B$1:B12)+36),"") -> 0 | AE15: =IFERROR(OFFSET(INDIRECT("'"&$Y$2&"'!"&"C$"&ROWS($B$1:I20)),,COLUMNS($B$1:B12)+37),"") -> 0 | AF15: =IFERROR(OFFSET(INDIRECT("'"&$AF$2&"'!"&"C$"&ROWS($B$1:B20)),,COLUMNS($B$1:B12)+31),"") -> 0 | AG15: =IFERROR(OFFSET(INDIRECT("'"&$AF$2&"'!"&"C$"&ROWS($B$1:B20)),,COLUMNS($B$1:B12)+32),"") -> 0 | AH15: =IFERROR(OFFSET(INDIRECT("'"&$AF$2&"'!"&"C$"&ROWS($B$1:C20)),,COLUMNS($B$1:B12)+33),"") -> 0 | AI15: =IFERROR(OFFSET(INDIRECT("'"&$AF$2&"'!"&"C$"&ROWS($B$1:D20)),,COLUMNS($B$1:B12)+34),"") -> 0 | AJ15: =IFERROR(OFFSET(INDIRECT("'"&$AF$2&"'!"&"C$"&ROWS($B$1:D20)),,COLUMNS($B$1:B12)+35),"") -> 0 | AK15: =IFERROR(OFFSET(INDIRECT("'"&$AF$2&"'!"&"C$"&ROWS($B$1:H20)),,COLUMNS($B$1:B12)+36),"") -> 0 | AL15: =IFERROR(OFFSET(INDIRECT("'"&$AF$2&"'!"&"C$"&ROWS($B$1:I20)),,COLUMNS($B$1:B12)+37),"") -> 0 | AM15: =IFERROR(OFFSET(INDIRECT("'"&$AM$2&"'!"&"C$"&ROWS($B$1:B20)),,COLUMNS($B$1:B12)+31),"") -> 26 | AN15: =IFERROR(OFFSET(INDIRECT("'"&$AM$2&"'!"&"C$"&ROWS($B$1:B20)),,COLUMNS($B$1:B12)+32),"") -> 0 | AO15: =IFERROR(OFFSET(INDIRECT("'"&$AM$2&"'!"&"C$"&ROWS($B$1:C20)),,COLUMNS($B$1:B12)+33),"") -> 0 | AP15: =IFERROR(OFFSET(INDIRECT("'"&$AM$2&"'!"&"C$"&ROWS($B$1:D20)),,COLUMNS($B$1:B12)+34),"") -> 0 | AQ15: =IFERROR(OFFSET(INDIRECT("'"&$AM$2&"'!"&"C$"&ROWS($B$1:D20)),,COLUMNS($B$1:B12)+35),"") -> 0 | AR15: =IFERROR(OFFSET(INDIRECT("'"&$AM$2&"'!"&"C$"&ROWS($B$1:H20)),,COLUMNS($B$1:B12)+36),"") -> 0 | AS15: =IFERROR(OFFSET(INDIRECT("'"&$AM$2&"'!"&"C$"&ROWS($B$1:I20)),,COLUMNS($B$1:B12)+37),"") -> 0 | AT15: =IFERROR(OFFSET(INDIRECT("'"&$AT$2&"'!"&"C$"&ROWS($B$1:B20)),,COLUMNS($B$1:B12)+31),"") -> 26 | AU15: =IFERROR(OFFSET(INDIRECT("'"&$AT$2&"'!"&"C$"&ROWS($B$1:B20)),,COLUMNS($B$1:B12)+32),"") -> 0 | AV15: =IFERROR(OFFSET(INDIRECT("'"&$AT$2&"'!"&"C$"&ROWS($B$1:C20)),,COLUMNS($B$1:B12)+33),"") -> 0 | AW15: =IFERROR(OFFSET(INDIRECT("'"&$AT$2&"'!"&"C$"&ROWS($B$1:D20)),,COLUMNS($B$1:B12)+34),"") -> 0 | AX15: =IFERROR(OFFSET(INDIRECT("'"&$AT$2&"'!"&"C$"&ROWS($B$1:D20)),,COLUMNS($B$1:B12)+35),"") -> 0 | AY15: =IFERROR(OFFSET(INDIRECT("'"&$AT$2&"'!"&"C$"&ROWS($B$1:H20)),,COLUMNS($B$1:B12)+36),"") -> 0 | AZ15: =IFERROR(OFFSET(INDIRECT("'"&$AT$2&"'!"&"C$"&ROWS($B$1:I20)),,COLUMNS($B$1:B12)+37),"") -> 0 | BA15: =IFERROR(OFFSET(INDIRECT("'"&$BA$2&"'!"&"C$"&ROWS($B$1:B20)),,COLUMNS($B$1:B12)+31),"") -> 26 | BB15: =IFERROR(OFFSET(INDIRECT("'"&$BA$2&"'!"&"C$"&ROWS($B$1:B20)),,COLUMNS($B$1:B12)+32),"") -> 0 | BC15: =IFERROR(OFFSET(INDIRECT("'"&$BA$2&"'!"&"C$"&ROWS($B$1:C20)),,COLUMNS($B$1:B12)+33),"") -> 0 | BD15: =IFERROR(OFFSET(INDIRECT("'"&$BA$2&"'!"&"C$"&ROWS($B$1:D20)),,COLUMNS($B$1:B12)+34),"") -> 0 | BE15: =IFERROR(OFFSET(INDIRECT("'"&$BA$2&"'!"&"C$"&ROWS($B$1:D20)),,COLUMNS($B$1:B12)+35),"") -> 0 | BF15: =IFERROR(OFFSET(INDIRECT("'"&$BA$2&"'!"&"C$"&ROWS($B$1:H20)),,COLUMNS($B$1:B12)+36),"") -> 0 | BG15: =IFERROR(OFFSET(INDIRECT("'"&$BA$2&"'!"&"C$"&ROWS($B$1:I20)),,COLUMNS($B$1:B12)+37),"") -> 0 | BH15: =IFERROR(OFFSET(INDIRECT("'"&$BH$2&"'!"&"C$"&ROWS($B$1:B20)),,COLUMNS($B$1:B12)+31),"") -> 26 | BI15: =IFERROR(OFFSET(INDIRECT("'"&$BH$2&"'!"&"C$"&ROWS($B$1:B20)),,COLUMNS($B$1:B12)+32),"") -> 0 | BJ15: =IFERROR(OFFSET(INDIRECT("'"&$BH$2&"'!"&"C$"&ROWS($B$1:C20)),,COLUMNS($B$1:B12)+33),"") -> 0 | BK15: =IFERROR(OFFSET(INDIRECT("'"&$BH$2&"'!"&"C$"&ROWS($B$1:D20)),,COLUMNS($B$1:B12)+34),"") -> 0 | BL15: =IFERROR(OFFSET(INDIRECT("'"&$BH$2&"'!"&"C$"&ROWS($B$1:D20)),,COLUMNS($B$1:B12)+35),"") -> 0 | BM15: =IFERROR(OFFSET(INDIRECT("'"&$BH$2&"'!"&"C$"&ROWS($B$1:H20)),,COLUMNS($B$1:B12)+36),"") -> 0 | BN15: =IFERROR(OFFSET(INDIRECT("'"&$BH$2&"'!"&"C$"&ROWS($B$1:I20)),,COLUMNS($B$1:B12)+37),"") -> 0 | BO15: =IFERROR(OFFSET(INDIRECT("'"&$BO$2&"'!"&"C$"&ROWS($B$1:B20)),,COLUMNS($B$1:B12)+31),"") -> 0 | BP15: =IFERROR(OFFSET(INDIRECT("'"&$BO$2&"'!"&"C$"&ROWS($B$1:B20)),,COLUMNS($B$1:B12)+32),"") -> 0 | BQ15: =IFERROR(OFFSET(INDIRECT("'"&$BO$2&"'!"&"C$"&ROWS($B$1:C20)),,COLUMNS($B$1:B12)+33),"") -> 0 | BR15: =IFERROR(OFFSET(INDIRECT("'"&$BO$2&"'!"&"C$"&ROWS($B$1:D20)),,COLUMNS($B$1:B12)+34),"") -> 0 | BS15: =IFERROR(OFFSET(INDIRECT("'"&$BO$2&"'!"&"C$"&ROWS($B$1:D20)),,COLUMNS($B$1:B12)+35),"") -> 0 | BT15: =IFERROR(OFFSET(INDIRECT("'"&$BO$2&"'!"&"C$"&ROWS($B$1:H20)),,COLUMNS($B$1:B12)+36),"") -> 0 | BU15: =IFERROR(OFFSET(INDIRECT("'"&$BO$2&"'!"&"C$"&ROWS($B$1:I20)),,COLUMNS($B$1:B12)+37),"") -> 0 | BV15: =IFERROR(OFFSET(INDIRECT("'"&$BV$2&"'!"&"C$"&ROWS($B$1:B20)),,COLUMNS($B$1:B12)+31),"") -> 26 | BW15: =IFERROR(OFFSET(INDIRECT("'"&$BV$2&"'!"&"C$"&ROWS($B$1:B20)),,COLUMNS($B$1:B12)+32),"") -> 0 | BX15: =IFERROR(OFFSET(INDIRECT("'"&$BV$2&"'!"&"C$"&ROWS($B$1:C20)),,COLUMNS($B$1:B12)+33),"") -> 0 | BY15: =IFERROR(OFFSET(INDIRECT("'"&$BV$2&"'!"&"C$"&ROWS($B$1:D20)),,COLUMNS($B$1:B12)+34),"") -> 0 | BZ15: =IFERROR(OFFSET(INDIRECT("'"&$BV$2&"'!"&"C$"&ROWS($B$1:D20)),,COLUMNS($B$1:B12)+35),"") -> 0 | CA15: =IFERROR(OFFSET(INDIRECT("'"&$BV$2&"'!"&"C$"&ROWS($B$1:H20)),,COLUMNS($B$1:B12)+36),"") -> 0 | CB15: =IFERROR(OFFSET(INDIRECT("'"&$BV$2&"'!"&"C$"&ROWS($B$1:I20)),,COLUMNS($B$1:B12)+37),"") -> 0 | CC15: =IFERROR(OFFSET(INDIRECT("'"&$CC$2&"'!"&"C$"&ROWS($B$1:B20)),,COLUMNS($B$1:B12)+31),"") -> 0 | CD15: =IFERROR(OFFSET(INDIRECT("'"&$CC$2&"'!"&"C$"&ROWS($B$1:B20)),,COLUMNS($B$1:B12)+32),"") -> 0 | CE15: =IFERROR(OFFSET(INDIRECT("'"&$CC$2&"'!"&"C$"&ROWS($B$1:C20)),,COLUMNS($B$1:B12)+33),"") -> 0 | CF15: =IFERROR(OFFSET(INDIRECT("'"&$CC$2&"'!"&"C$"&ROWS($B$1:D20)),,COLUMNS($B$1:B12)+34),"") -> 0 | CG15: =IFERROR(OFFSET(INDIRECT("'"&$CC$2&"'!"&"C$"&ROWS($B$1:D20)),,COLUMNS($B$1:B12)+35),"") -> 0 | CH15: =IFERROR(OFFSET(INDIRECT("'"&$CC$2&"'!"&"C$"&ROWS($B$1:H20)),,COLUMNS($B$1:B12)+36),"") -> 0 | CI15: =IFERROR(OFFSET(INDIRECT("'"&$CC$2&"'!"&"C$"&ROWS($B$1:I20)),,COLUMNS($B$1:B12)+37),"") -> 0 | CJ15: =IFERROR(OFFSET(INDIRECT("'"&$CJ$2&"'!"&"C$"&ROWS($B$1:B20)),,COLUMNS($B$1:B12)+31),"") -> 26 | CK15: =IFERROR(OFFSET(INDIRECT("'"&$CJ$2&"'!"&"C$"&ROWS($B$1:B20)),,COLUMNS($B$1:B12)+32),"") -> 0 | CL15: =IFERROR(OFFSET(INDIRECT("'"&$CJ$2&"'!"&"C$"&ROWS($B$1:C20)),,COLUMNS($B$1:B12)+33),"") -> 0 | CM15: =IFERROR(OFFSET(INDIRECT("'"&$CJ$2&"'!"&"C$"&ROWS($B$1:D20)),,COLUMNS($B$1:B12)+34),"") -> 0 | CN15: =IFERROR(OFFSET(INDIRECT("'"&$CJ$2&"'!"&"C$"&ROWS($B$1:D20)),,COLUMNS($B$1:B12)+35),"") -> 0 | CO15: =IFERROR(OFFSET(INDIRECT("'"&$CJ$2&"'!"&"C$"&ROWS($B$1:H20)),,COLUMNS($B$1:B12)+36),"") -> 0 | CP15: =IFERROR(OFFSET(INDIRECT("'"&$CJ$2&"'!"&"C$"&ROWS($B$1:I20)),,COLUMNS($B$1:B12)+37),"") -> 0 | CR15: 450 | CS15: 726.9230769 | CT15: 346.1538462 | CU15: 1073.076923
A16: محمود زهرى راغب | B16: 46 | C16: 20 | D16: 0 | E16: 0 | F16: 0 | G16: 66 | I16: 2017-10-08 | K16: =IFERROR(OFFSET(INDIRECT("'"&$K$2&"'!"&"C$"&ROWS($B$1:B21)),,COLUMNS($B$1:B13)+31),"") -> 26 | L16: =IFERROR(OFFSET(INDIRECT("'"&$K$2&"'!"&"C$"&ROWS($B$1:B21)),,COLUMNS($B$1:B13)+32),"") -> 0 | M16: =IFERROR(OFFSET(INDIRECT("'"&$K$2&"'!"&"C$"&ROWS($B$1:C21)),,COLUMNS($B$1:B13)+33),"") -> 0 | N16: =IFERROR(OFFSET(INDIRECT("'"&$K$2&"'!"&"C$"&ROWS($B$1:D21)),,COLUMNS($B$1:B13)+34),"") -> 0 | O16: =IFERROR(OFFSET(INDIRECT("'"&$K$2&"'!"&"C$"&ROWS($B$1:D21)),,COLUMNS($B$1:B13)+35),"") -> 0 | P16: =IFERROR(OFFSET(INDIRECT("'"&$K$2&"'!"&"C$"&ROWS($B$1:H21)),,COLUMNS($B$1:B13)+36),"") -> 0 | Q16: =IFERROR(OFFSET(INDIRECT("'"&$K$2&"'!"&"C$"&ROWS($B$1:I21)),,COLUMNS($B$1:B13)+37),"") -> 0 | R16: =IFERROR(OFFSET(INDIRECT("'"&$R$2&"'!"&"C$"&ROWS($B$1:B21)),,COLUMNS($B$1:B13)+31),"") -> 0 | S16: =IFERROR(OFFSET(INDIRECT("'"&$R$2&"'!"&"C$"&ROWS($B$1:B21)),,COLUMNS($B$1:B13)+32),"") -> 0 | T16: =IFERROR(OFFSET(INDIRECT("'"&$R$2&"'!"&"C$"&ROWS($B$1:C21)),,COLUMNS($B$1:B13)+33),"") -> 0 | U16: =IFERROR(OFFSET(INDIRECT("'"&$R$2&"'!"&"C$"&ROWS($B$1:D21)),,COLUMNS($B$1:B13)+34),"") -> 0 | V16: =IFERROR(OFFSET(INDIRECT("'"&$R$2&"'!"&"C$"&ROWS($B$1:D21)),,COLUMNS($B$1:B13)+35),"") -> 0 | W16: =IFERROR(OFFSET(INDIRECT("'"&$R$2&"'!"&"C$"&ROWS($B$1:H21)),,COLUMNS($B$1:B13)+36),"") -> 0 | X16: =IFERROR(OFFSET(INDIRECT("'"&$R$2&"'!"&"C$"&ROWS($B$1:I21)),,COLUMNS($B$1:B13)+37),"") -> 0 | Y16: =IFERROR(OFFSET(INDIRECT("'"&$Y$2&"'!"&"C$"&ROWS($B$1:B21)),,COLUMNS($B$1:B13)+31),"") -> 26 | Z16: =IFERROR(OFFSET(INDIRECT("'"&$Y$2&"'!"&"C$"&ROWS($B$1:B21)),,COLUMNS($B$1:B13)+32),"") -> 0 | AA16: =IFERROR(OFFSET(INDIRECT("'"&$Y$2&"'!"&"C$"&ROWS($B$1:C21)),,COLUMNS($B$1:B13)+33),"") -> 0 | AB16: =IFERROR(OFFSET(INDIRECT("'"&$Y$2&"'!"&"C$"&ROWS($B$1:D21)),,COLUMNS($B$1:B13)+34),"") -> 0 | AC16: =IFERROR(OFFSET(INDIRECT("'"&$Y$2&"'!"&"C$"&ROWS($B$1:D21)),,COLUMNS($B$1:B13)+35),"") -> 0 | AD16: =IFERROR(OFFSET(INDIRECT("'"&$Y$2&"'!"&"C$"&ROWS($B$1:H21)),,COLUMNS($B$1:B13)+36),"") -> 0 | AE16: =IFERROR(OFFSET(INDIRECT("'"&$Y$2&"'!"&"C$"&ROWS($B$1:I21)),,COLUMNS($B$1:B13)+37),"") -> 0 | AF16: =IFERROR(OFFSET(INDIRECT("'"&$AF$2&"'!"&"C$"&ROWS($B$1:B21)),,COLUMNS($B$1:B13)+31),"") -> 0 | AG16: =IFERROR(OFFSET(INDIRECT("'"&$AF$2&"'!"&"C$"&ROWS($B$1:B21)),,COLUMNS($B$1:B13)+32),"") -> 0 | AH16: =IFERROR(OFFSET(INDIRECT("'"&$AF$2&"'!"&"C$"&ROWS($B$1:C21)),,COLUMNS($B$1:B13)+33),"") -> 0 | AI16: =IFERROR(OFFSET(INDIRECT("'"&$AF$2&"'!"&"C$"&ROWS($B$1:D21)),,COLUMNS($B$1:B13)+34),"") -> 0 | AJ16: =IFERROR(OFFSET(INDIRECT("'"&$AF$2&"'!"&"C$"&ROWS($B$1:D21)),,COLUMNS($B$1:B13)+35),"") -> 0 | AK16: =IFERROR(OFFSET(INDIRECT("'"&$AF$2&"'!"&"C$"&ROWS($B$1:H21)),,COLUMNS($B$1:B13)+36),"") -> 0 | AL16: =IFERROR(OFFSET(INDIRECT("'"&$AF$2&"'!"&"C$"&ROWS($B$1:I21)),,COLUMNS($B$1:B13)+37),"") -> 0 | AM16: =IFERROR(OFFSET(INDIRECT("'"&$AM$2&"'!"&"C$"&ROWS($B$1:B21)),,COLUMNS($B$1:B13)+31),"") -> 26 | AN16: =IFERROR(OFFSET(INDIRECT("'"&$AM$2&"'!"&"C$"&ROWS($B$1:B21)),,COLUMNS($B$1:B13)+32),"") -> 0 | AO16: =IFERROR(OFFSET(INDIRECT("'"&$AM$2&"'!"&"C$"&ROWS($B$1:C21)),,COLUMNS($B$1:B13)+33),"") -> 0 | AP16: =IFERROR(OFFSET(INDIRECT("'"&$AM$2&"'!"&"C$"&ROWS($B$1:D21)),,COLUMNS($B$1:B13)+34),"") -> 0 | AQ16: =IFERROR(OFFSET(INDIRECT("'"&$AM$2&"'!"&"C$"&ROWS($B$1:D21)),,COLUMNS($B$1:B13)+35),"") -> 0 | AR16: =IFERROR(OFFSET(INDIRECT("'"&$AM$2&"'!"&"C$"&ROWS($B$1:H21)),,COLUMNS($B$1:B13)+36),"") -> 0 | AS16: =IFERROR(OFFSET(INDIRECT("'"&$AM$2&"'!"&"C$"&ROWS($B$1:I21)),,COLUMNS($B$1:B13)+37),"") -> 0 | AT16: =IFERROR(OFFSET(INDIRECT("'"&$AT$2&"'!"&"C$"&ROWS($B$1:B21)),,COLUMNS($B$1:B13)+31),"") -> 26 | AU16: =IFERROR(OFFSET(INDIRECT("'"&$AT$2&"'!"&"C$"&ROWS($B$1:B21)),,COLUMNS($B$1:B13)+32),"") -> 0 | AV16: =IFERROR(OFFSET(INDIRECT("'"&$AT$2&"'!"&"C$"&ROWS($B$1:C21)),,COLUMNS($B$1:B13)+33),"") -> 0 | AW16: =IFERROR(OFFSET(INDIRECT("'"&$AT$2&"'!"&"C$"&ROWS($B$1:D21)),,COLUMNS($B$1:B13)+34),"") -> 0 | AX16: =IFERROR(OFFSET(INDIRECT("'"&$AT$2&"'!"&"C$"&ROWS($B$1:D21)),,COLUMNS($B$1:B13)+35),"") -> 0 | AY16: =IFERROR(OFFSET(INDIRECT("'"&$AT$2&"'!"&"C$"&ROWS($B$1:H21)),,COLUMNS($B$1:B13)+36),"") -> 0 | AZ16: =IFERROR(OFFSET(INDIRECT("'"&$AT$2&"'!"&"C$"&ROWS($B$1:I21)),,COLUMNS($B$1:B13)+37),"") -> 0 | BA16: =IFERROR(OFFSET(INDIRECT("'"&$BA$2&"'!"&"C$"&ROWS($B$1:B21)),,COLUMNS($B$1:B13)+31),"") -> 26 | BB16: =IFERROR(OFFSET(INDIRECT("'"&$BA$2&"'!"&"C$"&ROWS($B$1:B21)),,COLUMNS($B$1:B13)+32),"") -> 0 | BC16: =IFERROR(OFFSET(INDIRECT("'"&$BA$2&"'!"&"C$"&ROWS($B$1:C21)),,COLUMNS($B$1:B13)+33),"") -> 0 | BD16: =IFERROR(OFFSET(INDIRECT("'"&$BA$2&"'!"&"C$"&ROWS($B$1:D21)),,COLUMNS($B$1:B13)+34),"") -> 0 | BE16: =IFERROR(OFFSET(INDIRECT("'"&$BA$2&"'!"&"C$"&ROWS($B$1:D21)),,COLUMNS($B$1:B13)+35),"") -> 0 | BF16: =IFERROR(OFFSET(INDIRECT("'"&$BA$2&"'!"&"C$"&ROWS($B$1:H21)),,COLUMNS($B$1:B13)+36),"") -> 0 | BG16: =IFERROR(OFFSET(INDIRECT("'"&$BA$2&"'!"&"C$"&ROWS($B$1:I21)),,COLUMNS($B$1:B13)+37),"") -> 0 | BH16: =IFERROR(OFFSET(INDIRECT("'"&$BH$2&"'!"&"C$"&ROWS($B$1:B21)),,COLUMNS($B$1:B13)+31),"") -> 26 | BI16: =IFERROR(OFFSET(INDIRECT("'"&$BH$2&"'!"&"C$"&ROWS($B$1:B21)),,COLUMNS($B$1:B13)+32),"") -> 0 | BJ16: =IFERROR(OFFSET(INDIRECT("'"&$BH$2&"'!"&"C$"&ROWS($B$1:C21)),,COLUMNS($B$1:B13)+33),"") -> 0 | BK16: =IFERROR(OFFSET(INDIRECT("'"&$BH$2&"'!"&"C$"&ROWS($B$1:D21)),,COLUMNS($B$1:B13)+34),"") -> 0 | BL16: =IFERROR(OFFSET(INDIRECT("'"&$BH$2&"'!"&"C$"&ROWS($B$1:D21)),,COLUMNS($B$1:B13)+35),"") -> 0 | BM16: =IFERROR(OFFSET(INDIRECT("'"&$BH$2&"'!"&"C$"&ROWS($B$1:H21)),,COLUMNS($B$1:B13)+36),"") -> 0 | BN16: =IFERROR(OFFSET(INDIRECT("'"&$BH$2&"'!"&"C$"&ROWS($B$1:I21)),,COLUMNS($B$1:B13)+37),"") -> 0 | BO16: =IFERROR(OFFSET(INDIRECT("'"&$BO$2&"'!"&"C$"&ROWS($B$1:B21)),,COLUMNS($B$1:B13)+31),"") -> 0 | BP16: =IFERROR(OFFSET(INDIRECT("'"&$BO$2&"'!"&"C$"&ROWS($B$1:B21)),,COLUMNS($B$1:B13)+32),"") -> 0 | BQ16: =IFERROR(OFFSET(INDIRECT("'"&$BO$2&"'!"&"C$"&ROWS($B$1:C21)),,COLUMNS($B$1:B13)+33),"") -> 0 | BR16: =IFERROR(OFFSET(INDIRECT("'"&$BO$2&"'!"&"C$"&ROWS($B$1:D21)),,COLUMNS($B$1:B13)+34),"") -> 0 | BS16: =IFERROR(OFFSET(INDIRECT("'"&$BO$2&"'!"&"C$"&ROWS($B$1:D21)),,COLUMNS($B$1:B13)+35),"") -> 0 | BT16: =IFERROR(OFFSET(INDIRECT("'"&$BO$2&"'!"&"C$"&ROWS($B$1:H21)),,COLUMNS($B$1:B13)+36),"") -> 0 | BU16: =IFERROR(OFFSET(INDIRECT("'"&$BO$2&"'!"&"C$"&ROWS($B$1:I21)),,COLUMNS($B$1:B13)+37),"") -> 0 | BV16: =IFERROR(OFFSET(INDIRECT("'"&$BV$2&"'!"&"C$"&ROWS($B$1:B21)),,COLUMNS($B$1:B13)+31),"") -> 26 | BW16: =IFERROR(OFFSET(INDIRECT("'"&$BV$2&"'!"&"C$"&ROWS($B$1:B21)),,COLUMNS($B$1:B13)+32),"") -> 0 | BX16: =IFERROR(OFFSET(INDIRECT("'"&$BV$2&"'!"&"C$"&ROWS($B$1:C21)),,COLUMNS($B$1:B13)+33),"") -> 0 | BY16: =IFERROR(OFFSET(INDIRECT("'"&$BV$2&"'!"&"C$"&ROWS($B$1:D21)),,COLUMNS($B$1:B13)+34),"") -> 0 | BZ16: =IFERROR(OFFSET(INDIRECT("'"&$BV$2&"'!"&"C$"&ROWS($B$1:D21)),,COLUMNS($B$1:B13)+35),"") -> 0 | CA16: =IFERROR(OFFSET(INDIRECT("'"&$BV$2&"'!"&"C$"&ROWS($B$1:H21)),,COLUMNS($B$1:B13)+36),"") -> 0 | CB16: =IFERROR(OFFSET(INDIRECT("'"&$BV$2&"'!"&"C$"&ROWS($B$1:I21)),,COLUMNS($B$1:B13)+37),"") -> 0 | CC16: =IFERROR(OFFSET(INDIRECT("'"&$CC$2&"'!"&"C$"&ROWS($B$1:B21)),,COLUMNS($B$1:B13)+31),"") -> 0 | CD16: =IFERROR(OFFSET(INDIRECT("'"&$CC$2&"'!"&"C$"&ROWS($B$1:B21)),,COLUMNS($B$1:B13)+32),"") -> 0 | CE16: =IFERROR(OFFSET(INDIRECT("'"&$CC$2&"'!"&"C$"&ROWS($B$1:C21)),,COLUMNS($B$1:B13)+33),"") -> 0 | CF16: =IFERROR(OFFSET(INDIRECT("'"&$CC$2&"'!"&"C$"&ROWS($B$1:D21)),,COLUMNS($B$1:B13)+34),"") -> 0 | CG16: =IFERROR(OFFSET(INDIRECT("'"&$CC$2&"'!"&"C$"&ROWS($B$1:D21)),,COLUMNS($B$1:B13)+35),"") -> 0 | CH16: =IFERROR(OFFSET(INDIRECT("'"&$CC$2&"'!"&"C$"&ROWS($B$1:H21)),,COLUMNS($B$1:B13)+36),"") -> 0 | CI16: =IFERROR(OFFSET(INDIRECT("'"&$CC$2&"'!"&"C$"&ROWS($B$1:I21)),,COLUMNS($B$1:B13)+37),"") -> 0 | CJ16: =IFERROR(OFFSET(INDIRECT("'"&$CJ$2&"'!"&"C$"&ROWS($B$1:B21)),,COLUMNS($B$1:B13)+31),"") -> 26 | CK16: =IFERROR(OFFSET(INDIRECT("'"&$CJ$2&"'!"&"C$"&ROWS($B$1:B21)),,COLUMNS($B$1:B13)+32),"") -> 0 | CL16: =IFERROR(OFFSET(INDIRECT("'"&$CJ$2&"'!"&"C$"&ROWS($B$1:C21)),,COLUMNS($B$1:B13)+33),"") -> 0 | CM16: =IFERROR(OFFSET(INDIRECT("'"&$CJ$2&"'!"&"C$"&ROWS($B$1:D21)),,COLUMNS($B$1:B13)+34),"") -> 0 | CN16: =IFERROR(OFFSET(INDIRECT("'"&$CJ$2&"'!"&"C$"&ROWS($B$1:D21)),,COLUMNS($B$1:B13)+35),"") -> 0 | CO16: =IFERROR(OFFSET(INDIRECT("'"&$CJ$2&"'!"&"C$"&ROWS($B$1:H21)),,COLUMNS($B$1:B13)+36),"") -> 0 | CP16: =IFERROR(OFFSET(INDIRECT("'"&$CJ$2&"'!"&"C$"&ROWS($B$1:I21)),,COLUMNS($B$1:B13)+37),"") -> 0 | CR16: 400 | CS16: 707.6923077 | CT16: 307.6923077 | CU16: 1015.384615
A17: ميساء عبد المنعم كامل عبد الله | B17: 42 | C17: 20 | D17: 0 | E17: 0 | F17: 0 | G17: 62 | I17: 2016-11-27 | K17: =IFERROR(OFFSET(INDIRECT("'"&$K$2&"'!"&"C$"&ROWS($B$1:B22)),,COLUMNS($B$1:B14)+31),"") -> 26 | L17: =IFERROR(OFFSET(INDIRECT("'"&$K$2&"'!"&"C$"&ROWS($B$1:B22)),,COLUMNS($B$1:B14)+32),"") -> 0 | M17: =IFERROR(OFFSET(INDIRECT("'"&$K$2&"'!"&"C$"&ROWS($B$1:C22)),,COLUMNS($B$1:B14)+33),"") -> 0 | N17: =IFERROR(OFFSET(INDIRECT("'"&$K$2&"'!"&"C$"&ROWS($B$1:D22)),,COLUMNS($B$1:B14)+34),"") -> 0 | O17: =IFERROR(OFFSET(INDIRECT("'"&$K$2&"'!"&"C$"&ROWS($B$1:D22)),,COLUMNS($B$1:B14)+35),"") -> 0 | P17: =IFERROR(OFFSET(INDIRECT("'"&$K$2&"'!"&"C$"&ROWS($B$1:H22)),,COLUMNS($B$1:B14)+36),"") -> 0 | Q17: =IFERROR(OFFSET(INDIRECT("'"&$K$2&"'!"&"C$"&ROWS($B$1:I22)),,COLUMNS($B$1:B14)+37),"") -> 0 | R17: =IFERROR(OFFSET(INDIRECT("'"&$R$2&"'!"&"C$"&ROWS($B$1:B22)),,COLUMNS($B$1:B14)+31),"") -> 0 | S17: =IFERROR(OFFSET(INDIRECT("'"&$R$2&"'!"&"C$"&ROWS($B$1:B22)),,COLUMNS($B$1:B14)+32),"") -> 0 | T17: =IFERROR(OFFSET(INDIRECT("'"&$R$2&"'!"&"C$"&ROWS($B$1:C22)),,COLUMNS($B$1:B14)+33),"") -> 0 | U17: =IFERROR(OFFSET(INDIRECT("'"&$R$2&"'!"&"C$"&ROWS($B$1:D22)),,COLUMNS($B$1:B14)+34),"") -> 0 | V17: =IFERROR(OFFSET(INDIRECT("'"&$R$2&"'!"&"C$"&ROWS($B$1:D22)),,COLUMNS($B$1:B14)+35),"") -> 0 | W17: =IFERROR(OFFSET(INDIRECT("'"&$R$2&"'!"&"C$"&ROWS($B$1:H22)),,COLUMNS($B$1:B14)+36),"") -> 0 | X17: =IFERROR(OFFSET(INDIRECT("'"&$R$2&"'!"&"C$"&ROWS($B$1:I22)),,COLUMNS($B$1:B14)+37),"") -> 0 | Y17: =IFERROR(OFFSET(INDIRECT("'"&$Y$2&"'!"&"C$"&ROWS($B$1:B22)),,COLUMNS($B$1:B14)+31),"") -> 26 | Z17: =IFERROR(OFFSET(INDIRECT("'"&$Y$2&"'!"&"C$"&ROWS($B$1:B22)),,COLUMNS($B$1:B14)+32),"") -> 0 | AA17: =IFERROR(OFFSET(INDIRECT("'"&$Y$2&"'!"&"C$"&ROWS($B$1:C22)),,COLUMNS($B$1:B14)+33),"") -> 0 | AB17: =IFERROR(OFFSET(INDIRECT("'"&$Y$2&"'!"&"C$"&ROWS($B$1:D22)),,COLUMNS($B$1:B14)+34),"") -> 0 | AC17: =IFERROR(OFFSET(INDIRECT("'"&$Y$2&"'!"&"C$"&ROWS($B$1:D22)),,COLUMNS($B$1:B14)+35),"") -> 0 | AD17: =IFERROR(OFFSET(INDIRECT("'"&$Y$2&"'!"&"C$"&ROWS($B$1:H22)),,COLUMNS($B$1:B14)+36),"") -> 0 | AE17: =IFERROR(OFFSET(INDIRECT("'"&$Y$2&"'!"&"C$"&ROWS($B$1:I22)),,COLUMNS($B$1:B14)+37),"") -> 0 | AF17: =IFERROR(OFFSET(INDIRECT("'"&$AF$2&"'!"&"C$"&ROWS($B$1:B22)),,COLUMNS($B$1:B14)+31),"") -> 0 | AG17: =IFERROR(OFFSET(INDIRECT("'"&$AF$2&"'!"&"C$"&ROWS($B$1:B22)),,COLUMNS($B$1:B14)+32),"") -> 0 | AH17: =IFERROR(OFFSET(INDIRECT("'"&$AF$2&"'!"&"C$"&ROWS($B$1:C22)),,COLUMNS($B$1:B14)+33),"") -> 0 | AI17: =IFERROR(OFFSET(INDIRECT("'"&$AF$2&"'!"&"C$"&ROWS($B$1:D22)),,COLUMNS($B$1:B14)+34),"") -> 0 | AJ17: =IFERROR(OFFSET(INDIRECT("'"&$AF$2&"'!"&"C$"&ROWS($B$1:D22)),,COLUMNS($B$1:B14)+35),"") -> 0 | AK17: =IFERROR(OFFSET(INDIRECT("'"&$AF$2&"'!"&"C$"&ROWS($B$1:H22)),,COLUMNS($B$1:B14)+36),"") -> 0 | AL17: =IFERROR(OFFSET(INDIRECT("'"&$AF$2&"'!"&"C$"&ROWS($B$1:I22)),,COLUMNS($B$1:B14)+37),"") -> 0 | AM17: =IFERROR(OFFSET(INDIRECT("'"&$AM$2&"'!"&"C$"&ROWS($B$1:B22)),,COLUMNS($B$1:B14)+31),"") -> 26 | AN17: =IFERROR(OFFSET(INDIRECT("'"&$AM$2&"'!"&"C$"&ROWS($B$1:B22)),,COLUMNS($B$1:B14)+32),"") -> 0 | AO17: =IFERROR(OFFSET(INDIRECT("'"&$AM$2&"'!"&"C$"&ROWS($B$1:C22)),,COLUMNS($B$1:B14)+33),"") -> 0 | AP17: =IFERROR(OFFSET(INDIRECT("'"&$AM$2&"'!"&"C$"&ROWS($B$1:D22)),,COLUMNS($B$1:B14)+34),"") -> 0 | AQ17: =IFERROR(OFFSET(INDIRECT("'"&$AM$2&"'!"&"C$"&ROWS($B$1:D22)),,COLUMNS($B$1:B14)+35),"") -> 0 | AR17: =IFERROR(OFFSET(INDIRECT("'"&$AM$2&"'!"&"C$"&ROWS($B$1:H22)),,COLUMNS($B$1:B14)+36),"") -> 0 | AS17: =IFERROR(OFFSET(INDIRECT("'"&$AM$2&"'!"&"C$"&ROWS($B$1:I22)),,COLUMNS($B$1:B14)+37),"") -> 0 | AT17: =IFERROR(OFFSET(INDIRECT("'"&$AT$2&"'!"&"C$"&ROWS($B$1:B22)),,COLUMNS($B$1:B14)+31),"") -> 26 | AU17: =IFERROR(OFFSET(INDIRECT("'"&$AT$2&"'!"&"C$"&ROWS($B$1:B22)),,COLUMNS($B$1:B14)+32),"") -> 0 | AV17: =IFERROR(OFFSET(INDIRECT("'"&$AT$2&"'!"&"C$"&ROWS($B$1:C22)),,COLUMNS($B$1:B14)+33),"") -> 0 | AW17: =IFERROR(OFFSET(INDIRECT("'"&$AT$2&"'!"&"C$"&ROWS($B$1:D22)),,COLUMNS($B$1:B14)+34),"") -> 0 | AX17: =IFERROR(OFFSET(INDIRECT("'"&$AT$2&"'!"&"C$"&ROWS($B$1:D22)),,COLUMNS($B$1:B14)+35),"") -> 0 | AY17: =IFERROR(OFFSET(INDIRECT("'"&$AT$2&"'!"&"C$"&ROWS($B$1:H22)),,COLUMNS($B$1:B14)+36),"") -> 0 | AZ17: =IFERROR(OFFSET(INDIRECT("'"&$AT$2&"'!"&"C$"&ROWS($B$1:I22)),,COLUMNS($B$1:B14)+37),"") -> 0 | BA17: =IFERROR(OFFSET(INDIRECT("'"&$BA$2&"'!"&"C$"&ROWS($B$1:B22)),,COLUMNS($B$1:B14)+31),"") -> 26 | BB17: =IFERROR(OFFSET(INDIRECT("'"&$BA$2&"'!"&"C$"&ROWS($B$1:B22)),,COLUMNS($B$1:B14)+32),"") -> 0 | BC17: =IFERROR(OFFSET(INDIRECT("'"&$BA$2&"'!"&"C$"&ROWS($B$1:C22)),,COLUMNS($B$1:B14)+33),"") -> 0 | BD17: =IFERROR(OFFSET(INDIRECT("'"&$BA$2&"'!"&"C$"&ROWS($B$1:D22)),,COLUMNS($B$1:B14)+34),"") -> 0 | BE17: =IFERROR(OFFSET(INDIRECT("'"&$BA$2&"'!"&"C$"&ROWS($B$1:D22)),,COLUMNS($B$1:B14)+35),"") -> 0 | BF17: =IFERROR(OFFSET(INDIRECT("'"&$BA$2&"'!"&"C$"&ROWS($B$1:H22)),,COLUMNS($B$1:B14)+36),"") -> 0 | BG17: =IFERROR(OFFSET(INDIRECT("'"&$BA$2&"'!"&"C$"&ROWS($B$1:I22)),,COLUMNS($B$1:B14)+37),"") -> 0 | BH17: =IFERROR(OFFSET(INDIRECT("'"&$BH$2&"'!"&"C$"&ROWS($B$1:B22)),,COLUMNS($B$1:B14)+31),"") -> 26 | BI17: =IFERROR(OFFSET(INDIRECT("'"&$BH$2&"'!"&"C$"&ROWS($B$1:B22)),,COLUMNS($B$1:B14)+32),"") -> 0 | BJ17: =IFERROR(OFFSET(INDIRECT("'"&$BH$2&"'!"&"C$"&ROWS($B$1:C22)),,COLUMNS($B$1:B14)+33),"") -> 0 | BK17: =IFERROR(OFFSET(INDIRECT("'"&$BH$2&"'!"&"C$"&ROWS($B$1:D22)),,COLUMNS($B$1:B14)+34),"") -> 0 | BL17: =IFERROR(OFFSET(INDIRECT("'"&$BH$2&"'!"&"C$"&ROWS($B$1:D22)),,COLUMNS($B$1:B14)+35),"") -> 0 | BM17: =IFERROR(OFFSET(INDIRECT("'"&$BH$2&"'!"&"C$"&ROWS($B$1:H22)),,COLUMNS($B$1:B14)+36),"") -> 0 | BN17: =IFERROR(OFFSET(INDIRECT("'"&$BH$2&"'!"&"C$"&ROWS($B$1:I22)),,COLUMNS($B$1:B14)+37),"") -> 0 | BO17: =IFERROR(OFFSET(INDIRECT("'"&$BO$2&"'!"&"C$"&ROWS($B$1:B22)),,COLUMNS($B$1:B14)+31),"") -> 0 | BP17: =IFERROR(OFFSET(INDIRECT("'"&$BO$2&"'!"&"C$"&ROWS($B$1:B22)),,COLUMNS($B$1:B14)+32),"") -> 0 | BQ17: =IFERROR(OFFSET(INDIRECT("'"&$BO$2&"'!"&"C$"&ROWS($B$1:C22)),,COLUMNS($B$1:B14)+33),"") -> 0 | BR17: =IFERROR(OFFSET(INDIRECT("'"&$BO$2&"'!"&"C$"&ROWS($B$1:D22)),,COLUMNS($B$1:B14)+34),"") -> 0 | BS17: =IFERROR(OFFSET(INDIRECT("'"&$BO$2&"'!"&"C$"&ROWS($B$1:D22)),,COLUMNS($B$1:B14)+35),"") -> 0 | BT17: =IFERROR(OFFSET(INDIRECT("'"&$BO$2&"'!"&"C$"&ROWS($B$1:H22)),,COLUMNS($B$1:B14)+36),"") -> 0 | BU17: =IFERROR(OFFSET(INDIRECT("'"&$BO$2&"'!"&"C$"&ROWS($B$1:I22)),,COLUMNS($B$1:B14)+37),"") -> 0 | BV17: =IFERROR(OFFSET(INDIRECT("'"&$BV$2&"'!"&"C$"&ROWS($B$1:B22)),,COLUMNS($B$1:B14)+31),"") -> 26 | BW17: =IFERROR(OFFSET(INDIRECT("'"&$BV$2&"'!"&"C$"&ROWS($B$1:B22)),,COLUMNS($B$1:B14)+32),"") -> 0 | BX17: =IFERROR(OFFSET(INDIRECT("'"&$BV$2&"'!"&"C$"&ROWS($B$1:C22)),,COLUMNS($B$1:B14)+33),"") -> 0 | BY17: =IFERROR(OFFSET(INDIRECT("'"&$BV$2&"'!"&"C$"&ROWS($B$1:D22)),,COLUMNS($B$1:B14)+34),"") -> 0 | BZ17: =IFERROR(OFFSET(INDIRECT("'"&$BV$2&"'!"&"C$"&ROWS($B$1:D22)),,COLUMNS($B$1:B14)+35),"") -> 0 | CA17: =IFERROR(OFFSET(INDIRECT("'"&$BV$2&"'!"&"C$"&ROWS($B$1:H22)),,COLUMNS($B$1:B14)+36),"") -> 0 | CB17: =IFERROR(OFFSET(INDIRECT("'"&$BV$2&"'!"&"C$"&ROWS($B$1:I22)),,COLUMNS($B$1:B14)+37),"") -> 0 | CC17: =IFERROR(OFFSET(INDIRECT("'"&$CC$2&"'!"&"C$"&ROWS($B$1:B22)),,COLUMNS($B$1:B14)+31),"") -> 0 | CD17: =IFERROR(OFFSET(INDIRECT("'"&$CC$2&"'!"&"C$"&ROWS($B$1:B22)),,COLUMNS($B$1:B14)+32),"") -> 0 | CE17: =IFERROR(OFFSET(INDIRECT("'"&$CC$2&"'!"&"C$"&ROWS($B$1:C22)),,COLUMNS($B$1:B14)+33),"") -> 0 | CF17: =IFERROR(OFFSET(INDIRECT("'"&$CC$2&"'!"&"C$"&ROWS($B$1:D22)),,COLUMNS($B$1:B14)+34),"") -> 0 | CG17: =IFERROR(OFFSET(INDIRECT("'"&$CC$2&"'!"&"C$"&ROWS($B$1:D22)),,COLUMNS($B$1:B14)+35),"") -> 0 | CH17: =IFERROR(OFFSET(INDIRECT("'"&$CC$2&"'!"&"C$"&ROWS($B$1:H22)),,COLUMNS($B$1:B14)+36),"") -> 0 | CI17: =IFERROR(OFFSET(INDIRECT("'"&$CC$2&"'!"&"C$"&ROWS($B$1:I22)),,COLUMNS($B$1:B14)+37),"") -> 0 | CJ17: =IFERROR(OFFSET(INDIRECT("'"&$CJ$2&"'!"&"C$"&ROWS($B$1:B22)),,COLUMNS($B$1:B14)+31),"") -> 26 | CK17: =IFERROR(OFFSET(INDIRECT("'"&$CJ$2&"'!"&"C$"&ROWS($B$1:B22)),,COLUMNS($B$1:B14)+32),"") -> 0 | CL17: =IFERROR(OFFSET(INDIRECT("'"&$CJ$2&"'!"&"C$"&ROWS($B$1:C22)),,COLUMNS($B$1:B14)+33),"") -> 0 | CM17: =IFERROR(OFFSET(INDIRECT("'"&$CJ$2&"'!"&"C$"&ROWS($B$1:D22)),,COLUMNS($B$1:B14)+34),"") -> 0 | CN17: =IFERROR(OFFSET(INDIRECT("'"&$CJ$2&"'!"&"C$"&ROWS($B$1:D22)),,COLUMNS($B$1:B14)+35),"") -> 0 | CO17: =IFERROR(OFFSET(INDIRECT("'"&$CJ$2&"'!"&"C$"&ROWS($B$1:H22)),,COLUMNS($B$1:B14)+36),"") -> 0 | CP17: =IFERROR(OFFSET(INDIRECT("'"&$CJ$2&"'!"&"C$"&ROWS($B$1:I22)),,COLUMNS($B$1:B14)+37),"") -> 0 | CR17: 500 | CS17: 807.6923077 | CT17: 384.6153846 | CU17: 1192.307692
A18: ابو الكلام عبد الحق | B18: 0.6 | C18: 20 | D18: 0 | E18: 0 | F18: 0 | G18: 20.6 | I18: 2002-06-01 | K18: =IFERROR(OFFSET(INDIRECT("'"&$K$2&"'!"&"C$"&ROWS($B$1:B23)),,COLUMNS($B$1:B15)+31),"") -> 26 | L18: =IFERROR(OFFSET(INDIRECT("'"&$K$2&"'!"&"C$"&ROWS($B$1:B23)),,COLUMNS($B$1:B15)+32),"") -> 0 | M18: =IFERROR(OFFSET(INDIRECT("'"&$K$2&"'!"&"C$"&ROWS($B$1:C23)),,COLUMNS($B$1:B15)+33),"") -> 0 | N18: =IFERROR(OFFSET(INDIRECT("'"&$K$2&"'!"&"C$"&ROWS($B$1:D23)),,COLUMNS($B$1:B15)+34),"") -> 0 | O18: =IFERROR(OFFSET(INDIRECT("'"&$K$2&"'!"&"C$"&ROWS($B$1:D23)),,COLUMNS($B$1:B15)+35),"") -> 0 | P18: =IFERROR(OFFSET(INDIRECT("'"&$K$2&"'!"&"C$"&ROWS($B$1:H23)),,COLUMNS($B$1:B15)+36),"") -> 0 | Q18: =IFERROR(OFFSET(INDIRECT("'"&$K$2&"'!"&"C$"&ROWS($B$1:I23)),,COLUMNS($B$1:B15)+37),"") -> 0 | R18: =IFERROR(OFFSET(INDIRECT("'"&$R$2&"'!"&"C$"&ROWS($B$1:B23)),,COLUMNS($B$1:B15)+31),"") -> 0 | S18: =IFERROR(OFFSET(INDIRECT("'"&$R$2&"'!"&"C$"&ROWS($B$1:B23)),,COLUMNS($B$1:B15)+32),"") -> 0 | T18: =IFERROR(OFFSET(INDIRECT("'"&$R$2&"'!"&"C$"&ROWS($B$1:C23)),,COLUMNS($B$1:B15)+33),"") -> 0 | U18: =IFERROR(OFFSET(INDIRECT("'"&$R$2&"'!"&"C$"&ROWS($B$1:D23)),,COLUMNS($B$1:B15)+34),"") -> 0 | V18: =IFERROR(OFFSET(INDIRECT("'"&$R$2&"'!"&"C$"&ROWS($B$1:D23)),,COLUMNS($B$1:B15)+35),"") -> 0 | W18: =IFERROR(OFFSET(INDIRECT("'"&$R$2&"'!"&"C$"&ROWS($B$1:H23)),,COLUMNS($B$1:B15)+36),"") -> 0 | X18: =IFERROR(OFFSET(INDIRECT("'"&$R$2&"'!"&"C$"&ROWS($B$1:I23)),,COLUMNS($B$1:B15)+37),"") -> 0 | Y18: =IFERROR(OFFSET(INDIRECT("'"&$Y$2&"'!"&"C$"&ROWS($B$1:B23)),,COLUMNS($B$1:B15)+31),"") -> 26 | Z18: =IFERROR(OFFSET(INDIRECT("'"&$Y$2&"'!"&"C$"&ROWS($B$1:B23)),,COLUMNS($B$1:B15)+32),"") -> 0 | AA18: =IFERROR(OFFSET(INDIRECT("'"&$Y$2&"'!"&"C$"&ROWS($B$1:C23)),,COLUMNS($B$1:B15)+33),"") -> 0 | AB18: =IFERROR(OFFSET(INDIRECT("'"&$Y$2&"'!"&"C$"&ROWS($B$1:D23)),,COLUMNS($B$1:B15)+34),"") -> 0 | AC18: =IFERROR(OFFSET(INDIRECT("'"&$Y$2&"'!"&"C$"&ROWS($B$1:D23)),,COLUMNS($B$1:B15)+35),"") -> 0 | AD18: =IFERROR(OFFSET(INDIRECT("'"&$Y$2&"'!"&"C$"&ROWS($B$1:H23)),,COLUMNS($B$1:B15)+36),"") -> 0 | AE18: =IFERROR(OFFSET(INDIRECT("'"&$Y$2&"'!"&"C$"&ROWS($B$1:I23)),,COLUMNS($B$1:B15)+37),"") -> 0 | AF18: =IFERROR(OFFSET(INDIRECT("'"&$AF$2&"'!"&"C$"&ROWS($B$1:B23)),,COLUMNS($B$1:B15)+31),"") -> 0 | AG18: =IFERROR(OFFSET(INDIRECT("'"&$AF$2&"'!"&"C$"&ROWS($B$1:B23)),,COLUMNS($B$1:B15)+32),"") -> 0 | AH18: =IFERROR(OFFSET(INDIRECT("'"&$AF$2&"'!"&"C$"&ROWS($B$1:C23)),,COLUMNS($B$1:B15)+33),"") -> 0 | AI18: =IFERROR(OFFSET(INDIRECT("'"&$AF$2&"'!"&"C$"&ROWS($B$1:D23)),,COLUMNS($B$1:B15)+34),"") -> 0 | AJ18: =IFERROR(OFFSET(INDIRECT("'"&$AF$2&"'!"&"C$"&ROWS($B$1:D23)),,COLUMNS($B$1:B15)+35),"") -> 0 | AK18: =IFERROR(OFFSET(INDIRECT("'"&$AF$2&"'!"&"C$"&ROWS($B$1:H23)),,COLUMNS($B$1:B15)+36),"") -> 0 | AL18: =IFERROR(OFFSET(INDIRECT("'"&$AF$2&"'!"&"C$"&ROWS($B$1:I23)),,COLUMNS($B$1:B15)+37),"") -> 0 | AM18: =IFERROR(OFFSET(INDIRECT("'"&$AM$2&"'!"&"C$"&ROWS($B$1:B23)),,COLUMNS($B$1:B15)+31),"") -> 26 | AN18: =IFERROR(OFFSET(INDIRECT("'"&$AM$2&"'!"&"C$"&ROWS($B$1:B23)),,COLUMNS($B$1:B15)+32),"") -> 0 | AO18: =IFERROR(OFFSET(INDIRECT("'"&$AM$2&"'!"&"C$"&ROWS($B$1:C23)),,COLUMNS($B$1:B15)+33),"") -> 0 | AP18: =IFERROR(OFFSET(INDIRECT("'"&$AM$2&"'!"&"C$"&ROWS($B$1:D23)),,COLUMNS($B$1:B15)+34),"") -> 0 | AQ18: =IFERROR(OFFSET(INDIRECT("'"&$AM$2&"'!"&"C$"&ROWS($B$1:D23)),,COLUMNS($B$1:B15)+35),"") -> 0 | AR18: =IFERROR(OFFSET(INDIRECT("'"&$AM$2&"'!"&"C$"&ROWS($B$1:H23)),,COLUMNS($B$1:B15)+36),"") -> 0 | AS18: =IFERROR(OFFSET(INDIRECT("'"&$AM$2&"'!"&"C$"&ROWS($B$1:I23)),,COLUMNS($B$1:B15)+37),"") -> 0 | AT18: =IFERROR(OFFSET(INDIRECT("'"&$AT$2&"'!"&"C$"&ROWS($B$1:B23)),,COLUMNS($B$1:B15)+31),"") -> 26 | AU18: =IFERROR(OFFSET(INDIRECT("'"&$AT$2&"'!"&"C$"&ROWS($B$1:B23)),,COLUMNS($B$1:B15)+32),"") -> 0 | AV18: =IFERROR(OFFSET(INDIRECT("'"&$AT$2&"'!"&"C$"&ROWS($B$1:C23)),,COLUMNS($B$1:B15)+33),"") -> 0 | AW18: =IFERROR(OFFSET(INDIRECT("'"&$AT$2&"'!"&"C$"&ROWS($B$1:D23)),,COLUMNS($B$1:B15)+34),"") -> 0 | AX18: =IFERROR(OFFSET(INDIRECT("'"&$AT$2&"'!"&"C$"&ROWS($B$1:D23)),,COLUMNS($B$1:B15)+35),"") -> 0 | AY18: =IFERROR(OFFSET(INDIRECT("'"&$AT$2&"'!"&"C$"&ROWS($B$1:H23)),,COLUMNS($B$1:B15)+36),"") -> 0 | AZ18: =IFERROR(OFFSET(INDIRECT("'"&$AT$2&"'!"&"C$"&ROWS($B$1:I23)),,COLUMNS($B$1:B15)+37),"") -> 0 | BA18: =IFERROR(OFFSET(INDIRECT("'"&$BA$2&"'!"&"C$"&ROWS($B$1:B23)),,COLUMNS($B$1:B15)+31),"") -> 26 | BB18: =IFERROR(OFFSET(INDIRECT("'"&$BA$2&"'!"&"C$"&ROWS($B$1:B23)),,COLUMNS($B$1:B15)+32),"") -> 0 | BC18: =IFERROR(OFFSET(INDIRECT("'"&$BA$2&"'!"&"C$"&ROWS($B$1:C23)),,COLUMNS($B$1:B15)+33),"") -> 0 | BD18: =IFERROR(OFFSET(INDIRECT("'"&$BA$2&"'!"&"C$"&ROWS($B$1:D23)),,COLUMNS($B$1:B15)+34),"") -> 0 | BE18: =IFERROR(OFFSET(INDIRECT("'"&$BA$2&"'!"&"C$"&ROWS($B$1:D23)),,COLUMNS($B$1:B15)+35),"") -> 0 | BF18: =IFERROR(OFFSET(INDIRECT("'"&$BA$2&"'!"&"C$"&ROWS($B$1:H23)),,COLUMNS($B$1:B15)+36),"") -> 0 | BG18: =IFERROR(OFFSET(INDIRECT("'"&$BA$2&"'!"&"C$"&ROWS($B$1:I23)),,COLUMNS($B$1:B15)+37),"") -> 0 | BH18: =IFERROR(OFFSET(INDIRECT("'"&$BH$2&"'!"&"C$"&ROWS($B$1:B23)),,COLUMNS($B$1:B15)+31),"") -> 26 | BI18: =IFERROR(OFFSET(INDIRECT("'"&$BH$2&"'!"&"C$"&ROWS($B$1:B23)),,COLUMNS($B$1:B15)+32),"") -> 0 | BJ18: =IFERROR(OFFSET(INDIRECT("'"&$BH$2&"'!"&"C$"&ROWS($B$1:C23)),,COLUMNS($B$1:B15)+33),"") -> 0 | BK18: =IFERROR(OFFSET(INDIRECT("'"&$BH$2&"'!"&"C$"&ROWS($B$1:D23)),,COLUMNS($B$1:B15)+34),"") -> 0 | BL18: =IFERROR(OFFSET(INDIRECT("'"&$BH$2&"'!"&"C$"&ROWS($B$1:D23)),,COLUMNS($B$1:B15)+35),"") -> 0 | BM18: =IFERROR(OFFSET(INDIRECT("'"&$BH$2&"'!"&"C$"&ROWS($B$1:H23)),,COLUMNS($B$1:B15)+36),"") -> 0 | BN18: =IFERROR(OFFSET(INDIRECT("'"&$BH$2&"'!"&"C$"&ROWS($B$1:I23)),,COLUMNS($B$1:B15)+37),"") -> 0 | BO18: =IFERROR(OFFSET(INDIRECT("'"&$BO$2&"'!"&"C$"&ROWS($B$1:B23)),,COLUMNS($B$1:B15)+31),"") -> 0 | BP18: =IFERROR(OFFSET(INDIRECT("'"&$BO$2&"'!"&"C$"&ROWS($B$1:B23)),,COLUMNS($B$1:B15)+32),"") -> 0 | BQ18: =IFERROR(OFFSET(INDIRECT("'"&$BO$2&"'!"&"C$"&ROWS($B$1:C23)),,COLUMNS($B$1:B15)+33),"") -> 0 | BR18: =IFERROR(OFFSET(INDIRECT("'"&$BO$2&"'!"&"C$"&ROWS($B$1:D23)),,COLUMNS($B$1:B15)+34),"") -> 0 | BS18: =IFERROR(OFFSET(INDIRECT("'"&$BO$2&"'!"&"C$"&ROWS($B$1:D23)),,COLUMNS($B$1:B15)+35),"") -> 0 | BT18: =IFERROR(OFFSET(INDIRECT("'"&$BO$2&"'!"&"C$"&ROWS($B$1:H23)),,COLUMNS($B$1:B15)+36),"") -> 0 | BU18: =IFERROR(OFFSET(INDIRECT("'"&$BO$2&"'!"&"C$"&ROWS($B$1:I23)),,COLUMNS($B$1:B15)+37),"") -> 0 | BV18: =IFERROR(OFFSET(INDIRECT("'"&$BV$2&"'!"&"C$"&ROWS($B$1:B23)),,COLUMNS($B$1:B15)+31),"") -> 26 | BW18: =IFERROR(OFFSET(INDIRECT("'"&$BV$2&"'!"&"C$"&ROWS($B$1:B23)),,COLUMNS($B$1:B15)+32),"") -> 0 | BX18: =IFERROR(OFFSET(INDIRECT("'"&$BV$2&"'!"&"C$"&ROWS($B$1:C23)),,COLUMNS($B$1:B15)+33),"") -> 0 | BY18: =IFERROR(OFFSET(INDIRECT("'"&$BV$2&"'!"&"C$"&ROWS($B$1:D23)),,COLUMNS($B$1:B15)+34),"") -> 0 | BZ18: =IFERROR(OFFSET(INDIRECT("'"&$BV$2&"'!"&"C$"&ROWS($B$1:D23)),,COLUMNS($B$1:B15)+35),"") -> 0 | CA18: =IFERROR(OFFSET(INDIRECT("'"&$BV$2&"'!"&"C$"&ROWS($B$1:H23)),,COLUMNS($B$1:B15)+36),"") -> 0 | CB18: =IFERROR(OFFSET(INDIRECT("'"&$BV$2&"'!"&"C$"&ROWS($B$1:I23)),,COLUMNS($B$1:B15)+37),"") -> 0 | CC18: =IFERROR(OFFSET(INDIRECT("'"&$CC$2&"'!"&"C$"&ROWS($B$1:B23)),,COLUMNS($B$1:B15)+31),"") -> 0 | CD18: =IFERROR(OFFSET(INDIRECT("'"&$CC$2&"'!"&"C$"&ROWS($B$1:B23)),,COLUMNS($B$1:B15)+32),"") -> 0 | CE18: =IFERROR(OFFSET(INDIRECT("'"&$CC$2&"'!"&"C$"&ROWS($B$1:C23)),,COLUMNS($B$1:B15)+33),"") -> 0 | CF18: =IFERROR(OFFSET(INDIRECT("'"&$CC$2&"'!"&"C$"&ROWS($B$1:D23)),,COLUMNS($B$1:B15)+34),"") -> 0 | CG18: =IFERROR(OFFSET(INDIRECT("'"&$CC$2&"'!"&"C$"&ROWS($B$1:D23)),,COLUMNS($B$1:B15)+35),"") -> 0 | CH18: =IFERROR(OFFSET(INDIRECT("'"&$CC$2&"'!"&"C$"&ROWS($B$1:H23)),,COLUMNS($B$1:B15)+36),"") -> 0 | CI18: =IFERROR(OFFSET(INDIRECT("'"&$CC$2&"'!"&"C$"&ROWS($B$1:I23)),,COLUMNS($B$1:B15)+37),"") -> 0 | CJ18: =IFERROR(OFFSET(INDIRECT("'"&$CJ$2&"'!"&"C$"&ROWS($B$1:B23)),,COLUMNS($B$1:B15)+31),"") -> 26 | CK18: =IFERROR(OFFSET(INDIRECT("'"&$CJ$2&"'!"&"C$"&ROWS($B$1:B23)),,COLUMNS($B$1:B15)+32),"") -> 0 | CL18: =IFERROR(OFFSET(INDIRECT("'"&$CJ$2&"'!"&"C$"&ROWS($B$1:C23)),,COLUMNS($B$1:B15)+33),"") -> 0 | CM18: =IFERROR(OFFSET(INDIRECT("'"&$CJ$2&"'!"&"C$"&ROWS($B$1:D23)),,COLUMNS($B$1:B15)+34),"") -> 0 | CN18: =IFERROR(OFFSET(INDIRECT("'"&$CJ$2&"'!"&"C$"&ROWS($B$1:D23)),,COLUMNS($B$1:B15)+35),"") -> 0 | CO18: =IFERROR(OFFSET(INDIRECT("'"&$CJ$2&"'!"&"C$"&ROWS($B$1:H23)),,COLUMNS($B$1:B15)+36),"") -> 0 | CP18: =IFERROR(OFFSET(INDIRECT("'"&$CJ$2&"'!"&"C$"&ROWS($B$1:I23)),,COLUMNS($B$1:B15)+37),"") -> 0 | CS18: 0 | CT18: 0 | CU18: 0
A19: على موسى على حبالق | B19: 58.3 | C19: 20 | D19: 0 | E19: =SUM(O19,V19,AC19,AJ19,AQ19,AX19,BE19,BL19,BS19,BZ19,CG19,CN19) -> 0 | F19: 0 | G19: 78.3 | I19: 2012-02-15 | K19: =IFERROR(OFFSET(INDIRECT("'"&$K$2&"'!"&"C$"&ROWS($B$1:B24)),,COLUMNS($B$1:B16)+31),"") -> 26 | L19: =IFERROR(OFFSET(INDIRECT("'"&$K$2&"'!"&"C$"&ROWS($B$1:B24)),,COLUMNS($B$1:B16)+32),"") -> 0 | M19: =IFERROR(OFFSET(INDIRECT("'"&$K$2&"'!"&"C$"&ROWS($B$1:C24)),,COLUMNS($B$1:B16)+33),"") -> 0 | N19: =IFERROR(OFFSET(INDIRECT("'"&$K$2&"'!"&"C$"&ROWS($B$1:D24)),,COLUMNS($B$1:B16)+34),"") -> 0 | O19: =IFERROR(OFFSET(INDIRECT("'"&$K$2&"'!"&"C$"&ROWS($B$1:D24)),,COLUMNS($B$1:B16)+35),"") -> 0 | P19: =IFERROR(OFFSET(INDIRECT("'"&$K$2&"'!"&"C$"&ROWS($B$1:H24)),,COLUMNS($B$1:B16)+36),"") -> 0 | Q19: =IFERROR(OFFSET(INDIRECT("'"&$K$2&"'!"&"C$"&ROWS($B$1:I24)),,COLUMNS($B$1:B16)+37),"") -> 0 | R19: =IFERROR(OFFSET(INDIRECT("'"&$R$2&"'!"&"C$"&ROWS($B$1:B24)),,COLUMNS($B$1:B16)+31),"") -> 0 | S19: =IFERROR(OFFSET(INDIRECT("'"&$R$2&"'!"&"C$"&ROWS($B$1:B24)),,COLUMNS($B$1:B16)+32),"") -> 0 | T19: =IFERROR(OFFSET(INDIRECT("'"&$R$2&"'!"&"C$"&ROWS($B$1:C24)),,COLUMNS($B$1:B16)+33),"") -> 0 | U19: =IFERROR(OFFSET(INDIRECT("'"&$R$2&"'!"&"C$"&ROWS($B$1:D24)),,COLUMNS($B$1:B16)+34),"") -> 0 | V19: =IFERROR(OFFSET(INDIRECT("'"&$R$2&"'!"&"C$"&ROWS($B$1:D24)),,COLUMNS($B$1:B16)+35),"") -> 0 | W19: =IFERROR(OFFSET(INDIRECT("'"&$R$2&"'!"&"C$"&ROWS($B$1:H24)),,COLUMNS($B$1:B16)+36),"") -> 0 | X19: =IFERROR(OFFSET(INDIRECT("'"&$R$2&"'!"&"C$"&ROWS($B$1:I24)),,COLUMNS($B$1:B16)+37),"") -> 0 | Y19: =IFERROR(OFFSET(INDIRECT("'"&$Y$2&"'!"&"C$"&ROWS($B$1:B24)),,COLUMNS($B$1:B16)+31),"") -> 26 | Z19: =IFERROR(OFFSET(INDIRECT("'"&$Y$2&"'!"&"C$"&ROWS($B$1:B24)),,COLUMNS($B$1:B16)+32),"") -> 0 | AA19: =IFERROR(OFFSET(INDIRECT("'"&$Y$2&"'!"&"C$"&ROWS($B$1:C24)),,COLUMNS($B$1:B16)+33),"") -> 0 | AB19: =IFERROR(OFFSET(INDIRECT("'"&$Y$2&"'!"&"C$"&ROWS($B$1:D24)),,COLUMNS($B$1:B16)+34),"") -> 0 | AC19: =IFERROR(OFFSET(INDIRECT("'"&$Y$2&"'!"&"C$"&ROWS($B$1:D24)),,COLUMNS($B$1:B16)+35),"") -> 0 | AD19: =IFERROR(OFFSET(INDIRECT("'"&$Y$2&"'!"&"C$"&ROWS($B$1:H24)),,COLUMNS($B$1:B16)+36),"") -> 0 | AE19: =IFERROR(OFFSET(INDIRECT("'"&$Y$2&"'!"&"C$"&ROWS($B$1:I24)),,COLUMNS($B$1:B16)+37),"") -> 0 | AF19: =IFERROR(OFFSET(INDIRECT("'"&$AF$2&"'!"&"C$"&ROWS($B$1:B24)),,COLUMNS($B$1:B16)+31),"") -> 0 | AG19: =IFERROR(OFFSET(INDIRECT("'"&$AF$2&"'!"&"C$"&ROWS($B$1:B24)),,COLUMNS($B$1:B16)+32),"") -> 0 | AH19: =IFERROR(OFFSET(INDIRECT("'"&$AF$2&"'!"&"C$"&ROWS($B$1:C24)),,COLUMNS($B$1:B16)+33),"") -> 0 | AI19: =IFERROR(OFFSET(INDIRECT("'"&$AF$2&"'!"&"C$"&ROWS($B$1:D24)),,COLUMNS($B$1:B16)+34),"") -> 0 | AJ19: =IFERROR(OFFSET(INDIRECT("'"&$AF$2&"'!"&"C$"&ROWS($B$1:D24)),,COLUMNS($B$1:B16)+35),"") -> 0 | AK19: =IFERROR(OFFSET(INDIRECT("'"&$AF$2&"'!"&"C$"&ROWS($B$1:H24)),,COLUMNS($B$1:B16)+36),"") -> 0 | AL19: =IFERROR(OFFSET(INDIRECT("'"&$AF$2&"'!"&"C$"&ROWS($B$1:I24)),,COLUMNS($B$1:B16)+37),"") -> 0 | AM19: =IFERROR(OFFSET(INDIRECT("'"&$AM$2&"'!"&"C$"&ROWS($B$1:B24)),,COLUMNS($B$1:B16)+31),"") -> 26 | AN19: =IFERROR(OFFSET(INDIRECT("'"&$AM$2&"'!"&"C$"&ROWS($B$1:B24)),,COLUMNS($B$1:B16)+32),"") -> 0 | AO19: =IFERROR(OFFSET(INDIRECT("'"&$AM$2&"'!"&"C$"&ROWS($B$1:C24)),,COLUMNS($B$1:B16)+33),"") -> 0 | AP19: =IFERROR(OFFSET(INDIRECT("'"&$AM$2&"'!"&"C$"&ROWS($B$1:D24)),,COLUMNS($B$1:B16)+34),"") -> 0 | AQ19: =IFERROR(OFFSET(INDIRECT("'"&$AM$2&"'!"&"C$"&ROWS($B$1:D24)),,COLUMNS($B$1:B16)+35),"") -> 0 | AR19: =IFERROR(OFFSET(INDIRECT("'"&$AM$2&"'!"&"C$"&ROWS($B$1:H24)),,COLUMNS($B$1:B16)+36),"") -> 0 | AS19: =IFERROR(OFFSET(INDIRECT("'"&$AM$2&"'!"&"C$"&ROWS($B$1:I24)),,COLUMNS($B$1:B16)+37),"") -> 0 | AT19: =IFERROR(OFFSET(INDIRECT("'"&$AT$2&"'!"&"C$"&ROWS($B$1:B24)),,COLUMNS($B$1:B16)+31),"") -> 26 | AU19: =IFERROR(OFFSET(INDIRECT("'"&$AT$2&"'!"&"C$"&ROWS($B$1:B24)),,COLUMNS($B$1:B16)+32),"") -> 0 | AV19: =IFERROR(OFFSET(INDIRECT("'"&$AT$2&"'!"&"C$"&ROWS($B$1:C24)),,COLUMNS($B$1:B16)+33),"") -> 0 | AW19: =IFERROR(OFFSET(INDIRECT("'"&$AT$2&"'!"&"C$"&ROWS($B$1:D24)),,COLUMNS($B$1:B16)+34),"") -> 0 | AX19: =IFERROR(OFFSET(INDIRECT("'"&$AT$2&"'!"&"C$"&ROWS($B$1:D24)),,COLUMNS($B$1:B16)+35),"") -> 0 | AY19: =IFERROR(OFFSET(INDIRECT("'"&$AT$2&"'!"&"C$"&ROWS($B$1:H24)),,COLUMNS($B$1:B16)+36),"") -> 0 | AZ19: =IFERROR(OFFSET(INDIRECT("'"&$AT$2&"'!"&"C$"&ROWS($B$1:I24)),,COLUMNS($B$1:B16)+37),"") -> 0 | BA19: =IFERROR(OFFSET(INDIRECT("'"&$BA$2&"'!"&"C$"&ROWS($B$1:B24)),,COLUMNS($B$1:B16)+31),"") -> 26 | BB19: =IFERROR(OFFSET(INDIRECT("'"&$BA$2&"'!"&"C$"&ROWS($B$1:B24)),,COLUMNS($B$1:B16)+32),"") -> 0 | BC19: =IFERROR(OFFSET(INDIRECT("'"&$BA$2&"'!"&"C$"&ROWS($B$1:C24)),,COLUMNS($B$1:B16)+33),"") -> 0 | BD19: =IFERROR(OFFSET(INDIRECT("'"&$BA$2&"'!"&"C$"&ROWS($B$1:D24)),,COLUMNS($B$1:B16)+34),"") -> 0 | BE19: =IFERROR(OFFSET(INDIRECT("'"&$BA$2&"'!"&"C$"&ROWS($B$1:D24)),,COLUMNS($B$1:B16)+35),"") -> 0 | BF19: =IFERROR(OFFSET(INDIRECT("'"&$BA$2&"'!"&"C$"&ROWS($B$1:H24)),,COLUMNS($B$1:B16)+36),"") -> 0 | BG19: =IFERROR(OFFSET(INDIRECT("'"&$BA$2&"'!"&"C$"&ROWS($B$1:I24)),,COLUMNS($B$1:B16)+37),"") -> 0 | BH19: =IFERROR(OFFSET(INDIRECT("'"&$BH$2&"'!"&"C$"&ROWS($B$1:B24)),,COLUMNS($B$1:B16)+31),"") -> 26 | BI19: =IFERROR(OFFSET(INDIRECT("'"&$BH$2&"'!"&"C$"&ROWS($B$1:B24)),,COLUMNS($B$1:B16)+32),"") -> 0 | BJ19: =IFERROR(OFFSET(INDIRECT("'"&$BH$2&"'!"&"C$"&ROWS($B$1:C24)),,COLUMNS($B$1:B16)+33),"") -> 0 | BK19: =IFERROR(OFFSET(INDIRECT("'"&$BH$2&"'!"&"C$"&ROWS($B$1:D24)),,COLUMNS($B$1:B16)+34),"") -> 0 | BL19: =IFERROR(OFFSET(INDIRECT("'"&$BH$2&"'!"&"C$"&ROWS($B$1:D24)),,COLUMNS($B$1:B16)+35),"") -> 0 | BM19: =IFERROR(OFFSET(INDIRECT("'"&$BH$2&"'!"&"C$"&ROWS($B$1:H24)),,COLUMNS($B$1:B16)+36),"") -> 0 | BN19: =IFERROR(OFFSET(INDIRECT("'"&$BH$2&"'!"&"C$"&ROWS($B$1:I24)),,COLUMNS($B$1:B16)+37),"") -> 0 | BO19: =IFERROR(OFFSET(INDIRECT("'"&$BO$2&"'!"&"C$"&ROWS($B$1:B24)),,COLUMNS($B$1:B16)+31),"") -> 0 | BP19: =IFERROR(OFFSET(INDIRECT("'"&$BO$2&"'!"&"C$"&ROWS($B$1:B24)),,COLUMNS($B$1:B16)+32),"") -> 0 | BQ19: =IFERROR(OFFSET(INDIRECT("'"&$BO$2&"'!"&"C$"&ROWS($B$1:C24)),,COLUMNS($B$1:B16)+33),"") -> 0 | BR19: =IFERROR(OFFSET(INDIRECT("'"&$BO$2&"'!"&"C$"&ROWS($B$1:D24)),,COLUMNS($B$1:B16)+34),"") -> 0 | BS19: =IFERROR(OFFSET(INDIRECT("'"&$BO$2&"'!"&"C$"&ROWS($B$1:D24)),,COLUMNS($B$1:B16)+35),"") -> 0 | BT19: =IFERROR(OFFSET(INDIRECT("'"&$BO$2&"'!"&"C$"&ROWS($B$1:H24)),,COLUMNS($B$1:B16)+36),"") -> 0 | BU19: =IFERROR(OFFSET(INDIRECT("'"&$BO$2&"'!"&"C$"&ROWS($B$1:I24)),,COLUMNS($B$1:B16)+37),"") -> 0 | BV19: =IFERROR(OFFSET(INDIRECT("'"&$BV$2&"'!"&"C$"&ROWS($B$1:B24)),,COLUMNS($B$1:B16)+31),"") -> 26 | BW19: =IFERROR(OFFSET(INDIRECT("'"&$BV$2&"'!"&"C$"&ROWS($B$1:B24)),,COLUMNS($B$1:B16)+32),"") -> 0 | BX19: =IFERROR(OFFSET(INDIRECT("'"&$BV$2&"'!"&"C$"&ROWS($B$1:C24)),,COLUMNS($B$1:B16)+33),"") -> 0 | BY19: =IFERROR(OFFSET(INDIRECT("'"&$BV$2&"'!"&"C$"&ROWS($B$1:D24)),,COLUMNS($B$1:B16)+34),"") -> 0 | BZ19: =IFERROR(OFFSET(INDIRECT("'"&$BV$2&"'!"&"C$"&ROWS($B$1:D24)),,COLUMNS($B$1:B16)+35),"") -> 0 | CA19: =IFERROR(OFFSET(INDIRECT("'"&$BV$2&"'!"&"C$"&ROWS($B$1:H24)),,COLUMNS($B$1:B16)+36),"") -> 0 | CB19: =IFERROR(OFFSET(INDIRECT("'"&$BV$2&"'!"&"C$"&ROWS($B$1:I24)),,COLUMNS($B$1:B16)+37),"") -> 0 | CC19: =IFERROR(OFFSET(INDIRECT("'"&$CC$2&"'!"&"C$"&ROWS($B$1:B24)),,COLUMNS($B$1:B16)+31),"") -> 0 | CD19: =IFERROR(OFFSET(INDIRECT("'"&$CC$2&"'!"&"C$"&ROWS($B$1:B24)),,COLUMNS($B$1:B16)+32),"") -> 0 | CE19: =IFERROR(OFFSET(INDIRECT("'"&$CC$2&"'!"&"C$"&ROWS($B$1:C24)),,COLUMNS($B$1:B16)+33),"") -> 0 | CF19: =IFERROR(OFFSET(INDIRECT("'"&$CC$2&"'!"&"C$"&ROWS($B$1:D24)),,COLUMNS($B$1:B16)+34),"") -> 0 | CG19: =IFERROR(OFFSET(INDIRECT("'"&$CC$2&"'!"&"C$"&ROWS($B$1:D24)),,COLUMNS($B$1:B16)+35),"") -> 0 | CH19: =IFERROR(OFFSET(INDIRECT("'"&$CC$2&"'!"&"C$"&ROWS($B$1:H24)),,COLUMNS($B$1:B16)+36),"") -> 0 | CI19: =IFERROR(OFFSET(INDIRECT("'"&$CC$2&"'!"&"C$"&ROWS($B$1:I24)),,COLUMNS($B$1:B16)+37),"") -> 0 | CJ19: =IFERROR(OFFSET(INDIRECT("'"&$CJ$2&"'!"&"C$"&ROWS($B$1:B24)),,COLUMNS($B$1:B16)+31),"") -> 26 | CK19: =IFERROR(OFFSET(INDIRECT("'"&$CJ$2&"'!"&"C$"&ROWS($B$1:B24)),,COLUMNS($B$1:B16)+32),"") -> 0 | CL19: =IFERROR(OFFSET(INDIRECT("'"&$CJ$2&"'!"&"C$"&ROWS($B$1:C24)),,COLUMNS($B$1:B16)+33),"") -> 0 | CM19: =IFERROR(OFFSET(INDIRECT("'"&$CJ$2&"'!"&"C$"&ROWS($B$1:D24)),,COLUMNS($B$1:B16)+34),"") -> 0 | CN19: =IFERROR(OFFSET(INDIRECT("'"&$CJ$2&"'!"&"C$"&ROWS($B$1:D24)),,COLUMNS($B$1:B16)+35),"") -> 0 | CO19: =IFERROR(OFFSET(INDIRECT("'"&$CJ$2&"'!"&"C$"&ROWS($B$1:H24)),,COLUMNS($B$1:B16)+36),"") -> 0 | CP19: =IFERROR(OFFSET(INDIRECT("'"&$CJ$2&"'!"&"C$"&ROWS($B$1:I24)),,COLUMNS($B$1:B16)+37),"") -> 0 | CR19: 450 | CS19: 1009.038462 | CT19: 346.1538462 | CU19: 1355.192308
A20: جونيبالى سرينيفاسولو | B20: 40.2 | C20: 20 | D20: 0 | E20: 0 | F20: 0 | G20: 60.2 | I20: 2019-03-11 | K20: =IFERROR(OFFSET(INDIRECT("'"&$K$2&"'!"&"C$"&ROWS($B$1:B25)),,COLUMNS($B$1:B17)+31),"") -> 26 | L20: =IFERROR(OFFSET(INDIRECT("'"&$K$2&"'!"&"C$"&ROWS($B$1:B25)),,COLUMNS($B$1:B17)+32),"") -> 0 | M20: =IFERROR(OFFSET(INDIRECT("'"&$K$2&"'!"&"C$"&ROWS($B$1:C25)),,COLUMNS($B$1:B17)+33),"") -> 0 | N20: =IFERROR(OFFSET(INDIRECT("'"&$K$2&"'!"&"C$"&ROWS($B$1:D25)),,COLUMNS($B$1:B17)+34),"") -> 0 | O20: =IFERROR(OFFSET(INDIRECT("'"&$K$2&"'!"&"C$"&ROWS($B$1:D25)),,COLUMNS($B$1:B17)+35),"") -> 0 | P20: =IFERROR(OFFSET(INDIRECT("'"&$K$2&"'!"&"C$"&ROWS($B$1:H25)),,COLUMNS($B$1:B17)+36),"") -> 0 | Q20: =IFERROR(OFFSET(INDIRECT("'"&$K$2&"'!"&"C$"&ROWS($B$1:I25)),,COLUMNS($B$1:B17)+37),"") -> 0 | R20: =IFERROR(OFFSET(INDIRECT("'"&$R$2&"'!"&"C$"&ROWS($B$1:B25)),,COLUMNS($B$1:B17)+31),"") -> 0 | S20: =IFERROR(OFFSET(INDIRECT("'"&$R$2&"'!"&"C$"&ROWS($B$1:B25)),,COLUMNS($B$1:B17)+32),"") -> 0 | T20: =IFERROR(OFFSET(INDIRECT("'"&$R$2&"'!"&"C$"&ROWS($B$1:C25)),,COLUMNS($B$1:B17)+33),"") -> 0 | U20: =IFERROR(OFFSET(INDIRECT("'"&$R$2&"'!"&"C$"&ROWS($B$1:D25)),,COLUMNS($B$1:B17)+34),"") -> 0 | V20: =IFERROR(OFFSET(INDIRECT("'"&$R$2&"'!"&"C$"&ROWS($B$1:D25)),,COLUMNS($B$1:B17)+35),"") -> 0 | W20: =IFERROR(OFFSET(INDIRECT("'"&$R$2&"'!"&"C$"&ROWS($B$1:H25)),,COLUMNS($B$1:B17)+36),"") -> 0 | X20: =IFERROR(OFFSET(INDIRECT("'"&$R$2&"'!"&"C$"&ROWS($B$1:I25)),,COLUMNS($B$1:B17)+37),"") -> 0 | Y20: =IFERROR(OFFSET(INDIRECT("'"&$Y$2&"'!"&"C$"&ROWS($B$1:B25)),,COLUMNS($B$1:B17)+31),"") -> 26 | Z20: =IFERROR(OFFSET(INDIRECT("'"&$Y$2&"'!"&"C$"&ROWS($B$1:B25)),,COLUMNS($B$1:B17)+32),"") -> 0 | AA20: =IFERROR(OFFSET(INDIRECT("'"&$Y$2&"'!"&"C$"&ROWS($B$1:C25)),,COLUMNS($B$1:B17)+33),"") -> 0 | AB20: =IFERROR(OFFSET(INDIRECT("'"&$Y$2&"'!"&"C$"&ROWS($B$1:D25)),,COLUMNS($B$1:B17)+34),"") -> 0 | AC20: =IFERROR(OFFSET(INDIRECT("'"&$Y$2&"'!"&"C$"&ROWS($B$1:D25)),,COLUMNS($B$1:B17)+35),"") -> 0 | AD20: =IFERROR(OFFSET(INDIRECT("'"&$Y$2&"'!"&"C$"&ROWS($B$1:H25)),,COLUMNS($B$1:B17)+36),"") -> 0 | AE20: =IFERROR(OFFSET(INDIRECT("'"&$Y$2&"'!"&"C$"&ROWS($B$1:I25)),,COLUMNS($B$1:B17)+37),"") -> 0 | AF20: =IFERROR(OFFSET(INDIRECT("'"&$AF$2&"'!"&"C$"&ROWS($B$1:B25)),,COLUMNS($B$1:B17)+31),"") -> 0 | AG20: =IFERROR(OFFSET(INDIRECT("'"&$AF$2&"'!"&"C$"&ROWS($B$1:B25)),,COLUMNS($B$1:B17)+32),"") -> 0 | AH20: =IFERROR(OFFSET(INDIRECT("'"&$AF$2&"'!"&"C$"&ROWS($B$1:C25)),,COLUMNS($B$1:B17)+33),"") -> 0 | AI20: =IFERROR(OFFSET(INDIRECT("'"&$AF$2&"'!"&"C$"&ROWS($B$1:D25)),,COLUMNS($B$1:B17)+34),"") -> 0 | AJ20: =IFERROR(OFFSET(INDIRECT("'"&$AF$2&"'!"&"C$"&ROWS($B$1:D25)),,COLUMNS($B$1:B17)+35),"") -> 0 | AK20: =IFERROR(OFFSET(INDIRECT("'"&$AF$2&"'!"&"C$"&ROWS($B$1:H25)),,COLUMNS($B$1:B17)+36),"") -> 0 | AL20: =IFERROR(OFFSET(INDIRECT("'"&$AF$2&"'!"&"C$"&ROWS($B$1:I25)),,COLUMNS($B$1:B17)+37),"") -> 0 | AM20: =IFERROR(OFFSET(INDIRECT("'"&$AM$2&"'!"&"C$"&ROWS($B$1:B25)),,COLUMNS($B$1:B17)+31),"") -> 26 | AN20: =IFERROR(OFFSET(INDIRECT("'"&$AM$2&"'!"&"C$"&ROWS($B$1:B25)),,COLUMNS($B$1:B17)+32),"") -> 0 | AO20: =IFERROR(OFFSET(INDIRECT("'"&$AM$2&"'!"&"C$"&ROWS($B$1:C25)),,COLUMNS($B$1:B17)+33),"") -> 0 | AP20: =IFERROR(OFFSET(INDIRECT("'"&$AM$2&"'!"&"C$"&ROWS($B$1:D25)),,COLUMNS($B$1:B17)+34),"") -> 0 | AQ20: =IFERROR(OFFSET(INDIRECT("'"&$AM$2&"'!"&"C$"&ROWS($B$1:D25)),,COLUMNS($B$1:B17)+35),"") -> 0 | AR20: =IFERROR(OFFSET(INDIRECT("'"&$AM$2&"'!"&"C$"&ROWS($B$1:H25)),,COLUMNS($B$1:B17)+36),"") -> 0 | AS20: =IFERROR(OFFSET(INDIRECT("'"&$AM$2&"'!"&"C$"&ROWS($B$1:I25)),,COLUMNS($B$1:B17)+37),"") -> 0 | AT20: =IFERROR(OFFSET(INDIRECT("'"&$AT$2&"'!"&"C$"&ROWS($B$1:B25)),,COLUMNS($B$1:B17)+31),"") -> 26 | AU20: =IFERROR(OFFSET(INDIRECT("'"&$AT$2&"'!"&"C$"&ROWS($B$1:B25)),,COLUMNS($B$1:B17)+32),"") -> 0 | AV20: =IFERROR(OFFSET(INDIRECT("'"&$AT$2&"'!"&"C$"&ROWS($B$1:C25)),,COLUMNS($B$1:B17)+33),"") -> 0 | AW20: =IFERROR(OFFSET(INDIRECT("'"&$AT$2&"'!"&"C$"&ROWS($B$1:D25)),,COLUMNS($B$1:B17)+34),"") -> 0 | AX20: =IFERROR(OFFSET(INDIRECT("'"&$AT$2&"'!"&"C$"&ROWS($B$1:D25)),,COLUMNS($B$1:B17)+35),"") -> 0 | AY20: =IFERROR(OFFSET(INDIRECT("'"&$AT$2&"'!"&"C$"&ROWS($B$1:H25)),,COLUMNS($B$1:B17)+36),"") -> 0 | AZ20: =IFERROR(OFFSET(INDIRECT("'"&$AT$2&"'!"&"C$"&ROWS($B$1:I25)),,COLUMNS($B$1:B17)+37),"") -> 0 | BA20: =IFERROR(OFFSET(INDIRECT("'"&$BA$2&"'!"&"C$"&ROWS($B$1:B25)),,COLUMNS($B$1:B17)+31),"") -> 26 | BB20: =IFERROR(OFFSET(INDIRECT("'"&$BA$2&"'!"&"C$"&ROWS($B$1:B25)),,COLUMNS($B$1:B17)+32),"") -> 0 | BC20: =IFERROR(OFFSET(INDIRECT("'"&$BA$2&"'!"&"C$"&ROWS($B$1:C25)),,COLUMNS($B$1:B17)+33),"") -> 0 | BD20: =IFERROR(OFFSET(INDIRECT("'"&$BA$2&"'!"&"C$"&ROWS($B$1:D25)),,COLUMNS($B$1:B17)+34),"") -> 0 | BE20: =IFERROR(OFFSET(INDIRECT("'"&$BA$2&"'!"&"C$"&ROWS($B$1:D25)),,COLUMNS($B$1:B17)+35),"") -> 0 | BF20: =IFERROR(OFFSET(INDIRECT("'"&$BA$2&"'!"&"C$"&ROWS($B$1:H25)),,COLUMNS($B$1:B17)+36),"") -> 0 | BG20: =IFERROR(OFFSET(INDIRECT("'"&$BA$2&"'!"&"C$"&ROWS($B$1:I25)),,COLUMNS($B$1:B17)+37),"") -> 0 | BH20: =IFERROR(OFFSET(INDIRECT("'"&$BH$2&"'!"&"C$"&ROWS($B$1:B25)),,COLUMNS($B$1:B17)+31),"") -> 26 | BI20: =IFERROR(OFFSET(INDIRECT("'"&$BH$2&"'!"&"C$"&ROWS($B$1:B25)),,COLUMNS($B$1:B17)+32),"") -> 0 | BJ20: =IFERROR(OFFSET(INDIRECT("'"&$BH$2&"'!"&"C$"&ROWS($B$1:C25)),,COLUMNS($B$1:B17)+33),"") -> 0 | BK20: =IFERROR(OFFSET(INDIRECT("'"&$BH$2&"'!"&"C$"&ROWS($B$1:D25)),,COLUMNS($B$1:B17)+34),"") -> 0 | BL20: =IFERROR(OFFSET(INDIRECT("'"&$BH$2&"'!"&"C$"&ROWS($B$1:D25)),,COLUMNS($B$1:B17)+35),"") -> 0 | BM20: =IFERROR(OFFSET(INDIRECT("'"&$BH$2&"'!"&"C$"&ROWS($B$1:H25)),,COLUMNS($B$1:B17)+36),"") -> 0 | BN20: =IFERROR(OFFSET(INDIRECT("'"&$BH$2&"'!"&"C$"&ROWS($B$1:I25)),,COLUMNS($B$1:B17)+37),"") -> 0 | BO20: =IFERROR(OFFSET(INDIRECT("'"&$BO$2&"'!"&"C$"&ROWS($B$1:B25)),,COLUMNS($B$1:B17)+31),"") -> 0 | BP20: =IFERROR(OFFSET(INDIRECT("'"&$BO$2&"'!"&"C$"&ROWS($B$1:B25)),,COLUMNS($B$1:B17)+32),"") -> 0 | BQ20: =IFERROR(OFFSET(INDIRECT("'"&$BO$2&"'!"&"C$"&ROWS($B$1:C25)),,COLUMNS($B$1:B17)+33),"") -> 0 | BR20: =IFERROR(OFFSET(INDIRECT("'"&$BO$2&"'!"&"C$"&ROWS($B$1:D25)),,COLUMNS($B$1:B17)+34),"") -> 0 | BS20: =IFERROR(OFFSET(INDIRECT("'"&$BO$2&"'!"&"C$"&ROWS($B$1:D25)),,COLUMNS($B$1:B17)+35),"") -> 0 | BT20: =IFERROR(OFFSET(INDIRECT("'"&$BO$2&"'!"&"C$"&ROWS($B$1:H25)),,COLUMNS($B$1:B17)+36),"") -> 0 | BU20: =IFERROR(OFFSET(INDIRECT("'"&$BO$2&"'!"&"C$"&ROWS($B$1:I25)),,COLUMNS($B$1:B17)+37),"") -> 0 | BV20: =IFERROR(OFFSET(INDIRECT("'"&$BV$2&"'!"&"C$"&ROWS($B$1:B25)),,COLUMNS($B$1:B17)+31),"") -> 26 | BW20: =IFERROR(OFFSET(INDIRECT("'"&$BV$2&"'!"&"C$"&ROWS($B$1:B25)),,COLUMNS($B$1:B17)+32),"") -> 0 | BX20: =IFERROR(OFFSET(INDIRECT("'"&$BV$2&"'!"&"C$"&ROWS($B$1:C25)),,COLUMNS($B$1:B17)+33),"") -> 0 | BY20: =IFERROR(OFFSET(INDIRECT("'"&$BV$2&"'!"&"C$"&ROWS($B$1:D25)),,COLUMNS($B$1:B17)+34),"") -> 0 | BZ20: =IFERROR(OFFSET(INDIRECT("'"&$BV$2&"'!"&"C$"&ROWS($B$1:D25)),,COLUMNS($B$1:B17)+35),"") -> 0 | CA20: =IFERROR(OFFSET(INDIRECT("'"&$BV$2&"'!"&"C$"&ROWS($B$1:H25)),,COLUMNS($B$1:B17)+36),"") -> 0 | CB20: =IFERROR(OFFSET(INDIRECT("'"&$BV$2&"'!"&"C$"&ROWS($B$1:I25)),,COLUMNS($B$1:B17)+37),"") -> 0 | CC20: =IFERROR(OFFSET(INDIRECT("'"&$CC$2&"'!"&"C$"&ROWS($B$1:B25)),,COLUMNS($B$1:B17)+31),"") -> 0 | CD20: =IFERROR(OFFSET(INDIRECT("'"&$CC$2&"'!"&"C$"&ROWS($B$1:B25)),,COLUMNS($B$1:B17)+32),"") -> 0 | CE20: =IFERROR(OFFSET(INDIRECT("'"&$CC$2&"'!"&"C$"&ROWS($B$1:C25)),,COLUMNS($B$1:B17)+33),"") -> 0 | CF20: =IFERROR(OFFSET(INDIRECT("'"&$CC$2&"'!"&"C$"&ROWS($B$1:D25)),,COLUMNS($B$1:B17)+34),"") -> 0 | CG20: =IFERROR(OFFSET(INDIRECT("'"&$CC$2&"'!"&"C$"&ROWS($B$1:D25)),,COLUMNS($B$1:B17)+35),"") -> 0 | CH20: =IFERROR(OFFSET(INDIRECT("'"&$CC$2&"'!"&"C$"&ROWS($B$1:H25)),,COLUMNS($B$1:B17)+36),"") -> 0 | CI20: =IFERROR(OFFSET(INDIRECT("'"&$CC$2&"'!"&"C$"&ROWS($B$1:I25)),,COLUMNS($B$1:B17)+37),"") -> 0 | CJ20: =IFERROR(OFFSET(INDIRECT("'"&$CJ$2&"'!"&"C$"&ROWS($B$1:B25)),,COLUMNS($B$1:B17)+31),"") -> 26 | CK20: =IFERROR(OFFSET(INDIRECT("'"&$CJ$2&"'!"&"C$"&ROWS($B$1:B25)),,COLUMNS($B$1:B17)+32),"") -> 0 | CL20: =IFERROR(OFFSET(INDIRECT("'"&$CJ$2&"'!"&"C$"&ROWS($B$1:C25)),,COLUMNS($B$1:B17)+33),"") -> 0 | CM20: =IFERROR(OFFSET(INDIRECT("'"&$CJ$2&"'!"&"C$"&ROWS($B$1:D25)),,COLUMNS($B$1:B17)+34),"") -> 0 | CN20: =IFERROR(OFFSET(INDIRECT("'"&$CJ$2&"'!"&"C$"&ROWS($B$1:D25)),,COLUMNS($B$1:B17)+35),"") -> 0 | CO20: =IFERROR(OFFSET(INDIRECT("'"&$CJ$2&"'!"&"C$"&ROWS($B$1:H25)),,COLUMNS($B$1:B17)+36),"") -> 0 | CP20: =IFERROR(OFFSET(INDIRECT("'"&$CJ$2&"'!"&"C$"&ROWS($B$1:I25)),,COLUMNS($B$1:B17)+37),"") -> 0 | CR20: 250 | CS20: 386.5384615 | CT20: 192.3076923 | CU20: 578.8461538
A21: سانجييفا ريدى باسى ريدى | B21: 27.5 | C21: 20 | D21: 0 | E21: 0 | F21: 0 | G21: 47.5 | I21: 2017-01-23 | K21: =IFERROR(OFFSET(INDIRECT("'"&$K$2&"'!"&"C$"&ROWS($B$1:B26)),,COLUMNS($B$1:B18)+31),"") -> 26 | L21: =IFERROR(OFFSET(INDIRECT("'"&$K$2&"'!"&"C$"&ROWS($B$1:B26)),,COLUMNS($B$1:B18)+32),"") -> 0 | M21: =IFERROR(OFFSET(INDIRECT("'"&$K$2&"'!"&"C$"&ROWS($B$1:C26)),,COLUMNS($B$1:B18)+33),"") -> 0 | N21: =IFERROR(OFFSET(INDIRECT("'"&$K$2&"'!"&"C$"&ROWS($B$1:D26)),,COLUMNS($B$1:B18)+34),"") -> 0 | O21: =IFERROR(OFFSET(INDIRECT("'"&$K$2&"'!"&"C$"&ROWS($B$1:D26)),,COLUMNS($B$1:B18)+35),"") -> 0 | P21: =IFERROR(OFFSET(INDIRECT("'"&$K$2&"'!"&"C$"&ROWS($B$1:H26)),,COLUMNS($B$1:B18)+36),"") -> 0 | Q21: =IFERROR(OFFSET(INDIRECT("'"&$K$2&"'!"&"C$"&ROWS($B$1:I26)),,COLUMNS($B$1:B18)+37),"") -> 0 | R21: =IFERROR(OFFSET(INDIRECT("'"&$R$2&"'!"&"C$"&ROWS($B$1:B26)),,COLUMNS($B$1:B18)+31),"") -> 0 | S21: =IFERROR(OFFSET(INDIRECT("'"&$R$2&"'!"&"C$"&ROWS($B$1:B26)),,COLUMNS($B$1:B18)+32),"") -> 0 | T21: =IFERROR(OFFSET(INDIRECT("'"&$R$2&"'!"&"C$"&ROWS($B$1:C26)),,COLUMNS($B$1:B18)+33),"") -> 0 | U21: =IFERROR(OFFSET(INDIRECT("'"&$R$2&"'!"&"C$"&ROWS($B$1:D26)),,COLUMNS($B$1:B18)+34),"") -> 0 | V21: =IFERROR(OFFSET(INDIRECT("'"&$R$2&"'!"&"C$"&ROWS($B$1:D26)),,COLUMNS($B$1:B18)+35),"") -> 0 | W21: =IFERROR(OFFSET(INDIRECT("'"&$R$2&"'!"&"C$"&ROWS($B$1:H26)),,COLUMNS($B$1:B18)+36),"") -> 0 | X21: =IFERROR(OFFSET(INDIRECT("'"&$R$2&"'!"&"C$"&ROWS($B$1:I26)),,COLUMNS($B$1:B18)+37),"") -> 0 | Y21: =IFERROR(OFFSET(INDIRECT("'"&$Y$2&"'!"&"C$"&ROWS($B$1:B26)),,COLUMNS($B$1:B18)+31),"") -> 26 | Z21: =IFERROR(OFFSET(INDIRECT("'"&$Y$2&"'!"&"C$"&ROWS($B$1:B26)),,COLUMNS($B$1:B18)+32),"") -> 0 | AA21: =IFERROR(OFFSET(INDIRECT("'"&$Y$2&"'!"&"C$"&ROWS($B$1:C26)),,COLUMNS($B$1:B18)+33),"") -> 0 | AB21: =IFERROR(OFFSET(INDIRECT("'"&$Y$2&"'!"&"C$"&ROWS($B$1:D26)),,COLUMNS($B$1:B18)+34),"") -> 0 | AC21: =IFERROR(OFFSET(INDIRECT("'"&$Y$2&"'!"&"C$"&ROWS($B$1:D26)),,COLUMNS($B$1:B18)+35),"") -> 0 | AD21: =IFERROR(OFFSET(INDIRECT("'"&$Y$2&"'!"&"C$"&ROWS($B$1:H26)),,COLUMNS($B$1:B18)+36),"") -> 0 | AE21: =IFERROR(OFFSET(INDIRECT("'"&$Y$2&"'!"&"C$"&ROWS($B$1:I26)),,COLUMNS($B$1:B18)+37),"") -> 0 | AF21: =IFERROR(OFFSET(INDIRECT("'"&$AF$2&"'!"&"C$"&ROWS($B$1:B26)),,COLUMNS($B$1:B18)+31),"") -> 0 | AG21: =IFERROR(OFFSET(INDIRECT("'"&$AF$2&"'!"&"C$"&ROWS($B$1:B26)),,COLUMNS($B$1:B18)+32),"") -> 0 | AH21: =IFERROR(OFFSET(INDIRECT("'"&$AF$2&"'!"&"C$"&ROWS($B$1:C26)),,COLUMNS($B$1:B18)+33),"") -> 0 | AI21: =IFERROR(OFFSET(INDIRECT("'"&$AF$2&"'!"&"C$"&ROWS($B$1:D26)),,COLUMNS($B$1:B18)+34),"") -> 0 | AJ21: =IFERROR(OFFSET(INDIRECT("'"&$AF$2&"'!"&"C$"&ROWS($B$1:D26)),,COLUMNS($B$1:B18)+35),"") -> 0 | AK21: =IFERROR(OFFSET(INDIRECT("'"&$AF$2&"'!"&"C$"&ROWS($B$1:H26)),,COLUMNS($B$1:B18)+36),"") -> 0 | AL21: =IFERROR(OFFSET(INDIRECT("'"&$AF$2&"'!"&"C$"&ROWS($B$1:I26)),,COLUMNS($B$1:B18)+37),"") -> 0 | AM21: =IFERROR(OFFSET(INDIRECT("'"&$AM$2&"'!"&"C$"&ROWS($B$1:B26)),,COLUMNS($B$1:B18)+31),"") -> 26 | AN21: =IFERROR(OFFSET(INDIRECT("'"&$AM$2&"'!"&"C$"&ROWS($B$1:B26)),,COLUMNS($B$1:B18)+32),"") -> 0 | AO21: =IFERROR(OFFSET(INDIRECT("'"&$AM$2&"'!"&"C$"&ROWS($B$1:C26)),,COLUMNS($B$1:B18)+33),"") -> 0 | AP21: =IFERROR(OFFSET(INDIRECT("'"&$AM$2&"'!"&"C$"&ROWS($B$1:D26)),,COLUMNS($B$1:B18)+34),"") -> 0 | AQ21: =IFERROR(OFFSET(INDIRECT("'"&$AM$2&"'!"&"C$"&ROWS($B$1:D26)),,COLUMNS($B$1:B18)+35),"") -> 0 | AR21: =IFERROR(OFFSET(INDIRECT("'"&$AM$2&"'!"&"C$"&ROWS($B$1:H26)),,COLUMNS($B$1:B18)+36),"") -> 0 | AS21: =IFERROR(OFFSET(INDIRECT("'"&$AM$2&"'!"&"C$"&ROWS($B$1:I26)),,COLUMNS($B$1:B18)+37),"") -> 0 | AT21: =IFERROR(OFFSET(INDIRECT("'"&$AT$2&"'!"&"C$"&ROWS($B$1:B26)),,COLUMNS($B$1:B18)+31),"") -> 26 | AU21: =IFERROR(OFFSET(INDIRECT("'"&$AT$2&"'!"&"C$"&ROWS($B$1:B26)),,COLUMNS($B$1:B18)+32),"") -> 0 | AV21: =IFERROR(OFFSET(INDIRECT("'"&$AT$2&"'!"&"C$"&ROWS($B$1:C26)),,COLUMNS($B$1:B18)+33),"") -> 0 | AW21: =IFERROR(OFFSET(INDIRECT("'"&$AT$2&"'!"&"C$"&ROWS($B$1:D26)),,COLUMNS($B$1:B18)+34),"") -> 0 | AX21: =IFERROR(OFFSET(INDIRECT("'"&$AT$2&"'!"&"C$"&ROWS($B$1:D26)),,COLUMNS($B$1:B18)+35),"") -> 0 | AY21: =IFERROR(OFFSET(INDIRECT("'"&$AT$2&"'!"&"C$"&ROWS($B$1:H26)),,COLUMNS($B$1:B18)+36),"") -> 0 | AZ21: =IFERROR(OFFSET(INDIRECT("'"&$AT$2&"'!"&"C$"&ROWS($B$1:I26)),,COLUMNS($B$1:B18)+37),"") -> 0 | BA21: =IFERROR(OFFSET(INDIRECT("'"&$BA$2&"'!"&"C$"&ROWS($B$1:B26)),,COLUMNS($B$1:B18)+31),"") -> 26 | BB21: =IFERROR(OFFSET(INDIRECT("'"&$BA$2&"'!"&"C$"&ROWS($B$1:B26)),,COLUMNS($B$1:B18)+32),"") -> 0 | BC21: =IFERROR(OFFSET(INDIRECT("'"&$BA$2&"'!"&"C$"&ROWS($B$1:C26)),,COLUMNS($B$1:B18)+33),"") -> 0 | BD21: =IFERROR(OFFSET(INDIRECT("'"&$BA$2&"'!"&"C$"&ROWS($B$1:D26)),,COLUMNS($B$1:B18)+34),"") -> 0 | BE21: =IFERROR(OFFSET(INDIRECT("'"&$BA$2&"'!"&"C$"&ROWS($B$1:D26)),,COLUMNS($B$1:B18)+35),"") -> 0 | BF21: =IFERROR(OFFSET(INDIRECT("'"&$BA$2&"'!"&"C$"&ROWS($B$1:H26)),,COLUMNS($B$1:B18)+36),"") -> 0 | BG21: =IFERROR(OFFSET(INDIRECT("'"&$BA$2&"'!"&"C$"&ROWS($B$1:I26)),,COLUMNS($B$1:B18)+37),"") -> 0 | BH21: =IFERROR(OFFSET(INDIRECT("'"&$BH$2&"'!"&"C$"&ROWS($B$1:B26)),,COLUMNS($B$1:B18)+31),"") -> 26 | BI21: =IFERROR(OFFSET(INDIRECT("'"&$BH$2&"'!"&"C$"&ROWS($B$1:B26)),,COLUMNS($B$1:B18)+32),"") -> 0 | BJ21: =IFERROR(OFFSET(INDIRECT("'"&$BH$2&"'!"&"C$"&ROWS($B$1:C26)),,COLUMNS($B$1:B18)+33),"") -> 0 | BK21: =IFERROR(OFFSET(INDIRECT("'"&$BH$2&"'!"&"C$"&ROWS($B$1:D26)),,COLUMNS($B$1:B18)+34),"") -> 0 | BL21: =IFERROR(OFFSET(INDIRECT("'"&$BH$2&"'!"&"C$"&ROWS($B$1:D26)),,COLUMNS($B$1:B18)+35),"") -> 0 | BM21: =IFERROR(OFFSET(INDIRECT("'"&$BH$2&"'!"&"C$"&ROWS($B$1:H26)),,COLUMNS($B$1:B18)+36),"") -> 0 | BN21: =IFERROR(OFFSET(INDIRECT("'"&$BH$2&"'!"&"C$"&ROWS($B$1:I26)),,COLUMNS($B$1:B18)+37),"") -> 0 | BO21: =IFERROR(OFFSET(INDIRECT("'"&$BO$2&"'!"&"C$"&ROWS($B$1:B26)),,COLUMNS($B$1:B18)+31),"") -> 0 | BP21: =IFERROR(OFFSET(INDIRECT("'"&$BO$2&"'!"&"C$"&ROWS($B$1:B26)),,COLUMNS($B$1:B18)+32),"") -> 0 | BQ21: =IFERROR(OFFSET(INDIRECT("'"&$BO$2&"'!"&"C$"&ROWS($B$1:C26)),,COLUMNS($B$1:B18)+33),"") -> 0 | BR21: =IFERROR(OFFSET(INDIRECT("'"&$BO$2&"'!"&"C$"&ROWS($B$1:D26)),,COLUMNS($B$1:B18)+34),"") -> 0 | BS21: =IFERROR(OFFSET(INDIRECT("'"&$BO$2&"'!"&"C$"&ROWS($B$1:D26)),,COLUMNS($B$1:B18)+35),"") -> 0 | BT21: =IFERROR(OFFSET(INDIRECT("'"&$BO$2&"'!"&"C$"&ROWS($B$1:H26)),,COLUMNS($B$1:B18)+36),"") -> 0 | BU21: =IFERROR(OFFSET(INDIRECT("'"&$BO$2&"'!"&"C$"&ROWS($B$1:I26)),,COLUMNS($B$1:B18)+37),"") -> 0 | BV21: =IFERROR(OFFSET(INDIRECT("'"&$BV$2&"'!"&"C$"&ROWS($B$1:B26)),,COLUMNS($B$1:B18)+31),"") -> 26 | BW21: =IFERROR(OFFSET(INDIRECT("'"&$BV$2&"'!"&"C$"&ROWS($B$1:B26)),,COLUMNS($B$1:B18)+32),"") -> 0 | BX21: =IFERROR(OFFSET(INDIRECT("'"&$BV$2&"'!"&"C$"&ROWS($B$1:C26)),,COLUMNS($B$1:B18)+33),"") -> 0 | BY21: =IFERROR(OFFSET(INDIRECT("'"&$BV$2&"'!"&"C$"&ROWS($B$1:D26)),,COLUMNS($B$1:B18)+34),"") -> 0 | BZ21: =IFERROR(OFFSET(INDIRECT("'"&$BV$2&"'!"&"C$"&ROWS($B$1:D26)),,COLUMNS($B$1:B18)+35),"") -> 0 | CA21: =IFERROR(OFFSET(INDIRECT("'"&$BV$2&"'!"&"C$"&ROWS($B$1:H26)),,COLUMNS($B$1:B18)+36),"") -> 0 | CB21: =IFERROR(OFFSET(INDIRECT("'"&$BV$2&"'!"&"C$"&ROWS($B$1:I26)),,COLUMNS($B$1:B18)+37),"") -> 0 | CC21: =IFERROR(OFFSET(INDIRECT("'"&$CC$2&"'!"&"C$"&ROWS($B$1:B26)),,COLUMNS($B$1:B18)+31),"") -> 0 | CD21: =IFERROR(OFFSET(INDIRECT("'"&$CC$2&"'!"&"C$"&ROWS($B$1:B26)),,COLUMNS($B$1:B18)+32),"") -> 0 | CE21: =IFERROR(OFFSET(INDIRECT("'"&$CC$2&"'!"&"C$"&ROWS($B$1:C26)),,COLUMNS($B$1:B18)+33),"") -> 0 | CF21: =IFERROR(OFFSET(INDIRECT("'"&$CC$2&"'!"&"C$"&ROWS($B$1:D26)),,COLUMNS($B$1:B18)+34),"") -> 0 | CG21: =IFERROR(OFFSET(INDIRECT("'"&$CC$2&"'!"&"C$"&ROWS($B$1:D26)),,COLUMNS($B$1:B18)+35),"") -> 0 | CH21: =IFERROR(OFFSET(INDIRECT("'"&$CC$2&"'!"&"C$"&ROWS($B$1:H26)),,COLUMNS($B$1:B18)+36),"") -> 0 | CI21: =IFERROR(OFFSET(INDIRECT("'"&$CC$2&"'!"&"C$"&ROWS($B$1:I26)),,COLUMNS($B$1:B18)+37),"") -> 0 | CJ21: =IFERROR(OFFSET(INDIRECT("'"&$CJ$2&"'!"&"C$"&ROWS($B$1:B26)),,COLUMNS($B$1:B18)+31),"") -> 26 | CK21: =IFERROR(OFFSET(INDIRECT("'"&$CJ$2&"'!"&"C$"&ROWS($B$1:B26)),,COLUMNS($B$1:B18)+32),"") -> 0 | CL21: =IFERROR(OFFSET(INDIRECT("'"&$CJ$2&"'!"&"C$"&ROWS($B$1:C26)),,COLUMNS($B$1:B18)+33),"") -> 0 | CM21: =IFERROR(OFFSET(INDIRECT("'"&$CJ$2&"'!"&"C$"&ROWS($B$1:D26)),,COLUMNS($B$1:B18)+34),"") -> 0 | CN21: =IFERROR(OFFSET(INDIRECT("'"&$CJ$2&"'!"&"C$"&ROWS($B$1:D26)),,COLUMNS($B$1:B18)+35),"") -> 0 | CO21: =IFERROR(OFFSET(INDIRECT("'"&$CJ$2&"'!"&"C$"&ROWS($B$1:H26)),,COLUMNS($B$1:B18)+36),"") -> 0 | CP21: =IFERROR(OFFSET(INDIRECT("'"&$CJ$2&"'!"&"C$"&ROWS($B$1:I26)),,COLUMNS($B$1:B18)+37),"") -> 0 | CR21: 300 | CS21: 317.3076923 | CT21: 230.7692308 | CU21: 548.0769231
A22: ماسودير رحمن | B22: 57 | C22: 20 | D22: 0 | E22: 0 | F22: 0 | G22: 77 | K22: =IFERROR(OFFSET(INDIRECT("'"&$K$2&"'!"&"C$"&ROWS($B$1:B27)),,COLUMNS($B$1:B19)+31),"") -> 26 | L22: =IFERROR(OFFSET(INDIRECT("'"&$K$2&"'!"&"C$"&ROWS($B$1:B27)),,COLUMNS($B$1:B19)+32),"") -> 0 | M22: =IFERROR(OFFSET(INDIRECT("'"&$K$2&"'!"&"C$"&ROWS($B$1:C27)),,COLUMNS($B$1:B19)+33),"") -> 0 | N22: =IFERROR(OFFSET(INDIRECT("'"&$K$2&"'!"&"C$"&ROWS($B$1:D27)),,COLUMNS($B$1:B19)+34),"") -> 0 | O22: =IFERROR(OFFSET(INDIRECT("'"&$K$2&"'!"&"C$"&ROWS($B$1:D27)),,COLUMNS($B$1:B19)+35),"") -> 0 | P22: =IFERROR(OFFSET(INDIRECT("'"&$K$2&"'!"&"C$"&ROWS($B$1:H27)),,COLUMNS($B$1:B19)+36),"") -> 0 | Q22: =IFERROR(OFFSET(INDIRECT("'"&$K$2&"'!"&"C$"&ROWS($B$1:I27)),,COLUMNS($B$1:B19)+37),"") -> 0 | R22: =IFERROR(OFFSET(INDIRECT("'"&$R$2&"'!"&"C$"&ROWS($B$1:B27)),,COLUMNS($B$1:B19)+31),"") -> 0 | S22: =IFERROR(OFFSET(INDIRECT("'"&$R$2&"'!"&"C$"&ROWS($B$1:B27)),,COLUMNS($B$1:B19)+32),"") -> 0 | T22: =IFERROR(OFFSET(INDIRECT("'"&$R$2&"'!"&"C$"&ROWS($B$1:C27)),,COLUMNS($B$1:B19)+33),"") -> 0 | U22: =IFERROR(OFFSET(INDIRECT("'"&$R$2&"'!"&"C$"&ROWS($B$1:D27)),,COLUMNS($B$1:B19)+34),"") -> 0 | V22: =IFERROR(OFFSET(INDIRECT("'"&$R$2&"'!"&"C$"&ROWS($B$1:D27)),,COLUMNS($B$1:B19)+35),"") -> 0 | W22: =IFERROR(OFFSET(INDIRECT("'"&$R$2&"'!"&"C$"&ROWS($B$1:H27)),,COLUMNS($B$1:B19)+36),"") -> 0 | X22: =IFERROR(OFFSET(INDIRECT("'"&$R$2&"'!"&"C$"&ROWS($B$1:I27)),,COLUMNS($B$1:B19)+37),"") -> 0 | Y22: =IFERROR(OFFSET(INDIRECT("'"&$Y$2&"'!"&"C$"&ROWS($B$1:B27)),,COLUMNS($B$1:B19)+31),"") -> 26 | Z22: =IFERROR(OFFSET(INDIRECT("'"&$Y$2&"'!"&"C$"&ROWS($B$1:B27)),,COLUMNS($B$1:B19)+32),"") -> 0 | AA22: =IFERROR(OFFSET(INDIRECT("'"&$Y$2&"'!"&"C$"&ROWS($B$1:C27)),,COLUMNS($B$1:B19)+33),"") -> 0 | AB22: =IFERROR(OFFSET(INDIRECT("'"&$Y$2&"'!"&"C$"&ROWS($B$1:D27)),,COLUMNS($B$1:B19)+34),"") -> 0 | AC22: =IFERROR(OFFSET(INDIRECT("'"&$Y$2&"'!"&"C$"&ROWS($B$1:D27)),,COLUMNS($B$1:B19)+35),"") -> 0 | AD22: =IFERROR(OFFSET(INDIRECT("'"&$Y$2&"'!"&"C$"&ROWS($B$1:H27)),,COLUMNS($B$1:B19)+36),"") -> 0 | AE22: =IFERROR(OFFSET(INDIRECT("'"&$Y$2&"'!"&"C$"&ROWS($B$1:I27)),,COLUMNS($B$1:B19)+37),"") -> 0 | AF22: =IFERROR(OFFSET(INDIRECT("'"&$AF$2&"'!"&"C$"&ROWS($B$1:B27)),,COLUMNS($B$1:B19)+31),"") -> 0 | AG22: =IFERROR(OFFSET(INDIRECT("'"&$AF$2&"'!"&"C$"&ROWS($B$1:B27)),,COLUMNS($B$1:B19)+32),"") -> 0 | AH22: =IFERROR(OFFSET(INDIRECT("'"&$AF$2&"'!"&"C$"&ROWS($B$1:C27)),,COLUMNS($B$1:B19)+33),"") -> 0 | AI22: =IFERROR(OFFSET(INDIRECT("'"&$AF$2&"'!"&"C$"&ROWS($B$1:D27)),,COLUMNS($B$1:B19)+34),"") -> 0 | AJ22: =IFERROR(OFFSET(INDIRECT("'"&$AF$2&"'!"&"C$"&ROWS($B$1:D27)),,COLUMNS($B$1:B19)+35),"") -> 0 | AK22: =IFERROR(OFFSET(INDIRECT("'"&$AF$2&"'!"&"C$"&ROWS($B$1:H27)),,COLUMNS($B$1:B19)+36),"") -> 0 | AL22: =IFERROR(OFFSET(INDIRECT("'"&$AF$2&"'!"&"C$"&ROWS($B$1:I27)),,COLUMNS($B$1:B19)+37),"") -> 0 | AM22: =IFERROR(OFFSET(INDIRECT("'"&$AM$2&"'!"&"C$"&ROWS($B$1:B27)),,COLUMNS($B$1:B19)+31),"") -> 26 | AN22: =IFERROR(OFFSET(INDIRECT("'"&$AM$2&"'!"&"C$"&ROWS($B$1:B27)),,COLUMNS($B$1:B19)+32),"") -> 0 | AO22: =IFERROR(OFFSET(INDIRECT("'"&$AM$2&"'!"&"C$"&ROWS($B$1:C27)),,COLUMNS($B$1:B19)+33),"") -> 0 | AP22: =IFERROR(OFFSET(INDIRECT("'"&$AM$2&"'!"&"C$"&ROWS($B$1:D27)),,COLUMNS($B$1:B19)+34),"") -> 0 | AQ22: =IFERROR(OFFSET(INDIRECT("'"&$AM$2&"'!"&"C$"&ROWS($B$1:D27)),,COLUMNS($B$1:B19)+35),"") -> 0 | AR22: =IFERROR(OFFSET(INDIRECT("'"&$AM$2&"'!"&"C$"&ROWS($B$1:H27)),,COLUMNS($B$1:B19)+36),"") -> 0 | AS22: =IFERROR(OFFSET(INDIRECT("'"&$AM$2&"'!"&"C$"&ROWS($B$1:I27)),,COLUMNS($B$1:B19)+37),"") -> 0 | AT22: =IFERROR(OFFSET(INDIRECT("'"&$AT$2&"'!"&"C$"&ROWS($B$1:B27)),,COLUMNS($B$1:B19)+31),"") -> 26 | AU22: =IFERROR(OFFSET(INDIRECT("'"&$AT$2&"'!"&"C$"&ROWS($B$1:B27)),,COLUMNS($B$1:B19)+32),"") -> 0 | AV22: =IFERROR(OFFSET(INDIRECT("'"&$AT$2&"'!"&"C$"&ROWS($B$1:C27)),,COLUMNS($B$1:B19)+33),"") -> 0 | AW22: =IFERROR(OFFSET(INDIRECT("'"&$AT$2&"'!"&"C$"&ROWS($B$1:D27)),,COLUMNS($B$1:B19)+34),"") -> 0 | AX22: =IFERROR(OFFSET(INDIRECT("'"&$AT$2&"'!"&"C$"&ROWS($B$1:D27)),,COLUMNS($B$1:B19)+35),"") -> 0 | AY22: =IFERROR(OFFSET(INDIRECT("'"&$AT$2&"'!"&"C$"&ROWS($B$1:H27)),,COLUMNS($B$1:B19)+36),"") -> 0 | AZ22: =IFERROR(OFFSET(INDIRECT("'"&$AT$2&"'!"&"C$"&ROWS($B$1:I27)),,COLUMNS($B$1:B19)+37),"") -> 0 | BA22: =IFERROR(OFFSET(INDIRECT("'"&$BA$2&"'!"&"C$"&ROWS($B$1:B27)),,COLUMNS($B$1:B19)+31),"") -> 26 | BB22: =IFERROR(OFFSET(INDIRECT("'"&$BA$2&"'!"&"C$"&ROWS($B$1:B27)),,COLUMNS($B$1:B19)+32),"") -> 0 | BC22: =IFERROR(OFFSET(INDIRECT("'"&$BA$2&"'!"&"C$"&ROWS($B$1:C27)),,COLUMNS($B$1:B19)+33),"") -> 0 | BD22: =IFERROR(OFFSET(INDIRECT("'"&$BA$2&"'!"&"C$"&ROWS($B$1:D27)),,COLUMNS($B$1:B19)+34),"") -> 0 | BE22: =IFERROR(OFFSET(INDIRECT("'"&$BA$2&"'!"&"C$"&ROWS($B$1:D27)),,COLUMNS($B$1:B19)+35),"") -> 0 | BF22: =IFERROR(OFFSET(INDIRECT("'"&$BA$2&"'!"&"C$"&ROWS($B$1:H27)),,COLUMNS($B$1:B19)+36),"") -> 0 | BG22: =IFERROR(OFFSET(INDIRECT("'"&$BA$2&"'!"&"C$"&ROWS($B$1:I27)),,COLUMNS($B$1:B19)+37),"") -> 0 | BH22: =IFERROR(OFFSET(INDIRECT("'"&$BH$2&"'!"&"C$"&ROWS($B$1:B27)),,COLUMNS($B$1:B19)+31),"") -> 26 | BI22: =IFERROR(OFFSET(INDIRECT("'"&$BH$2&"'!"&"C$"&ROWS($B$1:B27)),,COLUMNS($B$1:B19)+32),"") -> 0 | BJ22: =IFERROR(OFFSET(INDIRECT("'"&$BH$2&"'!"&"C$"&ROWS($B$1:C27)),,COLUMNS($B$1:B19)+33),"") -> 0 | BK22: =IFERROR(OFFSET(INDIRECT("'"&$BH$2&"'!"&"C$"&ROWS($B$1:D27)),,COLUMNS($B$1:B19)+34),"") -> 0 | BL22: =IFERROR(OFFSET(INDIRECT("'"&$BH$2&"'!"&"C$"&ROWS($B$1:D27)),,COLUMNS($B$1:B19)+35),"") -> 0 | BM22: =IFERROR(OFFSET(INDIRECT("'"&$BH$2&"'!"&"C$"&ROWS($B$1:H27)),,COLUMNS($B$1:B19)+36),"") -> 0 | BN22: =IFERROR(OFFSET(INDIRECT("'"&$BH$2&"'!"&"C$"&ROWS($B$1:I27)),,COLUMNS($B$1:B19)+37),"") -> 0 | BO22: =IFERROR(OFFSET(INDIRECT("'"&$BO$2&"'!"&"C$"&ROWS($B$1:B27)),,COLUMNS($B$1:B19)+31),"") -> 0 | BP22: =IFERROR(OFFSET(INDIRECT("'"&$BO$2&"'!"&"C$"&ROWS($B$1:B27)),,COLUMNS($B$1:B19)+32),"") -> 0 | BQ22: =IFERROR(OFFSET(INDIRECT("'"&$BO$2&"'!"&"C$"&ROWS($B$1:C27)),,COLUMNS($B$1:B19)+33),"") -> 0 | BR22: =IFERROR(OFFSET(INDIRECT("'"&$BO$2&"'!"&"C$"&ROWS($B$1:D27)),,COLUMNS($B$1:B19)+34),"") -> 0 | BS22: =IFERROR(OFFSET(INDIRECT("'"&$BO$2&"'!"&"C$"&ROWS($B$1:D27)),,COLUMNS($B$1:B19)+35),"") -> 0 | BT22: =IFERROR(OFFSET(INDIRECT("'"&$BO$2&"'!"&"C$"&ROWS($B$1:H27)),,COLUMNS($B$1:B19)+36),"") -> 0 | BU22: =IFERROR(OFFSET(INDIRECT("'"&$BO$2&"'!"&"C$"&ROWS($B$1:I27)),,COLUMNS($B$1:B19)+37),"") -> 0 | BV22: =IFERROR(OFFSET(INDIRECT("'"&$BV$2&"'!"&"C$"&ROWS($B$1:B27)),,COLUMNS($B$1:B19)+31),"") -> 26 | BW22: =IFERROR(OFFSET(INDIRECT("'"&$BV$2&"'!"&"C$"&ROWS($B$1:B27)),,COLUMNS($B$1:B19)+32),"") -> 0 | BX22: =IFERROR(OFFSET(INDIRECT("'"&$BV$2&"'!"&"C$"&ROWS($B$1:C27)),,COLUMNS($B$1:B19)+33),"") -> 0 | BY22: =IFERROR(OFFSET(INDIRECT("'"&$BV$2&"'!"&"C$"&ROWS($B$1:D27)),,COLUMNS($B$1:B19)+34),"") -> 0 | BZ22: =IFERROR(OFFSET(INDIRECT("'"&$BV$2&"'!"&"C$"&ROWS($B$1:D27)),,COLUMNS($B$1:B19)+35),"") -> 0 | CA22: =IFERROR(OFFSET(INDIRECT("'"&$BV$2&"'!"&"C$"&ROWS($B$1:H27)),,COLUMNS($B$1:B19)+36),"") -> 0 | CB22: =IFERROR(OFFSET(INDIRECT("'"&$BV$2&"'!"&"C$"&ROWS($B$1:I27)),,COLUMNS($B$1:B19)+37),"") -> 0 | CC22: =IFERROR(OFFSET(INDIRECT("'"&$CC$2&"'!"&"C$"&ROWS($B$1:B27)),,COLUMNS($B$1:B19)+31),"") -> 0 | CD22: =IFERROR(OFFSET(INDIRECT("'"&$CC$2&"'!"&"C$"&ROWS($B$1:B27)),,COLUMNS($B$1:B19)+32),"") -> 0 | CE22: =IFERROR(OFFSET(INDIRECT("'"&$CC$2&"'!"&"C$"&ROWS($B$1:C27)),,COLUMNS($B$1:B19)+33),"") -> 0 | CF22: =IFERROR(OFFSET(INDIRECT("'"&$CC$2&"'!"&"C$"&ROWS($B$1:D27)),,COLUMNS($B$1:B19)+34),"") -> 0 | CG22: =IFERROR(OFFSET(INDIRECT("'"&$CC$2&"'!"&"C$"&ROWS($B$1:D27)),,COLUMNS($B$1:B19)+35),"") -> 0 | CH22: =IFERROR(OFFSET(INDIRECT("'"&$CC$2&"'!"&"C$"&ROWS($B$1:H27)),,COLUMNS($B$1:B19)+36),"") -> 0 | CI22: =IFERROR(OFFSET(INDIRECT("'"&$CC$2&"'!"&"C$"&ROWS($B$1:I27)),,COLUMNS($B$1:B19)+37),"") -> 0 | CJ22: =IFERROR(OFFSET(INDIRECT("'"&$CJ$2&"'!"&"C$"&ROWS($B$1:B27)),,COLUMNS($B$1:B19)+31),"") -> 26 | CK22: =IFERROR(OFFSET(INDIRECT("'"&$CJ$2&"'!"&"C$"&ROWS($B$1:B27)),,COLUMNS($B$1:B19)+32),"") -> 0 | CL22: =IFERROR(OFFSET(INDIRECT("'"&$CJ$2&"'!"&"C$"&ROWS($B$1:C27)),,COLUMNS($B$1:B19)+33),"") -> 0 | CM22: =IFERROR(OFFSET(INDIRECT("'"&$CJ$2&"'!"&"C$"&ROWS($B$1:D27)),,COLUMNS($B$1:B19)+34),"") -> 0 | CN22: =IFERROR(OFFSET(INDIRECT("'"&$CJ$2&"'!"&"C$"&ROWS($B$1:D27)),,COLUMNS($B$1:B19)+35),"") -> 0 | CO22: =IFERROR(OFFSET(INDIRECT("'"&$CJ$2&"'!"&"C$"&ROWS($B$1:H27)),,COLUMNS($B$1:B19)+36),"") -> 0 | CP22: =IFERROR(OFFSET(INDIRECT("'"&$CJ$2&"'!"&"C$"&ROWS($B$1:I27)),,COLUMNS($B$1:B19)+37),"") -> 0 | CR22: 150 | CS22: 328.8461538 | CT22: 115.3846154 | CU22: 444.2307692
A23: دينيشكو مارانادو | B23: 52 | C23: 20 | D23: 0 | E23: 0 | F23: 0 | G23: 72 | I23: 2008-11-17 | K23: =IFERROR(OFFSET(INDIRECT("'"&$K$2&"'!"&"C$"&ROWS($B$1:B28)),,COLUMNS($B$1:B20)+31),"") -> 26 | L23: =IFERROR(OFFSET(INDIRECT("'"&$K$2&"'!"&"C$"&ROWS($B$1:B28)),,COLUMNS($B$1:B20)+32),"") -> 0 | M23: =IFERROR(OFFSET(INDIRECT("'"&$K$2&"'!"&"C$"&ROWS($B$1:C28)),,COLUMNS($B$1:B20)+33),"") -> 0 | N23: =IFERROR(OFFSET(INDIRECT("'"&$K$2&"'!"&"C$"&ROWS($B$1:D28)),,COLUMNS($B$1:B20)+34),"") -> 0 | O23: =IFERROR(OFFSET(INDIRECT("'"&$K$2&"'!"&"C$"&ROWS($B$1:D28)),,COLUMNS($B$1:B20)+35),"") -> 0 | P23: =IFERROR(OFFSET(INDIRECT("'"&$K$2&"'!"&"C$"&ROWS($B$1:H28)),,COLUMNS($B$1:B20)+36),"") -> 0 | Q23: =IFERROR(OFFSET(INDIRECT("'"&$K$2&"'!"&"C$"&ROWS($B$1:I28)),,COLUMNS($B$1:B20)+37),"") -> 0 | R23: =IFERROR(OFFSET(INDIRECT("'"&$R$2&"'!"&"C$"&ROWS($B$1:B28)),,COLUMNS($B$1:B20)+31),"") -> 0 | S23: =IFERROR(OFFSET(INDIRECT("'"&$R$2&"'!"&"C$"&ROWS($B$1:B28)),,COLUMNS($B$1:B20)+32),"") -> 0 | T23: =IFERROR(OFFSET(INDIRECT("'"&$R$2&"'!"&"C$"&ROWS($B$1:C28)),,COLUMNS($B$1:B20)+33),"") -> 0 | U23: =IFERROR(OFFSET(INDIRECT("'"&$R$2&"'!"&"C$"&ROWS($B$1:D28)),,COLUMNS($B$1:B20)+34),"") -> 0 | V23: =IFERROR(OFFSET(INDIRECT("'"&$R$2&"'!"&"C$"&ROWS($B$1:D28)),,COLUMNS($B$1:B20)+35),"") -> 0 | W23: =IFERROR(OFFSET(INDIRECT("'"&$R$2&"'!"&"C$"&ROWS($B$1:H28)),,COLUMNS($B$1:B20)+36),"") -> 0 | X23: =IFERROR(OFFSET(INDIRECT("'"&$R$2&"'!"&"C$"&ROWS($B$1:I28)),,COLUMNS($B$1:B20)+37),"") -> 0 | Y23: =IFERROR(OFFSET(INDIRECT("'"&$Y$2&"'!"&"C$"&ROWS($B$1:B28)),,COLUMNS($B$1:B20)+31),"") -> 26 | Z23: =IFERROR(OFFSET(INDIRECT("'"&$Y$2&"'!"&"C$"&ROWS($B$1:B28)),,COLUMNS($B$1:B20)+32),"") -> 0 | AA23: =IFERROR(OFFSET(INDIRECT("'"&$Y$2&"'!"&"C$"&ROWS($B$1:C28)),,COLUMNS($B$1:B20)+33),"") -> 0 | AB23: =IFERROR(OFFSET(INDIRECT("'"&$Y$2&"'!"&"C$"&ROWS($B$1:D28)),,COLUMNS($B$1:B20)+34),"") -> 0 | AC23: =IFERROR(OFFSET(INDIRECT("'"&$Y$2&"'!"&"C$"&ROWS($B$1:D28)),,COLUMNS($B$1:B20)+35),"") -> 0 | AD23: =IFERROR(OFFSET(INDIRECT("'"&$Y$2&"'!"&"C$"&ROWS($B$1:H28)),,COLUMNS($B$1:B20)+36),"") -> 0 | AE23: =IFERROR(OFFSET(INDIRECT("'"&$Y$2&"'!"&"C$"&ROWS($B$1:I28)),,COLUMNS($B$1:B20)+37),"") -> 0 | AF23: =IFERROR(OFFSET(INDIRECT("'"&$AF$2&"'!"&"C$"&ROWS($B$1:B28)),,COLUMNS($B$1:B20)+31),"") -> 0 | AG23: =IFERROR(OFFSET(INDIRECT("'"&$AF$2&"'!"&"C$"&ROWS($B$1:B28)),,COLUMNS($B$1:B20)+32),"") -> 0 | AH23: =IFERROR(OFFSET(INDIRECT("'"&$AF$2&"'!"&"C$"&ROWS($B$1:C28)),,COLUMNS($B$1:B20)+33),"") -> 0 | AI23: =IFERROR(OFFSET(INDIRECT("'"&$AF$2&"'!"&"C$"&ROWS($B$1:D28)),,COLUMNS($B$1:B20)+34),"") -> 0 | AJ23: =IFERROR(OFFSET(INDIRECT("'"&$AF$2&"'!"&"C$"&ROWS($B$1:D28)),,COLUMNS($B$1:B20)+35),"") -> 0 | AK23: =IFERROR(OFFSET(INDIRECT("'"&$AF$2&"'!"&"C$"&ROWS($B$1:H28)),,COLUMNS($B$1:B20)+36),"") -> 0 | AL23: =IFERROR(OFFSET(INDIRECT("'"&$AF$2&"'!"&"C$"&ROWS($B$1:I28)),,COLUMNS($B$1:B20)+37),"") -> 0 | AM23: =IFERROR(OFFSET(INDIRECT("'"&$AM$2&"'!"&"C$"&ROWS($B$1:B28)),,COLUMNS($B$1:B20)+31),"") -> 26 | AN23: =IFERROR(OFFSET(INDIRECT("'"&$AM$2&"'!"&"C$"&ROWS($B$1:B28)),,COLUMNS($B$1:B20)+32),"") -> 0 | AO23: =IFERROR(OFFSET(INDIRECT("'"&$AM$2&"'!"&"C$"&ROWS($B$1:C28)),,COLUMNS($B$1:B20)+33),"") -> 0 | AP23: =IFERROR(OFFSET(INDIRECT("'"&$AM$2&"'!"&"C$"&ROWS($B$1:D28)),,COLUMNS($B$1:B20)+34),"") -> 0 | AQ23: =IFERROR(OFFSET(INDIRECT("'"&$AM$2&"'!"&"C$"&ROWS($B$1:D28)),,COLUMNS($B$1:B20)+35),"") -> 0 | AR23: =IFERROR(OFFSET(INDIRECT("'"&$AM$2&"'!"&"C$"&ROWS($B$1:H28)),,COLUMNS($B$1:B20)+36),"") -> 0 | AS23: =IFERROR(OFFSET(INDIRECT("'"&$AM$2&"'!"&"C$"&ROWS($B$1:I28)),,COLUMNS($B$1:B20)+37),"") -> 0 | AT23: =IFERROR(OFFSET(INDIRECT("'"&$AT$2&"'!"&"C$"&ROWS($B$1:B28)),,COLUMNS($B$1:B20)+31),"") -> 26 | AU23: =IFERROR(OFFSET(INDIRECT("'"&$AT$2&"'!"&"C$"&ROWS($B$1:B28)),,COLUMNS($B$1:B20)+32),"") -> 0 | AV23: =IFERROR(OFFSET(INDIRECT("'"&$AT$2&"'!"&"C$"&ROWS($B$1:C28)),,COLUMNS($B$1:B20)+33),"") -> 0 | AW23: =IFERROR(OFFSET(INDIRECT("'"&$AT$2&"'!"&"C$"&ROWS($B$1:D28)),,COLUMNS($B$1:B20)+34),"") -> 0 | AX23: =IFERROR(OFFSET(INDIRECT("'"&$AT$2&"'!"&"C$"&ROWS($B$1:D28)),,COLUMNS($B$1:B20)+35),"") -> 0 | AY23: =IFERROR(OFFSET(INDIRECT("'"&$AT$2&"'!"&"C$"&ROWS($B$1:H28)),,COLUMNS($B$1:B20)+36),"") -> 0 | AZ23: =IFERROR(OFFSET(INDIRECT("'"&$AT$2&"'!"&"C$"&ROWS($B$1:I28)),,COLUMNS($B$1:B20)+37),"") -> 0 | BA23: =IFERROR(OFFSET(INDIRECT("'"&$BA$2&"'!"&"C$"&ROWS($B$1:B28)),,COLUMNS($B$1:B20)+31),"") -> 26 | BB23: =IFERROR(OFFSET(INDIRECT("'"&$BA$2&"'!"&"C$"&ROWS($B$1:B28)),,COLUMNS($B$1:B20)+32),"") -> 0 | BC23: =IFERROR(OFFSET(INDIRECT("'"&$BA$2&"'!"&"C$"&ROWS($B$1:C28)),,COLUMNS($B$1:B20)+33),"") -> 0 | BD23: =IFERROR(OFFSET(INDIRECT("'"&$BA$2&"'!"&"C$"&ROWS($B$1:D28)),,COLUMNS($B$1:B20)+34),"") -> 0 | BE23: =IFERROR(OFFSET(INDIRECT("'"&$BA$2&"'!"&"C$"&ROWS($B$1:D28)),,COLUMNS($B$1:B20)+35),"") -> 0 | BF23: =IFERROR(OFFSET(INDIRECT("'"&$BA$2&"'!"&"C$"&ROWS($B$1:H28)),,COLUMNS($B$1:B20)+36),"") -> 0 | BG23: =IFERROR(OFFSET(INDIRECT("'"&$BA$2&"'!"&"C$"&ROWS($B$1:I28)),,COLUMNS($B$1:B20)+37),"") -> 0 | BH23: =IFERROR(OFFSET(INDIRECT("'"&$BH$2&"'!"&"C$"&ROWS($B$1:B28)),,COLUMNS($B$1:B20)+31),"") -> 26 | BI23: =IFERROR(OFFSET(INDIRECT("'"&$BH$2&"'!"&"C$"&ROWS($B$1:B28)),,COLUMNS($B$1:B20)+32),"") -> 0 | BJ23: =IFERROR(OFFSET(INDIRECT("'"&$BH$2&"'!"&"C$"&ROWS($B$1:C28)),,COLUMNS($B$1:B20)+33),"") -> 0 | BK23: =IFERROR(OFFSET(INDIRECT("'"&$BH$2&"'!"&"C$"&ROWS($B$1:D28)),,COLUMNS($B$1:B20)+34),"") -> 0 | BL23: =IFERROR(OFFSET(INDIRECT("'"&$BH$2&"'!"&"C$"&ROWS($B$1:D28)),,COLUMNS($B$1:B20)+35),"") -> 0 | BM23: =IFERROR(OFFSET(INDIRECT("'"&$BH$2&"'!"&"C$"&ROWS($B$1:H28)),,COLUMNS($B$1:B20)+36),"") -> 0 | BN23: =IFERROR(OFFSET(INDIRECT("'"&$BH$2&"'!"&"C$"&ROWS($B$1:I28)),,COLUMNS($B$1:B20)+37),"") -> 0 | BO23: =IFERROR(OFFSET(INDIRECT("'"&$BO$2&"'!"&"C$"&ROWS($B$1:B28)),,COLUMNS($B$1:B20)+31),"") -> 0 | BP23: =IFERROR(OFFSET(INDIRECT("'"&$BO$2&"'!"&"C$"&ROWS($B$1:B28)),,COLUMNS($B$1:B20)+32),"") -> 0 | BQ23: =IFERROR(OFFSET(INDIRECT("'"&$BO$2&"'!"&"C$"&ROWS($B$1:C28)),,COLUMNS($B$1:B20)+33),"") -> 0 | BR23: =IFERROR(OFFSET(INDIRECT("'"&$BO$2&"'!"&"C$"&ROWS($B$1:D28)),,COLUMNS($B$1:B20)+34),"") -> 0 | BS23: =IFERROR(OFFSET(INDIRECT("'"&$BO$2&"'!"&"C$"&ROWS($B$1:D28)),,COLUMNS($B$1:B20)+35),"") -> 0 | BT23: =IFERROR(OFFSET(INDIRECT("'"&$BO$2&"'!"&"C$"&ROWS($B$1:H28)),,COLUMNS($B$1:B20)+36),"") -> 0 | BU23: =IFERROR(OFFSET(INDIRECT("'"&$BO$2&"'!"&"C$"&ROWS($B$1:I28)),,COLUMNS($B$1:B20)+37),"") -> 0 | BV23: =IFERROR(OFFSET(INDIRECT("'"&$BV$2&"'!"&"C$"&ROWS($B$1:B28)),,COLUMNS($B$1:B20)+31),"") -> 26 | BW23: =IFERROR(OFFSET(INDIRECT("'"&$BV$2&"'!"&"C$"&ROWS($B$1:B28)),,COLUMNS($B$1:B20)+32),"") -> 0 | BX23: =IFERROR(OFFSET(INDIRECT("'"&$BV$2&"'!"&"C$"&ROWS($B$1:C28)),,COLUMNS($B$1:B20)+33),"") -> 0 | BY23: =IFERROR(OFFSET(INDIRECT("'"&$BV$2&"'!"&"C$"&ROWS($B$1:D28)),,COLUMNS($B$1:B20)+34),"") -> 0 | BZ23: =IFERROR(OFFSET(INDIRECT("'"&$BV$2&"'!"&"C$"&ROWS($B$1:D28)),,COLUMNS($B$1:B20)+35),"") -> 0 | CA23: =IFERROR(OFFSET(INDIRECT("'"&$BV$2&"'!"&"C$"&ROWS($B$1:H28)),,COLUMNS($B$1:B20)+36),"") -> 0 | CB23: =IFERROR(OFFSET(INDIRECT("'"&$BV$2&"'!"&"C$"&ROWS($B$1:I28)),,COLUMNS($B$1:B20)+37),"") -> 0 | CC23: =IFERROR(OFFSET(INDIRECT("'"&$CC$2&"'!"&"C$"&ROWS($B$1:B28)),,COLUMNS($B$1:B20)+31),"") -> 0 | CD23: =IFERROR(OFFSET(INDIRECT("'"&$CC$2&"'!"&"C$"&ROWS($B$1:B28)),,COLUMNS($B$1:B20)+32),"") -> 0 | CE23: =IFERROR(OFFSET(INDIRECT("'"&$CC$2&"'!"&"C$"&ROWS($B$1:C28)),,COLUMNS($B$1:B20)+33),"") -> 0 | CF23: =IFERROR(OFFSET(INDIRECT("'"&$CC$2&"'!"&"C$"&ROWS($B$1:D28)),,COLUMNS($B$1:B20)+34),"") -> 0 | CG23: =IFERROR(OFFSET(INDIRECT("'"&$CC$2&"'!"&"C$"&ROWS($B$1:D28)),,COLUMNS($B$1:B20)+35),"") -> 0 | CH23: =IFERROR(OFFSET(INDIRECT("'"&$CC$2&"'!"&"C$"&ROWS($B$1:H28)),,COLUMNS($B$1:B20)+36),"") -> 0 | CI23: =IFERROR(OFFSET(INDIRECT("'"&$CC$2&"'!"&"C$"&ROWS($B$1:I28)),,COLUMNS($B$1:B20)+37),"") -> 0 | CJ23: =IFERROR(OFFSET(INDIRECT("'"&$CJ$2&"'!"&"C$"&ROWS($B$1:B28)),,COLUMNS($B$1:B20)+31),"") -> 26 | CK23: =IFERROR(OFFSET(INDIRECT("'"&$CJ$2&"'!"&"C$"&ROWS($B$1:B28)),,COLUMNS($B$1:B20)+32),"") -> 0 | CL23: =IFERROR(OFFSET(INDIRECT("'"&$CJ$2&"'!"&"C$"&ROWS($B$1:C28)),,COLUMNS($B$1:B20)+33),"") -> 0 | CM23: =IFERROR(OFFSET(INDIRECT("'"&$CJ$2&"'!"&"C$"&ROWS($B$1:D28)),,COLUMNS($B$1:B20)+34),"") -> 0 | CN23: =IFERROR(OFFSET(INDIRECT("'"&$CJ$2&"'!"&"C$"&ROWS($B$1:D28)),,COLUMNS($B$1:B20)+35),"") -> 0 | CO23: =IFERROR(OFFSET(INDIRECT("'"&$CJ$2&"'!"&"C$"&ROWS($B$1:H28)),,COLUMNS($B$1:B20)+36),"") -> 0 | CP23: =IFERROR(OFFSET(INDIRECT("'"&$CJ$2&"'!"&"C$"&ROWS($B$1:I28)),,COLUMNS($B$1:B20)+37),"") -> 0 | CR23: 400 | CS23: 800 | CT23: 307.6923077 | CU23: 1107.692308
A24: فخرى شبير بهاة | B24: 41 | C24: 20 | D24: 0 | E24: 0 | F24: 0 | G24: 61 | I24: 2011-05-15 | K24: =IFERROR(OFFSET(INDIRECT("'"&$K$2&"'!"&"C$"&ROWS($B$1:B29)),,COLUMNS($B$1:B21)+31),"") -> 26 | L24: =IFERROR(OFFSET(INDIRECT("'"&$K$2&"'!"&"C$"&ROWS($B$1:B29)),,COLUMNS($B$1:B21)+32),"") -> 0 | M24: =IFERROR(OFFSET(INDIRECT("'"&$K$2&"'!"&"C$"&ROWS($B$1:C29)),,COLUMNS($B$1:B21)+33),"") -> 0 | N24: =IFERROR(OFFSET(INDIRECT("'"&$K$2&"'!"&"C$"&ROWS($B$1:D29)),,COLUMNS($B$1:B21)+34),"") -> 0 | O24: =IFERROR(OFFSET(INDIRECT("'"&$K$2&"'!"&"C$"&ROWS($B$1:D29)),,COLUMNS($B$1:B21)+35),"") -> 0 | P24: =IFERROR(OFFSET(INDIRECT("'"&$K$2&"'!"&"C$"&ROWS($B$1:H29)),,COLUMNS($B$1:B21)+36),"") -> 0 | Q24: =IFERROR(OFFSET(INDIRECT("'"&$K$2&"'!"&"C$"&ROWS($B$1:I29)),,COLUMNS($B$1:B21)+37),"") -> 0 | R24: =IFERROR(OFFSET(INDIRECT("'"&$R$2&"'!"&"C$"&ROWS($B$1:B29)),,COLUMNS($B$1:B21)+31),"") -> 0 | S24: =IFERROR(OFFSET(INDIRECT("'"&$R$2&"'!"&"C$"&ROWS($B$1:B29)),,COLUMNS($B$1:B21)+32),"") -> 0 | T24: =IFERROR(OFFSET(INDIRECT("'"&$R$2&"'!"&"C$"&ROWS($B$1:C29)),,COLUMNS($B$1:B21)+33),"") -> 0 | U24: =IFERROR(OFFSET(INDIRECT("'"&$R$2&"'!"&"C$"&ROWS($B$1:D29)),,COLUMNS($B$1:B21)+34),"") -> 0 | V24: =IFERROR(OFFSET(INDIRECT("'"&$R$2&"'!"&"C$"&ROWS($B$1:D29)),,COLUMNS($B$1:B21)+35),"") -> 0 | W24: =IFERROR(OFFSET(INDIRECT("'"&$R$2&"'!"&"C$"&ROWS($B$1:H29)),,COLUMNS($B$1:B21)+36),"") -> 0 | X24: =IFERROR(OFFSET(INDIRECT("'"&$R$2&"'!"&"C$"&ROWS($B$1:I29)),,COLUMNS($B$1:B21)+37),"") -> 0 | Y24: =IFERROR(OFFSET(INDIRECT("'"&$Y$2&"'!"&"C$"&ROWS($B$1:B29)),,COLUMNS($B$1:B21)+31),"") -> 26 | Z24: =IFERROR(OFFSET(INDIRECT("'"&$Y$2&"'!"&"C$"&ROWS($B$1:B29)),,COLUMNS($B$1:B21)+32),"") -> 0 | AA24: =IFERROR(OFFSET(INDIRECT("'"&$Y$2&"'!"&"C$"&ROWS($B$1:C29)),,COLUMNS($B$1:B21)+33),"") -> 0 | AB24: =IFERROR(OFFSET(INDIRECT("'"&$Y$2&"'!"&"C$"&ROWS($B$1:D29)),,COLUMNS($B$1:B21)+34),"") -> 0 | AC24: =IFERROR(OFFSET(INDIRECT("'"&$Y$2&"'!"&"C$"&ROWS($B$1:D29)),,COLUMNS($B$1:B21)+35),"") -> 0 | AD24: =IFERROR(OFFSET(INDIRECT("'"&$Y$2&"'!"&"C$"&ROWS($B$1:H29)),,COLUMNS($B$1:B21)+36),"") -> 0 | AE24: =IFERROR(OFFSET(INDIRECT("'"&$Y$2&"'!"&"C$"&ROWS($B$1:I29)),,COLUMNS($B$1:B21)+37),"") -> 0 | AF24: =IFERROR(OFFSET(INDIRECT("'"&$AF$2&"'!"&"C$"&ROWS($B$1:B29)),,COLUMNS($B$1:B21)+31),"") -> 0 | AG24: =IFERROR(OFFSET(INDIRECT("'"&$AF$2&"'!"&"C$"&ROWS($B$1:B29)),,COLUMNS($B$1:B21)+32),"") -> 0 | AH24: =IFERROR(OFFSET(INDIRECT("'"&$AF$2&"'!"&"C$"&ROWS($B$1:C29)),,COLUMNS($B$1:B21)+33),"") -> 0 | AI24: =IFERROR(OFFSET(INDIRECT("'"&$AF$2&"'!"&"C$"&ROWS($B$1:D29)),,COLUMNS($B$1:B21)+34),"") -> 0 | AJ24: =IFERROR(OFFSET(INDIRECT("'"&$AF$2&"'!"&"C$"&ROWS($B$1:D29)),,COLUMNS($B$1:B21)+35),"") -> 0 | AK24: =IFERROR(OFFSET(INDIRECT("'"&$AF$2&"'!"&"C$"&ROWS($B$1:H29)),,COLUMNS($B$1:B21)+36),"") -> 0 | AL24: =IFERROR(OFFSET(INDIRECT("'"&$AF$2&"'!"&"C$"&ROWS($B$1:I29)),,COLUMNS($B$1:B21)+37),"") -> 0 | AM24: =IFERROR(OFFSET(INDIRECT("'"&$AM$2&"'!"&"C$"&ROWS($B$1:B29)),,COLUMNS($B$1:B21)+31),"") -> 26 | AN24: =IFERROR(OFFSET(INDIRECT("'"&$AM$2&"'!"&"C$"&ROWS($B$1:B29)),,COLUMNS($B$1:B21)+32),"") -> 0 | AO24: =IFERROR(OFFSET(INDIRECT("'"&$AM$2&"'!"&"C$"&ROWS($B$1:C29)),,COLUMNS($B$1:B21)+33),"") -> 0 | AP24: =IFERROR(OFFSET(INDIRECT("'"&$AM$2&"'!"&"C$"&ROWS($B$1:D29)),,COLUMNS($B$1:B21)+34),"") -> 0 | AQ24: =IFERROR(OFFSET(INDIRECT("'"&$AM$2&"'!"&"C$"&ROWS($B$1:D29)),,COLUMNS($B$1:B21)+35),"") -> 0 | AR24: =IFERROR(OFFSET(INDIRECT("'"&$AM$2&"'!"&"C$"&ROWS($B$1:H29)),,COLUMNS($B$1:B21)+36),"") -> 0 | AS24: =IFERROR(OFFSET(INDIRECT("'"&$AM$2&"'!"&"C$"&ROWS($B$1:I29)),,COLUMNS($B$1:B21)+37),"") -> 0 | AT24: =IFERROR(OFFSET(INDIRECT("'"&$AT$2&"'!"&"C$"&ROWS($B$1:B29)),,COLUMNS($B$1:B21)+31),"") -> 26 | AU24: =IFERROR(OFFSET(INDIRECT("'"&$AT$2&"'!"&"C$"&ROWS($B$1:B29)),,COLUMNS($B$1:B21)+32),"") -> 0 | AV24: =IFERROR(OFFSET(INDIRECT("'"&$AT$2&"'!"&"C$"&ROWS($B$1:C29)),,COLUMNS($B$1:B21)+33),"") -> 0 | AW24: =IFERROR(OFFSET(INDIRECT("'"&$AT$2&"'!"&"C$"&ROWS($B$1:D29)),,COLUMNS($B$1:B21)+34),"") -> 0 | AX24: =IFERROR(OFFSET(INDIRECT("'"&$AT$2&"'!"&"C$"&ROWS($B$1:D29)),,COLUMNS($B$1:B21)+35),"") -> 0 | AY24: =IFERROR(OFFSET(INDIRECT("'"&$AT$2&"'!"&"C$"&ROWS($B$1:H29)),,COLUMNS($B$1:B21)+36),"") -> 0 | AZ24: =IFERROR(OFFSET(INDIRECT("'"&$AT$2&"'!"&"C$"&ROWS($B$1:I29)),,COLUMNS($B$1:B21)+37),"") -> 0 | BA24: =IFERROR(OFFSET(INDIRECT("'"&$BA$2&"'!"&"C$"&ROWS($B$1:B29)),,COLUMNS($B$1:B21)+31),"") -> 26 | BB24: =IFERROR(OFFSET(INDIRECT("'"&$BA$2&"'!"&"C$"&ROWS($B$1:B29)),,COLUMNS($B$1:B21)+32),"") -> 0 | BC24: =IFERROR(OFFSET(INDIRECT("'"&$BA$2&"'!"&"C$"&ROWS($B$1:C29)),,COLUMNS($B$1:B21)+33),"") -> 0 | BD24: =IFERROR(OFFSET(INDIRECT("'"&$BA$2&"'!"&"C$"&ROWS($B$1:D29)),,COLUMNS($B$1:B21)+34),"") -> 0 | BE24: =IFERROR(OFFSET(INDIRECT("'"&$BA$2&"'!"&"C$"&ROWS($B$1:D29)),,COLUMNS($B$1:B21)+35),"") -> 0 | BF24: =IFERROR(OFFSET(INDIRECT("'"&$BA$2&"'!"&"C$"&ROWS($B$1:H29)),,COLUMNS($B$1:B21)+36),"") -> 0 | BG24: =IFERROR(OFFSET(INDIRECT("'"&$BA$2&"'!"&"C$"&ROWS($B$1:I29)),,COLUMNS($B$1:B21)+37),"") -> 0 | BH24: =IFERROR(OFFSET(INDIRECT("'"&$BH$2&"'!"&"C$"&ROWS($B$1:B29)),,COLUMNS($B$1:B21)+31),"") -> 26 | BI24: =IFERROR(OFFSET(INDIRECT("'"&$BH$2&"'!"&"C$"&ROWS($B$1:B29)),,COLUMNS($B$1:B21)+32),"") -> 0 | BJ24: =IFERROR(OFFSET(INDIRECT("'"&$BH$2&"'!"&"C$"&ROWS($B$1:C29)),,COLUMNS($B$1:B21)+33),"") -> 0 | BK24: =IFERROR(OFFSET(INDIRECT("'"&$BH$2&"'!"&"C$"&ROWS($B$1:D29)),,COLUMNS($B$1:B21)+34),"") -> 0 | BL24: =IFERROR(OFFSET(INDIRECT("'"&$BH$2&"'!"&"C$"&ROWS($B$1:D29)),,COLUMNS($B$1:B21)+35),"") -> 0 | BM24: =IFERROR(OFFSET(INDIRECT("'"&$BH$2&"'!"&"C$"&ROWS($B$1:H29)),,COLUMNS($B$1:B21)+36),"") -> 0 | BN24: =IFERROR(OFFSET(INDIRECT("'"&$BH$2&"'!"&"C$"&ROWS($B$1:I29)),,COLUMNS($B$1:B21)+37),"") -> 0 | BO24: =IFERROR(OFFSET(INDIRECT("'"&$BO$2&"'!"&"C$"&ROWS($B$1:B29)),,COLUMNS($B$1:B21)+31),"") -> 0 | BP24: =IFERROR(OFFSET(INDIRECT("'"&$BO$2&"'!"&"C$"&ROWS($B$1:B29)),,COLUMNS($B$1:B21)+32),"") -> 0 | BQ24: =IFERROR(OFFSET(INDIRECT("'"&$BO$2&"'!"&"C$"&ROWS($B$1:C29)),,COLUMNS($B$1:B21)+33),"") -> 0 | BR24: =IFERROR(OFFSET(INDIRECT("'"&$BO$2&"'!"&"C$"&ROWS($B$1:D29)),,COLUMNS($B$1:B21)+34),"") -> 0 | BS24: =IFERROR(OFFSET(INDIRECT("'"&$BO$2&"'!"&"C$"&ROWS($B$1:D29)),,COLUMNS($B$1:B21)+35),"") -> 0 | BT24: =IFERROR(OFFSET(INDIRECT("'"&$BO$2&"'!"&"C$"&ROWS($B$1:H29)),,COLUMNS($B$1:B21)+36),"") -> 0 | BU24: =IFERROR(OFFSET(INDIRECT("'"&$BO$2&"'!"&"C$"&ROWS($B$1:I29)),,COLUMNS($B$1:B21)+37),"") -> 0 | BV24: =IFERROR(OFFSET(INDIRECT("'"&$BV$2&"'!"&"C$"&ROWS($B$1:B29)),,COLUMNS($B$1:B21)+31),"") -> 26 | BW24: =IFERROR(OFFSET(INDIRECT("'"&$BV$2&"'!"&"C$"&ROWS($B$1:B29)),,COLUMNS($B$1:B21)+32),"") -> 0 | BX24: =IFERROR(OFFSET(INDIRECT("'"&$BV$2&"'!"&"C$"&ROWS($B$1:C29)),,COLUMNS($B$1:B21)+33),"") -> 0 | BY24: =IFERROR(OFFSET(INDIRECT("'"&$BV$2&"'!"&"C$"&ROWS($B$1:D29)),,COLUMNS($B$1:B21)+34),"") -> 0 | BZ24: =IFERROR(OFFSET(INDIRECT("'"&$BV$2&"'!"&"C$"&ROWS($B$1:D29)),,COLUMNS($B$1:B21)+35),"") -> 0 | CA24: =IFERROR(OFFSET(INDIRECT("'"&$BV$2&"'!"&"C$"&ROWS($B$1:H29)),,COLUMNS($B$1:B21)+36),"") -> 0 | CB24: =IFERROR(OFFSET(INDIRECT("'"&$BV$2&"'!"&"C$"&ROWS($B$1:I29)),,COLUMNS($B$1:B21)+37),"") -> 0 | CC24: =IFERROR(OFFSET(INDIRECT("'"&$CC$2&"'!"&"C$"&ROWS($B$1:B29)),,COLUMNS($B$1:B21)+31),"") -> 0 | CD24: =IFERROR(OFFSET(INDIRECT("'"&$CC$2&"'!"&"C$"&ROWS($B$1:B29)),,COLUMNS($B$1:B21)+32),"") -> 0 | CE24: =IFERROR(OFFSET(INDIRECT("'"&$CC$2&"'!"&"C$"&ROWS($B$1:C29)),,COLUMNS($B$1:B21)+33),"") -> 0 | CF24: =IFERROR(OFFSET(INDIRECT("'"&$CC$2&"'!"&"C$"&ROWS($B$1:D29)),,COLUMNS($B$1:B21)+34),"") -> 0 | CG24: =IFERROR(OFFSET(INDIRECT("'"&$CC$2&"'!"&"C$"&ROWS($B$1:D29)),,COLUMNS($B$1:B21)+35),"") -> 0 | CH24: =IFERROR(OFFSET(INDIRECT("'"&$CC$2&"'!"&"C$"&ROWS($B$1:H29)),,COLUMNS($B$1:B21)+36),"") -> 0 | CI24: =IFERROR(OFFSET(INDIRECT("'"&$CC$2&"'!"&"C$"&ROWS($B$1:I29)),,COLUMNS($B$1:B21)+37),"") -> 0 | CJ24: =IFERROR(OFFSET(INDIRECT("'"&$CJ$2&"'!"&"C$"&ROWS($B$1:B29)),,COLUMNS($B$1:B21)+31),"") -> 26 | CK24: =IFERROR(OFFSET(INDIRECT("'"&$CJ$2&"'!"&"C$"&ROWS($B$1:B29)),,COLUMNS($B$1:B21)+32),"") -> 0 | CL24: =IFERROR(OFFSET(INDIRECT("'"&$CJ$2&"'!"&"C$"&ROWS($B$1:C29)),,COLUMNS($B$1:B21)+33),"") -> 0 | CM24: =IFERROR(OFFSET(INDIRECT("'"&$CJ$2&"'!"&"C$"&ROWS($B$1:D29)),,COLUMNS($B$1:B21)+34),"") -> 0 | CN24: =IFERROR(OFFSET(INDIRECT("'"&$CJ$2&"'!"&"C$"&ROWS($B$1:D29)),,COLUMNS($B$1:B21)+35),"") -> 0 | CO24: =IFERROR(OFFSET(INDIRECT("'"&$CJ$2&"'!"&"C$"&ROWS($B$1:H29)),,COLUMNS($B$1:B21)+36),"") -> 0 | CP24: =IFERROR(OFFSET(INDIRECT("'"&$CJ$2&"'!"&"C$"&ROWS($B$1:I29)),,COLUMNS($B$1:B21)+37),"") -> 0 | CR24: 400 | CS24: 630.7692308 | CT24: 307.6923077 | CU24: 938.4615385
A25: ALVIN PRAMOSO NACHOR | B25: 27.2 | C25: 20 | D25: 0 | E25: 0 | F25: 0 | G25: 47.2 | I25: 2017-04-11 | K25: =IFERROR(OFFSET(INDIRECT("'"&$K$2&"'!"&"C$"&ROWS($B$1:B30)),,COLUMNS($B$1:B22)+31),"") -> 26 | L25: =IFERROR(OFFSET(INDIRECT("'"&$K$2&"'!"&"C$"&ROWS($B$1:B30)),,COLUMNS($B$1:B22)+32),"") -> 0 | M25: =IFERROR(OFFSET(INDIRECT("'"&$K$2&"'!"&"C$"&ROWS($B$1:C30)),,COLUMNS($B$1:B22)+33),"") -> 0 | N25: =IFERROR(OFFSET(INDIRECT("'"&$K$2&"'!"&"C$"&ROWS($B$1:D30)),,COLUMNS($B$1:B22)+34),"") -> 0 | O25: =IFERROR(OFFSET(INDIRECT("'"&$K$2&"'!"&"C$"&ROWS($B$1:D30)),,COLUMNS($B$1:B22)+35),"") -> 0 | P25: =IFERROR(OFFSET(INDIRECT("'"&$K$2&"'!"&"C$"&ROWS($B$1:H30)),,COLUMNS($B$1:B22)+36),"") -> 0 | Q25: =IFERROR(OFFSET(INDIRECT("'"&$K$2&"'!"&"C$"&ROWS($B$1:I30)),,COLUMNS($B$1:B22)+37),"") -> 0 | R25: =IFERROR(OFFSET(INDIRECT("'"&$R$2&"'!"&"C$"&ROWS($B$1:B30)),,COLUMNS($B$1:B22)+31),"") -> 0 | S25: =IFERROR(OFFSET(INDIRECT("'"&$R$2&"'!"&"C$"&ROWS($B$1:B30)),,COLUMNS($B$1:B22)+32),"") -> 0 | T25: =IFERROR(OFFSET(INDIRECT("'"&$R$2&"'!"&"C$"&ROWS($B$1:C30)),,COLUMNS($B$1:B22)+33),"") -> 0 | U25: =IFERROR(OFFSET(INDIRECT("'"&$R$2&"'!"&"C$"&ROWS($B$1:D30)),,COLUMNS($B$1:B22)+34),"") -> 0 | V25: =IFERROR(OFFSET(INDIRECT("'"&$R$2&"'!"&"C$"&ROWS($B$1:D30)),,COLUMNS($B$1:B22)+35),"") -> 0 | W25: =IFERROR(OFFSET(INDIRECT("'"&$R$2&"'!"&"C$"&ROWS($B$1:H30)),,COLUMNS($B$1:B22)+36),"") -> 0 | X25: =IFERROR(OFFSET(INDIRECT("'"&$R$2&"'!"&"C$"&ROWS($B$1:I30)),,COLUMNS($B$1:B22)+37),"") -> 0 | Y25: =IFERROR(OFFSET(INDIRECT("'"&$Y$2&"'!"&"C$"&ROWS($B$1:B30)),,COLUMNS($B$1:B22)+31),"") -> 26 | Z25: =IFERROR(OFFSET(INDIRECT("'"&$Y$2&"'!"&"C$"&ROWS($B$1:B30)),,COLUMNS($B$1:B22)+32),"") -> 0 | AA25: =IFERROR(OFFSET(INDIRECT("'"&$Y$2&"'!"&"C$"&ROWS($B$1:C30)),,COLUMNS($B$1:B22)+33),"") -> 0 | AB25: =IFERROR(OFFSET(INDIRECT("'"&$Y$2&"'!"&"C$"&ROWS($B$1:D30)),,COLUMNS($B$1:B22)+34),"") -> 0 | AC25: =IFERROR(OFFSET(INDIRECT("'"&$Y$2&"'!"&"C$"&ROWS($B$1:D30)),,COLUMNS($B$1:B22)+35),"") -> 0 | AD25: =IFERROR(OFFSET(INDIRECT("'"&$Y$2&"'!"&"C$"&ROWS($B$1:H30)),,COLUMNS($B$1:B22)+36),"") -> 0 | AE25: =IFERROR(OFFSET(INDIRECT("'"&$Y$2&"'!"&"C$"&ROWS($B$1:I30)),,COLUMNS($B$1:B22)+37),"") -> 0 | AF25: =IFERROR(OFFSET(INDIRECT("'"&$AF$2&"'!"&"C$"&ROWS($B$1:B30)),,COLUMNS($B$1:B22)+31),"") -> 0 | AG25: =IFERROR(OFFSET(INDIRECT("'"&$AF$2&"'!"&"C$"&ROWS($B$1:B30)),,COLUMNS($B$1:B22)+32),"") -> 0 | AH25: =IFERROR(OFFSET(INDIRECT("'"&$AF$2&"'!"&"C$"&ROWS($B$1:C30)),,COLUMNS($B$1:B22)+33),"") -> 0 | AI25: =IFERROR(OFFSET(INDIRECT("'"&$AF$2&"'!"&"C$"&ROWS($B$1:D30)),,COLUMNS($B$1:B22)+34),"") -> 0 | AJ25: =IFERROR(OFFSET(INDIRECT("'"&$AF$2&"'!"&"C$"&ROWS($B$1:D30)),,COLUMNS($B$1:B22)+35),"") -> 0 | AK25: =IFERROR(OFFSET(INDIRECT("'"&$AF$2&"'!"&"C$"&ROWS($B$1:H30)),,COLUMNS($B$1:B22)+36),"") -> 0 | AL25: =IFERROR(OFFSET(INDIRECT("'"&$AF$2&"'!"&"C$"&ROWS($B$1:I30)),,COLUMNS($B$1:B22)+37),"") -> 0 | AM25: =IFERROR(OFFSET(INDIRECT("'"&$AM$2&"'!"&"C$"&ROWS($B$1:B30)),,COLUMNS($B$1:B22)+31),"") -> 26 | AN25: =IFERROR(OFFSET(INDIRECT("'"&$AM$2&"'!"&"C$"&ROWS($B$1:B30)),,COLUMNS($B$1:B22)+32),"") -> 0 | AO25: =IFERROR(OFFSET(INDIRECT("'"&$AM$2&"'!"&"C$"&ROWS($B$1:C30)),,COLUMNS($B$1:B22)+33),"") -> 0 | AP25: =IFERROR(OFFSET(INDIRECT("'"&$AM$2&"'!"&"C$"&ROWS($B$1:D30)),,COLUMNS($B$1:B22)+34),"") -> 0 | AQ25: =IFERROR(OFFSET(INDIRECT("'"&$AM$2&"'!"&"C$"&ROWS($B$1:D30)),,COLUMNS($B$1:B22)+35),"") -> 0 | AR25: =IFERROR(OFFSET(INDIRECT("'"&$AM$2&"'!"&"C$"&ROWS($B$1:H30)),,COLUMNS($B$1:B22)+36),"") -> 0 | AS25: =IFERROR(OFFSET(INDIRECT("'"&$AM$2&"'!"&"C$"&ROWS($B$1:I30)),,COLUMNS($B$1:B22)+37),"") -> 0 | AT25: =IFERROR(OFFSET(INDIRECT("'"&$AT$2&"'!"&"C$"&ROWS($B$1:B30)),,COLUMNS($B$1:B22)+31),"") -> 26 | AU25: =IFERROR(OFFSET(INDIRECT("'"&$AT$2&"'!"&"C$"&ROWS($B$1:B30)),,COLUMNS($B$1:B22)+32),"") -> 0 | AV25: =IFERROR(OFFSET(INDIRECT("'"&$AT$2&"'!"&"C$"&ROWS($B$1:C30)),,COLUMNS($B$1:B22)+33),"") -> 0 | AW25: =IFERROR(OFFSET(INDIRECT("'"&$AT$2&"'!"&"C$"&ROWS($B$1:D30)),,COLUMNS($B$1:B22)+34),"") -> 0 | AX25: =IFERROR(OFFSET(INDIRECT("'"&$AT$2&"'!"&"C$"&ROWS($B$1:D30)),,COLUMNS($B$1:B22)+35),"") -> 0 | AY25: =IFERROR(OFFSET(INDIRECT("'"&$AT$2&"'!"&"C$"&ROWS($B$1:H30)),,COLUMNS($B$1:B22)+36),"") -> 0 | AZ25: =IFERROR(OFFSET(INDIRECT("'"&$AT$2&"'!"&"C$"&ROWS($B$1:I30)),,COLUMNS($B$1:B22)+37),"") -> 0 | BA25: =IFERROR(OFFSET(INDIRECT("'"&$BA$2&"'!"&"C$"&ROWS($B$1:B30)),,COLUMNS($B$1:B22)+31),"") -> 26 | BB25: =IFERROR(OFFSET(INDIRECT("'"&$BA$2&"'!"&"C$"&ROWS($B$1:B30)),,COLUMNS($B$1:B22)+32),"") -> 0 | BC25: =IFERROR(OFFSET(INDIRECT("'"&$BA$2&"'!"&"C$"&ROWS($B$1:C30)),,COLUMNS($B$1:B22)+33),"") -> 0 | BD25: =IFERROR(OFFSET(INDIRECT("'"&$BA$2&"'!"&"C$"&ROWS($B$1:D30)),,COLUMNS($B$1:B22)+34),"") -> 0 | BE25: =IFERROR(OFFSET(INDIRECT("'"&$BA$2&"'!"&"C$"&ROWS($B$1:D30)),,COLUMNS($B$1:B22)+35),"") -> 0 | BF25: =IFERROR(OFFSET(INDIRECT("'"&$BA$2&"'!"&"C$"&ROWS($B$1:H30)),,COLUMNS($B$1:B22)+36),"") -> 0 | BG25: =IFERROR(OFFSET(INDIRECT("'"&$BA$2&"'!"&"C$"&ROWS($B$1:I30)),,COLUMNS($B$1:B22)+37),"") -> 0 | BH25: =IFERROR(OFFSET(INDIRECT("'"&$BH$2&"'!"&"C$"&ROWS($B$1:B30)),,COLUMNS($B$1:B22)+31),"") -> 26 | BI25: =IFERROR(OFFSET(INDIRECT("'"&$BH$2&"'!"&"C$"&ROWS($B$1:B30)),,COLUMNS($B$1:B22)+32),"") -> 0 | BJ25: =IFERROR(OFFSET(INDIRECT("'"&$BH$2&"'!"&"C$"&ROWS($B$1:C30)),,COLUMNS($B$1:B22)+33),"") -> 0 | BK25: =IFERROR(OFFSET(INDIRECT("'"&$BH$2&"'!"&"C$"&ROWS($B$1:D30)),,COLUMNS($B$1:B22)+34),"") -> 0 | BL25: =IFERROR(OFFSET(INDIRECT("'"&$BH$2&"'!"&"C$"&ROWS($B$1:D30)),,COLUMNS($B$1:B22)+35),"") -> 0 | BM25: =IFERROR(OFFSET(INDIRECT("'"&$BH$2&"'!"&"C$"&ROWS($B$1:H30)),,COLUMNS($B$1:B22)+36),"") -> 0 | BN25: =IFERROR(OFFSET(INDIRECT("'"&$BH$2&"'!"&"C$"&ROWS($B$1:I30)),,COLUMNS($B$1:B22)+37),"") -> 0 | BO25: =IFERROR(OFFSET(INDIRECT("'"&$BO$2&"'!"&"C$"&ROWS($B$1:B30)),,COLUMNS($B$1:B22)+31),"") -> 0 | BP25: =IFERROR(OFFSET(INDIRECT("'"&$BO$2&"'!"&"C$"&ROWS($B$1:B30)),,COLUMNS($B$1:B22)+32),"") -> 0 | BQ25: =IFERROR(OFFSET(INDIRECT("'"&$BO$2&"'!"&"C$"&ROWS($B$1:C30)),,COLUMNS($B$1:B22)+33),"") -> 0 | BR25: =IFERROR(OFFSET(INDIRECT("'"&$BO$2&"'!"&"C$"&ROWS($B$1:D30)),,COLUMNS($B$1:B22)+34),"") -> 0 | BS25: =IFERROR(OFFSET(INDIRECT("'"&$BO$2&"'!"&"C$"&ROWS($B$1:D30)),,COLUMNS($B$1:B22)+35),"") -> 0 | BT25: =IFERROR(OFFSET(INDIRECT("'"&$BO$2&"'!"&"C$"&ROWS($B$1:H30)),,COLUMNS($B$1:B22)+36),"") -> 0 | BU25: =IFERROR(OFFSET(INDIRECT("'"&$BO$2&"'!"&"C$"&ROWS($B$1:I30)),,COLUMNS($B$1:B22)+37),"") -> 0 | BV25: =IFERROR(OFFSET(INDIRECT("'"&$BV$2&"'!"&"C$"&ROWS($B$1:B30)),,COLUMNS($B$1:B22)+31),"") -> 26 | BW25: =IFERROR(OFFSET(INDIRECT("'"&$BV$2&"'!"&"C$"&ROWS($B$1:B30)),,COLUMNS($B$1:B22)+32),"") -> 0 | BX25: =IFERROR(OFFSET(INDIRECT("'"&$BV$2&"'!"&"C$"&ROWS($B$1:C30)),,COLUMNS($B$1:B22)+33),"") -> 0 | BY25: =IFERROR(OFFSET(INDIRECT("'"&$BV$2&"'!"&"C$"&ROWS($B$1:D30)),,COLUMNS($B$1:B22)+34),"") -> 0 | BZ25: =IFERROR(OFFSET(INDIRECT("'"&$BV$2&"'!"&"C$"&ROWS($B$1:D30)),,COLUMNS($B$1:B22)+35),"") -> 0 | CA25: =IFERROR(OFFSET(INDIRECT("'"&$BV$2&"'!"&"C$"&ROWS($B$1:H30)),,COLUMNS($B$1:B22)+36),"") -> 0 | CB25: =IFERROR(OFFSET(INDIRECT("'"&$BV$2&"'!"&"C$"&ROWS($B$1:I30)),,COLUMNS($B$1:B22)+37),"") -> 0 | CC25: =IFERROR(OFFSET(INDIRECT("'"&$CC$2&"'!"&"C$"&ROWS($B$1:B30)),,COLUMNS($B$1:B22)+31),"") -> 0 | CD25: =IFERROR(OFFSET(INDIRECT("'"&$CC$2&"'!"&"C$"&ROWS($B$1:B30)),,COLUMNS($B$1:B22)+32),"") -> 0 | CE25: =IFERROR(OFFSET(INDIRECT("'"&$CC$2&"'!"&"C$"&ROWS($B$1:C30)),,COLUMNS($B$1:B22)+33),"") -> 0 | CF25: =IFERROR(OFFSET(INDIRECT("'"&$CC$2&"'!"&"C$"&ROWS($B$1:D30)),,COLUMNS($B$1:B22)+34),"") -> 0 | CG25: =IFERROR(OFFSET(INDIRECT("'"&$CC$2&"'!"&"C$"&ROWS($B$1:D30)),,COLUMNS($B$1:B22)+35),"") -> 0 | CH25: =IFERROR(OFFSET(INDIRECT("'"&$CC$2&"'!"&"C$"&ROWS($B$1:H30)),,COLUMNS($B$1:B22)+36),"") -> 0 | CI25: =IFERROR(OFFSET(INDIRECT("'"&$CC$2&"'!"&"C$"&ROWS($B$1:I30)),,COLUMNS($B$1:B22)+37),"") -> 0 | CJ25: =IFERROR(OFFSET(INDIRECT("'"&$CJ$2&"'!"&"C$"&ROWS($B$1:B30)),,COLUMNS($B$1:B22)+31),"") -> 26 | CK25: =IFERROR(OFFSET(INDIRECT("'"&$CJ$2&"'!"&"C$"&ROWS($B$1:B30)),,COLUMNS($B$1:B22)+32),"") -> 0 | CL25: =IFERROR(OFFSET(INDIRECT("'"&$CJ$2&"'!"&"C$"&ROWS($B$1:C30)),,COLUMNS($B$1:B22)+33),"") -> 0 | CM25: =IFERROR(OFFSET(INDIRECT("'"&$CJ$2&"'!"&"C$"&ROWS($B$1:D30)),,COLUMNS($B$1:B22)+34),"") -> 0 | CN25: =IFERROR(OFFSET(INDIRECT("'"&$CJ$2&"'!"&"C$"&ROWS($B$1:D30)),,COLUMNS($B$1:B22)+35),"") -> 0 | CO25: =IFERROR(OFFSET(INDIRECT("'"&$CJ$2&"'!"&"C$"&ROWS($B$1:H30)),,COLUMNS($B$1:B22)+36),"") -> 0 | CP25: =IFERROR(OFFSET(INDIRECT("'"&$CJ$2&"'!"&"C$"&ROWS($B$1:I30)),,COLUMNS($B$1:B22)+37),"") -> 0 | CR25: 475 | CS25: 496.9230769 | CT25: 365.3846154 | CU25: 862.3076923
A26: احمد حسن سليم فرج | B26: 90 | C26: 20 | D26: 0 | E26: 0 | F26: 0 | G26: 110 | I26: 2011-11-19 | K26: =IFERROR(OFFSET(INDIRECT("'"&$K$2&"'!"&"C$"&ROWS($B$1:B31)),,COLUMNS($B$1:B23)+31),"") -> 26 | L26: =IFERROR(OFFSET(INDIRECT("'"&$K$2&"'!"&"C$"&ROWS($B$1:B31)),,COLUMNS($B$1:B23)+32),"") -> 0 | M26: =IFERROR(OFFSET(INDIRECT("'"&$K$2&"'!"&"C$"&ROWS($B$1:C31)),,COLUMNS($B$1:B23)+33),"") -> 0 | N26: =IFERROR(OFFSET(INDIRECT("'"&$K$2&"'!"&"C$"&ROWS($B$1:D31)),,COLUMNS($B$1:B23)+34),"") -> 0 | O26: =IFERROR(OFFSET(INDIRECT("'"&$K$2&"'!"&"C$"&ROWS($B$1:D31)),,COLUMNS($B$1:B23)+35),"") -> 0 | P26: =IFERROR(OFFSET(INDIRECT("'"&$K$2&"'!"&"C$"&ROWS($B$1:H31)),,COLUMNS($B$1:B23)+36),"") -> 0 | Q26: =IFERROR(OFFSET(INDIRECT("'"&$K$2&"'!"&"C$"&ROWS($B$1:I31)),,COLUMNS($B$1:B23)+37),"") -> 0 | R26: =IFERROR(OFFSET(INDIRECT("'"&$R$2&"'!"&"C$"&ROWS($B$1:B31)),,COLUMNS($B$1:B23)+31),"") -> 0 | S26: =IFERROR(OFFSET(INDIRECT("'"&$R$2&"'!"&"C$"&ROWS($B$1:B31)),,COLUMNS($B$1:B23)+32),"") -> 0 | T26: =IFERROR(OFFSET(INDIRECT("'"&$R$2&"'!"&"C$"&ROWS($B$1:C31)),,COLUMNS($B$1:B23)+33),"") -> 0 | U26: =IFERROR(OFFSET(INDIRECT("'"&$R$2&"'!"&"C$"&ROWS($B$1:D31)),,COLUMNS($B$1:B23)+34),"") -> 0 | V26: =IFERROR(OFFSET(INDIRECT("'"&$R$2&"'!"&"C$"&ROWS($B$1:D31)),,COLUMNS($B$1:B23)+35),"") -> 0 | W26: =IFERROR(OFFSET(INDIRECT("'"&$R$2&"'!"&"C$"&ROWS($B$1:H31)),,COLUMNS($B$1:B23)+36),"") -> 0 | X26: =IFERROR(OFFSET(INDIRECT("'"&$R$2&"'!"&"C$"&ROWS($B$1:I31)),,COLUMNS($B$1:B23)+37),"") -> 0 | Y26: =IFERROR(OFFSET(INDIRECT("'"&$Y$2&"'!"&"C$"&ROWS($B$1:B31)),,COLUMNS($B$1:B23)+31),"") -> 26 | Z26: =IFERROR(OFFSET(INDIRECT("'"&$Y$2&"'!"&"C$"&ROWS($B$1:B31)),,COLUMNS($B$1:B23)+32),"") -> 0 | AA26: =IFERROR(OFFSET(INDIRECT("'"&$Y$2&"'!"&"C$"&ROWS($B$1:C31)),,COLUMNS($B$1:B23)+33),"") -> 0 | AB26: =IFERROR(OFFSET(INDIRECT("'"&$Y$2&"'!"&"C$"&ROWS($B$1:D31)),,COLUMNS($B$1:B23)+34),"") -> 0 | AC26: =IFERROR(OFFSET(INDIRECT("'"&$Y$2&"'!"&"C$"&ROWS($B$1:D31)),,COLUMNS($B$1:B23)+35),"") -> 0 | AD26: =IFERROR(OFFSET(INDIRECT("'"&$Y$2&"'!"&"C$"&ROWS($B$1:H31)),,COLUMNS($B$1:B23)+36),"") -> 0 | AE26: =IFERROR(OFFSET(INDIRECT("'"&$Y$2&"'!"&"C$"&ROWS($B$1:I31)),,COLUMNS($B$1:B23)+37),"") -> 0 | AF26: =IFERROR(OFFSET(INDIRECT("'"&$AF$2&"'!"&"C$"&ROWS($B$1:B31)),,COLUMNS($B$1:B23)+31),"") -> 0 | AG26: =IFERROR(OFFSET(INDIRECT("'"&$AF$2&"'!"&"C$"&ROWS($B$1:B31)),,COLUMNS($B$1:B23)+32),"") -> 0 | AH26: =IFERROR(OFFSET(INDIRECT("'"&$AF$2&"'!"&"C$"&ROWS($B$1:C31)),,COLUMNS($B$1:B23)+33),"") -> 0 | AI26: =IFERROR(OFFSET(INDIRECT("'"&$AF$2&"'!"&"C$"&ROWS($B$1:D31)),,COLUMNS($B$1:B23)+34),"") -> 0 | AJ26: =IFERROR(OFFSET(INDIRECT("'"&$AF$2&"'!"&"C$"&ROWS($B$1:D31)),,COLUMNS($B$1:B23)+35),"") -> 0 | AK26: =IFERROR(OFFSET(INDIRECT("'"&$AF$2&"'!"&"C$"&ROWS($B$1:H31)),,COLUMNS($B$1:B23)+36),"") -> 0 | AL26: =IFERROR(OFFSET(INDIRECT("'"&$AF$2&"'!"&"C$"&ROWS($B$1:I31)),,COLUMNS($B$1:B23)+37),"") -> 0 | AM26: =IFERROR(OFFSET(INDIRECT("'"&$AM$2&"'!"&"C$"&ROWS($B$1:B31)),,COLUMNS($B$1:B23)+31),"") -> 26 | AN26: =IFERROR(OFFSET(INDIRECT("'"&$AM$2&"'!"&"C$"&ROWS($B$1:B31)),,COLUMNS($B$1:B23)+32),"") -> 0 | AO26: =IFERROR(OFFSET(INDIRECT("'"&$AM$2&"'!"&"C$"&ROWS($B$1:C31)),,COLUMNS($B$1:B23)+33),"") -> 0 | AP26: =IFERROR(OFFSET(INDIRECT("'"&$AM$2&"'!"&"C$"&ROWS($B$1:D31)),,COLUMNS($B$1:B23)+34),"") -> 0 | AQ26: =IFERROR(OFFSET(INDIRECT("'"&$AM$2&"'!"&"C$"&ROWS($B$1:D31)),,COLUMNS($B$1:B23)+35),"") -> 0 | AR26: =IFERROR(OFFSET(INDIRECT("'"&$AM$2&"'!"&"C$"&ROWS($B$1:H31)),,COLUMNS($B$1:B23)+36),"") -> 0 | AS26: =IFERROR(OFFSET(INDIRECT("'"&$AM$2&"'!"&"C$"&ROWS($B$1:I31)),,COLUMNS($B$1:B23)+37),"") -> 0 | AT26: =IFERROR(OFFSET(INDIRECT("'"&$AT$2&"'!"&"C$"&ROWS($B$1:B31)),,COLUMNS($B$1:B23)+31),"") -> 26 | AU26: =IFERROR(OFFSET(INDIRECT("'"&$AT$2&"'!"&"C$"&ROWS($B$1:B31)),,COLUMNS($B$1:B23)+32),"") -> 0 | AV26: =IFERROR(OFFSET(INDIRECT("'"&$AT$2&"'!"&"C$"&ROWS($B$1:C31)),,COLUMNS($B$1:B23)+33),"") -> 0 | AW26: =IFERROR(OFFSET(INDIRECT("'"&$AT$2&"'!"&"C$"&ROWS($B$1:D31)),,COLUMNS($B$1:B23)+34),"") -> 0 | AX26: =IFERROR(OFFSET(INDIRECT("'"&$AT$2&"'!"&"C$"&ROWS($B$1:D31)),,COLUMNS($B$1:B23)+35),"") -> 0 | AY26: =IFERROR(OFFSET(INDIRECT("'"&$AT$2&"'!"&"C$"&ROWS($B$1:H31)),,COLUMNS($B$1:B23)+36),"") -> 0 | AZ26: =IFERROR(OFFSET(INDIRECT("'"&$AT$2&"'!"&"C$"&ROWS($B$1:I31)),,COLUMNS($B$1:B23)+37),"") -> 0 | BA26: =IFERROR(OFFSET(INDIRECT("'"&$BA$2&"'!"&"C$"&ROWS($B$1:B31)),,COLUMNS($B$1:B23)+31),"") -> 26 | BB26: =IFERROR(OFFSET(INDIRECT("'"&$BA$2&"'!"&"C$"&ROWS($B$1:B31)),,COLUMNS($B$1:B23)+32),"") -> 0 | BC26: =IFERROR(OFFSET(INDIRECT("'"&$BA$2&"'!"&"C$"&ROWS($B$1:C31)),,COLUMNS($B$1:B23)+33),"") -> 0 | BD26: =IFERROR(OFFSET(INDIRECT("'"&$BA$2&"'!"&"C$"&ROWS($B$1:D31)),,COLUMNS($B$1:B23)+34),"") -> 0 | BE26: =IFERROR(OFFSET(INDIRECT("'"&$BA$2&"'!"&"C$"&ROWS($B$1:D31)),,COLUMNS($B$1:B23)+35),"") -> 0 | BF26: =IFERROR(OFFSET(INDIRECT("'"&$BA$2&"'!"&"C$"&ROWS($B$1:H31)),,COLUMNS($B$1:B23)+36),"") -> 0 | BG26: =IFERROR(OFFSET(INDIRECT("'"&$BA$2&"'!"&"C$"&ROWS($B$1:I31)),,COLUMNS($B$1:B23)+37),"") -> 0 | BH26: =IFERROR(OFFSET(INDIRECT("'"&$BH$2&"'!"&"C$"&ROWS($B$1:B31)),,COLUMNS($B$1:B23)+31),"") -> 26 | BI26: =IFERROR(OFFSET(INDIRECT("'"&$BH$2&"'!"&"C$"&ROWS($B$1:B31)),,COLUMNS($B$1:B23)+32),"") -> 0 | BJ26: =IFERROR(OFFSET(INDIRECT("'"&$BH$2&"'!"&"C$"&ROWS($B$1:C31)),,COLUMNS($B$1:B23)+33),"") -> 0 | BK26: =IFERROR(OFFSET(INDIRECT("'"&$BH$2&"'!"&"C$"&ROWS($B$1:D31)),,COLUMNS($B$1:B23)+34),"") -> 0 | BL26: =IFERROR(OFFSET(INDIRECT("'"&$BH$2&"'!"&"C$"&ROWS($B$1:D31)),,COLUMNS($B$1:B23)+35),"") -> 0 | BM26: =IFERROR(OFFSET(INDIRECT("'"&$BH$2&"'!"&"C$"&ROWS($B$1:H31)),,COLUMNS($B$1:B23)+36),"") -> 0 | BN26: =IFERROR(OFFSET(INDIRECT("'"&$BH$2&"'!"&"C$"&ROWS($B$1:I31)),,COLUMNS($B$1:B23)+37),"") -> 0 | BO26: =IFERROR(OFFSET(INDIRECT("'"&$BO$2&"'!"&"C$"&ROWS($B$1:B31)),,COLUMNS($B$1:B23)+31),"") -> 0 | BP26: =IFERROR(OFFSET(INDIRECT("'"&$BO$2&"'!"&"C$"&ROWS($B$1:B31)),,COLUMNS($B$1:B23)+32),"") -> 0 | BQ26: =IFERROR(OFFSET(INDIRECT("'"&$BO$2&"'!"&"C$"&ROWS($B$1:C31)),,COLUMNS($B$1:B23)+33),"") -> 0 | BR26: =IFERROR(OFFSET(INDIRECT("'"&$BO$2&"'!"&"C$"&ROWS($B$1:D31)),,COLUMNS($B$1:B23)+34),"") -> 0 | BS26: =IFERROR(OFFSET(INDIRECT("'"&$BO$2&"'!"&"C$"&ROWS($B$1:D31)),,COLUMNS($B$1:B23)+35),"") -> 0 | BT26: =IFERROR(OFFSET(INDIRECT("'"&$BO$2&"'!"&"C$"&ROWS($B$1:H31)),,COLUMNS($B$1:B23)+36),"") -> 0 | BU26: =IFERROR(OFFSET(INDIRECT("'"&$BO$2&"'!"&"C$"&ROWS($B$1:I31)),,COLUMNS($B$1:B23)+37),"") -> 0 | BV26: =IFERROR(OFFSET(INDIRECT("'"&$BV$2&"'!"&"C$"&ROWS($B$1:B31)),,COLUMNS($B$1:B23)+31),"") -> 26 | BW26: =IFERROR(OFFSET(INDIRECT("'"&$BV$2&"'!"&"C$"&ROWS($B$1:B31)),,COLUMNS($B$1:B23)+32),"") -> 0 | BX26: =IFERROR(OFFSET(INDIRECT("'"&$BV$2&"'!"&"C$"&ROWS($B$1:C31)),,COLUMNS($B$1:B23)+33),"") -> 0 | BY26: =IFERROR(OFFSET(INDIRECT("'"&$BV$2&"'!"&"C$"&ROWS($B$1:D31)),,COLUMNS($B$1:B23)+34),"") -> 0 | BZ26: =IFERROR(OFFSET(INDIRECT("'"&$BV$2&"'!"&"C$"&ROWS($B$1:D31)),,COLUMNS($B$1:B23)+35),"") -> 0 | CA26: =IFERROR(OFFSET(INDIRECT("'"&$BV$2&"'!"&"C$"&ROWS($B$1:H31)),,COLUMNS($B$1:B23)+36),"") -> 0 | CB26: =IFERROR(OFFSET(INDIRECT("'"&$BV$2&"'!"&"C$"&ROWS($B$1:I31)),,COLUMNS($B$1:B23)+37),"") -> 0 | CC26: =IFERROR(OFFSET(INDIRECT("'"&$CC$2&"'!"&"C$"&ROWS($B$1:B31)),,COLUMNS($B$1:B23)+31),"") -> 0 | CD26: =IFERROR(OFFSET(INDIRECT("'"&$CC$2&"'!"&"C$"&ROWS($B$1:B31)),,COLUMNS($B$1:B23)+32),"") -> 0 | CE26: =IFERROR(OFFSET(INDIRECT("'"&$CC$2&"'!"&"C$"&ROWS($B$1:C31)),,COLUMNS($B$1:B23)+33),"") -> 0 | CF26: =IFERROR(OFFSET(INDIRECT("'"&$CC$2&"'!"&"C$"&ROWS($B$1:D31)),,COLUMNS($B$1:B23)+34),"") -> 0 | CG26: =IFERROR(OFFSET(INDIRECT("'"&$CC$2&"'!"&"C$"&ROWS($B$1:D31)),,COLUMNS($B$1:B23)+35),"") -> 0 | CH26: =IFERROR(OFFSET(INDIRECT("'"&$CC$2&"'!"&"C$"&ROWS($B$1:H31)),,COLUMNS($B$1:B23)+36),"") -> 0 | CI26: =IFERROR(OFFSET(INDIRECT("'"&$CC$2&"'!"&"C$"&ROWS($B$1:I31)),,COLUMNS($B$1:B23)+37),"") -> 0 | CJ26: =IFERROR(OFFSET(INDIRECT("'"&$CJ$2&"'!"&"C$"&ROWS($B$1:B31)),,COLUMNS($B$1:B23)+31),"") -> 26 | CK26: =IFERROR(OFFSET(INDIRECT("'"&$CJ$2&"'!"&"C$"&ROWS($B$1:B31)),,COLUMNS($B$1:B23)+32),"") -> 0 | CL26: =IFERROR(OFFSET(INDIRECT("'"&$CJ$2&"'!"&"C$"&ROWS($B$1:C31)),,COLUMNS($B$1:B23)+33),"") -> 0 | CM26: =IFERROR(OFFSET(INDIRECT("'"&$CJ$2&"'!"&"C$"&ROWS($B$1:D31)),,COLUMNS($B$1:B23)+34),"") -> 0 | CN26: =IFERROR(OFFSET(INDIRECT("'"&$CJ$2&"'!"&"C$"&ROWS($B$1:D31)),,COLUMNS($B$1:B23)+35),"") -> 0 | CO26: =IFERROR(OFFSET(INDIRECT("'"&$CJ$2&"'!"&"C$"&ROWS($B$1:H31)),,COLUMNS($B$1:B23)+36),"") -> 0 | CP26: =IFERROR(OFFSET(INDIRECT("'"&$CJ$2&"'!"&"C$"&ROWS($B$1:I31)),,COLUMNS($B$1:B23)+37),"") -> 0 | CR26: 400 | CS26: 1384.615385 | CT26: 307.6923077 | CU26: 1692.307692
A27: فؤاد شوقى فؤاد مهنى | B27: 5.9 | C27: 20 | D27: 0 | E27: 0 | F27: 0 | G27: 25.9 | I27: 2019-03-03 | K27: =IFERROR(OFFSET(INDIRECT("'"&$K$2&"'!"&"C$"&ROWS($B$1:B32)),,COLUMNS($B$1:B24)+31),"") -> 26 | L27: =IFERROR(OFFSET(INDIRECT("'"&$K$2&"'!"&"C$"&ROWS($B$1:B32)),,COLUMNS($B$1:B24)+32),"") -> 0 | M27: =IFERROR(OFFSET(INDIRECT("'"&$K$2&"'!"&"C$"&ROWS($B$1:C32)),,COLUMNS($B$1:B24)+33),"") -> 0 | N27: =IFERROR(OFFSET(INDIRECT("'"&$K$2&"'!"&"C$"&ROWS($B$1:D32)),,COLUMNS($B$1:B24)+34),"") -> 0 | O27: =IFERROR(OFFSET(INDIRECT("'"&$K$2&"'!"&"C$"&ROWS($B$1:D32)),,COLUMNS($B$1:B24)+35),"") -> 0 | P27: =IFERROR(OFFSET(INDIRECT("'"&$K$2&"'!"&"C$"&ROWS($B$1:H32)),,COLUMNS($B$1:B24)+36),"") -> 0 | Q27: =IFERROR(OFFSET(INDIRECT("'"&$K$2&"'!"&"C$"&ROWS($B$1:I32)),,COLUMNS($B$1:B24)+37),"") -> 0 | R27: =IFERROR(OFFSET(INDIRECT("'"&$R$2&"'!"&"C$"&ROWS($B$1:B32)),,COLUMNS($B$1:B24)+31),"") -> 0 | S27: =IFERROR(OFFSET(INDIRECT("'"&$R$2&"'!"&"C$"&ROWS($B$1:B32)),,COLUMNS($B$1:B24)+32),"") -> 0 | T27: =IFERROR(OFFSET(INDIRECT("'"&$R$2&"'!"&"C$"&ROWS($B$1:C32)),,COLUMNS($B$1:B24)+33),"") -> 0 | U27: =IFERROR(OFFSET(INDIRECT("'"&$R$2&"'!"&"C$"&ROWS($B$1:D32)),,COLUMNS($B$1:B24)+34),"") -> 0 | V27: =IFERROR(OFFSET(INDIRECT("'"&$R$2&"'!"&"C$"&ROWS($B$1:D32)),,COLUMNS($B$1:B24)+35),"") -> 0 | W27: =IFERROR(OFFSET(INDIRECT("'"&$R$2&"'!"&"C$"&ROWS($B$1:H32)),,COLUMNS($B$1:B24)+36),"") -> 0 | X27: =IFERROR(OFFSET(INDIRECT("'"&$R$2&"'!"&"C$"&ROWS($B$1:I32)),,COLUMNS($B$1:B24)+37),"") -> 0 | Y27: =IFERROR(OFFSET(INDIRECT("'"&$Y$2&"'!"&"C$"&ROWS($B$1:B32)),,COLUMNS($B$1:B24)+31),"") -> 26 | Z27: =IFERROR(OFFSET(INDIRECT("'"&$Y$2&"'!"&"C$"&ROWS($B$1:B32)),,COLUMNS($B$1:B24)+32),"") -> 0 | AA27: =IFERROR(OFFSET(INDIRECT("'"&$Y$2&"'!"&"C$"&ROWS($B$1:C32)),,COLUMNS($B$1:B24)+33),"") -> 0 | AB27: =IFERROR(OFFSET(INDIRECT("'"&$Y$2&"'!"&"C$"&ROWS($B$1:D32)),,COLUMNS($B$1:B24)+34),"") -> 0 | AC27: =IFERROR(OFFSET(INDIRECT("'"&$Y$2&"'!"&"C$"&ROWS($B$1:D32)),,COLUMNS($B$1:B24)+35),"") -> 0 | AD27: =IFERROR(OFFSET(INDIRECT("'"&$Y$2&"'!"&"C$"&ROWS($B$1:H32)),,COLUMNS($B$1:B24)+36),"") -> 0 | AE27: =IFERROR(OFFSET(INDIRECT("'"&$Y$2&"'!"&"C$"&ROWS($B$1:I32)),,COLUMNS($B$1:B24)+37),"") -> 0 | AF27: =IFERROR(OFFSET(INDIRECT("'"&$AF$2&"'!"&"C$"&ROWS($B$1:B32)),,COLUMNS($B$1:B24)+31),"") -> 0 | AG27: =IFERROR(OFFSET(INDIRECT("'"&$AF$2&"'!"&"C$"&ROWS($B$1:B32)),,COLUMNS($B$1:B24)+32),"") -> 0 | AH27: =IFERROR(OFFSET(INDIRECT("'"&$AF$2&"'!"&"C$"&ROWS($B$1:C32)),,COLUMNS($B$1:B24)+33),"") -> 0 | AI27: =IFERROR(OFFSET(INDIRECT("'"&$AF$2&"'!"&"C$"&ROWS($B$1:D32)),,COLUMNS($B$1:B24)+34),"") -> 0 | AJ27: =IFERROR(OFFSET(INDIRECT("'"&$AF$2&"'!"&"C$"&ROWS($B$1:D32)),,COLUMNS($B$1:B24)+35),"") -> 0 | AK27: =IFERROR(OFFSET(INDIRECT("'"&$AF$2&"'!"&"C$"&ROWS($B$1:H32)),,COLUMNS($B$1:B24)+36),"") -> 0 | AL27: =IFERROR(OFFSET(INDIRECT("'"&$AF$2&"'!"&"C$"&ROWS($B$1:I32)),,COLUMNS($B$1:B24)+37),"") -> 0 | AM27: =IFERROR(OFFSET(INDIRECT("'"&$AM$2&"'!"&"C$"&ROWS($B$1:B32)),,COLUMNS($B$1:B24)+31),"") -> 26 | AN27: =IFERROR(OFFSET(INDIRECT("'"&$AM$2&"'!"&"C$"&ROWS($B$1:B32)),,COLUMNS($B$1:B24)+32),"") -> 0 | AO27: =IFERROR(OFFSET(INDIRECT("'"&$AM$2&"'!"&"C$"&ROWS($B$1:C32)),,COLUMNS($B$1:B24)+33),"") -> 0 | AP27: =IFERROR(OFFSET(INDIRECT("'"&$AM$2&"'!"&"C$"&ROWS($B$1:D32)),,COLUMNS($B$1:B24)+34),"") -> 0 | AQ27: =IFERROR(OFFSET(INDIRECT("'"&$AM$2&"'!"&"C$"&ROWS($B$1:D32)),,COLUMNS($B$1:B24)+35),"") -> 0 | AR27: =IFERROR(OFFSET(INDIRECT("'"&$AM$2&"'!"&"C$"&ROWS($B$1:H32)),,COLUMNS($B$1:B24)+36),"") -> 0 | AS27: =IFERROR(OFFSET(INDIRECT("'"&$AM$2&"'!"&"C$"&ROWS($B$1:I32)),,COLUMNS($B$1:B24)+37),"") -> 0 | AT27: =IFERROR(OFFSET(INDIRECT("'"&$AT$2&"'!"&"C$"&ROWS($B$1:B32)),,COLUMNS($B$1:B24)+31),"") -> 26 | AU27: =IFERROR(OFFSET(INDIRECT("'"&$AT$2&"'!"&"C$"&ROWS($B$1:B32)),,COLUMNS($B$1:B24)+32),"") -> 0 | AV27: =IFERROR(OFFSET(INDIRECT("'"&$AT$2&"'!"&"C$"&ROWS($B$1:C32)),,COLUMNS($B$1:B24)+33),"") -> 0 | AW27: =IFERROR(OFFSET(INDIRECT("'"&$AT$2&"'!"&"C$"&ROWS($B$1:D32)),,COLUMNS($B$1:B24)+34),"") -> 0 | AX27: =IFERROR(OFFSET(INDIRECT("'"&$AT$2&"'!"&"C$"&ROWS($B$1:D32)),,COLUMNS($B$1:B24)+35),"") -> 0 | AY27: =IFERROR(OFFSET(INDIRECT("'"&$AT$2&"'!"&"C$"&ROWS($B$1:H32)),,COLUMNS($B$1:B24)+36),"") -> 0 | AZ27: =IFERROR(OFFSET(INDIRECT("'"&$AT$2&"'!"&"C$"&ROWS($B$1:I32)),,COLUMNS($B$1:B24)+37),"") -> 0 | BA27: =IFERROR(OFFSET(INDIRECT("'"&$BA$2&"'!"&"C$"&ROWS($B$1:B32)),,COLUMNS($B$1:B24)+31),"") -> 26 | BB27: =IFERROR(OFFSET(INDIRECT("'"&$BA$2&"'!"&"C$"&ROWS($B$1:B32)),,COLUMNS($B$1:B24)+32),"") -> 0 | BC27: =IFERROR(OFFSET(INDIRECT("'"&$BA$2&"'!"&"C$"&ROWS($B$1:C32)),,COLUMNS($B$1:B24)+33),"") -> 0 | BD27: =IFERROR(OFFSET(INDIRECT("'"&$BA$2&"'!"&"C$"&ROWS($B$1:D32)),,COLUMNS($B$1:B24)+34),"") -> 0 | BE27: =IFERROR(OFFSET(INDIRECT("'"&$BA$2&"'!"&"C$"&ROWS($B$1:D32)),,COLUMNS($B$1:B24)+35),"") -> 0 | BF27: =IFERROR(OFFSET(INDIRECT("'"&$BA$2&"'!"&"C$"&ROWS($B$1:H32)),,COLUMNS($B$1:B24)+36),"") -> 0 | BG27: =IFERROR(OFFSET(INDIRECT("'"&$BA$2&"'!"&"C$"&ROWS($B$1:I32)),,COLUMNS($B$1:B24)+37),"") -> 0 | BH27: =IFERROR(OFFSET(INDIRECT("'"&$BH$2&"'!"&"C$"&ROWS($B$1:B32)),,COLUMNS($B$1:B24)+31),"") -> 26 | BI27: =IFERROR(OFFSET(INDIRECT("'"&$BH$2&"'!"&"C$"&ROWS($B$1:B32)),,COLUMNS($B$1:B24)+32),"") -> 0 | BJ27: =IFERROR(OFFSET(INDIRECT("'"&$BH$2&"'!"&"C$"&ROWS($B$1:C32)),,COLUMNS($B$1:B24)+33),"") -> 0 | BK27: =IFERROR(OFFSET(INDIRECT("'"&$BH$2&"'!"&"C$"&ROWS($B$1:D32)),,COLUMNS($B$1:B24)+34),"") -> 0 | BL27: =IFERROR(OFFSET(INDIRECT("'"&$BH$2&"'!"&"C$"&ROWS($B$1:D32)),,COLUMNS($B$1:B24)+35),"") -> 0 | BM27: =IFERROR(OFFSET(INDIRECT("'"&$BH$2&"'!"&"C$"&ROWS($B$1:H32)),,COLUMNS($B$1:B24)+36),"") -> 0 | BN27: =IFERROR(OFFSET(INDIRECT("'"&$BH$2&"'!"&"C$"&ROWS($B$1:I32)),,COLUMNS($B$1:B24)+37),"") -> 0 | BO27: =IFERROR(OFFSET(INDIRECT("'"&$BO$2&"'!"&"C$"&ROWS($B$1:B32)),,COLUMNS($B$1:B24)+31),"") -> 0 | BP27: =IFERROR(OFFSET(INDIRECT("'"&$BO$2&"'!"&"C$"&ROWS($B$1:B32)),,COLUMNS($B$1:B24)+32),"") -> 0 | BQ27: =IFERROR(OFFSET(INDIRECT("'"&$BO$2&"'!"&"C$"&ROWS($B$1:C32)),,COLUMNS($B$1:B24)+33),"") -> 0 | BR27: =IFERROR(OFFSET(INDIRECT("'"&$BO$2&"'!"&"C$"&ROWS($B$1:D32)),,COLUMNS($B$1:B24)+34),"") -> 0 | BS27: =IFERROR(OFFSET(INDIRECT("'"&$BO$2&"'!"&"C$"&ROWS($B$1:D32)),,COLUMNS($B$1:B24)+35),"") -> 0 | BT27: =IFERROR(OFFSET(INDIRECT("'"&$BO$2&"'!"&"C$"&ROWS($B$1:H32)),,COLUMNS($B$1:B24)+36),"") -> 0 | BU27: =IFERROR(OFFSET(INDIRECT("'"&$BO$2&"'!"&"C$"&ROWS($B$1:I32)),,COLUMNS($B$1:B24)+37),"") -> 0 | BV27: =IFERROR(OFFSET(INDIRECT("'"&$BV$2&"'!"&"C$"&ROWS($B$1:B32)),,COLUMNS($B$1:B24)+31),"") -> 26 | BW27: =IFERROR(OFFSET(INDIRECT("'"&$BV$2&"'!"&"C$"&ROWS($B$1:B32)),,COLUMNS($B$1:B24)+32),"") -> 0 | BX27: =IFERROR(OFFSET(INDIRECT("'"&$BV$2&"'!"&"C$"&ROWS($B$1:C32)),,COLUMNS($B$1:B24)+33),"") -> 0 | BY27: =IFERROR(OFFSET(INDIRECT("'"&$BV$2&"'!"&"C$"&ROWS($B$1:D32)),,COLUMNS($B$1:B24)+34),"") -> 0 | BZ27: =IFERROR(OFFSET(INDIRECT("'"&$BV$2&"'!"&"C$"&ROWS($B$1:D32)),,COLUMNS($B$1:B24)+35),"") -> 0 | CA27: =IFERROR(OFFSET(INDIRECT("'"&$BV$2&"'!"&"C$"&ROWS($B$1:H32)),,COLUMNS($B$1:B24)+36),"") -> 0 | CB27: =IFERROR(OFFSET(INDIRECT("'"&$BV$2&"'!"&"C$"&ROWS($B$1:I32)),,COLUMNS($B$1:B24)+37),"") -> 0 | CC27: =IFERROR(OFFSET(INDIRECT("'"&$CC$2&"'!"&"C$"&ROWS($B$1:B32)),,COLUMNS($B$1:B24)+31),"") -> 0 | CD27: =IFERROR(OFFSET(INDIRECT("'"&$CC$2&"'!"&"C$"&ROWS($B$1:B32)),,COLUMNS($B$1:B24)+32),"") -> 0 | CE27: =IFERROR(OFFSET(INDIRECT("'"&$CC$2&"'!"&"C$"&ROWS($B$1:C32)),,COLUMNS($B$1:B24)+33),"") -> 0 | CF27: =IFERROR(OFFSET(INDIRECT("'"&$CC$2&"'!"&"C$"&ROWS($B$1:D32)),,COLUMNS($B$1:B24)+34),"") -> 0 | CG27: =IFERROR(OFFSET(INDIRECT("'"&$CC$2&"'!"&"C$"&ROWS($B$1:D32)),,COLUMNS($B$1:B24)+35),"") -> 0 | CH27: =IFERROR(OFFSET(INDIRECT("'"&$CC$2&"'!"&"C$"&ROWS($B$1:H32)),,COLUMNS($B$1:B24)+36),"") -> 0 | CI27: =IFERROR(OFFSET(INDIRECT("'"&$CC$2&"'!"&"C$"&ROWS($B$1:I32)),,COLUMNS($B$1:B24)+37),"") -> 0 | CJ27: =IFERROR(OFFSET(INDIRECT("'"&$CJ$2&"'!"&"C$"&ROWS($B$1:B32)),,COLUMNS($B$1:B24)+31),"") -> 26 | CK27: =IFERROR(OFFSET(INDIRECT("'"&$CJ$2&"'!"&"C$"&ROWS($B$1:B32)),,COLUMNS($B$1:B24)+32),"") -> 0 | CL27: =IFERROR(OFFSET(INDIRECT("'"&$CJ$2&"'!"&"C$"&ROWS($B$1:C32)),,COLUMNS($B$1:B24)+33),"") -> 0 | CM27: =IFERROR(OFFSET(INDIRECT("'"&$CJ$2&"'!"&"C$"&ROWS($B$1:D32)),,COLUMNS($B$1:B24)+34),"") -> 0 | CN27: =IFERROR(OFFSET(INDIRECT("'"&$CJ$2&"'!"&"C$"&ROWS($B$1:D32)),,COLUMNS($B$1:B24)+35),"") -> 0 | CO27: =IFERROR(OFFSET(INDIRECT("'"&$CJ$2&"'!"&"C$"&ROWS($B$1:H32)),,COLUMNS($B$1:B24)+36),"") -> 0 | CP27: =IFERROR(OFFSET(INDIRECT("'"&$CJ$2&"'!"&"C$"&ROWS($B$1:I32)),,COLUMNS($B$1:B24)+37),"") -> 0 | CR27: 350 | CS27: 79.42307692 | CT27: 269.2307692 | CU27: 348.6538462
A28: ابرام خيرى مكرم حنا | B28: 13.3 | C28: 20 | D28: 0 | E28: 0 | F28: 0 | G28: 33.3 | I28: 2020-07-22 | K28: =IFERROR(OFFSET(INDIRECT("'"&$K$2&"'!"&"C$"&ROWS($B$1:B33)),,COLUMNS($B$1:B25)+31),"") -> 26 | L28: =IFERROR(OFFSET(INDIRECT("'"&$K$2&"'!"&"C$"&ROWS($B$1:B33)),,COLUMNS($B$1:B25)+32),"") -> 0 | M28: =IFERROR(OFFSET(INDIRECT("'"&$K$2&"'!"&"C$"&ROWS($B$1:C33)),,COLUMNS($B$1:B25)+33),"") -> 0 | N28: =IFERROR(OFFSET(INDIRECT("'"&$K$2&"'!"&"C$"&ROWS($B$1:D33)),,COLUMNS($B$1:B25)+34),"") -> 0 | O28: =IFERROR(OFFSET(INDIRECT("'"&$K$2&"'!"&"C$"&ROWS($B$1:D33)),,COLUMNS($B$1:B25)+35),"") -> 0 | P28: =IFERROR(OFFSET(INDIRECT("'"&$K$2&"'!"&"C$"&ROWS($B$1:H33)),,COLUMNS($B$1:B25)+36),"") -> 0 | Q28: =IFERROR(OFFSET(INDIRECT("'"&$K$2&"'!"&"C$"&ROWS($B$1:I33)),,COLUMNS($B$1:B25)+37),"") -> 0 | R28: =IFERROR(OFFSET(INDIRECT("'"&$R$2&"'!"&"C$"&ROWS($B$1:B33)),,COLUMNS($B$1:B25)+31),"") -> 0 | S28: =IFERROR(OFFSET(INDIRECT("'"&$R$2&"'!"&"C$"&ROWS($B$1:B33)),,COLUMNS($B$1:B25)+32),"") -> 0 | T28: =IFERROR(OFFSET(INDIRECT("'"&$R$2&"'!"&"C$"&ROWS($B$1:C33)),,COLUMNS($B$1:B25)+33),"") -> 0 | U28: =IFERROR(OFFSET(INDIRECT("'"&$R$2&"'!"&"C$"&ROWS($B$1:D33)),,COLUMNS($B$1:B25)+34),"") -> 0 | V28: =IFERROR(OFFSET(INDIRECT("'"&$R$2&"'!"&"C$"&ROWS($B$1:D33)),,COLUMNS($B$1:B25)+35),"") -> 0 | W28: =IFERROR(OFFSET(INDIRECT("'"&$R$2&"'!"&"C$"&ROWS($B$1:H33)),,COLUMNS($B$1:B25)+36),"") -> 0 | X28: =IFERROR(OFFSET(INDIRECT("'"&$R$2&"'!"&"C$"&ROWS($B$1:I33)),,COLUMNS($B$1:B25)+37),"") -> 0 | Y28: =IFERROR(OFFSET(INDIRECT("'"&$Y$2&"'!"&"C$"&ROWS($B$1:B33)),,COLUMNS($B$1:B25)+31),"") -> 26 | Z28: =IFERROR(OFFSET(INDIRECT("'"&$Y$2&"'!"&"C$"&ROWS($B$1:B33)),,COLUMNS($B$1:B25)+32),"") -> 0 | AA28: =IFERROR(OFFSET(INDIRECT("'"&$Y$2&"'!"&"C$"&ROWS($B$1:C33)),,COLUMNS($B$1:B25)+33),"") -> 0 | AB28: =IFERROR(OFFSET(INDIRECT("'"&$Y$2&"'!"&"C$"&ROWS($B$1:D33)),,COLUMNS($B$1:B25)+34),"") -> 0 | AC28: =IFERROR(OFFSET(INDIRECT("'"&$Y$2&"'!"&"C$"&ROWS($B$1:D33)),,COLUMNS($B$1:B25)+35),"") -> 0 | AD28: =IFERROR(OFFSET(INDIRECT("'"&$Y$2&"'!"&"C$"&ROWS($B$1:H33)),,COLUMNS($B$1:B25)+36),"") -> 0 | AE28: =IFERROR(OFFSET(INDIRECT("'"&$Y$2&"'!"&"C$"&ROWS($B$1:I33)),,COLUMNS($B$1:B25)+37),"") -> 0 | AF28: =IFERROR(OFFSET(INDIRECT("'"&$AF$2&"'!"&"C$"&ROWS($B$1:B33)),,COLUMNS($B$1:B25)+31),"") -> 0 | AG28: =IFERROR(OFFSET(INDIRECT("'"&$AF$2&"'!"&"C$"&ROWS($B$1:B33)),,COLUMNS($B$1:B25)+32),"") -> 0 | AH28: =IFERROR(OFFSET(INDIRECT("'"&$AF$2&"'!"&"C$"&ROWS($B$1:C33)),,COLUMNS($B$1:B25)+33),"") -> 0 | AI28: =IFERROR(OFFSET(INDIRECT("'"&$AF$2&"'!"&"C$"&ROWS($B$1:D33)),,COLUMNS($B$1:B25)+34),"") -> 0 | AJ28: =IFERROR(OFFSET(INDIRECT("'"&$AF$2&"'!"&"C$"&ROWS($B$1:D33)),,COLUMNS($B$1:B25)+35),"") -> 0 | AK28: =IFERROR(OFFSET(INDIRECT("'"&$AF$2&"'!"&"C$"&ROWS($B$1:H33)),,COLUMNS($B$1:B25)+36),"") -> 0 | AL28: =IFERROR(OFFSET(INDIRECT("'"&$AF$2&"'!"&"C$"&ROWS($B$1:I33)),,COLUMNS($B$1:B25)+37),"") -> 0 | AM28: =IFERROR(OFFSET(INDIRECT("'"&$AM$2&"'!"&"C$"&ROWS($B$1:B33)),,COLUMNS($B$1:B25)+31),"") -> 26 | AN28: =IFERROR(OFFSET(INDIRECT("'"&$AM$2&"'!"&"C$"&ROWS($B$1:B33)),,COLUMNS($B$1:B25)+32),"") -> 0 | AO28: =IFERROR(OFFSET(INDIRECT("'"&$AM$2&"'!"&"C$"&ROWS($B$1:C33)),,COLUMNS($B$1:B25)+33),"") -> 0 | AP28: =IFERROR(OFFSET(INDIRECT("'"&$AM$2&"'!"&"C$"&ROWS($B$1:D33)),,COLUMNS($B$1:B25)+34),"") -> 0 | AQ28: =IFERROR(OFFSET(INDIRECT("'"&$AM$2&"'!"&"C$"&ROWS($B$1:D33)),,COLUMNS($B$1:B25)+35),"") -> 0 | AR28: =IFERROR(OFFSET(INDIRECT("'"&$AM$2&"'!"&"C$"&ROWS($B$1:H33)),,COLUMNS($B$1:B25)+36),"") -> 0 | AS28: =IFERROR(OFFSET(INDIRECT("'"&$AM$2&"'!"&"C$"&ROWS($B$1:I33)),,COLUMNS($B$1:B25)+37),"") -> 0 | AT28: =IFERROR(OFFSET(INDIRECT("'"&$AT$2&"'!"&"C$"&ROWS($B$1:B33)),,COLUMNS($B$1:B25)+31),"") -> 26 | AU28: =IFERROR(OFFSET(INDIRECT("'"&$AT$2&"'!"&"C$"&ROWS($B$1:B33)),,COLUMNS($B$1:B25)+32),"") -> 0 | AV28: =IFERROR(OFFSET(INDIRECT("'"&$AT$2&"'!"&"C$"&ROWS($B$1:C33)),,COLUMNS($B$1:B25)+33),"") -> 0 | AW28: =IFERROR(OFFSET(INDIRECT("'"&$AT$2&"'!"&"C$"&ROWS($B$1:D33)),,COLUMNS($B$1:B25)+34),"") -> 0 | AX28: =IFERROR(OFFSET(INDIRECT("'"&$AT$2&"'!"&"C$"&ROWS($B$1:D33)),,COLUMNS($B$1:B25)+35),"") -> 0 | AY28: =IFERROR(OFFSET(INDIRECT("'"&$AT$2&"'!"&"C$"&ROWS($B$1:H33)),,COLUMNS($B$1:B25)+36),"") -> 0 | AZ28: =IFERROR(OFFSET(INDIRECT("'"&$AT$2&"'!"&"C$"&ROWS($B$1:I33)),,COLUMNS($B$1:B25)+37),"") -> 0 | BA28: =IFERROR(OFFSET(INDIRECT("'"&$BA$2&"'!"&"C$"&ROWS($B$1:B33)),,COLUMNS($B$1:B25)+31),"") -> 26 | BB28: =IFERROR(OFFSET(INDIRECT("'"&$BA$2&"'!"&"C$"&ROWS($B$1:B33)),,COLUMNS($B$1:B25)+32),"") -> 0 | BC28: =IFERROR(OFFSET(INDIRECT("'"&$BA$2&"'!"&"C$"&ROWS($B$1:C33)),,COLUMNS($B$1:B25)+33),"") -> 0 | BD28: =IFERROR(OFFSET(INDIRECT("'"&$BA$2&"'!"&"C$"&ROWS($B$1:D33)),,COLUMNS($B$1:B25)+34),"") -> 0 | BE28: =IFERROR(OFFSET(INDIRECT("'"&$BA$2&"'!"&"C$"&ROWS($B$1:D33)),,COLUMNS($B$1:B25)+35),"") -> 0 | BF28: =IFERROR(OFFSET(INDIRECT("'"&$BA$2&"'!"&"C$"&ROWS($B$1:H33)),,COLUMNS($B$1:B25)+36),"") -> 0 | BG28: =IFERROR(OFFSET(INDIRECT("'"&$BA$2&"'!"&"C$"&ROWS($B$1:I33)),,COLUMNS($B$1:B25)+37),"") -> 0 | BH28: =IFERROR(OFFSET(INDIRECT("'"&$BH$2&"'!"&"C$"&ROWS($B$1:B33)),,COLUMNS($B$1:B25)+31),"") -> 26 | BI28: =IFERROR(OFFSET(INDIRECT("'"&$BH$2&"'!"&"C$"&ROWS($B$1:B33)),,COLUMNS($B$1:B25)+32),"") -> 0 | BJ28: =IFERROR(OFFSET(INDIRECT("'"&$BH$2&"'!"&"C$"&ROWS($B$1:C33)),,COLUMNS($B$1:B25)+33),"") -> 0 | BK28: =IFERROR(OFFSET(INDIRECT("'"&$BH$2&"'!"&"C$"&ROWS($B$1:D33)),,COLUMNS($B$1:B25)+34),"") -> 0 | BL28: =IFERROR(OFFSET(INDIRECT("'"&$BH$2&"'!"&"C$"&ROWS($B$1:D33)),,COLUMNS($B$1:B25)+35),"") -> 0 | BM28: =IFERROR(OFFSET(INDIRECT("'"&$BH$2&"'!"&"C$"&ROWS($B$1:H33)),,COLUMNS($B$1:B25)+36),"") -> 0 | BN28: =IFERROR(OFFSET(INDIRECT("'"&$BH$2&"'!"&"C$"&ROWS($B$1:I33)),,COLUMNS($B$1:B25)+37),"") -> 0 | BO28: =IFERROR(OFFSET(INDIRECT("'"&$BO$2&"'!"&"C$"&ROWS($B$1:B33)),,COLUMNS($B$1:B25)+31),"") -> 0 | BP28: =IFERROR(OFFSET(INDIRECT("'"&$BO$2&"'!"&"C$"&ROWS($B$1:B33)),,COLUMNS($B$1:B25)+32),"") -> 0 | BQ28: =IFERROR(OFFSET(INDIRECT("'"&$BO$2&"'!"&"C$"&ROWS($B$1:C33)),,COLUMNS($B$1:B25)+33),"") -> 0 | BR28: =IFERROR(OFFSET(INDIRECT("'"&$BO$2&"'!"&"C$"&ROWS($B$1:D33)),,COLUMNS($B$1:B25)+34),"") -> 0 | BS28: =IFERROR(OFFSET(INDIRECT("'"&$BO$2&"'!"&"C$"&ROWS($B$1:D33)),,COLUMNS($B$1:B25)+35),"") -> 0 | BT28: =IFERROR(OFFSET(INDIRECT("'"&$BO$2&"'!"&"C$"&ROWS($B$1:H33)),,COLUMNS($B$1:B25)+36),"") -> 0 | BU28: =IFERROR(OFFSET(INDIRECT("'"&$BO$2&"'!"&"C$"&ROWS($B$1:I33)),,COLUMNS($B$1:B25)+37),"") -> 0 | BV28: =IFERROR(OFFSET(INDIRECT("'"&$BV$2&"'!"&"C$"&ROWS($B$1:B33)),,COLUMNS($B$1:B25)+31),"") -> 26 | BW28: =IFERROR(OFFSET(INDIRECT("'"&$BV$2&"'!"&"C$"&ROWS($B$1:B33)),,COLUMNS($B$1:B25)+32),"") -> 0 | BX28: =IFERROR(OFFSET(INDIRECT("'"&$BV$2&"'!"&"C$"&ROWS($B$1:C33)),,COLUMNS($B$1:B25)+33),"") -> 0 | BY28: =IFERROR(OFFSET(INDIRECT("'"&$BV$2&"'!"&"C$"&ROWS($B$1:D33)),,COLUMNS($B$1:B25)+34),"") -> 0 | BZ28: =IFERROR(OFFSET(INDIRECT("'"&$BV$2&"'!"&"C$"&ROWS($B$1:D33)),,COLUMNS($B$1:B25)+35),"") -> 0 | CA28: =IFERROR(OFFSET(INDIRECT("'"&$BV$2&"'!"&"C$"&ROWS($B$1:H33)),,COLUMNS($B$1:B25)+36),"") -> 0 | CB28: =IFERROR(OFFSET(INDIRECT("'"&$BV$2&"'!"&"C$"&ROWS($B$1:I33)),,COLUMNS($B$1:B25)+37),"") -> 0 | CC28: =IFERROR(OFFSET(INDIRECT("'"&$CC$2&"'!"&"C$"&ROWS($B$1:B33)),,COLUMNS($B$1:B25)+31),"") -> 0 | CD28: =IFERROR(OFFSET(INDIRECT("'"&$CC$2&"'!"&"C$"&ROWS($B$1:B33)),,COLUMNS($B$1:B25)+32),"") -> 0 | CE28: =IFERROR(OFFSET(INDIRECT("'"&$CC$2&"'!"&"C$"&ROWS($B$1:C33)),,COLUMNS($B$1:B25)+33),"") -> 0 | CF28: =IFERROR(OFFSET(INDIRECT("'"&$CC$2&"'!"&"C$"&ROWS($B$1:D33)),,COLUMNS($B$1:B25)+34),"") -> 0 | CG28: =IFERROR(OFFSET(INDIRECT("'"&$CC$2&"'!"&"C$"&ROWS($B$1:D33)),,COLUMNS($B$1:B25)+35),"") -> 0 | CH28: =IFERROR(OFFSET(INDIRECT("'"&$CC$2&"'!"&"C$"&ROWS($B$1:H33)),,COLUMNS($B$1:B25)+36),"") -> 0 | CI28: =IFERROR(OFFSET(INDIRECT("'"&$CC$2&"'!"&"C$"&ROWS($B$1:I33)),,COLUMNS($B$1:B25)+37),"") -> 0 | CJ28: =IFERROR(OFFSET(INDIRECT("'"&$CJ$2&"'!"&"C$"&ROWS($B$1:B33)),,COLUMNS($B$1:B25)+31),"") -> 26 | CK28: =IFERROR(OFFSET(INDIRECT("'"&$CJ$2&"'!"&"C$"&ROWS($B$1:B33)),,COLUMNS($B$1:B25)+32),"") -> 0 | CL28: =IFERROR(OFFSET(INDIRECT("'"&$CJ$2&"'!"&"C$"&ROWS($B$1:C33)),,COLUMNS($B$1:B25)+33),"") -> 0 | CM28: =IFERROR(OFFSET(INDIRECT("'"&$CJ$2&"'!"&"C$"&ROWS($B$1:D33)),,COLUMNS($B$1:B25)+34),"") -> 0 | CN28: =IFERROR(OFFSET(INDIRECT("'"&$CJ$2&"'!"&"C$"&ROWS($B$1:D33)),,COLUMNS($B$1:B25)+35),"") -> 0 | CO28: =IFERROR(OFFSET(INDIRECT("'"&$CJ$2&"'!"&"C$"&ROWS($B$1:H33)),,COLUMNS($B$1:B25)+36),"") -> 0 | CP28: =IFERROR(OFFSET(INDIRECT("'"&$CJ$2&"'!"&"C$"&ROWS($B$1:I33)),,COLUMNS($B$1:B25)+37),"") -> 0 | CR28: 300 | CS28: 153.4615385 | CT28: 230.7692308 | CU28: 384.2307692
A29: عبد الله بادشا مياه | B29: 7.2 | C29: 20 | E29: 0 | F29: 0 | G29: 27.2 | I29: 2020-10-05 | K29: =IFERROR(OFFSET(INDIRECT("'"&$K$2&"'!"&"C$"&ROWS($B$1:B34)),,COLUMNS($B$1:B26)+31),"") -> 26 | L29: =IFERROR(OFFSET(INDIRECT("'"&$K$2&"'!"&"C$"&ROWS($B$1:B34)),,COLUMNS($B$1:B26)+32),"") -> 0 | M29: =IFERROR(OFFSET(INDIRECT("'"&$K$2&"'!"&"C$"&ROWS($B$1:C34)),,COLUMNS($B$1:B26)+33),"") -> 0 | N29: =IFERROR(OFFSET(INDIRECT("'"&$K$2&"'!"&"C$"&ROWS($B$1:D34)),,COLUMNS($B$1:B26)+34),"") -> 0 | O29: =IFERROR(OFFSET(INDIRECT("'"&$K$2&"'!"&"C$"&ROWS($B$1:D34)),,COLUMNS($B$1:B26)+35),"") -> 0 | P29: =IFERROR(OFFSET(INDIRECT("'"&$K$2&"'!"&"C$"&ROWS($B$1:H34)),,COLUMNS($B$1:B26)+36),"") -> 0 | Q29: =IFERROR(OFFSET(INDIRECT("'"&$K$2&"'!"&"C$"&ROWS($B$1:I34)),,COLUMNS($B$1:B26)+37),"") -> 0 | R29: =IFERROR(OFFSET(INDIRECT("'"&$R$2&"'!"&"C$"&ROWS($B$1:B34)),,COLUMNS($B$1:B26)+31),"") -> 0 | S29: =IFERROR(OFFSET(INDIRECT("'"&$R$2&"'!"&"C$"&ROWS($B$1:B34)),,COLUMNS($B$1:B26)+32),"") -> 0 | T29: =IFERROR(OFFSET(INDIRECT("'"&$R$2&"'!"&"C$"&ROWS($B$1:C34)),,COLUMNS($B$1:B26)+33),"") -> 0 | U29: =IFERROR(OFFSET(INDIRECT("'"&$R$2&"'!"&"C$"&ROWS($B$1:D34)),,COLUMNS($B$1:B26)+34),"") -> 0 | V29: =IFERROR(OFFSET(INDIRECT("'"&$R$2&"'!"&"C$"&ROWS($B$1:D34)),,COLUMNS($B$1:B26)+35),"") -> 0 | W29: =IFERROR(OFFSET(INDIRECT("'"&$R$2&"'!"&"C$"&ROWS($B$1:H34)),,COLUMNS($B$1:B26)+36),"") -> 0 | X29: =IFERROR(OFFSET(INDIRECT("'"&$R$2&"'!"&"C$"&ROWS($B$1:I34)),,COLUMNS($B$1:B26)+37),"") -> 0 | Y29: =IFERROR(OFFSET(INDIRECT("'"&$Y$2&"'!"&"C$"&ROWS($B$1:B34)),,COLUMNS($B$1:B26)+31),"") -> 26 | Z29: =IFERROR(OFFSET(INDIRECT("'"&$Y$2&"'!"&"C$"&ROWS($B$1:B34)),,COLUMNS($B$1:B26)+32),"") -> 0 | AA29: =IFERROR(OFFSET(INDIRECT("'"&$Y$2&"'!"&"C$"&ROWS($B$1:C34)),,COLUMNS($B$1:B26)+33),"") -> 0 | AB29: =IFERROR(OFFSET(INDIRECT("'"&$Y$2&"'!"&"C$"&ROWS($B$1:D34)),,COLUMNS($B$1:B26)+34),"") -> 0 | AC29: =IFERROR(OFFSET(INDIRECT("'"&$Y$2&"'!"&"C$"&ROWS($B$1:D34)),,COLUMNS($B$1:B26)+35),"") -> 0 | AD29: =IFERROR(OFFSET(INDIRECT("'"&$Y$2&"'!"&"C$"&ROWS($B$1:H34)),,COLUMNS($B$1:B26)+36),"") -> 0 | AE29: =IFERROR(OFFSET(INDIRECT("'"&$Y$2&"'!"&"C$"&ROWS($B$1:I34)),,COLUMNS($B$1:B26)+37),"") -> 0 | AF29: =IFERROR(OFFSET(INDIRECT("'"&$AF$2&"'!"&"C$"&ROWS($B$1:B34)),,COLUMNS($B$1:B26)+31),"") -> 0 | AG29: =IFERROR(OFFSET(INDIRECT("'"&$AF$2&"'!"&"C$"&ROWS($B$1:B34)),,COLUMNS($B$1:B26)+32),"") -> 0 | AH29: =IFERROR(OFFSET(INDIRECT("'"&$AF$2&"'!"&"C$"&ROWS($B$1:C34)),,COLUMNS($B$1:B26)+33),"") -> 0 | AI29: =IFERROR(OFFSET(INDIRECT("'"&$AF$2&"'!"&"C$"&ROWS($B$1:D34)),,COLUMNS($B$1:B26)+34),"") -> 0 | AJ29: =IFERROR(OFFSET(INDIRECT("'"&$AF$2&"'!"&"C$"&ROWS($B$1:D34)),,COLUMNS($B$1:B26)+35),"") -> 0 | AK29: =IFERROR(OFFSET(INDIRECT("'"&$AF$2&"'!"&"C$"&ROWS($B$1:H34)),,COLUMNS($B$1:B26)+36),"") -> 0 | AL29: =IFERROR(OFFSET(INDIRECT("'"&$AF$2&"'!"&"C$"&ROWS($B$1:I34)),,COLUMNS($B$1:B26)+37),"") -> 0 | AM29: =IFERROR(OFFSET(INDIRECT("'"&$AM$2&"'!"&"C$"&ROWS($B$1:B34)),,COLUMNS($B$1:B26)+31),"") -> 26 | AN29: =IFERROR(OFFSET(INDIRECT("'"&$AM$2&"'!"&"C$"&ROWS($B$1:B34)),,COLUMNS($B$1:B26)+32),"") -> 0 | AO29: =IFERROR(OFFSET(INDIRECT("'"&$AM$2&"'!"&"C$"&ROWS($B$1:C34)),,COLUMNS($B$1:B26)+33),"") -> 0 | AP29: =IFERROR(OFFSET(INDIRECT("'"&$AM$2&"'!"&"C$"&ROWS($B$1:D34)),,COLUMNS($B$1:B26)+34),"") -> 0 | AQ29: =IFERROR(OFFSET(INDIRECT("'"&$AM$2&"'!"&"C$"&ROWS($B$1:D34)),,COLUMNS($B$1:B26)+35),"") -> 0 | AR29: =IFERROR(OFFSET(INDIRECT("'"&$AM$2&"'!"&"C$"&ROWS($B$1:H34)),,COLUMNS($B$1:B26)+36),"") -> 0 | AS29: =IFERROR(OFFSET(INDIRECT("'"&$AM$2&"'!"&"C$"&ROWS($B$1:I34)),,COLUMNS($B$1:B26)+37),"") -> 0 | AT29: =IFERROR(OFFSET(INDIRECT("'"&$AT$2&"'!"&"C$"&ROWS($B$1:B34)),,COLUMNS($B$1:B26)+31),"") -> 26 | AU29: =IFERROR(OFFSET(INDIRECT("'"&$AT$2&"'!"&"C$"&ROWS($B$1:B34)),,COLUMNS($B$1:B26)+32),"") -> 0 | AV29: =IFERROR(OFFSET(INDIRECT("'"&$AT$2&"'!"&"C$"&ROWS($B$1:C34)),,COLUMNS($B$1:B26)+33),"") -> 0 | AW29: =IFERROR(OFFSET(INDIRECT("'"&$AT$2&"'!"&"C$"&ROWS($B$1:D34)),,COLUMNS($B$1:B26)+34),"") -> 0 | AX29: =IFERROR(OFFSET(INDIRECT("'"&$AT$2&"'!"&"C$"&ROWS($B$1:D34)),,COLUMNS($B$1:B26)+35),"") -> 0 | AY29: =IFERROR(OFFSET(INDIRECT("'"&$AT$2&"'!"&"C$"&ROWS($B$1:H34)),,COLUMNS($B$1:B26)+36),"") -> 0 | AZ29: =IFERROR(OFFSET(INDIRECT("'"&$AT$2&"'!"&"C$"&ROWS($B$1:I34)),,COLUMNS($B$1:B26)+37),"") -> 0 | BA29: =IFERROR(OFFSET(INDIRECT("'"&$BA$2&"'!"&"C$"&ROWS($B$1:B34)),,COLUMNS($B$1:B26)+31),"") -> 26 | BB29: =IFERROR(OFFSET(INDIRECT("'"&$BA$2&"'!"&"C$"&ROWS($B$1:B34)),,COLUMNS($B$1:B26)+32),"") -> 0 | BC29: =IFERROR(OFFSET(INDIRECT("'"&$BA$2&"'!"&"C$"&ROWS($B$1:C34)),,COLUMNS($B$1:B26)+33),"") -> 0 | BD29: =IFERROR(OFFSET(INDIRECT("'"&$BA$2&"'!"&"C$"&ROWS($B$1:D34)),,COLUMNS($B$1:B26)+34),"") -> 0 | BE29: =IFERROR(OFFSET(INDIRECT("'"&$BA$2&"'!"&"C$"&ROWS($B$1:D34)),,COLUMNS($B$1:B26)+35),"") -> 0 | BF29: =IFERROR(OFFSET(INDIRECT("'"&$BA$2&"'!"&"C$"&ROWS($B$1:H34)),,COLUMNS($B$1:B26)+36),"") -> 0 | BG29: =IFERROR(OFFSET(INDIRECT("'"&$BA$2&"'!"&"C$"&ROWS($B$1:I34)),,COLUMNS($B$1:B26)+37),"") -> 0 | BH29: =IFERROR(OFFSET(INDIRECT("'"&$BH$2&"'!"&"C$"&ROWS($B$1:B34)),,COLUMNS($B$1:B26)+31),"") -> 26 | BI29: =IFERROR(OFFSET(INDIRECT("'"&$BH$2&"'!"&"C$"&ROWS($B$1:B34)),,COLUMNS($B$1:B26)+32),"") -> 0 | BJ29: =IFERROR(OFFSET(INDIRECT("'"&$BH$2&"'!"&"C$"&ROWS($B$1:C34)),,COLUMNS($B$1:B26)+33),"") -> 0 | BK29: =IFERROR(OFFSET(INDIRECT("'"&$BH$2&"'!"&"C$"&ROWS($B$1:D34)),,COLUMNS($B$1:B26)+34),"") -> 0 | BL29: =IFERROR(OFFSET(INDIRECT("'"&$BH$2&"'!"&"C$"&ROWS($B$1:D34)),,COLUMNS($B$1:B26)+35),"") -> 0 | BM29: =IFERROR(OFFSET(INDIRECT("'"&$BH$2&"'!"&"C$"&ROWS($B$1:H34)),,COLUMNS($B$1:B26)+36),"") -> 0 | BN29: =IFERROR(OFFSET(INDIRECT("'"&$BH$2&"'!"&"C$"&ROWS($B$1:I34)),,COLUMNS($B$1:B26)+37),"") -> 0 | BO29: =IFERROR(OFFSET(INDIRECT("'"&$BO$2&"'!"&"C$"&ROWS($B$1:B34)),,COLUMNS($B$1:B26)+31),"") -> 0 | BP29: =IFERROR(OFFSET(INDIRECT("'"&$BO$2&"'!"&"C$"&ROWS($B$1:B34)),,COLUMNS($B$1:B26)+32),"") -> 0 | BQ29: =IFERROR(OFFSET(INDIRECT("'"&$BO$2&"'!"&"C$"&ROWS($B$1:C34)),,COLUMNS($B$1:B26)+33),"") -> 0 | BR29: =IFERROR(OFFSET(INDIRECT("'"&$BO$2&"'!"&"C$"&ROWS($B$1:D34)),,COLUMNS($B$1:B26)+34),"") -> 0 | BS29: =IFERROR(OFFSET(INDIRECT("'"&$BO$2&"'!"&"C$"&ROWS($B$1:D34)),,COLUMNS($B$1:B26)+35),"") -> 0 | BT29: =IFERROR(OFFSET(INDIRECT("'"&$BO$2&"'!"&"C$"&ROWS($B$1:H34)),,COLUMNS($B$1:B26)+36),"") -> 0 | BU29: =IFERROR(OFFSET(INDIRECT("'"&$BO$2&"'!"&"C$"&ROWS($B$1:I34)),,COLUMNS($B$1:B26)+37),"") -> 0 | BV29: =IFERROR(OFFSET(INDIRECT("'"&$BV$2&"'!"&"C$"&ROWS($B$1:B34)),,COLUMNS($B$1:B26)+31),"") -> 26 | BW29: =IFERROR(OFFSET(INDIRECT("'"&$BV$2&"'!"&"C$"&ROWS($B$1:B34)),,COLUMNS($B$1:B26)+32),"") -> 0 | BX29: =IFERROR(OFFSET(INDIRECT("'"&$BV$2&"'!"&"C$"&ROWS($B$1:C34)),,COLUMNS($B$1:B26)+33),"") -> 0 | BY29: =IFERROR(OFFSET(INDIRECT("'"&$BV$2&"'!"&"C$"&ROWS($B$1:D34)),,COLUMNS($B$1:B26)+34),"") -> 0 | BZ29: =IFERROR(OFFSET(INDIRECT("'"&$BV$2&"'!"&"C$"&ROWS($B$1:D34)),,COLUMNS($B$1:B26)+35),"") -> 0 | CA29: =IFERROR(OFFSET(INDIRECT("'"&$BV$2&"'!"&"C$"&ROWS($B$1:H34)),,COLUMNS($B$1:B26)+36),"") -> 0 | CB29: =IFERROR(OFFSET(INDIRECT("'"&$BV$2&"'!"&"C$"&ROWS($B$1:I34)),,COLUMNS($B$1:B26)+37),"") -> 0 | CC29: =IFERROR(OFFSET(INDIRECT("'"&$CC$2&"'!"&"C$"&ROWS($B$1:B34)),,COLUMNS($B$1:B26)+31),"") -> 0 | CD29: =IFERROR(OFFSET(INDIRECT("'"&$CC$2&"'!"&"C$"&ROWS($B$1:B34)),,COLUMNS($B$1:B26)+32),"") -> 0 | CE29: =IFERROR(OFFSET(INDIRECT("'"&$CC$2&"'!"&"C$"&ROWS($B$1:C34)),,COLUMNS($B$1:B26)+33),"") -> 0 | CF29: =IFERROR(OFFSET(INDIRECT("'"&$CC$2&"'!"&"C$"&ROWS($B$1:D34)),,COLUMNS($B$1:B26)+34),"") -> 0 | CG29: =IFERROR(OFFSET(INDIRECT("'"&$CC$2&"'!"&"C$"&ROWS($B$1:D34)),,COLUMNS($B$1:B26)+35),"") -> 0 | CH29: =IFERROR(OFFSET(INDIRECT("'"&$CC$2&"'!"&"C$"&ROWS($B$1:H34)),,COLUMNS($B$1:B26)+36),"") -> 0 | CI29: =IFERROR(OFFSET(INDIRECT("'"&$CC$2&"'!"&"C$"&ROWS($B$1:I34)),,COLUMNS($B$1:B26)+37),"") -> 0 | CJ29: =IFERROR(OFFSET(INDIRECT("'"&$CJ$2&"'!"&"C$"&ROWS($B$1:B34)),,COLUMNS($B$1:B26)+31),"") -> 26 | CK29: =IFERROR(OFFSET(INDIRECT("'"&$CJ$2&"'!"&"C$"&ROWS($B$1:B34)),,COLUMNS($B$1:B26)+32),"") -> 0 | CL29: =IFERROR(OFFSET(INDIRECT("'"&$CJ$2&"'!"&"C$"&ROWS($B$1:C34)),,COLUMNS($B$1:B26)+33),"") -> 0 | CM29: =IFERROR(OFFSET(INDIRECT("'"&$CJ$2&"'!"&"C$"&ROWS($B$1:D34)),,COLUMNS($B$1:B26)+34),"") -> 0 | CN29: =IFERROR(OFFSET(INDIRECT("'"&$CJ$2&"'!"&"C$"&ROWS($B$1:D34)),,COLUMNS($B$1:B26)+35),"") -> 0 | CO29: =IFERROR(OFFSET(INDIRECT("'"&$CJ$2&"'!"&"C$"&ROWS($B$1:H34)),,COLUMNS($B$1:B26)+36),"") -> 0 | CP29: =IFERROR(OFFSET(INDIRECT("'"&$CJ$2&"'!"&"C$"&ROWS($B$1:I34)),,COLUMNS($B$1:B26)+37),"") -> 0 | CR29: 155 | CS29: 42.92307692 | CT29: 119.2307692 | CU29: 162.1538462
B30: 2.5 | C30: 20 | E30: 0 | F30: 0 | G30: 0 | I30: 2020-12-31 | J30: 2021-03-07 | K30: =IFERROR(OFFSET(INDIRECT("'"&$K$2&"'!"&"C$"&ROWS($B$1:B35)),,COLUMNS($B$1:B27)+31),"") -> 26 | L30: =IFERROR(OFFSET(INDIRECT("'"&$K$2&"'!"&"C$"&ROWS($B$1:B35)),,COLUMNS($B$1:B27)+32),"") -> 0 | M30: =IFERROR(OFFSET(INDIRECT("'"&$K$2&"'!"&"C$"&ROWS($B$1:C35)),,COLUMNS($B$1:B27)+33),"") -> 0 | N30: =IFERROR(OFFSET(INDIRECT("'"&$K$2&"'!"&"C$"&ROWS($B$1:D35)),,COLUMNS($B$1:B27)+34),"") -> 0 | O30: =IFERROR(OFFSET(INDIRECT("'"&$K$2&"'!"&"C$"&ROWS($B$1:D35)),,COLUMNS($B$1:B27)+35),"") -> 0 | P30: =IFERROR(OFFSET(INDIRECT("'"&$K$2&"'!"&"C$"&ROWS($B$1:H35)),,COLUMNS($B$1:B27)+36),"") -> 0 | Q30: =IFERROR(OFFSET(INDIRECT("'"&$K$2&"'!"&"C$"&ROWS($B$1:I35)),,COLUMNS($B$1:B27)+37),"") -> 0 | R30: =IFERROR(OFFSET(INDIRECT("'"&$R$2&"'!"&"C$"&ROWS($B$1:B35)),,COLUMNS($B$1:B27)+31),"") -> 0 | S30: =IFERROR(OFFSET(INDIRECT("'"&$R$2&"'!"&"C$"&ROWS($B$1:B35)),,COLUMNS($B$1:B27)+32),"") -> 0 | T30: =IFERROR(OFFSET(INDIRECT("'"&$R$2&"'!"&"C$"&ROWS($B$1:C35)),,COLUMNS($B$1:B27)+33),"") -> 0 | U30: =IFERROR(OFFSET(INDIRECT("'"&$R$2&"'!"&"C$"&ROWS($B$1:D35)),,COLUMNS($B$1:B27)+34),"") -> 0 | V30: =IFERROR(OFFSET(INDIRECT("'"&$R$2&"'!"&"C$"&ROWS($B$1:D35)),,COLUMNS($B$1:B27)+35),"") -> 0 | W30: =IFERROR(OFFSET(INDIRECT("'"&$R$2&"'!"&"C$"&ROWS($B$1:H35)),,COLUMNS($B$1:B27)+36),"") -> 0 | X30: =IFERROR(OFFSET(INDIRECT("'"&$R$2&"'!"&"C$"&ROWS($B$1:I35)),,COLUMNS($B$1:B27)+37),"") -> 0 | Y30: =IFERROR(OFFSET(INDIRECT("'"&$Y$2&"'!"&"C$"&ROWS($B$1:B35)),,COLUMNS($B$1:B27)+31),"") -> 26 | Z30: =IFERROR(OFFSET(INDIRECT("'"&$Y$2&"'!"&"C$"&ROWS($B$1:B35)),,COLUMNS($B$1:B27)+32),"") -> 0 | AA30: =IFERROR(OFFSET(INDIRECT("'"&$Y$2&"'!"&"C$"&ROWS($B$1:C35)),,COLUMNS($B$1:B27)+33),"") -> 0 | AB30: =IFERROR(OFFSET(INDIRECT("'"&$Y$2&"'!"&"C$"&ROWS($B$1:D35)),,COLUMNS($B$1:B27)+34),"") -> 0 | AC30: =IFERROR(OFFSET(INDIRECT("'"&$Y$2&"'!"&"C$"&ROWS($B$1:D35)),,COLUMNS($B$1:B27)+35),"") -> 0 | AD30: =IFERROR(OFFSET(INDIRECT("'"&$Y$2&"'!"&"C$"&ROWS($B$1:H35)),,COLUMNS($B$1:B27)+36),"") -> 0 | AE30: =IFERROR(OFFSET(INDIRECT("'"&$Y$2&"'!"&"C$"&ROWS($B$1:I35)),,COLUMNS($B$1:B27)+37),"") -> 0 | AF30: =IFERROR(OFFSET(INDIRECT("'"&$AF$2&"'!"&"C$"&ROWS($B$1:B35)),,COLUMNS($B$1:B27)+31),"") -> 0 | AG30: =IFERROR(OFFSET(INDIRECT("'"&$AF$2&"'!"&"C$"&ROWS($B$1:B35)),,COLUMNS($B$1:B27)+32),"") -> 0 | AH30: =IFERROR(OFFSET(INDIRECT("'"&$AF$2&"'!"&"C$"&ROWS($B$1:C35)),,COLUMNS($B$1:B27)+33),"") -> 0 | AI30: =IFERROR(OFFSET(INDIRECT("'"&$AF$2&"'!"&"C$"&ROWS($B$1:D35)),,COLUMNS($B$1:B27)+34),"") -> 0 | AJ30: =IFERROR(OFFSET(INDIRECT("'"&$AF$2&"'!"&"C$"&ROWS($B$1:D35)),,COLUMNS($B$1:B27)+35),"") -> 0 | AK30: =IFERROR(OFFSET(INDIRECT("'"&$AF$2&"'!"&"C$"&ROWS($B$1:H35)),,COLUMNS($B$1:B27)+36),"") -> 0 | AL30: =IFERROR(OFFSET(INDIRECT("'"&$AF$2&"'!"&"C$"&ROWS($B$1:I35)),,COLUMNS($B$1:B27)+37),"") -> 0 | AM30: =IFERROR(OFFSET(INDIRECT("'"&$AM$2&"'!"&"C$"&ROWS($B$1:B35)),,COLUMNS($B$1:B27)+31),"") -> 26 | AN30: =IFERROR(OFFSET(INDIRECT("'"&$AM$2&"'!"&"C$"&ROWS($B$1:B35)),,COLUMNS($B$1:B27)+32),"") -> 0 | AO30: =IFERROR(OFFSET(INDIRECT("'"&$AM$2&"'!"&"C$"&ROWS($B$1:C35)),,COLUMNS($B$1:B27)+33),"") -> 0 | AP30: =IFERROR(OFFSET(INDIRECT("'"&$AM$2&"'!"&"C$"&ROWS($B$1:D35)),,COLUMNS($B$1:B27)+34),"") -> 0 | AQ30: =IFERROR(OFFSET(INDIRECT("'"&$AM$2&"'!"&"C$"&ROWS($B$1:D35)),,COLUMNS($B$1:B27)+35),"") -> 0 | AR30: =IFERROR(OFFSET(INDIRECT("'"&$AM$2&"'!"&"C$"&ROWS($B$1:H35)),,COLUMNS($B$1:B27)+36),"") -> 0 | AS30: =IFERROR(OFFSET(INDIRECT("'"&$AM$2&"'!"&"C$"&ROWS($B$1:I35)),,COLUMNS($B$1:B27)+37),"") -> 0 | AT30: =IFERROR(OFFSET(INDIRECT("'"&$AT$2&"'!"&"C$"&ROWS($B$1:B35)),,COLUMNS($B$1:B27)+31),"") -> 26 | AU30: =IFERROR(OFFSET(INDIRECT("'"&$AT$2&"'!"&"C$"&ROWS($B$1:B35)),,COLUMNS($B$1:B27)+32),"") -> 0 | AV30: =IFERROR(OFFSET(INDIRECT("'"&$AT$2&"'!"&"C$"&ROWS($B$1:C35)),,COLUMNS($B$1:B27)+33),"") -> 0 | AW30: =IFERROR(OFFSET(INDIRECT("'"&$AT$2&"'!"&"C$"&ROWS($B$1:D35)),,COLUMNS($B$1:B27)+34),"") -> 0 | AX30: =IFERROR(OFFSET(INDIRECT("'"&$AT$2&"'!"&"C$"&ROWS($B$1:D35)),,COLUMNS($B$1:B27)+35),"") -> 0 | AY30: =IFERROR(OFFSET(INDIRECT("'"&$AT$2&"'!"&"C$"&ROWS($B$1:H35)),,COLUMNS($B$1:B27)+36),"") -> 0 | AZ30: =IFERROR(OFFSET(INDIRECT("'"&$AT$2&"'!"&"C$"&ROWS($B$1:I35)),,COLUMNS($B$1:B27)+37),"") -> 0 | BA30: =IFERROR(OFFSET(INDIRECT("'"&$BA$2&"'!"&"C$"&ROWS($B$1:B35)),,COLUMNS($B$1:B27)+31),"") -> 26 | BB30: =IFERROR(OFFSET(INDIRECT("'"&$BA$2&"'!"&"C$"&ROWS($B$1:B35)),,COLUMNS($B$1:B27)+32),"") -> 0 | BC30: =IFERROR(OFFSET(INDIRECT("'"&$BA$2&"'!"&"C$"&ROWS($B$1:C35)),,COLUMNS($B$1:B27)+33),"") -> 0 | BD30: =IFERROR(OFFSET(INDIRECT("'"&$BA$2&"'!"&"C$"&ROWS($B$1:D35)),,COLUMNS($B$1:B27)+34),"") -> 0 | BE30: =IFERROR(OFFSET(INDIRECT("'"&$BA$2&"'!"&"C$"&ROWS($B$1:D35)),,COLUMNS($B$1:B27)+35),"") -> 0 | BF30: =IFERROR(OFFSET(INDIRECT("'"&$BA$2&"'!"&"C$"&ROWS($B$1:H35)),,COLUMNS($B$1:B27)+36),"") -> 0 | BG30: =IFERROR(OFFSET(INDIRECT("'"&$BA$2&"'!"&"C$"&ROWS($B$1:I35)),,COLUMNS($B$1:B27)+37),"") -> 0 | BH30: =IFERROR(OFFSET(INDIRECT("'"&$BH$2&"'!"&"C$"&ROWS($B$1:B35)),,COLUMNS($B$1:B27)+31),"") -> 26 | BI30: =IFERROR(OFFSET(INDIRECT("'"&$BH$2&"'!"&"C$"&ROWS($B$1:B35)),,COLUMNS($B$1:B27)+32),"") -> 0 | BJ30: =IFERROR(OFFSET(INDIRECT("'"&$BH$2&"'!"&"C$"&ROWS($B$1:C35)),,COLUMNS($B$1:B27)+33),"") -> 0 | BK30: =IFERROR(OFFSET(INDIRECT("'"&$BH$2&"'!"&"C$"&ROWS($B$1:D35)),,COLUMNS($B$1:B27)+34),"") -> 0 | BL30: =IFERROR(OFFSET(INDIRECT("'"&$BH$2&"'!"&"C$"&ROWS($B$1:D35)),,COLUMNS($B$1:B27)+35),"") -> 0 | BM30: =IFERROR(OFFSET(INDIRECT("'"&$BH$2&"'!"&"C$"&ROWS($B$1:H35)),,COLUMNS($B$1:B27)+36),"") -> 0 | BN30: =IFERROR(OFFSET(INDIRECT("'"&$BH$2&"'!"&"C$"&ROWS($B$1:I35)),,COLUMNS($B$1:B27)+37),"") -> 0 | BO30: =IFERROR(OFFSET(INDIRECT("'"&$BO$2&"'!"&"C$"&ROWS($B$1:B35)),,COLUMNS($B$1:B27)+31),"") -> 0 | BP30: =IFERROR(OFFSET(INDIRECT("'"&$BO$2&"'!"&"C$"&ROWS($B$1:B35)),,COLUMNS($B$1:B27)+32),"") -> 0 | BQ30: =IFERROR(OFFSET(INDIRECT("'"&$BO$2&"'!"&"C$"&ROWS($B$1:C35)),,COLUMNS($B$1:B27)+33),"") -> 0 | BR30: =IFERROR(OFFSET(INDIRECT("'"&$BO$2&"'!"&"C$"&ROWS($B$1:D35)),,COLUMNS($B$1:B27)+34),"") -> 0 | BS30: =IFERROR(OFFSET(INDIRECT("'"&$BO$2&"'!"&"C$"&ROWS($B$1:D35)),,COLUMNS($B$1:B27)+35),"") -> 0 | BT30: =IFERROR(OFFSET(INDIRECT("'"&$BO$2&"'!"&"C$"&ROWS($B$1:H35)),,COLUMNS($B$1:B27)+36),"") -> 0 | BU30: =IFERROR(OFFSET(INDIRECT("'"&$BO$2&"'!"&"C$"&ROWS($B$1:I35)),,COLUMNS($B$1:B27)+37),"") -> 0 | BV30: =IFERROR(OFFSET(INDIRECT("'"&$BV$2&"'!"&"C$"&ROWS($B$1:B35)),,COLUMNS($B$1:B27)+31),"") -> 26 | BW30: =IFERROR(OFFSET(INDIRECT("'"&$BV$2&"'!"&"C$"&ROWS($B$1:B35)),,COLUMNS($B$1:B27)+32),"") -> 0 | BX30: =IFERROR(OFFSET(INDIRECT("'"&$BV$2&"'!"&"C$"&ROWS($B$1:C35)),,COLUMNS($B$1:B27)+33),"") -> 0 | BY30: =IFERROR(OFFSET(INDIRECT("'"&$BV$2&"'!"&"C$"&ROWS($B$1:D35)),,COLUMNS($B$1:B27)+34),"") -> 0 | BZ30: =IFERROR(OFFSET(INDIRECT("'"&$BV$2&"'!"&"C$"&ROWS($B$1:D35)),,COLUMNS($B$1:B27)+35),"") -> 0 | CA30: =IFERROR(OFFSET(INDIRECT("'"&$BV$2&"'!"&"C$"&ROWS($B$1:H35)),,COLUMNS($B$1:B27)+36),"") -> 0 | CB30: =IFERROR(OFFSET(INDIRECT("'"&$BV$2&"'!"&"C$"&ROWS($B$1:I35)),,COLUMNS($B$1:B27)+37),"") -> 0 | CC30: =IFERROR(OFFSET(INDIRECT("'"&$CC$2&"'!"&"C$"&ROWS($B$1:B35)),,COLUMNS($B$1:B27)+31),"") -> 0 | CD30: =IFERROR(OFFSET(INDIRECT("'"&$CC$2&"'!"&"C$"&ROWS($B$1:B35)),,COLUMNS($B$1:B27)+32),"") -> 0 | CE30: =IFERROR(OFFSET(INDIRECT("'"&$CC$2&"'!"&"C$"&ROWS($B$1:C35)),,COLUMNS($B$1:B27)+33),"") -> 0 | CF30: =IFERROR(OFFSET(INDIRECT("'"&$CC$2&"'!"&"C$"&ROWS($B$1:D35)),,COLUMNS($B$1:B27)+34),"") -> 0 | CG30: =IFERROR(OFFSET(INDIRECT("'"&$CC$2&"'!"&"C$"&ROWS($B$1:D35)),,COLUMNS($B$1:B27)+35),"") -> 0 | CH30: =IFERROR(OFFSET(INDIRECT("'"&$CC$2&"'!"&"C$"&ROWS($B$1:H35)),,COLUMNS($B$1:B27)+36),"") -> 0 | CI30: =IFERROR(OFFSET(INDIRECT("'"&$CC$2&"'!"&"C$"&ROWS($B$1:I35)),,COLUMNS($B$1:B27)+37),"") -> 0 | CJ30: =IFERROR(OFFSET(INDIRECT("'"&$CJ$2&"'!"&"C$"&ROWS($B$1:B35)),,COLUMNS($B$1:B27)+31),"") -> 26 | CK30: =IFERROR(OFFSET(INDIRECT("'"&$CJ$2&"'!"&"C$"&ROWS($B$1:B35)),,COLUMNS($B$1:B27)+32),"") -> 0 | CL30: =IFERROR(OFFSET(INDIRECT("'"&$CJ$2&"'!"&"C$"&ROWS($B$1:C35)),,COLUMNS($B$1:B27)+33),"") -> 0 | CM30: =IFERROR(OFFSET(INDIRECT("'"&$CJ$2&"'!"&"C$"&ROWS($B$1:D35)),,COLUMNS($B$1:B27)+34),"") -> 0 | CN30: =IFERROR(OFFSET(INDIRECT("'"&$CJ$2&"'!"&"C$"&ROWS($B$1:D35)),,COLUMNS($B$1:B27)+35),"") -> 0 | CO30: =IFERROR(OFFSET(INDIRECT("'"&$CJ$2&"'!"&"C$"&ROWS($B$1:H35)),,COLUMNS($B$1:B27)+36),"") -> 0 | CP30: =IFERROR(OFFSET(INDIRECT("'"&$CJ$2&"'!"&"C$"&ROWS($B$1:I35)),,COLUMNS($B$1:B27)+37),"") -> 0 | CS30: 0 | CT30: 0 | CU30: 0
C31: 20 | E31: 0 | F31: 0 | G31: =B31+C31-D31-F31 -> 20 | I31: 2021-01-04 | K31: =IFERROR(OFFSET(INDIRECT("'"&$K$2&"'!"&"C$"&ROWS($B$1:B36)),,COLUMNS($B$1:B28)+31),"") -> 26 | L31: =IFERROR(OFFSET(INDIRECT("'"&$K$2&"'!"&"C$"&ROWS($B$1:B36)),,COLUMNS($B$1:B28)+32),"") -> 0 | M31: =IFERROR(OFFSET(INDIRECT("'"&$K$2&"'!"&"C$"&ROWS($B$1:C36)),,COLUMNS($B$1:B28)+33),"") -> 0 | N31: =IFERROR(OFFSET(INDIRECT("'"&$K$2&"'!"&"C$"&ROWS($B$1:D36)),,COLUMNS($B$1:B28)+34),"") -> 0 | O31: =IFERROR(OFFSET(INDIRECT("'"&$K$2&"'!"&"C$"&ROWS($B$1:D36)),,COLUMNS($B$1:B28)+35),"") -> 0 | P31: =IFERROR(OFFSET(INDIRECT("'"&$K$2&"'!"&"C$"&ROWS($B$1:H36)),,COLUMNS($B$1:B28)+36),"") -> 0 | Q31: =IFERROR(OFFSET(INDIRECT("'"&$K$2&"'!"&"C$"&ROWS($B$1:I36)),,COLUMNS($B$1:B28)+37),"") -> 0 | R31: =IFERROR(OFFSET(INDIRECT("'"&$R$2&"'!"&"C$"&ROWS($B$1:B36)),,COLUMNS($B$1:B28)+31),"") -> 0 | S31: =IFERROR(OFFSET(INDIRECT("'"&$R$2&"'!"&"C$"&ROWS($B$1:B36)),,COLUMNS($B$1:B28)+32),"") -> 0 | T31: =IFERROR(OFFSET(INDIRECT("'"&$R$2&"'!"&"C$"&ROWS($B$1:C36)),,COLUMNS($B$1:B28)+33),"") -> 0 | U31: =IFERROR(OFFSET(INDIRECT("'"&$R$2&"'!"&"C$"&ROWS($B$1:D36)),,COLUMNS($B$1:B28)+34),"") -> 0 | V31: =IFERROR(OFFSET(INDIRECT("'"&$R$2&"'!"&"C$"&ROWS($B$1:D36)),,COLUMNS($B$1:B28)+35),"") -> 0 | W31: =IFERROR(OFFSET(INDIRECT("'"&$R$2&"'!"&"C$"&ROWS($B$1:H36)),,COLUMNS($B$1:B28)+36),"") -> 0 | X31: =IFERROR(OFFSET(INDIRECT("'"&$R$2&"'!"&"C$"&ROWS($B$1:I36)),,COLUMNS($B$1:B28)+37),"") -> 0 | Y31: =IFERROR(OFFSET(INDIRECT("'"&$Y$2&"'!"&"C$"&ROWS($B$1:B36)),,COLUMNS($B$1:B28)+31),"") -> 26 | Z31: =IFERROR(OFFSET(INDIRECT("'"&$Y$2&"'!"&"C$"&ROWS($B$1:B36)),,COLUMNS($B$1:B28)+32),"") -> 0 | AA31: =IFERROR(OFFSET(INDIRECT("'"&$Y$2&"'!"&"C$"&ROWS($B$1:C36)),,COLUMNS($B$1:B28)+33),"") -> 0 | AB31: =IFERROR(OFFSET(INDIRECT("'"&$Y$2&"'!"&"C$"&ROWS($B$1:D36)),,COLUMNS($B$1:B28)+34),"") -> 0 | AC31: =IFERROR(OFFSET(INDIRECT("'"&$Y$2&"'!"&"C$"&ROWS($B$1:D36)),,COLUMNS($B$1:B28)+35),"") -> 0 | AD31: =IFERROR(OFFSET(INDIRECT("'"&$Y$2&"'!"&"C$"&ROWS($B$1:H36)),,COLUMNS($B$1:B28)+36),"") -> 0 | AE31: =IFERROR(OFFSET(INDIRECT("'"&$Y$2&"'!"&"C$"&ROWS($B$1:I36)),,COLUMNS($B$1:B28)+37),"") -> 0 | AF31: =IFERROR(OFFSET(INDIRECT("'"&$AF$2&"'!"&"C$"&ROWS($B$1:B36)),,COLUMNS($B$1:B28)+31),"") -> 0 | AG31: =IFERROR(OFFSET(INDIRECT("'"&$AF$2&"'!"&"C$"&ROWS($B$1:B36)),,COLUMNS($B$1:B28)+32),"") -> 0 | AH31: =IFERROR(OFFSET(INDIRECT("'"&$AF$2&"'!"&"C$"&ROWS($B$1:C36)),,COLUMNS($B$1:B28)+33),"") -> 0 | AI31: =IFERROR(OFFSET(INDIRECT("'"&$AF$2&"'!"&"C$"&ROWS($B$1:D36)),,COLUMNS($B$1:B28)+34),"") -> 0 | AJ31: =IFERROR(OFFSET(INDIRECT("'"&$AF$2&"'!"&"C$"&ROWS($B$1:D36)),,COLUMNS($B$1:B28)+35),"") -> 0 | AK31: =IFERROR(OFFSET(INDIRECT("'"&$AF$2&"'!"&"C$"&ROWS($B$1:H36)),,COLUMNS($B$1:B28)+36),"") -> 0 | AL31: =IFERROR(OFFSET(INDIRECT("'"&$AF$2&"'!"&"C$"&ROWS($B$1:I36)),,COLUMNS($B$1:B28)+37),"") -> 0 | AM31: =IFERROR(OFFSET(INDIRECT("'"&$AM$2&"'!"&"C$"&ROWS($B$1:B36)),,COLUMNS($B$1:B28)+31),"") -> 26 | AN31: =IFERROR(OFFSET(INDIRECT("'"&$AM$2&"'!"&"C$"&ROWS($B$1:B36)),,COLUMNS($B$1:B28)+32),"") -> 0 | AO31: =IFERROR(OFFSET(INDIRECT("'"&$AM$2&"'!"&"C$"&ROWS($B$1:C36)),,COLUMNS($B$1:B28)+33),"") -> 0 | AP31: =IFERROR(OFFSET(INDIRECT("'"&$AM$2&"'!"&"C$"&ROWS($B$1:D36)),,COLUMNS($B$1:B28)+34),"") -> 0 | AQ31: =IFERROR(OFFSET(INDIRECT("'"&$AM$2&"'!"&"C$"&ROWS($B$1:D36)),,COLUMNS($B$1:B28)+35),"") -> 0 | AR31: =IFERROR(OFFSET(INDIRECT("'"&$AM$2&"'!"&"C$"&ROWS($B$1:H36)),,COLUMNS($B$1:B28)+36),"") -> 0 | AS31: =IFERROR(OFFSET(INDIRECT("'"&$AM$2&"'!"&"C$"&ROWS($B$1:I36)),,COLUMNS($B$1:B28)+37),"") -> 0 | AT31: =IFERROR(OFFSET(INDIRECT("'"&$AT$2&"'!"&"C$"&ROWS($B$1:B36)),,COLUMNS($B$1:B28)+31),"") -> 26 | AU31: =IFERROR(OFFSET(INDIRECT("'"&$AT$2&"'!"&"C$"&ROWS($B$1:B36)),,COLUMNS($B$1:B28)+32),"") -> 0 | AV31: =IFERROR(OFFSET(INDIRECT("'"&$AT$2&"'!"&"C$"&ROWS($B$1:C36)),,COLUMNS($B$1:B28)+33),"") -> 0 | AW31: =IFERROR(OFFSET(INDIRECT("'"&$AT$2&"'!"&"C$"&ROWS($B$1:D36)),,COLUMNS($B$1:B28)+34),"") -> 0 | AX31: =IFERROR(OFFSET(INDIRECT("'"&$AT$2&"'!"&"C$"&ROWS($B$1:D36)),,COLUMNS($B$1:B28)+35),"") -> 0 | AY31: =IFERROR(OFFSET(INDIRECT("'"&$AT$2&"'!"&"C$"&ROWS($B$1:H36)),,COLUMNS($B$1:B28)+36),"") -> 0 | AZ31: =IFERROR(OFFSET(INDIRECT("'"&$AT$2&"'!"&"C$"&ROWS($B$1:I36)),,COLUMNS($B$1:B28)+37),"") -> 0 | BA31: =IFERROR(OFFSET(INDIRECT("'"&$BA$2&"'!"&"C$"&ROWS($B$1:B36)),,COLUMNS($B$1:B28)+31),"") -> 26 | BB31: =IFERROR(OFFSET(INDIRECT("'"&$BA$2&"'!"&"C$"&ROWS($B$1:B36)),,COLUMNS($B$1:B28)+32),"") -> 0 | BC31: =IFERROR(OFFSET(INDIRECT("'"&$BA$2&"'!"&"C$"&ROWS($B$1:C36)),,COLUMNS($B$1:B28)+33),"") -> 0 | BD31: =IFERROR(OFFSET(INDIRECT("'"&$BA$2&"'!"&"C$"&ROWS($B$1:D36)),,COLUMNS($B$1:B28)+34),"") -> 0 | BE31: =IFERROR(OFFSET(INDIRECT("'"&$BA$2&"'!"&"C$"&ROWS($B$1:D36)),,COLUMNS($B$1:B28)+35),"") -> 0 | BF31: =IFERROR(OFFSET(INDIRECT("'"&$BA$2&"'!"&"C$"&ROWS($B$1:H36)),,COLUMNS($B$1:B28)+36),"") -> 0 | BG31: =IFERROR(OFFSET(INDIRECT("'"&$BA$2&"'!"&"C$"&ROWS($B$1:I36)),,COLUMNS($B$1:B28)+37),"") -> 0 | BH31: =IFERROR(OFFSET(INDIRECT("'"&$BH$2&"'!"&"C$"&ROWS($B$1:B36)),,COLUMNS($B$1:B28)+31),"") -> 26 | BI31: =IFERROR(OFFSET(INDIRECT("'"&$BH$2&"'!"&"C$"&ROWS($B$1:B36)),,COLUMNS($B$1:B28)+32),"") -> 0 | BJ31: =IFERROR(OFFSET(INDIRECT("'"&$BH$2&"'!"&"C$"&ROWS($B$1:C36)),,COLUMNS($B$1:B28)+33),"") -> 0 | BK31: =IFERROR(OFFSET(INDIRECT("'"&$BH$2&"'!"&"C$"&ROWS($B$1:D36)),,COLUMNS($B$1:B28)+34),"") -> 0 | BL31: =IFERROR(OFFSET(INDIRECT("'"&$BH$2&"'!"&"C$"&ROWS($B$1:D36)),,COLUMNS($B$1:B28)+35),"") -> 0 | BM31: =IFERROR(OFFSET(INDIRECT("'"&$BH$2&"'!"&"C$"&ROWS($B$1:H36)),,COLUMNS($B$1:B28)+36),"") -> 0 | BN31: =IFERROR(OFFSET(INDIRECT("'"&$BH$2&"'!"&"C$"&ROWS($B$1:I36)),,COLUMNS($B$1:B28)+37),"") -> 0 | BO31: =IFERROR(OFFSET(INDIRECT("'"&$BO$2&"'!"&"C$"&ROWS($B$1:B36)),,COLUMNS($B$1:B28)+31),"") -> 0 | BP31: =IFERROR(OFFSET(INDIRECT("'"&$BO$2&"'!"&"C$"&ROWS($B$1:B36)),,COLUMNS($B$1:B28)+32),"") -> 0 | BQ31: =IFERROR(OFFSET(INDIRECT("'"&$BO$2&"'!"&"C$"&ROWS($B$1:C36)),,COLUMNS($B$1:B28)+33),"") -> 0 | BR31: =IFERROR(OFFSET(INDIRECT("'"&$BO$2&"'!"&"C$"&ROWS($B$1:D36)),,COLUMNS($B$1:B28)+34),"") -> 0 | BS31: =IFERROR(OFFSET(INDIRECT("'"&$BO$2&"'!"&"C$"&ROWS($B$1:D36)),,COLUMNS($B$1:B28)+35),"") -> 0 | BT31: =IFERROR(OFFSET(INDIRECT("'"&$BO$2&"'!"&"C$"&ROWS($B$1:H36)),,COLUMNS($B$1:B28)+36),"") -> 0 | BU31: =IFERROR(OFFSET(INDIRECT("'"&$BO$2&"'!"&"C$"&ROWS($B$1:I36)),,COLUMNS($B$1:B28)+37),"") -> 0 | BV31: =IFERROR(OFFSET(INDIRECT("'"&$BV$2&"'!"&"C$"&ROWS($B$1:B36)),,COLUMNS($B$1:B28)+31),"") -> 26 | BW31: =IFERROR(OFFSET(INDIRECT("'"&$BV$2&"'!"&"C$"&ROWS($B$1:B36)),,COLUMNS($B$1:B28)+32),"") -> 0 | BX31: =IFERROR(OFFSET(INDIRECT("'"&$BV$2&"'!"&"C$"&ROWS($B$1:C36)),,COLUMNS($B$1:B28)+33),"") -> 0 | BY31: =IFERROR(OFFSET(INDIRECT("'"&$BV$2&"'!"&"C$"&ROWS($B$1:D36)),,COLUMNS($B$1:B28)+34),"") -> 0 | BZ31: =IFERROR(OFFSET(INDIRECT("'"&$BV$2&"'!"&"C$"&ROWS($B$1:D36)),,COLUMNS($B$1:B28)+35),"") -> 0 | CA31: =IFERROR(OFFSET(INDIRECT("'"&$BV$2&"'!"&"C$"&ROWS($B$1:H36)),,COLUMNS($B$1:B28)+36),"") -> 0 | CB31: =IFERROR(OFFSET(INDIRECT("'"&$BV$2&"'!"&"C$"&ROWS($B$1:I36)),,COLUMNS($B$1:B28)+37),"") -> 0 | CC31: =IFERROR(OFFSET(INDIRECT("'"&$CC$2&"'!"&"C$"&ROWS($B$1:B36)),,COLUMNS($B$1:B28)+31),"") -> 0 | CD31: =IFERROR(OFFSET(INDIRECT("'"&$CC$2&"'!"&"C$"&ROWS($B$1:B36)),,COLUMNS($B$1:B28)+32),"") -> 0 | CE31: =IFERROR(OFFSET(INDIRECT("'"&$CC$2&"'!"&"C$"&ROWS($B$1:C36)),,COLUMNS($B$1:B28)+33),"") -> 0 | CF31: =IFERROR(OFFSET(INDIRECT("'"&$CC$2&"'!"&"C$"&ROWS($B$1:D36)),,COLUMNS($B$1:B28)+34),"") -> 0 | CG31: =IFERROR(OFFSET(INDIRECT("'"&$CC$2&"'!"&"C$"&ROWS($B$1:D36)),,COLUMNS($B$1:B28)+35),"") -> 0 | CH31: =IFERROR(OFFSET(INDIRECT("'"&$CC$2&"'!"&"C$"&ROWS($B$1:H36)),,COLUMNS($B$1:B28)+36),"") -> 0 | CI31: =IFERROR(OFFSET(INDIRECT("'"&$CC$2&"'!"&"C$"&ROWS($B$1:I36)),,COLUMNS($B$1:B28)+37),"") -> 0 | CJ31: =IFERROR(OFFSET(INDIRECT("'"&$CJ$2&"'!"&"C$"&ROWS($B$1:B36)),,COLUMNS($B$1:B28)+31),"") -> 26 | CK31: =IFERROR(OFFSET(INDIRECT("'"&$CJ$2&"'!"&"C$"&ROWS($B$1:B36)),,COLUMNS($B$1:B28)+32),"") -> 0 | CL31: =IFERROR(OFFSET(INDIRECT("'"&$CJ$2&"'!"&"C$"&ROWS($B$1:C36)),,COLUMNS($B$1:B28)+33),"") -> 0 | CM31: =IFERROR(OFFSET(INDIRECT("'"&$CJ$2&"'!"&"C$"&ROWS($B$1:D36)),,COLUMNS($B$1:B28)+34),"") -> 0 | CN31: =IFERROR(OFFSET(INDIRECT("'"&$CJ$2&"'!"&"C$"&ROWS($B$1:D36)),,COLUMNS($B$1:B28)+35),"") -> 0 | CO31: =IFERROR(OFFSET(INDIRECT("'"&$CJ$2&"'!"&"C$"&ROWS($B$1:H36)),,COLUMNS($B$1:B28)+36),"") -> 0 | CP31: =IFERROR(OFFSET(INDIRECT("'"&$CJ$2&"'!"&"C$"&ROWS($B$1:I36)),,COLUMNS($B$1:B28)+37),"") -> 0 | CR31: 300 | CS31: 0 | CT31: 230.7692308 | CU31: 230.7692308
C32: 20 | E32: 0 | F32: 0 | G32: =B32+C32-D32-F32 -> 20 | I32: 2021-03-08 | K32: =IFERROR(OFFSET(INDIRECT("'"&$K$2&"'!"&"C$"&ROWS($B$1:B37)),,COLUMNS($B$1:B29)+31),"") -> 26 | L32: =IFERROR(OFFSET(INDIRECT("'"&$K$2&"'!"&"C$"&ROWS($B$1:B37)),,COLUMNS($B$1:B29)+32),"") -> 0 | M32: =IFERROR(OFFSET(INDIRECT("'"&$K$2&"'!"&"C$"&ROWS($B$1:C37)),,COLUMNS($B$1:B29)+33),"") -> 0 | N32: =IFERROR(OFFSET(INDIRECT("'"&$K$2&"'!"&"C$"&ROWS($B$1:D37)),,COLUMNS($B$1:B29)+34),"") -> 0 | O32: =IFERROR(OFFSET(INDIRECT("'"&$K$2&"'!"&"C$"&ROWS($B$1:D37)),,COLUMNS($B$1:B29)+35),"") -> 0 | P32: =IFERROR(OFFSET(INDIRECT("'"&$K$2&"'!"&"C$"&ROWS($B$1:H37)),,COLUMNS($B$1:B29)+36),"") -> 0 | Q32: =IFERROR(OFFSET(INDIRECT("'"&$K$2&"'!"&"C$"&ROWS($B$1:I37)),,COLUMNS($B$1:B29)+37),"") -> 0 | R32: =IFERROR(OFFSET(INDIRECT("'"&$R$2&"'!"&"C$"&ROWS($B$1:B37)),,COLUMNS($B$1:B29)+31),"") -> 0 | S32: =IFERROR(OFFSET(INDIRECT("'"&$R$2&"'!"&"C$"&ROWS($B$1:B37)),,COLUMNS($B$1:B29)+32),"") -> 0 | T32: =IFERROR(OFFSET(INDIRECT("'"&$R$2&"'!"&"C$"&ROWS($B$1:C37)),,COLUMNS($B$1:B29)+33),"") -> 0 | U32: =IFERROR(OFFSET(INDIRECT("'"&$R$2&"'!"&"C$"&ROWS($B$1:D37)),,COLUMNS($B$1:B29)+34),"") -> 0 | V32: =IFERROR(OFFSET(INDIRECT("'"&$R$2&"'!"&"C$"&ROWS($B$1:D37)),,COLUMNS($B$1:B29)+35),"") -> 0 | W32: =IFERROR(OFFSET(INDIRECT("'"&$R$2&"'!"&"C$"&ROWS($B$1:H37)),,COLUMNS($B$1:B29)+36),"") -> 0 | X32: =IFERROR(OFFSET(INDIRECT("'"&$R$2&"'!"&"C$"&ROWS($B$1:I37)),,COLUMNS($B$1:B29)+37),"") -> 0 | Y32: =IFERROR(OFFSET(INDIRECT("'"&$Y$2&"'!"&"C$"&ROWS($B$1:B37)),,COLUMNS($B$1:B29)+31),"") -> 26 | Z32: =IFERROR(OFFSET(INDIRECT("'"&$Y$2&"'!"&"C$"&ROWS($B$1:B37)),,COLUMNS($B$1:B29)+32),"") -> 0 | AA32: =IFERROR(OFFSET(INDIRECT("'"&$Y$2&"'!"&"C$"&ROWS($B$1:C37)),,COLUMNS($B$1:B29)+33),"") -> 0 | AB32: =IFERROR(OFFSET(INDIRECT("'"&$Y$2&"'!"&"C$"&ROWS($B$1:D37)),,COLUMNS($B$1:B29)+34),"") -> 0 | AC32: =IFERROR(OFFSET(INDIRECT("'"&$Y$2&"'!"&"C$"&ROWS($B$1:D37)),,COLUMNS($B$1:B29)+35),"") -> 0 | AD32: =IFERROR(OFFSET(INDIRECT("'"&$Y$2&"'!"&"C$"&ROWS($B$1:H37)),,COLUMNS($B$1:B29)+36),"") -> 0 | AE32: =IFERROR(OFFSET(INDIRECT("'"&$Y$2&"'!"&"C$"&ROWS($B$1:I37)),,COLUMNS($B$1:B29)+37),"") -> 0 | AF32: =IFERROR(OFFSET(INDIRECT("'"&$AF$2&"'!"&"C$"&ROWS($B$1:B37)),,COLUMNS($B$1:B29)+31),"") -> 0 | AG32: =IFERROR(OFFSET(INDIRECT("'"&$AF$2&"'!"&"C$"&ROWS($B$1:B37)),,COLUMNS($B$1:B29)+32),"") -> 0 | AH32: =IFERROR(OFFSET(INDIRECT("'"&$AF$2&"'!"&"C$"&ROWS($B$1:C37)),,COLUMNS($B$1:B29)+33),"") -> 0 | AI32: =IFERROR(OFFSET(INDIRECT("'"&$AF$2&"'!"&"C$"&ROWS($B$1:D37)),,COLUMNS($B$1:B29)+34),"") -> 0 | AJ32: =IFERROR(OFFSET(INDIRECT("'"&$AF$2&"'!"&"C$"&ROWS($B$1:D37)),,COLUMNS($B$1:B29)+35),"") -> 0 | AK32: =IFERROR(OFFSET(INDIRECT("'"&$AF$2&"'!"&"C$"&ROWS($B$1:H37)),,COLUMNS($B$1:B29)+36),"") -> 0 | AL32: =IFERROR(OFFSET(INDIRECT("'"&$AF$2&"'!"&"C$"&ROWS($B$1:I37)),,COLUMNS($B$1:B29)+37),"") -> 0 | AM32: =IFERROR(OFFSET(INDIRECT("'"&$AM$2&"'!"&"C$"&ROWS($B$1:B37)),,COLUMNS($B$1:B29)+31),"") -> 26 | AN32: =IFERROR(OFFSET(INDIRECT("'"&$AM$2&"'!"&"C$"&ROWS($B$1:B37)),,COLUMNS($B$1:B29)+32),"") -> 0 | AO32: =IFERROR(OFFSET(INDIRECT("'"&$AM$2&"'!"&"C$"&ROWS($B$1:C37)),,COLUMNS($B$1:B29)+33),"") -> 0 | AP32: =IFERROR(OFFSET(INDIRECT("'"&$AM$2&"'!"&"C$"&ROWS($B$1:D37)),,COLUMNS($B$1:B29)+34),"") -> 0 | AQ32: =IFERROR(OFFSET(INDIRECT("'"&$AM$2&"'!"&"C$"&ROWS($B$1:D37)),,COLUMNS($B$1:B29)+35),"") -> 0 | AR32: =IFERROR(OFFSET(INDIRECT("'"&$AM$2&"'!"&"C$"&ROWS($B$1:H37)),,COLUMNS($B$1:B29)+36),"") -> 0 | AS32: =IFERROR(OFFSET(INDIRECT("'"&$AM$2&"'!"&"C$"&ROWS($B$1:I37)),,COLUMNS($B$1:B29)+37),"") -> 0 | AT32: =IFERROR(OFFSET(INDIRECT("'"&$AT$2&"'!"&"C$"&ROWS($B$1:B37)),,COLUMNS($B$1:B29)+31),"") -> 26 | AU32: =IFERROR(OFFSET(INDIRECT("'"&$AT$2&"'!"&"C$"&ROWS($B$1:B37)),,COLUMNS($B$1:B29)+32),"") -> 0 | AV32: =IFERROR(OFFSET(INDIRECT("'"&$AT$2&"'!"&"C$"&ROWS($B$1:C37)),,COLUMNS($B$1:B29)+33),"") -> 0 | AW32: =IFERROR(OFFSET(INDIRECT("'"&$AT$2&"'!"&"C$"&ROWS($B$1:D37)),,COLUMNS($B$1:B29)+34),"") -> 0 | AX32: =IFERROR(OFFSET(INDIRECT("'"&$AT$2&"'!"&"C$"&ROWS($B$1:D37)),,COLUMNS($B$1:B29)+35),"") -> 0 | AY32: =IFERROR(OFFSET(INDIRECT("'"&$AT$2&"'!"&"C$"&ROWS($B$1:H37)),,COLUMNS($B$1:B29)+36),"") -> 0 | AZ32: =IFERROR(OFFSET(INDIRECT("'"&$AT$2&"'!"&"C$"&ROWS($B$1:I37)),,COLUMNS($B$1:B29)+37),"") -> 0 | BA32: =IFERROR(OFFSET(INDIRECT("'"&$BA$2&"'!"&"C$"&ROWS($B$1:B37)),,COLUMNS($B$1:B29)+31),"") -> 26 | BB32: =IFERROR(OFFSET(INDIRECT("'"&$BA$2&"'!"&"C$"&ROWS($B$1:B37)),,COLUMNS($B$1:B29)+32),"") -> 0 | BC32: =IFERROR(OFFSET(INDIRECT("'"&$BA$2&"'!"&"C$"&ROWS($B$1:C37)),,COLUMNS($B$1:B29)+33),"") -> 0 | BD32: =IFERROR(OFFSET(INDIRECT("'"&$BA$2&"'!"&"C$"&ROWS($B$1:D37)),,COLUMNS($B$1:B29)+34),"") -> 0 | BE32: =IFERROR(OFFSET(INDIRECT("'"&$BA$2&"'!"&"C$"&ROWS($B$1:D37)),,COLUMNS($B$1:B29)+35),"") -> 0 | BF32: =IFERROR(OFFSET(INDIRECT("'"&$BA$2&"'!"&"C$"&ROWS($B$1:H37)),,COLUMNS($B$1:B29)+36),"") -> 0 | BG32: =IFERROR(OFFSET(INDIRECT("'"&$BA$2&"'!"&"C$"&ROWS($B$1:I37)),,COLUMNS($B$1:B29)+37),"") -> 0 | BH32: =IFERROR(OFFSET(INDIRECT("'"&$BH$2&"'!"&"C$"&ROWS($B$1:B37)),,COLUMNS($B$1:B29)+31),"") -> 26 | BI32: =IFERROR(OFFSET(INDIRECT("'"&$BH$2&"'!"&"C$"&ROWS($B$1:B37)),,COLUMNS($B$1:B29)+32),"") -> 0 | BJ32: =IFERROR(OFFSET(INDIRECT("'"&$BH$2&"'!"&"C$"&ROWS($B$1:C37)),,COLUMNS($B$1:B29)+33),"") -> 0 | BK32: =IFERROR(OFFSET(INDIRECT("'"&$BH$2&"'!"&"C$"&ROWS($B$1:D37)),,COLUMNS($B$1:B29)+34),"") -> 0 | BL32: =IFERROR(OFFSET(INDIRECT("'"&$BH$2&"'!"&"C$"&ROWS($B$1:D37)),,COLUMNS($B$1:B29)+35),"") -> 0 | BM32: =IFERROR(OFFSET(INDIRECT("'"&$BH$2&"'!"&"C$"&ROWS($B$1:H37)),,COLUMNS($B$1:B29)+36),"") -> 0 | BN32: =IFERROR(OFFSET(INDIRECT("'"&$BH$2&"'!"&"C$"&ROWS($B$1:I37)),,COLUMNS($B$1:B29)+37),"") -> 0 | BO32: =IFERROR(OFFSET(INDIRECT("'"&$BO$2&"'!"&"C$"&ROWS($B$1:B37)),,COLUMNS($B$1:B29)+31),"") -> 0 | BP32: =IFERROR(OFFSET(INDIRECT("'"&$BO$2&"'!"&"C$"&ROWS($B$1:B37)),,COLUMNS($B$1:B29)+32),"") -> 0 | BQ32: =IFERROR(OFFSET(INDIRECT("'"&$BO$2&"'!"&"C$"&ROWS($B$1:C37)),,COLUMNS($B$1:B29)+33),"") -> 0 | BR32: =IFERROR(OFFSET(INDIRECT("'"&$BO$2&"'!"&"C$"&ROWS($B$1:D37)),,COLUMNS($B$1:B29)+34),"") -> 0 | BS32: =IFERROR(OFFSET(INDIRECT("'"&$BO$2&"'!"&"C$"&ROWS($B$1:D37)),,COLUMNS($B$1:B29)+35),"") -> 0 | BT32: =IFERROR(OFFSET(INDIRECT("'"&$BO$2&"'!"&"C$"&ROWS($B$1:H37)),,COLUMNS($B$1:B29)+36),"") -> 0 | BU32: =IFERROR(OFFSET(INDIRECT("'"&$BO$2&"'!"&"C$"&ROWS($B$1:I37)),,COLUMNS($B$1:B29)+37),"") -> 0 | BV32: =IFERROR(OFFSET(INDIRECT("'"&$BV$2&"'!"&"C$"&ROWS($B$1:B37)),,COLUMNS($B$1:B29)+31),"") -> 26 | BW32: =IFERROR(OFFSET(INDIRECT("'"&$BV$2&"'!"&"C$"&ROWS($B$1:B37)),,COLUMNS($B$1:B29)+32),"") -> 0 | BX32: =IFERROR(OFFSET(INDIRECT("'"&$BV$2&"'!"&"C$"&ROWS($B$1:C37)),,COLUMNS($B$1:B29)+33),"") -> 0 | BY32: =IFERROR(OFFSET(INDIRECT("'"&$BV$2&"'!"&"C$"&ROWS($B$1:D37)),,COLUMNS($B$1:B29)+34),"") -> 0 | BZ32: =IFERROR(OFFSET(INDIRECT("'"&$BV$2&"'!"&"C$"&ROWS($B$1:D37)),,COLUMNS($B$1:B29)+35),"") -> 0 | CA32: =IFERROR(OFFSET(INDIRECT("'"&$BV$2&"'!"&"C$"&ROWS($B$1:H37)),,COLUMNS($B$1:B29)+36),"") -> 0 | CB32: =IFERROR(OFFSET(INDIRECT("'"&$BV$2&"'!"&"C$"&ROWS($B$1:I37)),,COLUMNS($B$1:B29)+37),"") -> 0 | CC32: =IFERROR(OFFSET(INDIRECT("'"&$CC$2&"'!"&"C$"&ROWS($B$1:B37)),,COLUMNS($B$1:B29)+31),"") -> 0 | CD32: =IFERROR(OFFSET(INDIRECT("'"&$CC$2&"'!"&"C$"&ROWS($B$1:B37)),,COLUMNS($B$1:B29)+32),"") -> 0 | CE32: =IFERROR(OFFSET(INDIRECT("'"&$CC$2&"'!"&"C$"&ROWS($B$1:C37)),,COLUMNS($B$1:B29)+33),"") -> 0 | CF32: =IFERROR(OFFSET(INDIRECT("'"&$CC$2&"'!"&"C$"&ROWS($B$1:D37)),,COLUMNS($B$1:B29)+34),"") -> 0 | CG32: =IFERROR(OFFSET(INDIRECT("'"&$CC$2&"'!"&"C$"&ROWS($B$1:D37)),,COLUMNS($B$1:B29)+35),"") -> 0 | CH32: =IFERROR(OFFSET(INDIRECT("'"&$CC$2&"'!"&"C$"&ROWS($B$1:H37)),,COLUMNS($B$1:B29)+36),"") -> 0 | CI32: =IFERROR(OFFSET(INDIRECT("'"&$CC$2&"'!"&"C$"&ROWS($B$1:I37)),,COLUMNS($B$1:B29)+37),"") -> 0 | CJ32: =IFERROR(OFFSET(INDIRECT("'"&$CJ$2&"'!"&"C$"&ROWS($B$1:B37)),,COLUMNS($B$1:B29)+31),"") -> 26 | CK32: =IFERROR(OFFSET(INDIRECT("'"&$CJ$2&"'!"&"C$"&ROWS($B$1:B37)),,COLUMNS($B$1:B29)+32),"") -> 0 | CL32: =IFERROR(OFFSET(INDIRECT("'"&$CJ$2&"'!"&"C$"&ROWS($B$1:C37)),,COLUMNS($B$1:B29)+33),"") -> 0 | CM32: =IFERROR(OFFSET(INDIRECT("'"&$CJ$2&"'!"&"C$"&ROWS($B$1:D37)),,COLUMNS($B$1:B29)+34),"") -> 0 | CN32: =IFERROR(OFFSET(INDIRECT("'"&$CJ$2&"'!"&"C$"&ROWS($B$1:D37)),,COLUMNS($B$1:B29)+35),"") -> 0 | CO32: =IFERROR(OFFSET(INDIRECT("'"&$CJ$2&"'!"&"C$"&ROWS($B$1:H37)),,COLUMNS($B$1:B29)+36),"") -> 0 | CP32: =IFERROR(OFFSET(INDIRECT("'"&$CJ$2&"'!"&"C$"&ROWS($B$1:I37)),,COLUMNS($B$1:B29)+37),"") -> 0 | CR32: 250 | CS32: 0 | CT32: 192.3076923 | CU32: 192.3076923
CS33: =SUM(CS4:CS32) -> 18871.57692 | CT33: =SUM(CT4:CT32) -> 11477.21893 | CU33: =SUM(CU4:CU32) -> 30348.79586

Sheet الاجازات
H1: الشهر | I1: رقم الشهر
C2: Type Leave | D2: Type | F2: الاجازات الرسمية | H2: Jan | I2: 1
C3: unpaid leave | D3: u | F3: 2021-01-01 | H3: Feb | I3: 2
C4: paid leave | D4: v | F4: 2021-02-25 | H4: Mar | I4: 3
C5: Absence | D5: a | F5: 2021-02-26 | H5: Apr | I5: 4
C6: Medical leave | D6: m | F6: 2021-02-28 | H6: May | I6: 5
C7: Official holiday | D7: o | F7: 2021-03-11 | H7: Jun | I7: 6
C8: emergency leave | D8: e | F8: 2021-05-13 | H8: Jul | I8: 7
F9: 2021-05-14 | H9: Aug | I9: 8
F10: 2021-07-20 | H10: Sep | I10: 9
F11: 2021-07-21 | H11: Oct | I11: 10
F12: 2021-08-09 | H12: Nov | I12: 11
F13: 2021-10-19 | H13: Dec | I13: 12

Sheet Jan
A1: يناير
A2: السنة | B2: 2021 | C2: اسم الموظف | D2: 1
A3: بداية الشهر | B3: =DATE(B2,VLOOKUP(RIGHT(CELL("filename",A1),LEN(CELL("filename",A1))-FIND("]",CELL("filename",A1))),Months[],2,0),1) -> 2021-01-01 | C3: بداية الاجازة | D3: 2021-01-02
A4: عدد أيام الشهر | B4: =DAY(EOMONTH(B3,0)) -> 31 | C4: نهاية الاجازة | D4: 2021-01-02
C5: نوع الاجازة | D5: paid leave
C6: Helper | D6: =COUNTIF(OfficialLeaves[[الاجازات الرسمية ]],D$7) -> 1 | E6: =COUNTIF(OfficialLeaves[[الاجازات الرسمية ]],E$7) -> 0 | F6: =COUNTIF(OfficialLeaves[[الاجازات الرسمية ]],F$7) -> 0 | G6: =COUNTIF(OfficialLeaves[[الاجازات الرسمية ]],G$7) -> 0 | H6: =COUNTIF(OfficialLeaves[[الاجازات الرسمية ]],H$7) -> 0 | I6: =COUNTIF(OfficialLeaves[[الاجازات الرسمية ]],I$7) -> 0 | J6: =COUNTIF(OfficialLeaves[[الاجازات الرسمية ]],J$7) -> 0 | K6: =COUNTIF(OfficialLeaves[[الاجازات الرسمية ]],K$7) -> 0 | L6: =COUNTIF(OfficialLeaves[[الاجازات الرسمية ]],L$7) -> 0 | M6: =COUNTIF(OfficialLeaves[[الاجازات الرسمية ]],M$7) -> 0 | N6: =COUNTIF(OfficialLeaves[[الاجازات الرسمية ]],N$7) -> 0 | O6: =COUNTIF(OfficialLeaves[[الاجازات الرسمية ]],O$7) -> 0 | P6: =COUNTIF(OfficialLeaves[[الاجازات الرسمية ]],P$7) -> 0 | Q6: =COUNTIF(OfficialLeaves[[الاجازات الرسمية ]],Q$7) -> 0 | R6: =COUNTIF(OfficialLeaves[[الاجازات الرسمية ]],R$7) -> 0 | S6: =COUNTIF(OfficialLeaves[[الاجازات الرسمية ]],S$7) -> 0 | T6: =COUNTIF(OfficialLeaves[[الاجازات الرسمية ]],T$7) -> 0 | U6: =COUNTIF(OfficialLeaves[[الاجازات الرسمية ]],U$7) -> 0 | V6: =COUNTIF(OfficialLeaves[[الاجازات الرسمية ]],V$7) -> 0 | W6: =COUNTIF(OfficialLeaves[[الاجازات الرسمية ]],W$7) -> 0 | X6: =COUNTIF(OfficialLeaves[[الاجازات الرسمية ]],X$7) -> 0 | Y6: =COUNTIF(OfficialLeaves[[الاجازات الرسمية ]],Y$7) -> 0 | Z6: =COUNTIF(OfficialLeaves[[الاجازات الرسمية ]],Z$7) -> 0 | AA6: =COUNTIF(OfficialLeaves[[الاجازات الرسمية ]],AA$7) -> 0 | AB6: =COUNTIF(OfficialLeaves[[الاجازات الرسمية ]],AB$7) -> 0 | AC6: =COUNTIF(OfficialLeaves[[الاجازات الرسمية ]],AC$7) -> 0 | AD6: =COUNTIF(OfficialLeaves[[الاجازات الرسمية ]],AD$7) -> 0 | AE6: =COUNTIF(OfficialLeaves[[الاجازات الرسمية ]],AE$7) -> 0 | AF6: =COUNTIF(OfficialLeaves[[الاجازات الرسمية ]],AF$7) -> 0 | AG6: =COUNTIF(OfficialLeaves[[الاجازات الرسمية ]],AG$7) -> 0 | AH6: =COUNTIF(OfficialLeaves[[الاجازات الرسمية ]],AH$7) -> 0 | AI6: 0
A7: S.N | B7: Emp ID No. | C7: Days | D7: =IF(COLUMN(A$1)<=$B$4,DATE($B$2,MONTH($B$3),COLUMN(A$1)),"") -> 2021-01-01 | E7: 2021-01-02 | F7: 2021-01-03 | G7: 2021-01-04 | H7: 2021-01-05 | I7: 2021-01-06 | J7: 2021-01-07 | K7: 2021-01-08 | L7: 2021-01-09 | M7: 2021-01-10 | N7: 2021-01-11 | O7: 2021-01-12 | P7: 2021-01-13 | Q7: 2021-01-14 | R7: 2021-01-15 | S7: 2021-01-16 | T7: 2021-01-17 | U7: 2021-01-18 | V7: 2021-01-19 | W7: 2021-01-20 | X7: 2021-01-21 | Y7: 2021-01-22 | Z7: 2021-01-23 | AA7: 2021-01-24 | AB7: 2021-01-25 | AC7: 2021-01-26 | AD7: 2021-01-27 | AE7: 2021-01-28 | AF7: 2021-01-29 | AG7: 2021-01-30 | AH7: 2021-01-31 | AI7: Total Paid days | AJ7: Medical leaves | AK7: Vacation | AL7: Absence | AM7: Unpaid | AN7: Official holiday | AO7: pay | AP7: remark
C8: Employee Name | D8: =IFERROR(TEXT(VALUE(DATE($B$2,MONTH($B$3),DAY(D7))),"ddd"),"") -> الجمعة | E8: السبت | F8: الأحد | G8: الإثنين | H8: الثلاثاء | I8: الأربعاء | J8: الخميس | K8: الجمعة | L8: السبت | M8: الأحد | N8: الإثنين | O8: الثلاثاء | P8: الأربعاء | Q8: الخميس | R8: الجمعة | S8: السبت | T8: الأحد | U8: الإثنين | V8: الثلاثاء | W8: الأربعاء | X8: الخميس | Y8: الجمعة | Z8: السبت | AA8: الأحد | AB8: الإثنين | AC8: الثلاثاء | AD8: الأربعاء | AE8: الخميس | AF8: الجمعة | AG8: السبت | AH8: الأحد
A9: =(SUBTOTAL(3,$C$9:C9)) -> 0 | B9: 1 | D9: =IF(SUMPRODUCT(--(($D$2=$B9)*(D$7>=$D$3)*(D$7<=$D$4)*(NOT(D$6>=1))*(NOT(D$8="الجمعة"))))=1,VLOOKUP($D$5,LeavesTypes[],2,0),"") ->  | E9: v | AI9: =26-SUM(AK9,AL9,AM9) -> 25 | AJ9: =COUNTIF(D9:AH9,"m") -> 0 | AK9: =COUNTIF(D9:AH9,"v") -> 1 | AL9: =COUNTIF(D9:AH9,"a") -> 0 | AM9: =COUNTIF(D9:AH9,"u") -> 0 | AN9: =COUNTIF(D9:AH9,"h") -> 0
A10: =IFERROR(SUBTOTAL(3,$C$9:C10),"") -> 0 | B10: 2 | AI10: =26-SUM(AK10,AL10,AM10) -> 26 | AJ10: =COUNTIF(D10:AH10,"m") -> 0 | AK10: =COUNTIF(D10:AH10,"v") -> 0 | AL10: =COUNTIF(D10:AH10,"a") -> 0 | AM10: =COUNTIF(D10:AH10,"u") -> 0 | AN10: =COUNTIF(D10:AH10,"h") -> 0
A11: =IFERROR(SUBTOTAL(3,$C$9:C11),"") -> 0 | B11: 3 | AI11: 26 | AJ11: 0 | AK11: 0 | AL11: 0 | AM11: 0 | AN11: 0
A12: =IFERROR(SUBTOTAL(3,$C$9:C12),"") -> 0 | B12: 4 | AI12: 26 | AJ12: 0 | AK12: 0 | AL12: 0 | AM12: 0 | AN12: 0
A13: =IFERROR(SUBTOTAL(3,$C$9:C13),"") -> 0 | B13: 5 | AI13: 26 | AJ13: 0 | AK13: 0 | AL13: 0 | AM13: 0 | AN13: 0
A14: =IFERROR(SUBTOTAL(3,$C$9:C14),"") -> 0 | B14: 6 | AI14: 26 | AJ14: 0 | AK14: 0 | AL14: 0 | AM14: 0 | AN14: 0
A15: =IFERROR(SUBTOTAL(3,$C$9:C15),"") -> 0 | B15: 7 | AI15: 26 | AJ15: 0 | AK15: 0 | AL15: 0 | AM15: 0 | AN15: 0
A16: =IFERROR(SUBTOTAL(3,$C$9:C16),"") -> 0 | B16: 8 | D16: 0 | E16: 0 | F16: 0 | G16: 0 | H16: 0 | I16: 0 | J16: 0 | K16: 0 | L16: 0 | N16: 0 | O16: 0 | P16: 0 | Q16: 0 | R16: 0 | S16: 0 | T16: 0 | U16: 0 | V16: 0 | W16: 0 | X16: 0 | Y16: 0 | Z16: 0 | AA16: 0 | AB16: 0 | AC16: 0 | AD16: 0 | AE16: 0 | AF16: 0 | AG16: 0 | AH16: 0 | AI16: 26 | AJ16: 0 | AK16: 0 | AL16: 0 | AM16: 0 | AN16: 0
A17: =IFERROR(SUBTOTAL(3,$C$9:C17),"") -> 0 | B17: 9 | AI17: 26 | AJ17: 0 | AK17: 0 | AL17: 0 | AM17: 0 | AN17: 0
A18: =IFERROR(SUBTOTAL(3,$C$9:C18),"") -> 0 | B18: 10 | AI18: 26 | AJ18: 0 | AK18: 0 | AL18: 0 | AM18: 0 | AN18: 0
A19: =IFERROR(SUBTOTAL(3,$C$9:C19),"") -> 0 | B19: 11 | AI19: 26 | AJ19: 0 | AK19: 0 | AL19: 0 | AM19: 0 | AN19: 0
A20: =IFERROR(SUBTOTAL(3,$C$9:C20),"") -> 0 | B20: 12 | AI20: 26 | AJ20: 0 | AK20: 0 | AL20: 0 | AM20: 0 | AN20: 0
A21: =IFERROR(SUBTOTAL(3,$C$9:C21),"") -> 0 | B21: 13 | AI21: 26 | AJ21: 0 | AK21: 0 | AL21: 0 | AM21: 0 | AN21: 0
A22: =IFERROR(SUBTOTAL(3,$C$9:C22),"") -> 0 | B22: 14 | AI22: 26 | AJ22: 0 | AK22: 0 | AL22: 0 | AM22: 0 | AN22: 0
A23: =IFERROR(SUBTOTAL(3,$C$9:C23),"") -> 0 | B23: 15 | AI23: 26 | AJ23: 0 | AK23: 0 | AL23: 0 | AM23: 0 | AN23: 0
A24: =IFERROR(SUBTOTAL(3,$C$9:C24),"") -> 0 | B24: 16 | AI24: 26 | AJ24: 0 | AK24: 0 | AL24: 0 | AM24: 0 | AN24: 0
A25: =IFERROR(SUBTOTAL(3,$C$9:C25),"") -> 0 | B25: 17 | AI25: 26 | AJ25: 0 | AK25: 0 | AL25: 0 | AM25: 0 | AN25: 0
A26: =IFERROR(SUBTOTAL(3,$C$9:C26),"") -> 0 | B26: 18 | AI26: 26 | AJ26: 0 | AK26: 0 | AL26: 0 | AM26: 0 | AN26: 0
A27: =IFERROR(SUBTOTAL(3,$C$9:C27),"") -> 0 | B27: 19 | AI27: 26 | AJ27: 0 | AK27: 0 | AL27: 0 | AM27: 0 | AN27: 0
A28: =IFERROR(SUBTOTAL(3,$C$9:C28),"") -> 0 | B28: 20 | AI28: 26 | AJ28: 0 | AK28: 0 | AL28: 0 | AM28: 0 | AN28: 0
A29: =IFERROR(SUBTOTAL(3,$C$9:C29),"") -> 0 | B29: 21 | AI29: 26 | AJ29: 0 | AK29: 0 | AL29: 0 | AM29: 0 | AN29: 0
A30: =IFERROR(SUBTOTAL(3,$C$9:C30),"") -> 0 | B30: 22 | AI30: 26 | AJ30: 0 | AK30: 0 | AL30: 0 | AM30: 0 | AN30: 0
A31: =IFERROR(SUBTOTAL(3,$C$9:C31),"") -> 0 | B31: 23 | AI31: 26 | AJ31: 0 | AK31: 0 | AL31: 0 | AM31: 0 | AN31: 0
A32: =IFERROR(SUBTOTAL(3,$C$9:C32),"") -> 0 | B32: 24 | AI32: 26 | AJ32: 0 | AK32: 0 | AL32: 0 | AM32: 0 | AN32: 0
A33: =IFERROR(SUBTOTAL(3,$C$9:C33),"") -> 0 | B33: 25 | AI33: 26 | AJ33: 0 | AK33: 0 | AL33: 0 | AM33: 0 | AN33: 0
A34: =IFERROR(SUBTOTAL(3,$C$9:C34),"") -> 0 | B34: 26 | AI34: 26 | AJ34: 0 | AK34: 0 | AL34: 0 | AM34: 0 | AN34: 0
A35: =IFERROR(SUBTOTAL(3,$C$9:C35),"") -> 0 | B35: 27 | AI35: 26 | AJ35: 0 | AK35: 0 | AL35: 0 | AM35: 0 | AN35: 0
A36: =IFERROR(SUBTOTAL(3,$C$9:C36),"") -> 0 | B36: 28 | AI36: 26 | AJ36: 0 | AK36: 0 | AL36: 0 | AM36: 0 | AN36: 0
A37: =IFERROR(SUBTOTAL(3,$C$9:C37),"") -> 0 | B37: 29 | AI37: 26 | AJ37: 0 | AK37: 0 | AL37: 0 | AM37: 0 | AN37: 0

Sheet Feb
A1: فبراير
A2: السنة | B2: 2021 | C2: اسم الموظف | D2: 2
A3: بداية الشهر | B3: =DATE(B2,VLOOKUP(RIGHT(CELL("filename",A1),LEN(CELL("filename",A1))-FIND("]",CELL("filename",A1))),Months[],2,0),1) -> 2021-02-01 | C3: بداية الاجازة | D3: 2021-01-01
A4: عدد أيام الشهر | B4: =DAY(EOMONTH(B3,0)) -> 28 | C4: نهاية الاجازة | D4: 2021-01-20
C5: نوع الاجازة | D5: unpaid leave
C6: Helper | D6: =COUNTIF(OfficialLeaves[[الاجازات الرسمية ]],D$7) -> 0 | E6: =COUNTIF(OfficialLeaves[[الاجازات الرسمية ]],E$7) -> 0 | F6: =COUNTIF(OfficialLeaves[[الاجازات الرسمية ]],F$7) -> 0 | G6: =COUNTIF(OfficialLeaves[[الاجازات الرسمية ]],G$7) -> 0 | H6: =COUNTIF(OfficialLeaves[[الاجازات الرسمية ]],H$7) -> 0 | I6: =COUNTIF(OfficialLeaves[[الاجازات الرسمية ]],I$7) -> 0 | J6: =COUNTIF(OfficialLeaves[[الاجازات الرسمية ]],J$7) -> 0 | K6: =COUNTIF(OfficialLeaves[[الاجازات الرسمية ]],K$7) -> 0 | L6: =COUNTIF(OfficialLeaves[[الاجازات الرسمية ]],L$7) -> 0 | M6: =COUNTIF(OfficialLeaves[[الاجازات الرسمية ]],M$7) -> 0 | N6: =COUNTIF(OfficialLeaves[[الاجازات الرسمية ]],N$7) -> 0 | O6: =COUNTIF(OfficialLeaves[[الاجازات الرسمية ]],O$7) -> 0 | P6: =COUNTIF(OfficialLeaves[[الاجازات الرسمية ]],P$7) -> 0 | Q6: =COUNTIF(OfficialLeaves[[الاجازات الرسمية ]],Q$7) -> 0 | R6: =COUNTIF(OfficialLeaves[[الاجازات الرسمية ]],R$7) -> 0 | S6: =COUNTIF(OfficialLeaves[[الاجازات الرسمية ]],S$7) -> 0 | T6: =COUNTIF(OfficialLeaves[[الاجازات الرسمية ]],T$7) -> 0 | U6: =COUNTIF(OfficialLeaves[[الاجازات الرسمية ]],U$7) -> 0 | V6: =COUNTIF(OfficialLeaves[[الاجازات الرسمية ]],V$7) -> 0 | W6: =COUNTIF(OfficialLeaves[[الاجازات الرسمية ]],W$7) -> 0 | X6: =COUNTIF(OfficialLeaves[[الاجازات الرسمية ]],X$7) -> 0 | Y6: =COUNTIF(OfficialLeaves[[الاجازات الرسمية ]],Y$7) -> 0 | Z6: =COUNTIF(OfficialLeaves[[الاجازات الرسمية ]],Z$7) -> 0 | AA6: =COUNTIF(OfficialLeaves[[الاجازات الرسمية ]],AA$7) -> 0 | AB6: =COUNTIF(OfficialLeaves[[الاجازات الرسمية ]],AB$7) -> 1 | AC6: =COUNTIF(OfficialLeaves[[الاجازات الرسمية ]],AC$7) -> 1 | AD6: =COUNTIF(OfficialLeaves[[الاجازات الرسمية ]],AD$7) -> 0 | AE6: =COUNTIF(OfficialLeaves[[الاجازات الرسمية ]],AE$7) -> 1 | AF6: 0 | AN6: =COUNTIF(OfficialLeaves[[الاجازات الرسمية ]],AN$7) -> 0 | AO6: =COUNTIF(OfficialLeaves[[الاجازات الرسمية ]],AO$7) -> 0 | AP6: =COUNTIF(OfficialLeaves[[الاجازات الرسمية ]],AP$7) -> 0
A7: S.N | B7: Emp ID No. | C7: Days | D7: =IF(COLUMN(A$1)<=$B$4,DATE($B$2,MONTH($B$3),COLUMN(A$1)),"") -> 2021-02-01 | E7: 2021-02-02 | F7: 2021-02-03 | G7: 2021-02-04 | H7: 2021-02-05 | I7: 2021-02-06 | J7: 2021-02-07 | K7: 2021-02-08 | L7: 2021-02-09 | M7: 2021-02-10 | N7: 2021-02-11 | O7: 2021-02-12 | P7: 2021-02-13 | Q7: 2021-02-14 | R7: 2021-02-15 | S7: 2021-02-16 | T7: 2021-02-17 | U7: 2021-02-18 | V7: 2021-02-19 | W7: 2021-02-20 | X7: 2021-02-21 | Y7: 2021-02-22 | Z7: 2021-02-23 | AA7: 2021-02-24 | AB7: 2021-02-25 | AC7: 2021-02-26 | AD7: 2021-02-27 | AE7: 2021-02-28 | AF7: Total Paid days | AG7: Medical leaves | AH7: Vacation | AI7: Absence | AJ7: Unpaid | AK7: Official holiday | AL7: pay | AM7: remark | AN7: =IF(COLUMN(AC$1)<=$B$4,DATE($B$2,MONTH($B$3),COLUMN(AC$1)),"") ->  | AO7: =IF(COLUMN(AD$1)<=$B$4,DATE($B$2,MONTH($B$3),COLUMN(AD$1)),"") ->  | AP7: =IF(COLUMN(AE$1)<=$B$4,DATE($B$2,MONTH($B$3),COLUMN(AE$1)),"") -> 
C8: Employee Name | D8: =IFERROR(TEXT(VALUE(DATE($B$2,MONTH($B$3),DAY(D7))),"ddd"),"") -> الإثنين | E8: الثلاثاء | F8: الأربعاء | G8: الخميس | H8: الجمعة | I8: السبت | J8: الأحد | K8: الإثنين | L8: الثلاثاء | M8: الأربعاء | N8: الخميس | O8: الجمعة | P8: السبت | Q8: الأحد | R8: الإثنين | S8: الثلاثاء | T8: الأربعاء | U8: الخميس | V8: الجمعة | W8: السبت | X8: الأحد | Y8: الإثنين | Z8: الثلاثاء | AA8: الأربعاء | AB8: الخميس | AC8: الجمعة | AD8: السبت | AE8: الأحد
A9: =(SUBTOTAL(3,$C$9:C9)) -> 0 | B9: 1 | D9: =IF(SUMPRODUCT(--(($D$2=$B9)*(D$7>=$D$3)*(D$7<=$D$4)*(NOT(D$6>=1))*(NOT(D$8="الجمعة"))))=1,VLOOKUP($D$5,LeavesTypes[],2,0),"") ->  | AF9: =26-SUM(AH9,AI9,AJ9) -> 26 | AG9: =COUNTIF(A9:AE9,"m") -> 0 | AH9: =COUNTIF(A9:AE9,"v") -> 0 | AI9: =COUNTIF(A9:AE9,"a") -> 0 | AJ9: =COUNTIF(A9:AE9,"u") -> 0 | AK9: =COUNTIF(A9:AE9,"h") -> 0
A10: =IFERROR(SUBTOTAL(3,$C$9:C10),"") -> 0 | B10: 2 | AF10: =26-SUM(AH10,AI10,AJ10) -> 26 | AG10: =COUNTIF(A10:AE10,"m") -> 0 | AH10: =COUNTIF(A10:AE10,"v") -> 0 | AI10: =COUNTIF(A10:AE10,"a") -> 0 | AJ10: =COUNTIF(A10:AE10,"u") -> 0 | AK10: =COUNTIF(A10:AE10,"h") -> 0
A11: =IFERROR(SUBTOTAL(3,$C$9:C11),"") -> 0 | B11: 3 | AF11: 26 | AG11: 0 | AH11: 0 | AI11: 0 | AJ11: 0 | AK11: 0
A12: =IFERROR(SUBTOTAL(3,$C$9:C12),"") -> 0 | B12: 4 | AF12: 26 | AG12: 0 | AH12: 0 | AI12: 0 | AJ12: 0 | AK12: 0
A13: =IFERROR(SUBTOTAL(3,$C$9:C13),"") -> 0 | B13: 5 | AF13: 26 | AG13: 0 | AH13: 0 | AI13: 0 | AJ13: 0 | AK13: 0
A14: =IFERROR(SUBTOTAL(3,$C$9:C14),"") -> 0 | B14: 6 | AF14: 26 | AG14: 0 | AH14: 0 | AI14: 0 | AJ14: 0 | AK14: 0
A15: =IFERROR(SUBTOTAL(3,$C$9:C15),"") -> 0 | B15: 7 | AF15: 26 | AG15: 0 | AH15: 0 | AI15: 0 | AJ15: 0 | AK15: 0
A16: =IFERROR(SUBTOTAL(3,$C$9:C16),"") -> 0 | B16: 8 | D16: 0 | E16: 0 | F16: 0 | G16: 0 | H16: 0 | I16: 0 | J16: 0 | K16: 0 | L16: 0 | N16: 0 | O16: 0 | P16: 0 | Q16: 0 | R16: 0 | S16: 0 | T16: 0 | U16: 0 | V16: 0 | W16: 0 | X16: 0 | Y16: 0 | Z16: 0 | AA16: 0 | AB16: 0 | AC16: 0 | AD16: 0 | AE16: 0 | AF16: 26 | AG16: 0 | AH16: 0 | AI16: 0 | AJ16: 0 | AK16: 0 | AN16: 0 | AO16: 0 | AP16: 0
A17: =IFERROR(SUBTOTAL(3,$C$9:C17),"") -> 0 | B17: 9 | AF17: 26 | AG17: 0 | AH17: 0 | AI17: 0 | AJ17: 0 | AK17: 0
A18: =IFERROR(SUBTOTAL(3,$C$9:C18),"") -> 0 | B18: 10 | AF18: 26 | AG18: 0 | AH18: 0 | AI18: 0 | AJ18: 0 | AK18: 0
A19: =IFERROR(SUBTOTAL(3,$C$9:C19),"") -> 0 | B19: 11 | AF19: 26 | AG19: 0 | AH19: 0 | AI19: 0 | AJ19: 0 | AK19: 0
A20: =IFERROR(SUBTOTAL(3,$C$9:C20),"") -> 0 | B20: 12 | AF20: 26 | AG20: 0 | AH20: 0 | AI20: 0 | AJ20: 0 | AK20: 0
A21: =IFERROR(SUBTOTAL(3,$C$9:C21),"") -> 0 | B21: 13 | AF21: 26 | AG21: 0 | AH21: 0 | AI21: 0 | AJ21: 0 | AK21: 0
A22: =IFERROR(SUBTOTAL(3,$C$9:C22),"") -> 0 | B22: 14 | AF22: 26 | AG22: 0 | AH22: 0 | AI22: 0 | AJ22: 0 | AK22: 0
A23: =IFERROR(SUBTOTAL(3,$C$9:C23),"") -> 0 | B23: 15 | AF23: 26 | AG23: 0 | AH23: 0 | AI23: 0 | AJ23: 0 | AK23: 0
A24: =IFERROR(SUBTOTAL(3,$C$9:C24),"") -> 0 | B24: 16 | AF24: 26 | AG24: 0 | AH24: 0 | AI24: 0 | AJ24: 0 | AK24: 0
A25: =IFERROR(SUBTOTAL(3,$C$9:C25),"") -> 0 | B25: 17 | AF25: 26 | AG25: 0 | AH25: 0 | AI25: 0 | AJ25: 0 | AK25: 0
A26: =IFERROR(SUBTOTAL(3,$C$9:C26),"") -> 0 | B26: 18 | AF26: 26 | AG26: 0 | AH26: 0 | AI26: 0 | AJ26: 0 | AK26: 0
A27: =IFERROR(SUBTOTAL(3,$C$9:C27),"") -> 0 | B27: 19 | AF27: 26 | AG27: 0 | AH27: 0 | AI27: 0 | AJ27: 0 | AK27: 0
A28: =IFERROR(SUBTOTAL(3,$C$9:C28),"") -> 0 | B28: 20 | AF28: 26 | AG28: 0 | AH28: 0 | AI28: 0 | AJ28: 0 | AK28: 0
A29: =IFERROR(SUBTOTAL(3,$C$9:C29),"") -> 0 | B29: 21 | AF29: 26 | AG29: 0 | AH29: 0 | AI29: 0 | AJ29: 0 | AK29: 0
A30: =IFERROR(SUBTOTAL(3,$C$9:C30),"") -> 0 | B30: 22 | AF30: 26 | AG30: 0 | AH30: 0 | AI30: 0 | AJ30: 0 | AK30: 0
A31: =IFERROR(SUBTOTAL(3,$C$9:C31),"") -> 0 | B31: 23 | AF31: 26 | AG31: 0 | AH31: 0 | AI31: 0 | AJ31: 0 | AK31: 0
A32: =IFERROR(SUBTOTAL(3,$C$9:C32),"") -> 0 | B32: 24 | AF32: 26 | AG32: 0 | AH32: 0 | AI32: 0 | AJ32: 0 | AK32: 0
A33: =IFERROR(SUBTOTAL(3,$C$9:C33),"") -> 0 | B33: 25 | AF33: 26 | AG33: 0 | AH33: 0 | AI33: 0 | AJ33: 0 | AK33: 0
A34: =IFERROR(SUBTOTAL(3,$C$9:C34),"") -> 0 | B34: 26 | AF34: 26 | AG34: 0 | AH34: 0 | AI34: 0 | AJ34: 0 | AK34: 0
A35: =IFERROR(SUBTOTAL(3,$C$9:C35),"") -> 0 | B35: 27 | AF35: 26 | AG35: 0 | AH35: 0 | AI35: 0 | AJ35: 0 | AK35: 0
A36: =IFERROR(SUBTOTAL(3,$C$9:C36),"") -> 0 | B36: 28 | AF36: 26 | AG36: 0 | AH36: 0 | AI36: 0 | AJ36: 0 | AK36: 0
A37: =IFERROR(SUBTOTAL(3,$C$9:C37),"") -> 0 | B37: 29 | AF37: 26 | AG37: 0 | AH37: 0 | AI37: 0 | AJ37: 0 | AK37: 0

Sheet Mar
A1: مارس
A2: السنة | B2: 2021 | C2: اسم الموظف | D2: 5
A3: بداية الشهر | B3: =DATE(B2,VLOOKUP(RIGHT(CELL("filename",A1),LEN(CELL("filename",A1))-FIND("]",CELL("filename",A1))),Months[],2,0),1) -> 2021-03-01 | C3: بداية الاجازة | D3: 2021-03-01
A4: عدد أيام الشهر | B4: =DAY(EOMONTH(B3,0)) -> 31 | C4: نهاية الاجازة | D4: 2021-03-05
C5: نوع الاجازة | D5: paid leave
C6: Helper | D6: =COUNTIF(OfficialLeaves[[الاجازات الرسمية ]],D$7) -> 0 | E6: =COUNTIF(OfficialLeaves[[الاجازات الرسمية ]],E$7) -> 0 | F6: =COUNTIF(OfficialLeaves[[الاجازات الرسمية ]],F$7) -> 0 | G6: =COUNTIF(OfficialLeaves[[الاجازات الرسمية ]],G$7) -> 0 | H6: =COUNTIF(OfficialLeaves[[الاجازات الرسمية ]],H$7) -> 0 | I6: =COUNTIF(OfficialLeaves[[الاجازات الرسمية ]],I$7) -> 0 | J6: =COUNTIF(OfficialLeaves[[الاجازات الرسمية ]],J$7) -> 0 | K6: =COUNTIF(OfficialLeaves[[الاجازات الرسمية ]],K$7) -> 0 | L6: =COUNTIF(OfficialLeaves[[الاجازات الرسمية ]],L$7) -> 0 | M6: =COUNTIF(OfficialLeaves[[الاجازات الرسمية ]],M$7) -> 0 | N6: =COUNTIF(OfficialLeaves[[الاجازات الرسمية ]],N$7) -> 1 | O6: =COUNTIF(OfficialLeaves[[الاجازات الرسمية ]],O$7) -> 0 | P6: =COUNTIF(OfficialLeaves[[الاجازات الرسمية ]],P$7) -> 0 | Q6: =COUNTIF(OfficialLeaves[[الاجازات الرسمية ]],Q$7) -> 0 | R6: =COUNTIF(OfficialLeaves[[الاجازات الرسمية ]],R$7) -> 0 | S6: =COUNTIF(OfficialLeaves[[الاجازات الرسمية ]],S$7) -> 0 | T6: =COUNTIF(OfficialLeaves[[الاجازات الرسمية ]],T$7) -> 0 | U6: =COUNTIF(OfficialLeaves[[الاجازات الرسمية ]],U$7) -> 0 | V6: =COUNTIF(OfficialLeaves[[الاجازات الرسمية ]],V$7) -> 0 | W6: =COUNTIF(OfficialLeaves[[الاجازات الرسمية ]],W$7) -> 0 | X6: =COUNTIF(OfficialLeaves[[الاجازات الرسمية ]],X$7) -> 0 | Y6: =COUNTIF(OfficialLeaves[[الاجازات الرسمية ]],Y$7) -> 0 | Z6: =COUNTIF(OfficialLeaves[[الاجازات الرسمية ]],Z$7) -> 0 | AA6: =COUNTIF(OfficialLeaves[[الاجازات الرسمية ]],AA$7) -> 0 | AB6: =COUNTIF(OfficialLeaves[[الاجازات الرسمية ]],AB$7) -> 0 | AC6: =COUNTIF(OfficialLeaves[[الاجازات الرسمية ]],AC$7) -> 0 | AD6: =COUNTIF(OfficialLeaves[[الاجازات الرسمية ]],AD$7) -> 0 | AE6: =COUNTIF(OfficialLeaves[[الاجازات الرسمية ]],AE$7) -> 0 | AF6: =COUNTIF(OfficialLeaves[[الاجازات الرسمية ]],AF$7) -> 0 | AG6: =COUNTIF(OfficialLeaves[[الاجازات الرسمية ]],AG$7) -> 0 | AH6: =COUNTIF(OfficialLeaves[[الاجازات الرسمية ]],AH$7) -> 0 | AI6: 0
A7: S.N | B7: Emp ID No. | C7: Days | D7: =IF(COLUMN(A$1)<=$B$4,DATE($B$2,MONTH($B$3),COLUMN(A$1)),"") -> 2021-03-01 | E7: 2021-03-02 | F7: 2021-03-03 | G7: 2021-03-04 | H7: 2021-03-05 | I7: 2021-03-06 | J7: 2021-03-07 | K7: 2021-03-08 | L7: 2021-03-09 | M7: 2021-03-10 | N7: 2021-03-11 | O7: 2021-03-12 | P7: 2021-03-13 | Q7: 2021-03-14 | R7: 2021-03-15 | S7: 2021-03-16 | T7: 2021-03-17 | U7: 2021-03-18 | V7: 2021-03-19 | W7: 2021-03-20 | X7: 2021-03-21 | Y7: 2021-03-22 | Z7: 2021-03-23 | AA7: 2021-03-24 | AB7: 2021-03-25 | AC7: 2021-03-26 | AD7: 2021-03-27 | AE7: 2021-03-28 | AF7: 2021-03-29 | AG7: 2021-03-30 | AH7: 2021-03-31 | AI7: Total Paid days | AJ7: Medical leaves | AK7: Vacation | AL7: Absence | AM7: Unpaid | AN7: Official holiday | AO7: pay | AP7: remark
C8: Employee Name | D8: =IFERROR(TEXT(VALUE(DATE($B$2,MONTH($B$3),DAY(D7))),"ddd"),"") -> الإثنين | E8: الثلاثاء | F8: الأربعاء | G8: الخميس | H8: الجمعة | I8: السبت | J8: الأحد | K8: الإثنين | L8: الثلاثاء | M8: الأربعاء | N8: الخميس | O8: الجمعة | P8: السبت | Q8: الأحد | R8: الإثنين | S8: الثلاثاء | T8: الأربعاء | U8: الخميس | V8: الجمعة | W8: السبت | X8: الأحد | Y8: الإثنين | Z8: الثلاثاء | AA8: الأربعاء | AB8: الخميس | AC8: الجمعة | AD8: السبت | AE8: الأحد | AF8: الإثنين | AG8: الثلاثاء | AH8: الأربعاء
A9: =(SUBTOTAL(3,$C$9:C9)) -> 0 | B9: 1 | D9: =IF(SUMPRODUCT(--(($D$2=$B9)*(D$7>=$D$3)*(D$7<=$D$4)*(NOT(D$6>=1))*(NOT(D$8="الجمعة"))))=1,VLOOKUP($D$5,LeavesTypes[],2,0),"") ->  | AI9: =26-SUM(AK9,AL9,AM9) -> 26 | AJ9: =COUNTIF(D9:AH9,"m") -> 0 | AK9: =COUNTIF(D9:AH9,"v") -> 0 | AL9: =COUNTIF(D9:AH9,"a") -> 0 | AM9: =COUNTIF(D9:AH9,"u") -> 0 | AN9: =COUNTIF(D9:AH9,"h") -> 0
A10: =IFERROR(SUBTOTAL(3,$C$9:C10),"") -> 0 | B10: 2 | AI10: =26-SUM(AK10,AL10,AM10) -> 26 | AJ10: =COUNTIF(D10:AH10,"m") -> 0 | AK10: =COUNTIF(D10:AH10,"v") -> 0 | AL10: =COUNTIF(D10:AH10,"a") -> 0 | AM10: =COUNTIF(D10:AH10,"u") -> 0 | AN10: =COUNTIF(D10:AH10,"h") -> 0
A11: =IFERROR(SUBTOTAL(3,$C$9:C11),"") -> 0 | B11: 3 | AI11: 26 | AJ11: 0 | AK11: 0 | AL11: 0 | AM11: 0 | AN11: 0
A12: =IFERROR(SUBTOTAL(3,$C$9:C12),"") -> 0 | B12: 4 | AI12: 26 | AJ12: 0 | AK12: 0 | AL12: 0 | AM12: 0 | AN12: 0
A13: =IFERROR(SUBTOTAL(3,$C$9:C13),"") -> 0 | B13: 5 | AI13: 26 | AJ13: 0 | AK13: 0 | AL13: 0 | AM13: 0 | AN13: 0
A14: =IFERROR(SUBTOTAL(3,$C$9:C14),"") -> 0 | B14: 6 | AI14: 26 | AJ14: 0 | AK14: 0 | AL14: 0 | AM14: 0 | AN14: 0
A15: =IFERROR(SUBTOTAL(3,$C$9:C15),"") -> 0 | B15: 7 | AI15: 26 | AJ15: 0 | AK15: 0 | AL15: 0 | AM15: 0 | AN15: 0
A16: =IFERROR(SUBTOTAL(3,$C$9:C16),"") -> 0 | B16: 8 | D16: 0 | E16: 0 | F16: 0 | G16: 0 | H16: 0 | I16: 0 | J16: 0 | K16: 0 | L16: 0 | N16: 0 | O16: 0 | P16: 0 | Q16: 0 | R16: 0 | S16: 0 | T16: 0 | U16: 0 | V16: 0 | W16: 0 | X16: 0 | Y16: 0 | Z16: 0 | AA16: 0 | AB16: 0 | AC16: 0 | AD16: 0 | AE16: 0 | AF16: 0 | AG16: 0 | AH16: 0 | AI16: 26 | AJ16: 0 | AK16: 0 | AL16: 0 | AM16: 0 | AN16: 0
A17: =IFERROR(SUBTOTAL(3,$C$9:C17),"") -> 0 | B17: 9 | AI17: 26 | AJ17: 0 | AK17: 0 | AL17: 0 | AM17: 0 | AN17: 0
A18: =IFERROR(SUBTOTAL(3,$C$9:C18),"") -> 0 | B18: 10 | AI18: 26 | AJ18: 0 | AK18: 0 | AL18: 0 | AM18: 0 | AN18: 0
A19: =IFERROR(SUBTOTAL(3,$C$9:C19),"") -> 0 | B19: 11 | AI19: 26 | AJ19: 0 | AK19: 0 | AL19: 0 | AM19: 0 | AN19: 0
A20: =IFERROR(SUBTOTAL(3,$C$9:C20),"") -> 0 | B20: 12 | AI20: 26 | AJ20: 0 | AK20: 0 | AL20: 0 | AM20: 0 | AN20: 0
A21: =IFERROR(SUBTOTAL(3,$C$9:C21),"") -> 0 | B21: 13 | AI21: 26 | AJ21: 0 | AK21: 0 | AL21: 0 | AM21: 0 | AN21: 0
A22: =IFERROR(SUBTOTAL(3,$C$9:C22),"") -> 0 | B22: 14 | AI22: 26 | AJ22: 0 | AK22: 0 | AL22: 0 | AM22: 0 | AN22: 0
A23: =IFERROR(SUBTOTAL(3,$C$9:C23),"") -> 0 | B23: 15 | AI23: 26 | AJ23: 0 | AK23: 0 | AL23: 0 | AM23: 0 | AN23: 0
A24: =IFERROR(SUBTOTAL(3,$C$9:C24),"") -> 0 | B24: 16 | AI24: 26 | AJ24: 0 | AK24: 0 | AL24: 0 | AM24: 0 | AN24: 0
A25: =IFERROR(SUBTOTAL(3,$C$9:C25),"") -> 0 | B25: 17 | AI25: 26 | AJ25: 0 | AK25: 0 | AL25: 0 | AM25: 0 | AN25: 0
A26: =IFERROR(SUBTOTAL(3,$C$9:C26),"") -> 0 | B26: 18 | AI26: 26 | AJ26: 0 | AK26: 0 | AL26: 0 | AM26: 0 | AN26: 0
A27: =IFERROR(SUBTOTAL(3,$C$9:C27),"") -> 0 | B27: 19 | AI27: 26 | AJ27: 0 | AK27: 0 | AL27: 0 | AM27: 0 | AN27: 0
A28: =IFERROR(SUBTOTAL(3,$C$9:C28),"") -> 0 | B28: 20 | AI28: 26 | AJ28: 0 | AK28: 0 | AL28: 0 | AM28: 0 | AN28: 0
A29: =IFERROR(SUBTOTAL(3,$C$9:C29),"") -> 0 | B29: 21 | AI29: 26 | AJ29: 0 | AK29: 0 | AL29: 0 | AM29: 0 | AN29: 0
A30: =IFERROR(SUBTOTAL(3,$C$9:C30),"") -> 0 | B30: 22 | AI30: 26 | AJ30: 0 | AK30: 0 | AL30: 0 | AM30: 0 | AN30: 0
A31: =IFERROR(SUBTOTAL(3,$C$9:C31),"") -> 0 | B31: 23 | AI31: 26 | AJ31: 0 | AK31: 0 | AL31: 0 | AM31: 0 | AN31: 0
A32: =IFERROR(SUBTOTAL(3,$C$9:C32),"") -> 0 | B32: 24 | AI32: 26 | AJ32: 0 | AK32: 0 | AL32: 0 | AM32: 0 | AN32: 0
A33: =IFERROR(SUBTOTAL(3,$C$9:C33),"") -> 0 | B33: 25 | AI33: 26 | AJ33: 0 | AK33: 0 | AL33: 0 | AM33: 0 | AN33: 0
A34: =IFERROR(SUBTOTAL(3,$C$9:C34),"") -> 0 | B34: 26 | AI34: 26 | AJ34: 0 | AK34: 0 | AL34: 0 | AM34: 0 | AN34: 0
A35: =IFERROR(SUBTOTAL(3,$C$9:C35),"") -> 0 | B35: 27 | AI35: 26 | AJ35: 0 | AK35: 0 | AL35: 0 | AM35: 0 | AN35: 0
A36: =IFERROR(SUBTOTAL(3,$C$9:C36),"") -> 0 | B36: 28 | AI36: 26 | AJ36: 0 | AK36: 0 | AL36: 0 | AM36: 0 | AN36: 0
A37: =IFERROR(SUBTOTAL(3,$C$9:C37),"") -> 0 | B37: 29 | AI37: 26 | AJ37: 0 | AK37: 0 | AL37: 0 | AM37: 0 | AN37: 0

Sheet Apr
A1: ابريل
A2: السنة | B2: 2021 | C2: اسم الموظف | D2: 2
A3: بداية الشهر | B3: =DATE(B2,VLOOKUP(RIGHT(CELL("filename",A1),LEN(CELL("filename",A1))-FIND("]",CELL("filename",A1))),Months[],2,0),1) -> 2021-04-01 | C3: بداية الاجازة | D3: 2021-01-01
A4: عدد أيام الشهر | B4: =DAY(EOMONTH(B3,0)) -> 30 | C4: نهاية الاجازة | D4: 2021-01-20
C5: نوع الاجازة | D5: unpaid leave
C6: Helper | D6: =COUNTIF(OfficialLeaves[[الاجازات الرسمية ]],D$7) -> 0 | E6: =COUNTIF(OfficialLeaves[[الاجازات الرسمية ]],E$7) -> 0 | F6: =COUNTIF(OfficialLeaves[[الاجازات الرسمية ]],F$7) -> 0 | G6: =COUNTIF(OfficialLeaves[[الاجازات الرسمية ]],G$7) -> 0 | H6: =COUNTIF(OfficialLeaves[[الاجازات الرسمية ]],H$7) -> 0 | I6: =COUNTIF(OfficialLeaves[[الاجازات الرسمية ]],I$7) -> 0 | J6: =COUNTIF(OfficialLeaves[[الاجازات الرسمية ]],J$7) -> 0 | K6: =COUNTIF(OfficialLeaves[[الاجازات الرسمية ]],K$7) -> 0 | L6: =COUNTIF(OfficialLeaves[[الاجازات الرسمية ]],L$7) -> 0 | M6: =COUNTIF(OfficialLeaves[[الاجازات الرسمية ]],M$7) -> 0 | N6: =COUNTIF(OfficialLeaves[[الاجازات الرسمية ]],N$7) -> 0 | O6: =COUNTIF(OfficialLeaves[[الاجازات الرسمية ]],O$7) -> 0 | P6: =COUNTIF(OfficialLeaves[[الاجازات الرسمية ]],P$7) -> 0 | Q6: =COUNTIF(OfficialLeaves[[الاجازات الرسمية ]],Q$7) -> 0 | R6: =COUNTIF(OfficialLeaves[[الاجازات الرسمية ]],R$7) -> 0 | S6: =COUNTIF(OfficialLeaves[[الاجازات الرسمية ]],S$7) -> 0 | T6: =COUNTIF(OfficialLeaves[[الاجازات الرسمية ]],T$7) -> 0 | U6: =COUNTIF(OfficialLeaves[[الاجازات الرسمية ]],U$7) -> 0 | V6: =COUNTIF(OfficialLeaves[[الاجازات الرسمية ]],V$7) -> 0 | W6: =COUNTIF(OfficialLeaves[[الاجازات الرسمية ]],W$7) -> 0 | X6: =COUNTIF(OfficialLeaves[[الاجازات الرسمية ]],X$7) -> 0 | Y6: =COUNTIF(OfficialLeaves[[الاجازات الرسمية ]],Y$7) -> 0 | Z6: =COUNTIF(OfficialLeaves[[الاجازات الرسمية ]],Z$7) -> 0 | AA6: =COUNTIF(OfficialLeaves[[الاجازات الرسمية ]],AA$7) -> 0 | AB6: =COUNTIF(OfficialLeaves[[الاجازات الرسمية ]],AB$7) -> 0 | AC6: =COUNTIF(OfficialLeaves[[الاجازات الرسمية ]],AC$7) -> 0 | AD6: =COUNTIF(OfficialLeaves[[الاجازات الرسمية ]],AD$7) -> 0 | AE6: =COUNTIF(OfficialLeaves[[الاجازات الرسمية ]],AE$7) -> 0 | AF6: =COUNTIF(OfficialLeaves[[الاجازات الرسمية ]],AF$7) -> 0 | AG6: =COUNTIF(OfficialLeaves[[الاجازات الرسمية ]],AG$7) -> 0 | AH6: 0
A7: S.N | B7: Emp ID No. | C7: Days | D7: =IF(COLUMN(A$1)<=$B$4,DATE($B$2,MONTH($B$3),COLUMN(A$1)),"") -> 2021-04-01 | E7: 2021-04-02 | F7: 2021-04-03 | G7: 2021-04-04 | H7: 2021-04-05 | I7: 2021-04-06 | J7: 2021-04-07 | K7: 2021-04-08 | L7: 2021-04-09 | M7: 2021-04-10 | N7: 2021-04-11 | O7: 2021-04-12 | P7: 2021-04-13 | Q7: 2021-04-14 | R7: 2021-04-15 | S7: 2021-04-16 | T7: 2021-04-17 | U7: 2021-04-18 | V7: 2021-04-19 | W7: 2021-04-20 | X7: 2021-04-21 | Y7: 2021-04-22 | Z7: 2021-04-23 | AA7: 2021-04-24 | AB7: 2021-04-25 | AC7: 2021-04-26 | AD7: 2021-04-27 | AE7: 2021-04-28 | AF7: 2021-04-29 | AG7: 2021-04-30 | AH7: Total Paid days | AI7: Medical leaves | AJ7: Vacation | AK7: Absence | AL7: Unpaid | AM7: Official holiday | AN7: pay | AO7: remark
C8: Employee Name | D8: =IFERROR(TEXT(VALUE(DATE($B$2,MONTH($B$3),DAY(D7))),"ddd"),"") -> الخميس | E8: الجمعة | F8: السبت | G8: الأحد | H8: الإثنين | I8: الثلاثاء | J8: الأربعاء | K8: الخميس | L8: الجمعة | M8: السبت | N8: الأحد | O8: الإثنين | P8: الثلاثاء | Q8: الأربعاء | R8: الخميس | S8: الجمعة | T8: السبت | U8: الأحد | V8: الإثنين | W8: الثلاثاء | X8: الأربعاء | Y8: الخميس | Z8: الجمعة | AA8: السبت | AB8: الأحد | AC8: الإثنين | AD8: الثلاثاء | AE8: الأربعاء | AF8: الخميس | AG8: الجمعة
A9: =(SUBTOTAL(3,$C$9:C9)) -> 0 | B9: 1 | D9: =IF(SUMPRODUCT(--(($D$2=$B9)*(D$7>=$D$3)*(D$7<=$D$4)*(NOT(D$6>=1))*(NOT(D$8="الجمعة"))))=1,VLOOKUP($D$5,LeavesTypes[],2,0),"") ->  | AH9: =26-SUM(AJ9,AK9,AL9) -> 26 | AI9: =COUNTIF(C9:AG9,"m") -> 0 | AJ9: =COUNTIF(C9:AG9,"v") -> 0 | AK9: =COUNTIF(C9:AG9,"a") -> 0 | AL9: =COUNTIF(C9:AG9,"u") -> 0 | AM9: =COUNTIF(C9:AG9,"h") -> 0
A10: =IFERROR(SUBTOTAL(3,$C$9:C10),"") -> 0 | B10: 2 | AH10: =26-SUM(AJ10,AK10,AL10) -> 26 | AI10: =COUNTIF(C10:AG10,"m") -> 0 | AJ10: =COUNTIF(C10:AG10,"v") -> 0 | AK10: =COUNTIF(C10:AG10,"a") -> 0 | AL10: =COUNTIF(C10:AG10,"u") -> 0 | AM10: =COUNTIF(C10:AG10,"h") -> 0
A11: =IFERROR(SUBTOTAL(3,$C$9:C11),"") -> 0 | B11: 3 | AH11: 26 | AI11: 0 | AJ11: 0 | AK11: 0 | AL11: 0 | AM11: 0
A12: =IFERROR(SUBTOTAL(3,$C$9:C12),"") -> 0 | B12: 4 | AH12: 26 | AI12: 0 | AJ12: 0 | AK12: 0 | AL12: 0 | AM12: 0
A13: =IFERROR(SUBTOTAL(3,$C$9:C13),"") -> 0 | B13: 5 | AH13: 26 | AI13: 0 | AJ13: 0 | AK13: 0 | AL13: 0 | AM13: 0
A14: =IFERROR(SUBTOTAL(3,$C$9:C14),"") -> 0 | B14: 6 | AH14: 26 | AI14: 0 | AJ14: 0 | AK14: 0 | AL14: 0 | AM14: 0
A15: =IFERROR(SUBTOTAL(3,$C$9:C15),"") -> 0 | B15: 7 | AH15: 26 | AI15: 0 | AJ15: 0 | AK15: 0 | AL15: 0 | AM15: 0
A16: =IFERROR(SUBTOTAL(3,$C$9:C16),"") -> 0 | B16: 8 | D16: 0 | E16: 0 | F16: 0 | G16: 0 | H16: 0 | I16: 0 | J16: 0 | K16: 0 | L16: 0 | N16: 0 | O16: 0 | P16: 0 | Q16: 0 | R16: 0 | S16: 0 | T16: 0 | U16: 0 | V16: 0 | W16: 0 | X16: 0 | Y16: 0 | Z16: 0 | AA16: 0 | AB16: 0 | AC16: 0 | AD16: 0 | AE16: 0 | AF16: 0 | AG16: 0 | AH16: 26 | AI16: 0 | AJ16: 0 | AK16: 0 | AL16: 0 | AM16: 0
A17: =IFERROR(SUBTOTAL(3,$C$9:C17),"") -> 0 | B17: 9 | AH17: 26 | AI17: 0 | AJ17: 0 | AK17: 0 | AL17: 0 | AM17: 0
A18: =IFERROR(SUBTOTAL(3,$C$9:C18),"") -> 0 | B18: 10 | AH18: 26 | AI18: 0 | AJ18: 0 | AK18: 0 | AL18: 0 | AM18: 0
A19: =IFERROR(SUBTOTAL(3,$C$9:C19),"") -> 0 | B19: 11 | AH19: 26 | AI19: 0 | AJ19: 0 | AK19: 0 | AL19: 0 | AM19: 0
A20: =IFERROR(SUBTOTAL(3,$C$9:C20),"") -> 0 | B20: 12 | AH20: 26 | AI20: 0 | AJ20: 0 | AK20: 0 | AL20: 0 | AM20: 0
A21: =IFERROR(SUBTOTAL(3,$C$9:C21),"") -> 0 | B21: 13 | AH21: 26 | AI21: 0 | AJ21: 0 | AK21: 0 | AL21: 0 | AM21: 0
A22: =IFERROR(SUBTOTAL(3,$C$9:C22),"") -> 0 | B22: 14 | AH22: 26 | AI22: 0 | AJ22: 0 | AK22: 0 | AL22: 0 | AM22: 0
A23: =IFERROR(SUBTOTAL(3,$C$9:C23),"") -> 0 | B23: 15 | AH23: 26 | AI23: 0 | AJ23: 0 | AK23: 0 | AL23: 0 | AM23: 0
A24: =IFERROR(SUBTOTAL(3,$C$9:C24),"") -> 0 | B24: 16 | AH24: 26 | AI24: 0 | AJ24: 0 | AK24: 0 | AL24: 0 | AM24: 0
A25: =IFERROR(SUBTOTAL(3,$C$9:C25),"") -> 0 | B25: 17 | AH25: 26 | AI25: 0 | AJ25: 0 | AK25: 0 | AL25: 0 | AM25: 0
A26: =IFERROR(SUBTOTAL(3,$C$9:C26),"") -> 0 | B26: 18 | AH26: 26 | AI26: 0 | AJ26: 0 | AK26: 0 | AL26: 0 | AM26: 0
A27: =IFERROR(SUBTOTAL(3,$C$9:C27),"") -> 0 | B27: 19 | AH27: 26 | AI27: 0 | AJ27: 0 | AK27: 0 | AL27: 0 | AM27: 0
A28: =IFERROR(SUBTOTAL(3,$C$9:C28),"") -> 0 | B28: 20 | AH28: 26 | AI28: 0 | AJ28: 0 | AK28: 0 | AL28: 0 | AM28: 0
A29: =IFERROR(SUBTOTAL(3,$C$9:C29),"") -> 0 | B29: 21 | AH29: 26 | AI29: 0 | AJ29: 0 | AK29: 0 | AL29: 0 | AM29: 0
A30: =IFERROR(SUBTOTAL(3,$C$9:C30),"") -> 0 | B30: 22 | AH30: 26 | AI30: 0 | AJ30: 0 | AK30: 0 | AL30: 0 | AM30: 0
A31: =IFERROR(SUBTOTAL(3,$C$9:C31),"") -> 0 | B31: 23 | AH31: 26 | AI31: 0 | AJ31: 0 | AK31: 0 | AL31: 0 | AM31: 0
A32: =IFERROR(SUBTOTAL(3,$C$9:C32),"") -> 0 | B32: 24 | AH32: 26 | AI32: 0 | AJ32: 0 | AK32: 0 | AL32: 0 | AM32: 0
A33: =IFERROR(SUBTOTAL(3,$C$9:C33),"") -> 0 | B33: 25 | AH33: 26 | AI33: 0 | AJ33: 0 | AK33: 0 | AL33: 0 | AM33: 0
A34: =IFERROR(SUBTOTAL(3,$C$9:C34),"") -> 0 | B34: 26 | AH34: 26 | AI34: 0 | AJ34: 0 | AK34: 0 | AL34: 0 | AM34: 0
A35: =IFERROR(SUBTOTAL(3,$C$9:C35),"") -> 0 | B35: 27 | AH35: 26 | AI35: 0 | AJ35: 0 | AK35: 0 | AL35: 0 | AM35: 0
A36: =IFERROR(SUBTOTAL(3,$C$9:C36),"") -> 0 | B36: 28 | AH36: 26 | AI36: 0 | AJ36: 0 | AK36: 0 | AL36: 0 | AM36: 0
A37: =IFERROR(SUBTOTAL(3,$C$9:C37),"") -> 0 | B37: 29 | AH37: 26 | AI37: 0 | AJ37: 0 | AK37: 0 | AL37: 0 | AM37: 0

Sheet May
A1: مايو
A2: السنة | B2: 2021 | C2: اسم الموظف | D2: 2
A3: بداية الشهر | B3: =DATE(B2,VLOOKUP(RIGHT(CELL("filename",A1),LEN(CELL("filename",A1))-FIND("]",CELL("filename",A1))),Months[],2,0),1) -> 2021-05-01 | C3: بداية الاجازة | D3: 2021-01-01
A4: عدد أيام الشهر | B4: =DAY(EOMONTH(B3,0)) -> 31 | C4: نهاية الاجازة | D4: 2021-01-20
C5: نوع الاجازة | D5: unpaid leave
C6: Helper | D6: =COUNTIF(OfficialLeaves[[الاجازات الرسمية ]],D$7) -> 0 | E6: =COUNTIF(OfficialLeaves[[الاجازات الرسمية ]],E$7) -> 0 | F6: =COUNTIF(OfficialLeaves[[الاجازات الرسمية ]],F$7) -> 0 | G6: =COUNTIF(OfficialLeaves[[الاجازات الرسمية ]],G$7) -> 0 | H6: =COUNTIF(OfficialLeaves[[الاجازات الرسمية ]],H$7) -> 0 | I6: =COUNTIF(OfficialLeaves[[الاجازات الرسمية ]],I$7) -> 0 | J6: =COUNTIF(OfficialLeaves[[الاجازات الرسمية ]],J$7) -> 0 | K6: =COUNTIF(OfficialLeaves[[الاجازات الرسمية ]],K$7) -> 0 | L6: =COUNTIF(OfficialLeaves[[الاجازات الرسمية ]],L$7) -> 0 | M6: =COUNTIF(OfficialLeaves[[الاجازات الرسمية ]],M$7) -> 0 | N6: =COUNTIF(OfficialLeaves[[الاجازات الرسمية ]],N$7) -> 0 | O6: =COUNTIF(OfficialLeaves[[الاجازات الرسمية ]],O$7) -> 0 | P6: =COUNTIF(OfficialLeaves[[الاجازات الرسمية ]],P$7) -> 1 | Q6: =COUNTIF(OfficialLeaves[[الاجازات الرسمية ]],Q$7) -> 1 | R6: =COUNTIF(OfficialLeaves[[الاجازات الرسمية ]],R$7) -> 0 | S6: =COUNTIF(OfficialLeaves[[الاجازات الرسمية ]],S$7) -> 0 | T6: =COUNTIF(OfficialLeaves[[الاجازات الرسمية ]],T$7) -> 0 | U6: =COUNTIF(OfficialLeaves[[الاجازات الرسمية ]],U$7) -> 0 | V6: =COUNTIF(OfficialLeaves[[الاجازات الرسمية ]],V$7) -> 0 | W6: =COUNTIF(OfficialLeaves[[الاجازات الرسمية ]],W$7) -> 0 | X6: =COUNTIF(OfficialLeaves[[الاجازات الرسمية ]],X$7) -> 0 | Y6: =COUNTIF(OfficialLeaves[[الاجازات الرسمية ]],Y$7) -> 0 | Z6: =COUNTIF(OfficialLeaves[[الاجازات الرسمية ]],Z$7) -> 0 | AA6: =COUNTIF(OfficialLeaves[[الاجازات الرسمية ]],AA$7) -> 0 | AB6: =COUNTIF(OfficialLeaves[[الاجازات الرسمية ]],AB$7) -> 0 | AC6: =COUNTIF(OfficialLeaves[[الاجازات الرسمية ]],AC$7) -> 0 | AD6: =COUNTIF(OfficialLeaves[[الاجازات الرسمية ]],AD$7) -> 0 | AE6: =COUNTIF(OfficialLeaves[[الاجازات الرسمية ]],AE$7) -> 0 | AF6: =COUNTIF(OfficialLeaves[[الاجازات الرسمية ]],AF$7) -> 0 | AG6: =COUNTIF(OfficialLeaves[[الاجازات الرسمية ]],AG$7) -> 0 | AH6: =COUNTIF(OfficialLeaves[[الاجازات الرسمية ]],AH$7) -> 0 | AI6: 0
A7: S.N | B7: Emp ID No. | C7: Days | D7: =IF(COLUMN(A$1)<=$B$4,DATE($B$2,MONTH($B$3),COLUMN(A$1)),"") -> 2021-05-01 | E7: 2021-05-02 | F7: 2021-05-03 | G7: 2021-05-04 | H7: 2021-05-05 | I7: 2021-05-06 | J7: 2021-05-07 | K7: 2021-05-08 | L7: 2021-05-09 | M7: 2021-05-10 | N7: 2021-05-11 | O7: 2021-05-12 | P7: 2021-05-13 | Q7: 2021-05-14 | R7: 2021-05-15 | S7: 2021-05-16 | T7: 2021-05-17 | U7: 2021-05-18 | V7: 2021-05-19 | W7: 2021-05-20 | X7: 2021-05-21 | Y7: 2021-05-22 | Z7: 2021-05-23 | AA7: 2021-05-24 | AB7: 2021-05-25 | AC7: 2021-05-26 | AD7: 2021-05-27 | AE7: 2021-05-28 | AF7: 2021-05-29 | AG7: 2021-05-30 | AH7: 2021-05-31 | AI7: Total Paid days | AJ7: Medical leaves | AK7: Vacation | AL7: Absence | AM7: Unpaid | AN7: Official holiday | AO7: pay | AP7: remark
C8: Employee Name | D8: =IFERROR(TEXT(VALUE(DATE($B$2,MONTH($B$3),DAY(D7))),"ddd"),"") -> السبت | E8: الأحد | F8: الإثنين | G8: الثلاثاء | H8: الأربعاء | I8: الخميس | J8: الجمعة | K8: السبت | L8: الأحد | M8: الإثنين | N8: الثلاثاء | O8: الأربعاء | P8: الخميس | Q8: الجمعة | R8: السبت | S8: الأحد | T8: الإثنين | U8: الثلاثاء | V8: الأربعاء | W8: الخميس | X8: الجمعة | Y8: السبت | Z8: الأحد | AA8: الإثنين | AB8: الثلاثاء | AC8: الأربعاء | AD8: الخميس | AE8: الجمعة | AF8: السبت | AG8: الأحد | AH8: الإثنين
A9: =(SUBTOTAL(3,$C$9:C9)) -> 0 | B9: 1 | D9: =IF(SUMPRODUCT(--(($D$2=$B9)*(D$7>=$D$3)*(D$7<=$D$4)*(NOT(D$6>=1))*(NOT(D$8="الجمعة"))))=1,VLOOKUP($D$5,LeavesTypes[],2,0),"") ->  | AI9: =26-SUM(AK9,AL9,AM9) -> 26 | AJ9: =COUNTIF(D9:AH9,"m") -> 0 | AK9: =COUNTIF(D9:AH9,"v") -> 0 | AL9: =COUNTIF(D9:AH9,"a") -> 0 | AM9: =COUNTIF(D9:AH9,"u") -> 0 | AN9: =COUNTIF(D9:AH9,"h") -> 0
A10: =IFERROR(SUBTOTAL(3,$C$9:C10),"") -> 0 | B10: 2 | AI10: =26-SUM(AK10,AL10,AM10) -> 26 | AJ10: =COUNTIF(D10:AH10,"m") -> 0 | AK10: =COUNTIF(D10:AH10,"v") -> 0 | AL10: =COUNTIF(D10:AH10,"a") -> 0 | AM10: =COUNTIF(D10:AH10,"u") -> 0 | AN10: =COUNTIF(D10:AH10,"h") -> 0
A11: =IFERROR(SUBTOTAL(3,$C$9:C11),"") -> 0 | B11: 3 | AI11: 26 | AJ11: 0 | AK11: 0 | AL11: 0 | AM11: 0 | AN11: 0
A12: =IFERROR(SUBTOTAL(3,$C$9:C12),"") -> 0 | B12: 4 | AI12: 26 | AJ12: 0 | AK12: 0 | AL12: 0 | AM12: 0 | AN12: 0
A13: =IFERROR(SUBTOTAL(3,$C$9:C13),"") -> 0 | B13: 5 | AI13: 26 | AJ13: 0 | AK13: 0 | AL13: 0 | AM13: 0 | AN13: 0
A14: =IFERROR(SUBTOTAL(3,$C$9:C14),"") -> 0 | B14: 6 | AI14: 26 | AJ14: 0 | AK14: 0 | AL14: 0 | AM14: 0 | AN14: 0
A15: =IFERROR(SUBTOTAL(3,$C$9:C15),"") -> 0 | B15: 7 | AI15: 26 | AJ15: 0 | AK15: 0 | AL15: 0 | AM15: 0 | AN15: 0
A16: =IFERROR(SUBTOTAL(3,$C$9:C16),"") -> 0 | B16: 8 | D16: 0 | E16: 0 | F16: 0 | G16: 0 | H16: 0 | I16: 0 | J16: 0 | K16: 0 | L16: 0 | N16: 0 | O16: 0 | P16: 0 | Q16: 0 | R16: 0 | S16: 0 | T16: 0 | U16: 0 | V16: 0 | W16: 0 | X16: 0 | Y16: 0 | Z16: 0 | AA16: 0 | AB16: 0 | AC16: 0 | AD16: 0 | AE16: 0 | AF16: 0 | AG16: 0 | AH16: 0 | AI16: 26 | AJ16: 0 | AK16: 0 | AL16: 0 | AM16: 0 | AN16: 0
A17: =IFERROR(SUBTOTAL(3,$C$9:C17),"") -> 0 | B17: 9 | AI17: 26 | AJ17: 0 | AK17: 0 | AL17: 0 | AM17: 0 | AN17: 0
A18: =IFERROR(SUBTOTAL(3,$C$9:C18),"") -> 0 | B18: 10 | AI18: 26 | AJ18: 0 | AK18: 0 | AL18: 0 | AM18: 0 | AN18: 0
A19: =IFERROR(SUBTOTAL(3,$C$9:C19),"") -> 0 | B19: 11 | AI19: 26 | AJ19: 0 | AK19: 0 | AL19: 0 | AM19: 0 | AN19: 0
A20: =IFERROR(SUBTOTAL(3,$C$9:C20),"") -> 0 | B20: 12 | AI20: 26 | AJ20: 0 | AK20: 0 | AL20: 0 | AM20: 0 | AN20: 0
A21: =IFERROR(SUBTOTAL(3,$C$9:C21),"") -> 0 | B21: 13 | AI21: 26 | AJ21: 0 | AK21: 0 | AL21: 0 | AM21: 0 | AN21: 0
A22: =IFERROR(SUBTOTAL(3,$C$9:C22),"") -> 0 | B22: 14 | AI22: 26 | AJ22: 0 | AK22: 0 | AL22: 0 | AM22: 0 | AN22: 0
A23: =IFERROR(SUBTOTAL(3,$C$9:C23),"") -> 0 | B23: 15 | AI23: 26 | AJ23: 0 | AK23: 0 | AL23: 0 | AM23: 0 | AN23: 0
A24: =IFERROR(SUBTOTAL(3,$C$9:C24),"") -> 0 | B24: 16 | AI24: 26 | AJ24: 0 | AK24: 0 | AL24: 0 | AM24: 0 | AN24: 0
A25: =IFERROR(SUBTOTAL(3,$C$9:C25),"") -> 0 | B25: 17 | AI25: 26 | AJ25: 0 | AK25: 0 | AL25: 0 | AM25: 0 | AN25: 0
A26: =IFERROR(SUBTOTAL(3,$C$9:C26),"") -> 0 | B26: 18 | AI26: 26 | AJ26: 0 | AK26: 0 | AL26: 0 | AM26: 0 | AN26: 0
A27: =IFERROR(SUBTOTAL(3,$C$9:C27),"") -> 0 | B27: 19 | AI27: 26 | AJ27: 0 | AK27: 0 | AL27: 0 | AM27: 0 | AN27: 0
A28: =IFERROR(SUBTOTAL(3,$C$9:C28),"") -> 0 | B28: 20 | AI28: 26 | AJ28: 0 | AK28: 0 | AL28: 0 | AM28: 0 | AN28: 0
A29: =IFERROR(SUBTOTAL(3,$C$9:C29),"") -> 0 | B29: 21 | AI29: 26 | AJ29: 0 | AK29: 0 | AL29: 0 | AM29: 0 | AN29: 0
A30: =IFERROR(SUBTOTAL(3,$C$9:C30),"") -> 0 | B30: 22 | AI30: 26 | AJ30: 0 | AK30: 0 | AL30: 0 | AM30: 0 | AN30: 0
A31: =IFERROR(SUBTOTAL(3,$C$9:C31),"") -> 0 | B31: 23 | AI31: 26 | AJ31: 0 | AK31: 0 | AL31: 0 | AM31: 0 | AN31: 0
A32: =IFERROR(SUBTOTAL(3,$C$9:C32),"") -> 0 | B32: 24 | AI32: 26 | AJ32: 0 | AK32: 0 | AL32: 0 | AM32: 0 | AN32: 0
A33: =IFERROR(SUBTOTAL(3,$C$9:C33),"") -> 0 | B33: 25 | AI33: 26 | AJ33: 0 | AK33: 0 | AL33: 0 | AM33: 0 | AN33: 0
A34: =IFERROR(SUBTOTAL(3,$C$9:C34),"") -> 0 | B34: 26 | AI34: 26 | AJ34: 0 | AK34: 0 | AL34: 0 | AM34: 0 | AN34: 0
A35: =IFERROR(SUBTOTAL(3,$C$9:C35),"") -> 0 | B35: 27 | AI35: 26 | AJ35: 0 | AK35: 0 | AL35: 0 | AM35: 0 | AN35: 0
A36: =IFERROR(SUBTOTAL(3,$C$9:C36),"") -> 0 | B36: 28 | AI36: 26 | AJ36: 0 | AK36: 0 | AL36: 0 | AM36: 0 | AN36: 0
A37: =IFERROR(SUBTOTAL(3,$C$9:C37),"") -> 0 | B37: 29 | AI37: 26 | AJ37: 0 | AK37: 0 | AL37: 0 | AM37: 0 | AN37: 0

Sheet Jun
A1: يونيو
A2: السنة | B2: 2021 | C2: اسم الموظف | D2: 2
A3: بداية الشهر | B3: =DATE(B2,VLOOKUP(RIGHT(CELL("filename",A1),LEN(CELL("filename",A1))-FIND("]",CELL("filename",A1))),Months[],2,0),1) -> 2021-06-01 | C3: بداية الاجازة | D3: 2021-01-01
A4: عدد أيام الشهر | B4: =DAY(EOMONTH(B3,0)) -> 30 | C4: نهاية الاجازة | D4: 2021-01-20
C5: نوع الاجازة | D5: unpaid leave
C6: Helper | D6: =COUNTIF(OfficialLeaves[[الاجازات الرسمية ]],D$7) -> 0 | E6: =COUNTIF(OfficialLeaves[[الاجازات الرسمية ]],E$7) -> 0 | F6: =COUNTIF(OfficialLeaves[[الاجازات الرسمية ]],F$7) -> 0 | G6: =COUNTIF(OfficialLeaves[[الاجازات الرسمية ]],G$7) -> 0 | H6: =COUNTIF(OfficialLeaves[[الاجازات الرسمية ]],H$7) -> 0 | I6: =COUNTIF(OfficialLeaves[[الاجازات الرسمية ]],I$7) -> 0 | J6: =COUNTIF(OfficialLeaves[[الاجازات الرسمية ]],J$7) -> 0 | K6: =COUNTIF(OfficialLeaves[[الاجازات الرسمية ]],K$7) -> 0 | L6: =COUNTIF(OfficialLeaves[[الاجازات الرسمية ]],L$7) -> 0 | M6: =COUNTIF(OfficialLeaves[[الاجازات الرسمية ]],M$7) -> 0 | N6: =COUNTIF(OfficialLeaves[[الاجازات الرسمية ]],N$7) -> 0 | O6: =COUNTIF(OfficialLeaves[[الاجازات الرسمية ]],O$7) -> 0 | P6: =COUNTIF(OfficialLeaves[[الاجازات الرسمية ]],P$7) -> 0 | Q6: =COUNTIF(OfficialLeaves[[الاجازات الرسمية ]],Q$7) -> 0 | R6: =COUNTIF(OfficialLeaves[[الاجازات الرسمية ]],R$7) -> 0 | S6: =COUNTIF(OfficialLeaves[[الاجازات الرسمية ]],S$7) -> 0 | T6: =COUNTIF(OfficialLeaves[[الاجازات الرسمية ]],T$7) -> 0 | U6: =COUNTIF(OfficialLeaves[[الاجازات الرسمية ]],U$7) -> 0 | V6: =COUNTIF(OfficialLeaves[[الاجازات الرسمية ]],V$7) -> 0 | W6: =COUNTIF(OfficialLeaves[[الاجازات الرسمية ]],W$7) -> 0 | X6: =COUNTIF(OfficialLeaves[[الاجازات الرسمية ]],X$7) -> 0 | Y6: =COUNTIF(OfficialLeaves[[الاجازات الرسمية ]],Y$7) -> 0 | Z6: =COUNTIF(OfficialLeaves[[الاجازات الرسمية ]],Z$7) -> 0 | AA6: =COUNTIF(OfficialLeaves[[الاجازات الرسمية ]],AA$7) -> 0 | AB6: =COUNTIF(OfficialLeaves[[الاجازات الرسمية ]],AB$7) -> 0 | AC6: =COUNTIF(OfficialLeaves[[الاجازات الرسمية ]],AC$7) -> 0 | AD6: =COUNTIF(OfficialLeaves[[الاجازات الرسمية ]],AD$7) -> 0 | AE6: =COUNTIF(OfficialLeaves[[الاجازات الرسمية ]],AE$7) -> 0 | AF6: =COUNTIF(OfficialLeaves[[الاجازات الرسمية ]],AF$7) -> 0 | AG6: =COUNTIF(OfficialLeaves[[الاجازات الرسمية ]],AG$7) -> 0 | AH6: =COUNTIF(OfficialLeaves[[الاجازات الرسمية ]],AH$7) -> 0 | AI6: 0
A7: S.N | B7: Emp ID No. | C7: Days | D7: =IF(COLUMN(A$1)<=$B$4,DATE($B$2,MONTH($B$3),COLUMN(A$1)),"") -> 2021-06-01 | E7: 2021-06-02 | F7: 2021-06-03 | G7: 2021-06-04 | H7: 2021-06-05 | I7: 2021-06-06 | J7: 2021-06-07 | K7: 2021-06-08 | L7: 2021-06-09 | M7: 2021-06-10 | N7: 2021-06-11 | O7: 2021-06-12 | P7: 2021-06-13 | Q7: 2021-06-14 | R7: 2021-06-15 | S7: 2021-06-16 | T7: 2021-06-17 | U7: 2021-06-18 | V7: 2021-06-19 | W7: 2021-06-20 | X7: 2021-06-21 | Y7: 2021-06-22 | Z7: 2021-06-23 | AA7: 2021-06-24 | AB7: 2021-06-25 | AC7: 2021-06-26 | AD7: 2021-06-27 | AE7: 2021-06-28 | AF7: 2021-06-29 | AG7: 2021-06-30 | AI7: Total Paid days | AJ7: Medical leaves | AK7: Vacation | AL7: Absence | AM7: Unpaid | AN7: Official holiday | AO7: pay | AP7: remark
C8: Employee Name | D8: =IFERROR(TEXT(VALUE(DATE($B$2,MONTH($B$3),DAY(D7))),"ddd"),"") -> الثلاثاء | E8: الأربعاء | F8: الخميس | G8: الجمعة | H8: السبت | I8: الأحد | J8: الإثنين | K8: الثلاثاء | L8: الأربعاء | M8: الخميس | N8: الجمعة | O8: السبت | P8: الأحد | Q8: الإثنين | R8: الثلاثاء | S8: الأربعاء | T8: الخميس | U8: الجمعة | V8: السبت | W8: الأحد | X8: الإثنين | Y8: الثلاثاء | Z8: الأربعاء | AA8: الخميس | AB8: الجمعة | AC8: السبت | AD8: الأحد | AE8: الإثنين | AF8: الثلاثاء | AG8: الأربعاء
A9: =(SUBTOTAL(3,$C$9:C9)) -> 0 | B9: 1 | D9: =IF(SUMPRODUCT(--(($D$2=$B9)*(D$7>=$D$3)*(D$7<=$D$4)*(NOT(D$6>=1))*(NOT(D$8="الجمعة"))))=1,VLOOKUP($D$5,LeavesTypes[],2,0),"") ->  | AI9: =26-SUM(AK9,AL9,AM9) -> 26 | AJ9: =COUNTIF(D9:AH9,"m") -> 0 | AK9: =COUNTIF(D9:AH9,"v") -> 0 | AL9: =COUNTIF(D9:AH9,"a") -> 0 | AM9: =COUNTIF(D9:AH9,"u") -> 0 | AN9: =COUNTIF(D9:AH9,"h") -> 0
A10: =IFERROR(SUBTOTAL(3,$C$9:C10),"") -> 0 | B10: 2 | AI10: =26-SUM(AK10,AL10,AM10) -> 26 | AJ10: =COUNTIF(D10:AH10,"m") -> 0 | AK10: =COUNTIF(D10:AH10,"v") -> 0 | AL10: =COUNTIF(D10:AH10,"a") -> 0 | AM10: =COUNTIF(D10:AH10,"u") -> 0 | AN10: =COUNTIF(D10:AH10,"h") -> 0
A11: =IFERROR(SUBTOTAL(3,$C$9:C11),"") -> 0 | B11: 3 | AI11: 26 | AJ11: 0 | AK11: 0 | AL11: 0 | AM11: 0 | AN11: 0
A12: =IFERROR(SUBTOTAL(3,$C$9:C12),"") -> 0 | B12: 4 | AI12: 26 | AJ12: 0 | AK12: 0 | AL12: 0 | AM12: 0 | AN12: 0
A13: =IFERROR(SUBTOTAL(3,$C$9:C13),"") -> 0 | B13: 5 | AI13: 26 | AJ13: 0 | AK13: 0 | AL13: 0 | AM13: 0 | AN13: 0
A14: =IFERROR(SUBTOTAL(3,$C$9:C14),"") -> 0 | B14: 6 | AI14: 26 | AJ14: 0 | AK14: 0 | AL14: 0 | AM14: 0 | AN14: 0
A15: =IFERROR(SUBTOTAL(3,$C$9:C15),"") -> 0 | B15: 7 | AI15: 26 | AJ15: 0 | AK15: 0 | AL15: 0 | AM15: 0 | AN15: 0
A16: =IFERROR(SUBTOTAL(3,$C$9:C16),"") -> 0 | B16: 8 | D16: 0 | E16: 0 | F16: 0 | G16: 0 | H16: 0 | I16: 0 | J16: 0 | K16: 0 | L16: 0 | N16: 0 | O16: 0 | P16: 0 | Q16: 0 | R16: 0 | S16: 0 | T16: 0 | U16: 0 | V16: 0 | W16: 0 | X16: 0 | Y16: 0 | Z16: 0 | AA16: 0 | AB16: 0 | AC16: 0 | AD16: 0 | AE16: 0 | AF16: 0 | AG16: 0 | AH16: 0 | AI16: 26 | AJ16: 0 | AK16: 0 | AL16: 0 | AM16: 0 | AN16: 0
A17: =IFERROR(SUBTOTAL(3,$C$9:C17),"") -> 0 | B17: 9 | AI17: 26 | AJ17: 0 | AK17: 0 | AL17: 0 | AM17: 0 | AN17: 0
A18: =IFERROR(SUBTOTAL(3,$C$9:C18),"") -> 0 | B18: 10 | AI18: 26 | AJ18: 0 | AK18: 0 | AL18: 0 | AM18: 0 | AN18: 0
A19: =IFERROR(SUBTOTAL(3,$C$9:C19),"") -> 0 | B19: 11 | AI19: 26 | AJ19: 0 | AK19: 0 | AL19: 0 | AM19: 0 | AN19: 0
A20: =IFERROR(SUBTOTAL(3,$C$9:C20),"") -> 0 | B20: 12 | AI20: 26 | AJ20: 0 | AK20: 0 | AL20: 0 | AM20: 0 | AN20: 0
A21: =IFERROR(SUBTOTAL(3,$C$9:C21),"") -> 0 | B21: 13 | AI21: 26 | AJ21: 0 | AK21: 0 | AL21: 0 | AM21: 0 | AN21: 0
A22: =IFERROR(SUBTOTAL(3,$C$9:C22),"") -> 0 | B22: 14 | AI22: 26 | AJ22: 0 | AK22: 0 | AL22: 0 | AM22: 0 | AN22: 0
A23: =IFERROR(SUBTOTAL(3,$C$9:C23),"") -> 0 | B23: 15 | AI23: 26 | AJ23: 0 | AK23: 0 | AL23: 0 | AM23: 0 | AN23: 0
A24: =IFERROR(SUBTOTAL(3,$C$9:C24),"") -> 0 | B24: 16 | AI24: 26 | AJ24: 0 | AK24: 0 | AL24: 0 | AM24: 0 | AN24: 0
A25: =IFERROR(SUBTOTAL(3,$C$9:C25),"") -> 0 | B25: 17 | AI25: 26 | AJ25: 0 | AK25: 0 | AL25: 0 | AM25: 0 | AN25: 0
A26: =IFERROR(SUBTOTAL(3,$C$9:C26),"") -> 0 | B26: 18 | AI26: 26 | AJ26: 0 | AK26: 0 | AL26: 0 | AM26: 0 | AN26: 0
A27: =IFERROR(SUBTOTAL(3,$C$9:C27),"") -> 0 | B27: 19 | AI27: 26 | AJ27: 0 | AK27: 0 | AL27: 0 | AM27: 0 | AN27: 0
A28: =IFERROR(SUBTOTAL(3,$C$9:C28),"") -> 0 | B28: 20 | AI28: 26 | AJ28: 0 | AK28: 0 | AL28: 0 | AM28: 0 | AN28: 0
A29: =IFERROR(SUBTOTAL(3,$C$9:C29),"") -> 0 | B29: 21 | AI29: 26 | AJ29: 0 | AK29: 0 | AL29: 0 | AM29: 0 | AN29: 0
A30: =IFERROR(SUBTOTAL(3,$C$9:C30),"") -> 0 | B30: 22 | AI30: 26 | AJ30: 0 | AK30: 0 | AL30: 0 | AM30: 0 | AN30: 0
A31: =IFERROR(SUBTOTAL(3,$C$9:C31),"") -> 0 | B31: 23 | AI31: 26 | AJ31: 0 | AK31: 0 | AL31: 0 | AM31: 0 | AN31: 0
A32: =IFERROR(SUBTOTAL(3,$C$9:C32),"") -> 0 | B32: 24 | AI32: 26 | AJ32: 0 | AK32: 0 | AL32: 0 | AM32: 0 | AN32: 0
A33: =IFERROR(SUBTOTAL(3,$C$9:C33),"") -> 0 | B33: 25 | AI33: 26 | AJ33: 0 | AK33: 0 | AL33: 0 | AM33: 0 | AN33: 0
A34: =IFERROR(SUBTOTAL(3,$C$9:C34),"") -> 0 | B34: 26 | AI34: 26 | AJ34: 0 | AK34: 0 | AL34: 0 | AM34: 0 | AN34: 0
A35: =IFERROR(SUBTOTAL(3,$C$9:C35),"") -> 0 | B35: 27 | AI35: 26 | AJ35: 0 | AK35: 0 | AL35: 0 | AM35: 0 | AN35: 0
A36: =IFERROR(SUBTOTAL(3,$C$9:C36),"") -> 0 | B36: 28 | AI36: 26 | AJ36: 0 | AK36: 0 | AL36: 0 | AM36: 0 | AN36: 0
A37: =IFERROR(SUBTOTAL(3,$C$9:C37),"") -> 0 | B37: 29 | AI37: 26 | AJ37: 0 | AK37: 0 | AL37: 0 | AM37: 0 | AN37: 0

Sheet Jul
A1: يوليو
A2: السنة | B2: 2021 | C2: اسم الموظف | D2: 2
A3: بداية الشهر | B3: =DATE(B2,VLOOKUP(RIGHT(CELL("filename",A1),LEN(CELL("filename",A1))-FIND("]",CELL("filename",A1))),Months[],2,0),1) -> 2021-07-01 | C3: بداية الاجازة | D3: 2021-07-01
A4: عدد أيام الشهر | B4: =DAY(EOMONTH(B3,0)) -> 31 | C4: نهاية الاجازة | D4: 2021-07-20
C5: نوع الاجازة | D5: unpaid leave
C6: Helper | D6: =COUNTIF(OfficialLeaves[[الاجازات الرسمية ]],D$7) -> 0 | E6: =COUNTIF(OfficialLeaves[[الاجازات الرسمية ]],E$7) -> 0 | F6: =COUNTIF(OfficialLeaves[[الاجازات الرسمية ]],F$7) -> 0 | G6: =COUNTIF(OfficialLeaves[[الاجازات الرسمية ]],G$7) -> 0 | H6: =COUNTIF(OfficialLeaves[[الاجازات الرسمية ]],H$7) -> 0 | I6: =COUNTIF(OfficialLeaves[[الاجازات الرسمية ]],I$7) -> 0 | J6: =COUNTIF(OfficialLeaves[[الاجازات الرسمية ]],J$7) -> 0 | K6: =COUNTIF(OfficialLeaves[[الاجازات الرسمية ]],K$7) -> 0 | L6: =COUNTIF(OfficialLeaves[[الاجازات الرسمية ]],L$7) -> 0 | M6: =COUNTIF(OfficialLeaves[[الاجازات الرسمية ]],M$7) -> 0 | N6: =COUNTIF(OfficialLeaves[[الاجازات الرسمية ]],N$7) -> 0 | O6: =COUNTIF(OfficialLeaves[[الاجازات الرسمية ]],O$7) -> 0 | P6: =COUNTIF(OfficialLeaves[[الاجازات الرسمية ]],P$7) -> 0 | Q6: =COUNTIF(OfficialLeaves[[الاجازات الرسمية ]],Q$7) -> 0 | R6: =COUNTIF(OfficialLeaves[[الاجازات الرسمية ]],R$7) -> 0 | S6: =COUNTIF(OfficialLeaves[[الاجازات الرسمية ]],S$7) -> 0 | T6: =COUNTIF(OfficialLeaves[[الاجازات الرسمية ]],T$7) -> 0 | U6: =COUNTIF(OfficialLeaves[[الاجازات الرسمية ]],U$7) -> 0 | V6: =COUNTIF(OfficialLeaves[[الاجازات الرسمية ]],V$7) -> 0 | W6: =COUNTIF(OfficialLeaves[[الاجازات الرسمية ]],W$7) -> 1 | X6: =COUNTIF(OfficialLeaves[[الاجازات الرسمية ]],X$7) -> 1 | Y6: =COUNTIF(OfficialLeaves[[الاجازات الرسمية ]],Y$7) -> 0 | Z6: =COUNTIF(OfficialLeaves[[الاجازات الرسمية ]],Z$7) -> 0 | AA6: =COUNTIF(OfficialLeaves[[الاجازات الرسمية ]],AA$7) -> 0 | AB6: =COUNTIF(OfficialLeaves[[الاجازات الرسمية ]],AB$7) -> 0 | AC6: =COUNTIF(OfficialLeaves[[الاجازات الرسمية ]],AC$7) -> 0 | AD6: =COUNTIF(OfficialLeaves[[الاجازات الرسمية ]],AD$7) -> 0 | AE6: =COUNTIF(OfficialLeaves[[الاجازات الرسمية ]],AE$7) -> 0 | AF6: =COUNTIF(OfficialLeaves[[الاجازات الرسمية ]],AF$7) -> 0 | AG6: =COUNTIF(OfficialLeaves[[الاجازات الرسمية ]],AG$7) -> 0 | AH6: =COUNTIF(OfficialLeaves[[الاجازات الرسمية ]],AH$7) -> 0 | AI6: 0
